{"text_format":"1","workbook":"xlsx","n_sheets":12,"sheets":["Cover Sheet","Competitive","Scoresheet","Named Ranges","TOC Data","Dropdown Lists","Cover Sheet Links","Competitve Information","4% Only","Sheet2","Sheet1","Sheet3"],"not_rendered":{"charts":0,"images":0,"macros":1,"external_links":0,"defined_names":570,"comments":0,"pivot_tables":0},"unopened":[],"bounds":{"document_bytes":16777216,"sheet_cells":100000,"rows_first":2000,"rows_last":500,"rows_between":2000,"halvings":0,"cell_chars":16384,"cell_head_chars":4096},"cells_cut":0,"cells_raw":0,"read":"whole","date_system":"1900"}

{"sheet":"Cover Sheet","index":0,"n_rows":38,"n_cols":5,"rows_kept":38,"cut":false,"hidden":false,"merged":[[1,0,2,3],[10,1,10,9],[12,2,12,9],[20,2,20,9],[7,0,7,15],[6,0,6,15]]}
[]
[null,null,null,null,"Multifamily 2021 Housing Tax Credit Self-Scoring Worksheets"]
[null,null,null,null,"and 2020 Request for Proposals Deferred Loan Priority Checklist"]
[]
["Updated 2020 02 07",null,null,"Ver 1.0"]
[]
["INSTRUCTIONS"]
["When you indicate the type of funding you are applying for, the applicable Housing Tax Credit Self-scoring Worksheet or Deferred Loan Priority Checklist will open. If you go back to the Cover Sheet and change your selection, the sheet will update to reflect the Cover Sheet selection’s criteria. Minnesota Housing will only review the submitted information based on the selection made on the Cover Sheet.\n\nIf you are submitting a dual application, complete and save your primary scoresheet first.  Then you can 'save as' to save a new scoresheet or start from a blank scoresheet to complete you dual application scoresheet.\n\nNOTE: Unchecking your funding type selection after beginning to enter data in the scoresheet will clear all information that has been entered.\n\n"]
[]
[]
[null,"Indicate the type of funding you are applying for:"]
[]
[null,null,"9% Housing Tax Credits Only Request"]
[]
[null,null,"9% Housing Tax Credits and a Deferred Loan Request"]
[]
[null,null,"4% Housing Tax Credits Only Request"]
[]
[null,null,"Deferred Loan Request with 4% Housing Tax Credits"]
[]
[null,null,"Deferred Loan Only Request"]
[]
[]
[]
["The Self-Scoring Worksheet and Deferred Loan Priority Checklist are color coded to assist applicants in filling out the proper information."]
[]
[null,null,"Light blue cells can be filled out by the applicant."]
[]
[null,null,"Grey cells cannot be edited. An error message will appear if you try to click on or enter data in grey cells."]
[]
[null,null,"Cells may turn grey if:"]
[null,null,"- You filled in another cell that is mutually exclusive of this cell, or"]
[null,null,"- You have not completed the necessary associated information in a previous cell. "]
[]
[null,null,"If you need to edit a grey cell, you may need to delete or edit data in a previous cell(s) before it becomes editable and turns blue. "]
[null,null,"See the help text to identify which cells contain these dependencies."]
[]
[null,null,"Monitor resolution may vary. If a cell appears to have text that isn’t visible, try adjusting your zoom or select the cell to see the contents in the formula bar."]

{"sheet":"Competitive","index":1,"n_rows":807,"n_cols":18,"rows_kept":807,"cut":false,"hidden":true,"merged":[[263,16,266,18],[267,3,267,13],[0,0,0,18],[1,0,1,18],[508,4,508,13],[511,2,511,13],[514,2,514,13],[111,0,111,15],[405,4,405,13],[131,3,131,15],[279,2,279,13],[209,5,209,13],[210,5,210,13],[205,4,205,13],[232,3,232,13],[166,0,166,13],[220,2,220,12],[249,4,249,13],[235,3,235,13],[233,3,233,13],[212,4,212,13],[252,5,252,13],[466,0,466,13],[332,3,332,13],[334,5,334,13],[346,5,346,12],[290,4,290,13],[291,4,291,13],[286,3,286,13],[564,6,564,13],[526,4,526,13],[562,5,562,13],[474,5,474,13],[509,4,509,13],[520,2,520,13],[505,2,505,13],[472,4,472,13],[516,4,516,13],[477,6,477,13],[478,7,478,13],[479,7,479,13],[485,4,485,13],[488,5,488,13],[491,5,491,13],[462,10,462,12],[437,4,437,13],[436,4,436,13],[382,5,382,13],[384,2,384,13],[423,7,423,13],[211,5,211,13],[467,2,467,13],[153,3,153,15],[364,3,364,13],[365,3,365,13],[306,5,306,12],[208,4,208,13],[234,3,234,13],[214,2,214,13],[202,3,202,13],[357,3,357,10],[399,6,399,13],[308,3,308,13],[320,5,320,12],[318,5,318,12],[316,5,316,12],[203,3,203,13],[238,2,238,13],[190,3,190,13],[452,7,452,13],[263,0,263,13],[264,2,264,13],[266,3,266,13],[455,7,455,13],[256,5,256,13],[261,2,261,13],[302,5,302,12],[481,5,481,13],[476,5,476,13],[482,5,482,13],[304,5,304,11],[323,1,323,13],[361,2,361,13],[327,2,327,13],[325,2,325,12],[352,6,352,12],[401,6,401,13],[425,5,425,13],[336,5,336,13],[339,0,339,13],[348,4,348,13],[363,3,363,13],[282,2,282,13],[293,3,293,13],[288,4,288,13],[289,4,289,13],[446,7,446,13],[461,2,461,13],[255,5,255,13],[421,7,421,13],[215,2,215,13],[117,3,117,15],[121,3,121,15],[312,5,312,12],[314,5,314,12],[204,3,204,13],[162,3,162,13],[163,3,163,13],[132,3,132,15],[277,2,277,13],[206,4,206,13],[207,5,207,13],[284,3,284,13],[322,1,322,13],[417,5,417,13],[419,7,419,13],[358,3,358,10],[359,3,359,13],[370,2,370,13],[373,2,373,13],[397,6,397,13],[387,2,387,13],[460,2,460,13],[454,7,454,13],[14,0,14,18],[17,2,17,18],[20,2,20,18],[10,2,10,7],[10,8,10,11],[33,2,33,18],[451,7,451,13],[389,2,389,13],[391,3,391,13],[393,4,393,13],[395,6,395,13],[375,3,375,13],[377,5,377,13],[379,5,379,13],[403,6,403,13],[380,5,380,13],[386,2,386,13],[430,7,430,13],[431,7,431,13],[434,4,434,13],[439,5,439,13],[441,7,441,13],[442,7,442,13],[444,7,444,13],[2,0,2,18],[4,0,4,18],[6,2,6,7],[6,8,6,11],[7,2,7,7],[7,8,7,9],[8,2,8,7],[8,8,8,9],[9,2,9,7],[9,8,9,11],[57,2,57,18],[60,2,60,18],[72,3,72,18],[22,2,22,18],[29,2,29,18],[35,2,35,18],[39,2,39,18],[42,2,42,18],[68,3,68,18],[71,3,71,18],[69,3,69,18],[124,5,124,15],[125,5,125,15],[122,4,122,15],[45,2,45,18],[62,0,62,18],[64,0,64,18],[23,2,23,18],[26,2,26,18],[36,2,36,18],[47,2,47,18],[54,2,54,18],[74,3,74,18],[78,3,78,18],[80,2,80,16],[49,0,49,18],[52,0,52,18],[50,2,50,18],[28,0,28,9],[30,2,30,8],[51,2,51,8],[152,3,152,15],[193,4,193,13],[108,0,108,15],[109,0,109,15],[110,0,110,15],[143,3,143,15],[145,3,145,15],[146,3,146,15],[154,3,154,15],[133,3,133,15],[135,3,135,15],[136,3,136,15],[137,3,137,15],[159,3,159,13],[160,3,160,13],[130,3,130,15],[161,3,161,13],[123,5,123,15],[139,3,139,15],[140,3,140,15],[141,3,141,15],[142,3,142,15],[148,3,148,15],[151,3,151,15],[487,5,487,13],[490,5,490,13],[480,7,480,13],[475,6,475,13],[795,1,795,13],[796,1,796,13],[758,3,758,13],[759,3,759,13],[714,0,714,13],[727,2,727,13],[728,3,728,13],[729,3,729,13],[730,3,730,13],[731,3,731,13],[723,5,723,13],[738,3,738,13],[739,3,739,13],[732,3,732,13],[733,3,733,13],[649,3,649,13],[734,3,734,13],[737,3,737,13],[721,5,721,13],[717,3,717,13],[719,3,719,13],[664,3,664,13],[678,2,678,13],[679,3,679,13],[680,3,680,13],[705,4,705,13],[710,2,710,13],[685,3,685,13],[686,3,686,13],[688,2,688,13],[692,3,692,13],[673,8,673,13],[683,3,683,13],[684,3,684,13],[700,8,700,13],[682,3,682,13],[681,3,681,13],[674,8,674,13],[804,1,804,13],[760,3,760,13],[764,3,764,13],[797,1,797,13],[798,1,798,13],[746,3,746,13],[747,3,747,13],[748,3,748,13],[754,3,754,13],[755,3,755,13],[749,3,749,13],[757,3,757,13],[750,3,750,13],[801,1,801,13],[802,1,802,13],[762,2,762,13],[765,3,765,13],[767,3,767,13],[793,0,793,13],[751,3,751,13],[752,3,752,13],[753,3,753,13],[799,1,799,13],[800,1,800,13],[613,5,613,13],[574,2,574,13],[614,5,614,13],[545,6,545,13],[643,2,643,13],[652,3,652,13],[539,5,539,13],[540,6,540,13],[541,6,541,13],[542,5,542,13],[543,5,543,13],[544,6,544,13],[565,6,565,13],[556,6,556,13],[558,4,558,13],[563,5,563,13],[648,3,648,13],[356,2,356,13],[354,6,354,12],[247,4,247,13],[248,4,248,13],[250,4,250,13],[296,5,296,12],[300,5,300,12],[619,2,619,13],[672,8,672,13],[671,8,671,13],[253,5,253,13],[254,5,254,13],[257,5,257,13],[258,5,258,13],[259,4,259,13],[251,5,251,13],[371,2,371,13],[447,7,447,13],[449,5,449,13],[647,3,647,13],[670,8,670,13],[665,3,665,13],[499,4,499,13],[468,2,468,13],[806,0,806,13],[428,7,428,13],[171,5,171,12],[180,3,180,13],[169,3,169,13],[175,2,175,13],[528,2,528,13],[530,0,530,13],[407,6,407,13],[410,6,410,12],[411,6,411,13],[408,6,408,13],[413,3,413,13],[415,4,415,13],[326,2,326,13],[783,0,783,8],[741,2,741,13],[742,3,742,13],[743,3,743,13],[744,3,744,13],[745,3,745,13],[756,3,756,13],[525,4,525,13],[651,3,651,13],[483,6,483,13],[492,5,492,13],[523,2,523,13],[645,4,645,13],[535,2,535,13],[512,2,512,13],[521,2,521,11],[518,2,518,13],[506,2,506,13],[626,3,626,13],[551,4,551,13],[553,5,553,13],[554,5,554,13],[555,6,555,13],[560,4,560,13],[616,5,616,13],[531,1,531,13],[533,2,533,13],[537,4,537,13],[642,2,642,13],[634,8,634,13],[635,8,635,13],[576,3,576,13],[638,4,638,13],[470,4,470,13],[201,3,201,13],[546,6,546,13],[547,5,547,13],[566,6,566,13],[567,6,567,13],[569,2,569,13],[632,8,632,13],[633,8,633,13],[494,3,494,13],[496,2,496,13],[498,4,498,13],[501,2,501,13],[503,2,503,13],[457,2,457,13],[458,2,458,13],[571,2,571,13],[464,2,464,13],[623,3,623,13],[625,3,625,13],[615,4,615,13],[618,0,618,13],[630,8,630,13],[631,8,631,13],[12,0,12,18],[106,0,106,16],[328,2,328,13],[330,2,330,13],[340,2,340,13],[342,3,342,13],[126,4,126,13],[147,3,147,13],[240,2,240,13],[216,3,216,13],[217,3,217,13],[230,2,230,13],[236,3,236,13],[242,2,242,13],[243,3,243,13],[244,3,244,13],[245,3,245,13],[246,3,246,13],[222,3,222,11],[219,16,219,17],[178,2,178,13],[177,2,177,13],[197,2,197,13],[199,2,199,13],[463,2,463,13],[602,3,602,13],[604,5,604,13],[605,5,605,13],[606,4,606,13],[607,5,607,13],[646,3,646,13],[656,4,656,13],[654,3,654,13],[655,4,655,13],[653,3,653,13],[611,3,611,13],[536,2,536,13],[582,6,582,13],[573,2,573,13],[621,3,621,13],[639,4,639,13],[641,2,641,13],[650,3,650,13],[636,8,636,13],[644,3,644,13],[489,5,489,13],[486,5,486,13],[471,4,471,13],[774,2,774,13],[775,2,775,13],[777,4,777,13],[778,4,778,13],[780,4,780,13],[781,4,781,13],[657,4,657,13],[658,4,658,13],[660,2,660,13],[676,4,676,13],[735,3,735,13],[736,3,736,13],[769,2,769,13],[771,2,771,13],[773,2,773,13],[712,2,712,10],[694,3,694,13],[707,4,707,13],[698,8,698,13],[699,8,699,13],[715,2,715,13],[706,4,706,13],[709,2,709,13],[701,8,701,13]]}
["Multifamily Deferred Only Priority Checklist"]
["2020 Request for Proposals"]
["2021 Housing Tax Credit Self-Scoring Worksheet"]
["Housing Tax Credit projects submitted in a Competitive funding round*"]
["Updated October 2019"]
[]
[null,null,"Project Name:"]
[null,null,"Property Number (D#):",null,null,null,null,null,null,null,"Include \"D\" in the Property Number."]
[null,null,"Project Number (M#):",null,null,null,null,null,null,null,"Include \"M\" in the Project Number. Only enter one Project Number."]
[null,null,"Primary Address:"]
[null,null,"City:"]
[]
["*A Competitive funding round includes the Consolidated Request for Proposal (RFP), HTC Round 1, HTC Round 2, and available financing throughout the year including first mortgage products, bonds, and deferred funds in conjunction with 4% HTCs."]
[]
["Instructions"]
[]
["Strategic Priority Policy Threshold:"]
[null,"A.","All projects, must meet at least one of the Strategic Priority Policy Thresholds defined in Article 9 of the State of Minnesota Housing Tax Credit Qualified Allocation Plan (QAP) in order to apply for Housing Tax Credits (HTC)."]
[]
["Minimum Point Requirements:"]
[null,"A.","Request for Minnesota Housing Finance Agency (Minnesota Housing) administered HTCs from the state’s HTC volume cap must demonstrate the project is eligible for not fewer than 70 points, excluding projects funded through the Rural Development/Small Projects set-aside."]
[]
[null,"B.","Request for HTCs in association with tax exempt volume limited bonds must demonstrate the project is eligible for no fewer than 40 points."]
[null,"C.","Minnesota Housing reserves the right to reject applications not meeting its Project Selection requirements as contained in the HTC Program Procedural Manual, to revise proposal features, and associated scoring, and to ensure the project meets the requirements"]
[]
["Documentation of Points:"]
[null,"A.","Indicate the selection criteria expected for your project. Where multiple points per section are available, please check the appropriate box (□) for points claimed. In addition to the Self-Scoring Worksheet the applicant must submit documentation that clearly supports the points claimed. See the HTC and Deferred Scoring Guide and Multifamily Customer Portal for additional details. Minnesota Housing will determine the eligible points; points will not be awarded unless the required documentation is provided along with the application to justify the points claimed."]
[]
["Adherence to HTC and Deferred Scoring Guide:"]
[null,"A.","Applicants must meet the requirements outlined in the Self-Scoring Worksheet and the HTC and Deferred Scoring Guide to be eligible for points."]
[null,null,"Link to HTC and Deferred Scoring Guide"]
[]
["Documentation of Units:"]
[null,"A.","Indicate the number of units for each selection criteria expected for your project.  When calculating a percentage for a criterion all units must be rounded up to the next full unit.  The number of units indicated will be required and incorporated into the Tax Credit Declaration of Land Use Restrictive Covenants (LURA) and deferred loan documents with the exception of tenant targeting in the Permanent Supportive Housing for High Priority Homeless."]
["Extended Duration:"]
[null,"A.","Request for Minnesota Housing Finance Agency (Minnesota Housing) administered HTCs from the state’s HTC volume cap must maintain the duration of low-income use for a minimum of 30 years or longer if a longer duration is selected. The owner agrees that the Qualified Contract  provisions of IRC §§ 42(h)(6)(E)(i)(II) and 42(h)(6)(F) (which provision would permit the owner to terminate the restrictions under this agreement at the end of the compliance period in the event Minnesota Housing does not present the owner with a qualified contract for the acquisition of the project) do not apply to the project, and the owner also agrees the Section 42 income and rental restrictions must apply for a period of at least 30 years beginning with the first day of the compliance period in which the building is a part of a qualified low-income housing project."]
[null,"B.","Request for HTCs in association with tax exempt volume limited bonds must maintain the duration of low-income use for a minimum of 30 years, or longer if a longer duration is selected. The owner agrees that the Qualified Contract provisions of IRC §§ 42(h)(6)(E)(i)(II) and 42(h)(6)(F) (which provision would permit the owner to terminate the restrictions under this agreement at the end of the compliance period in the event Minnesota Housing does not present the owner with a qualified contract for the acquisition of the project) will not apply to the project for a minimum of 20 years beginning with the first day of the compliance period in which the building is a part of a qualified low-income housing project."]
[]
["Design Standards:"]
[null,"A.","The project must meet the requirements in the Minnesota Housing Rental Housing Design/Construction Standards and be evidenced by a Design Standards Certification form executed by the owner and architect. Additional design requirements will be imposed if Large Family Housing points are claimed/awarded or points are claimed/awarded that require specific design elements (e.g. Universal Design)."]
[]
["A Declaration of Land Use Restrictive Covenants:"]
[null,"A.","A Declaration of Land Use Restrictive Covenants (LURA) covering the rent restrictions and occupancy requirements presented at selection must be recorded against the property."]
[]
["Affirmative Fair Housing:"]
[null,"A.","Affirmative Fair Housing Marketing Regulations, held as centrally important by Minnesota Housing, require that each applicant carry out an affirmative marketing program to attract prospective buyers or tenants of all majority and minority groups in the housing market area regardless of race, creed, color, religion, sex, national origin, marital status, status with regard to public assistance, disability, sexual orientation, or familial status. At the time of 8609, all applicants must submit an Affirmative Fair Housing Marketing Plan documenting an acceptable plan to carry out an affirmative marketing program."]
["Strategic Priority Threshold:"]
[null,"A.","All projects, must meet at least one of the Strategic Priority Policy Thresholds in order to qualify for deferred loans."]
[]
["Adherence to HTC and Deferred Scoring Guide:"]
[null,"A.","Applicants must meet the requirements outlined in the Self-Scoring Worksheet and the HTC and Deferred Scoring Guide to be eligible for points. "]
[null,null,"Link to HTC and Deferred Scoring Guide"]
[]
["Documentation of Units:"]
[null,"A.","Indicate the number of units for each selection criteria expected for your project.  When calculating a percentage for a criterion all units must be rounded up to the next full unit.  The number of units indicated will be required and incorporated into the deferred loan documents with the exception of tenant targeting in the Permanent Supportive Housing for High Priority Homeless."]
[]
["Design Standards:"]
[null,"A.","The project must meet the requirements in the Minnesota Housing Rental Housing Design/Construction Standards and be evidenced by a Design Standards Certification form executed by the owner and architect. Additional design requirements will be imposed if Large Family Housing is claimed/awarded or other criterion is claimed/awarded that require specific design elements (e.g. Universal Design). "]
[]
["Affirmative Fair Housing:"]
[null,"A.","Affirmative Fair Housing Marketing Regulations, held as centrally important by Minnesota Housing, require that each applicant carry out an affirmative marketing program to attract prospective buyers or tenants of all majority and minority groups in the housing market area regardless of race, creed, color, religion, sex, national origin, marital status, status with regard to public assistance, disability, sexual orientation, or familial status. At the time of loan closing, all applicants must submit an Affirmative Fair Housing Marketing Plan documenting an acceptable plan to carry out an affirmative marketing program."]
[]
["Round 1 – Minimum Threshold Requirements"]
[]
["For applications submitted in Round 1, all applicants statewide must meet one of the following threshold types. Please indicate the threshold item you meet:"]
[]
["A.","In the Metropolitan Area*:"]
[]
[null,"1.",null,"New construction or substantial rehabilitation in which, for the term of the extended use period (term of the LURA), at least 75% of the total HTC units are single room occupancy, "]
[null,null,null,"efficiency, or one bedroom units with rents affordable to households whose income does not exceed 30% of the area median income (AMI)."]
[]
[null,"2.",null,"New construction or substantial rehabilitation family housing projects that are not restricted to persons 55 years old or older in which, for the term of the extended use period (term of the"]
[null,null,null,"LURA), at least 75% of the total HTC units contain two or more bedrooms and at least one-third of the 75% contain three or more bedrooms OR"]
[]
[null,"3.",null,"Substantial rehabilitation projects in neighborhoods targeted by the city for revitalization."]
[]
["B.","Outside the Metropolitan Area:"]
[]
[null,"1.",null,"Projects which meet a locally identified housing need and which are in short supply in the local housing market as evidenced by credible data submitted with the application."]
[]
["C.",null,"Projects that are not restricted to persons of a particular age group and in which, for the term of the extended use period (term of the LURA), a percentage of the units are set aside and rented to persons:"]
[]
[null,"1.","With a serious and persistent mental illness as defined in Minnesota Statutes § 245.462, Subdivision 20, paragraph (c)."]
[]
[null,"2.","With a developmental disability as defined in United States Code, Title 42, Section 6001, paragraph (5), as amended."]
[]
[null,"3.","Who have been assessed as drug dependent persons as defined in Minnesota Statutes § 254A.02, Subdivision 5, and are receiving or will receive care and treatment services provided by an "]
[null,null,"approved treatment program as defined in Minnesota Statutes § 254A.02, Subdivision 2."]
[]
[null,"4.","With a brain injury as defined in Minnesota Statutes § 256B.093, Subdivision 4, paragraph (a); OR"]
[]
[null,"5.","With permanent physical disabilities that substantially limit major life activities, if at least 50% of the units in the project are accessible as provided under Minnesota Rules Chapter 1341. "]
[]
[null,null,"NOTE:  Minnesota Housing considers accessible units to be Type A and/or Type B units as identified in the referenced Chapter 1341, also known as the Minnesota Accessibility Code."]
[]
[null,null,"NOTE:  This definition is not limited to persons with mobility impairment."]
[]
["D.","Preserve Existing Subsidized Housing"]
[]
[null,"1.",null,"Projects, whether or not restricted to persons of a particular age group, which preserve existing subsidized housing, if the use of HTCs is necessary to (1) prevent conversion to market rate use;  or "]
[null,null,null," (2) to remedy physical deterioration of the project which would result in loss of existing federal subsidies; OR"]
[]
["E.","Rural Development:"]
[]
[null,"1.",null,"Projects financed by Rural Development, which meet statewide distribution goals."]
[]
["*As set out in Minn. Stat. 473.121, subd. 2, Metropolitan Area means the area over which the Metropolitan Council has jurisdiction, including the counties of Anoka, Carver, Dakota (excluding the cities of Northfield and Cannon Falls), Hennepin (excluding the cities of Hanover and Rockford), Ramsey, Scott (excluding the city of New Prague) and Washington."]
[]
["Strategic Priority Thresholds"]
[]
["Applicants using this Self-scoring Worksheet must demonstrate that the project meets at least one of the following priorities. "]
["Select at least one Strategic Priority Threshold to activate Selection Criteria."]
[]
["Select all that apply."]
[]
["A.","Access to Fixed Transit: "]
[]
[null,"1.",null,"Projects within one-half mile of a planned or existing LRT, BRT or commuter rail station."]
[]
["B.","Greater Minnesota Workforce Housing:"]
[]
[null,"1.",null,"Projects in Greater Minnesota documenting both of the following:"]
[null,null,null,"a.","Need: Projects in communities with low vacancy (typically considered 4 percent and below, documented by a market study or other third party data) and:"]
[null,null,null,null,"i.","That have experienced net job growth of 100 or more jobs, or"]
[null,null,null,null,"ii.","With 15 percent or more of the workforce commuting 30 or more miles to work, or"]
[null,null,null,null,"iii.","With planned job expansion documented by a local employer"]
[null,null,null,"b.","Employer Support in the form of a letter of support from an employer with 20 or more full time employees."]
[]
["C.","Economic Integration: "]
[]
[null,"1.",null,"Projects located in higher income communities (in the Twin Cities 7-County Metropolitan Area and areas in or around Duluth, Rochester and St. Cloud) with "]
[null,null,null,"access to low and moderate wage jobs, meeting either First or Second Tier Economic Integration as defined in the Increasing Geographic Choice category."]
[null,null,null,"This strategic priority must be selected to activate the Economic Integration criterion."]
[]
["D.","Tribal: "]
[]
[null,"1.",null,"Projects sponsored by tribal governments, tribally designated housing entities or tribal corporate entities."]
[]
["E.","Community Development Initiative:"]
[]
[null,"1.",null,"Projects that contribute to active implementation of a Community Development Initiative, as defined in the Community Development "]
[null,null,null,"Initiative selection criterion to address locally identified needs and priorities in which local stakeholders are actively engaged."]
[null,null,null,"This strategic priority must be selected to activate the Community Development Initiative selection criterion."]
[]
["F.","Preservation: "]
[]
[null,"1.",null,"Projects that preserve existing federally assisted housing or other critical affordable housing projects must be eligible under the "]
[null,null,null,"Preservation selection criterion."]
[null,null,null," This strategic priority must be selected to activate the Preservation selection criterion."]
[]
["G.","Supportive Housing:"]
[]
[null,"1.",null,"Projects that will serve people with disabilities or High Priority Homeless (HPH) households must be eligible under the Permanent Supportive "]
[null,null,null,"Housing for High Priority Homeless selection criterion or the People with Disabilities selection criterion. "]
[null,null,null,"This strategic priority must be selected to activate the High Priority Homeless or People with Disabilities selection criteria."]
[]
["H.","Minimum Point Requirement:"]
["H.","Deferred - Various priorities and criteria:"]
[]
[null,"1.",null,"A request for Minnesota Housing administered HTCs from the state’s HTC volume cap need not meet a separate strategic priority if it demonstrates"]
[null,null,null,"the project is eligible for not fewer than 70 points, excluding projects funded through the Rural Development/Small Projects set-aside."]
[null,null,null,"A request for Minnesota Housing deferred funds need not meet a separate strategic priority if it demonstrates the project is competitive and meets "]
[null,null,null,"a significant number of the agency’s priorities and selection criteria."]
[]
[]
["2021 HOUSING TAX CREDIT SELECTION CRITERIA",null,null,null,null,null,null,null,null,null,null,null,null,null,null,"Developer Claimed"]
["1. Greatest Need Tenant Targeting",null,null,null,null,null,null,null,null,null,null,null,null,null,"5 to 39 points",{"$f":"GreatestNeedTenantTargetingTotalScore","v":0}]
[null,"A.","Large Family Housing ",null,null,null,null,null,null,null,null,null,null,null,"5 to 7 points",{"$f":"LargeFamilyHousingTotalScore","v":0}]
[]
[null,null,"1.","Large Family Housing - The proposal is for a project that provides family housing that is not restricted to persons 55 years old or older. The owner agrees to market to families with minor children. Select all that apply:",null,null,null,null,null,null,null,null,null,null,null,null,"Number of Units with","Select cell to edit number of units."]
[null,null,null,null,null,null,null,null,null,null,null,null,null,null,null,null,"2 Bedrooms"]
[null,null,null,"a.",null,"At least 75% of the total assisted* units contain two or more bedrooms. ",null,null,null,null,null,null,null,null,"5 points",null,"3 Bedrooms"]
[null,null,null,null,null,null,null,null,null,null,null,null,null,null,null,null,"4 Bedrooms"]
[null,null,null,"b.",null,"For Greater Minnesota proposals if eligible under 1. a. above, at least one-third of the 75% contain three or more bedrooms.",null,null,null,null,null,null,null,null,"2 points"]
[]
[null,"*","Assisted is defined as HTC units for HTC applications and affordable units for deferred funding."]
[]
[null,"B.","Permanent Supportive Housing for High Priority Homeless (HPH)*",null,null,null,null,null,null,null,null,null,null,null,"7 to 22 points",{"$f":"PermanentSupportiveHousingTotalScore","v":0}]
[null,null,"Select Supportive Housing under Strategic Priority Threshold to enable checkboxes for Permanent Supportive Housing for High Priority Homeless."]
[]
[null,null,"1.","A minimum of 5% of the total units, but no fewer than four units are set aside and rented to High Priority Homeless who are households ",null,null,null,null,null,null,null,null,null,null,null,null,"Number of Units Representing:"]
[null,null,null,"prioritized for permanent supportive housing by the Coordinated Entry System**  (HPH units) and targeted to the populations indicated ",null,null,null,null,null,null,null,null,null,null,null,null,null,"Select cell to edit number of units."]
[null,null,null,"below. Select one and complete the unit count below:",null,null,null,null,null,null,null,null,null,null,null,null,"Youth with Children"]
[null,null,null,null,null,null,null,null,null,null,null,null,null,null,null,null,"Youth Singles"]
[null,null,null,"a.",null,"50% to 100%, but no fewer than 20 units",null,null,null,null,null,null,null,null,"20 points",null,"Youth Total",{"$f":"SUM(DevSupportiveHousingYouthWithChildrenUnitsValue, DevSupportiveHousingYouthUnitsValue)","v":0}]
[null,null,null,null,null,null,null,null,null,null,null,null,null,null,null,null,"Single Adults"]
[null,null,null,"b.",null,"10% to 49.99%, but no fewer than 7 units",null,null,null,null,null,null,null,null,"10 points",null,"Families with Children"]
[null,null,null,null,null,null,null,null,null,null,null,null,null,null,null,null,"Total High Priority Homeless",{"$f":"SUM(DevSupportiveHousingYouthUnitsValue, DevSupportiveHousingYouthWithChildrenUnitsValue,DevSupportiveHousingSingleAdultUnitsValue,DevSupportiveHousingFamiliesUnitsValue)","v":0}]
[null,null,null,"c.",null,"5% to 9.99%, but no fewer than 4 units",null,null,null,null,null,null,null,null,"7 points"]
[null,null,null,null,null,null,null,null,null,null,null,null,null,null,null,null,null,"Select cell to edit number of units."]
[null,null,"2.","Continuum of Care - Proposals that are eligible for B. 1 above can claim this selection criterion if units will be available for populations",null,null,null,null,null,null,null,null,null,null,null,null,"Number of Units"]
[null,null,null,"consistent with local needs identified by the local Continuum of Care. Published Priorities are available on Minnesota Housing’s",null,null,null,null,null,null,null,null,null,null,null,null,"Priority Type",""]
[null,null,null,"website at:"]
[null,null,null,null,"http://www.mnhousing.gov"]
[]
[null,null,null,"a.",null,"5% of units or more, but no fewer than four units, targeted to Continuum of Care Household Type Priority One",null,null,null,null,null,null,null,null,"2 points"]
[null,null,null,null,null,null,null,null,null,null,""]
[null,null,"NOTE:\nPermanent Supportive Housing for High Priority Homeless (B.) and People with Disabilities (C.) selection criteria cannot be claimed for the same units. \n"]
[]
[null,null,"To be eligible for Permanent Supportive Housing for High Priority Homeless (HPH), the proposal must meet all of the following conditions:"]
[]
[null,null,"1.","The applicant must complete and submit the Supportive Housing application materials, including the narratives, forms and submittals identified in the Application Checklist in the Multifamily Customer Portal."]
[null,null,"2.","The applicant agrees to pursue and continue renewal of rental assistance, operating subsidy or service funding contracts for as long as the funding is available"]
[null,null,"3.","The applicant agrees that if units set aside for High Priority Homeless are occupied by households without rental assistance, the gross rents, including an allowance for tenant-paid utilities cannot exceed the greater of 30% of the household's monthly income or the most current Supportive Housing Standard for the unit size, as published annually by Minnesota Housing in the Multifamily Underwriting Standards in the Supportive Housing Standards - High Priority Homeless or People with Disabilities section.  The owner must establish and implement policies and procedures to specify the calculation method used to determine the appropriate rent amount and periodic income recertification to adjust rents. "]
[null,null,"4.","Supportive Housing Threshold Criteria:"]
[null,null,null,"a.","Supportive Services: On-site service coordination and tenant engagement must be made available to all supportive housing residents. The level and type of services offered must be appropriate for the needs of the target population, with a minimum of tenant service coordination averaging two hours per household per week as further defined in the supportive housing narrative. "]
[null,null,null,"b.","Experienced service provider, or partnering with an experienced service provider, with demonstrated outcomes:"]
[null,null,null,null,"i.","At a minimum, the service provider has experience providing services to a similar population to maintain housing over a period of time, and has sufficient capacity to deliver the services proposed."]
[null,null,null,"c.","Service funding commitments: At a minimum, a portion of service funding is secured with a viable plan for securing the remaining resources, as approved by Minnesota Housing. Evidence must be provided in the application narrative and commitment letters or other documentation."]
[null,null,null,null,"i.","Developments with 5% to 9.99% HPH units must have secured at least 75% of service funding"]
[null,null,null,null,"ii.","Developments with 10% to 49.99% HPH units must have secured at least 20% of service funding"]
[null,null,null,null,"iii.","Developments with 50% to 100% HPH units must have secured at least 5% of service funding"]
[null,null,null,"d.","Coordinated Entry and serving highest need households: The property owner must agree to accept high priority households for the HPH supportive housing units through Coordinated Entry."]
[]
[null,null,"A proposal that claims this category and is selected to receive HTCs will be required to comply with the reporting requirements for Permanent Supportive Housing for High Priority Homeless, as defined by Minnesota Housing. The LURA, including a specific Rider to the LURA and Minnesota Housing loan documents, will contain performance requirements related to these permanent supportive housing units for High Priority Homeless and will be recorded with the property."]
[null,null,"A proposal that claims this category will be required to comply with the reporting requirements for Permanent Supportive Housing for High Priority Homeless, as defined by Minnesota Housing. Minnesota Housing Loan documents will contain performance requirements related to these permanent supportive housing units for High Priority Homeless and will be recorded with the property."]
[null,null,"*","Specific performance requirement relief provisions are available for projects eligible for the Permanent Supportive Housing High Priority Homeless selection criterion for “HPH Units”. Reference Chapter 6.A. of the HTC Program Procedural Manual for additional details. Specific performance requirements will be incorporated into the LURA and deferred loan documents recorded with the property."]
[null,null,"**","Coordinated Entry System is defined by the Statewide Coordinated Entry standards and protocol as adopted by the local Continuum of Care, or such successor system as determined by Minnesota Housing.  "]
[]
[null,"C.","People with Disabilities (PWD)",null,null,null,null,null,null,null,null,null,null,null,"7 to 10 points",{"$f":"PeopleWithDisabilitiesTotalScore","v":0}]
[null,null,"Select Supportive Housing under Strategic Priority Threshold to enable checkboxes for People with Disabilities."]
[null,null,null,null,null,null,null,null,null,null,null,null,null,null,null,null,null,"Select cell to edit number of units."]
[null,null,"1.","Select the number of units set aside for people with disabilities:",null,null,null,null,null,null,null,null,null,null,null,null,"Number of Units"]
[]
[null,null,null,"a.",null,"15% to 25% of units, but not fewer than six units",null,null,null,null,null,null,null,null,"10 points"]
[]
[null,null,null,"b.",null,"10% to 14.99% of units, but not fewer than five units",null,null,null,null,null,null,null,null,"9 points"]
[]
[null,null,null,"c.",null,"5% to 9.99%, but no fewer than four units ",null,null,null,null,null,null,null,null,"7 points"]
[]
[null,null,"Permanent housing proposals are not restricted to persons of a particular age group.  A percentage of the units are set aside and rented to persons with any of the following disabilities* : "]
[]
[null,null,"i.","A serious and persistent mental illness as defined in Minn. Stat. § 245.462, subdivision 20, paragraph (c)"]
[null,null,"ii.","A developmental disability as defined in United States Code, Title 42, Section 6001, paragraph (5), as amended"]
[null,null,"iii.","Assessed as drug dependent as defined in Minn. Stat. § 254A.02, subdivision 5, and are receiving or will receive care and treatment services provided by an approved treatment program as defined in Minn. Stat. § 254A.02, Subdivision 2"]
[null,null,"iv.","A brain injury as defined in Minn. Stat. § 256B.093, Subdivision 4, paragraph (a)"]
[null,null,"v.","Permanent physical disabilities that substantially limit major life activities, if at least 50% of the units in the project are accessible as provided under Minnesota Rules Chapter 1341"]
[]
[null,null,"NOTE:  Minnesota Housing considers accessible units to be Type A and/or Type B units as identified in the referenced Chapter 1341, also known as the Minnesota Accessibility Code."]
[]
[null,null,"NOTE:  This definition is not limited to persons with mobility impairment."]
[]
[null,null,"NOTE:  Permanent Supportive Housing for High Priority Homeless (B.) and People with Disabilities (C.) selection criteria may not be claimed for the same units. \n\nTo be eligible under People with Disabilities, the proposal must also meet all of the following conditions:"]
[null,null,"1.","The applicant must submit the People with Disabilities narratives and any other forms and submittals identified in the Application Checklist in the Multifamily Customer Portal."]
[null,null,"2.","The applicant must submit a signed Service Agreement.  Applicant can either complete the signature page (must be completed by both parties) attached to the People with Disabilities Narrative, or submit a separate signed service agreement."]
[null,null,"3.","The applicant agrees to pursue and continue renewal of rental assistance, operating subsidy or service funding contracts for as long as the funding is available."]
[null,null,"4.","The application must meet the following threshold criteria as evidenced in the People with Disabilities Narrative and Service Agreement:"]
[null,null,null,"a.","Target population: The target population(s) of people with disabilities must be clearly defined in the narrative (e.g., mental illness, developmental disability, physical disability)."]
[null,null,null,"b.","Units are restricted to households with incomes at or below 30% MTSP income limits."]
[null,null,null,"c.","The applicant agrees that if units set aside for People with Disabilities are occupied by households without rental assistance, the gross rents, including an allowance for tenant-paid utilities, cannot exceed the greater of 30% of the household's monthly income or the most current Supportive Housing Standard for the unit size, as published annually by Minnesota Housing in the Multifamily Underwriting Standards in the Supportive Housing Standards - High Priority Homeless or People with Disabilities section.  The owner must establish and implement policies and procedures to specify the calculation method used to determine the appropriate rent amount and periodic income recertification to adjust rents."]
[null,null,null,"d.","Service Agreement: The property owner must have an agreement with the county or tribal human services office specifying:"]
[null,null,null,null,"i.","How they will provide outreach to the target population"]
[null,null,null,null,"ii.","How eligible applicants will be referred to the property management agent"]
[null,null,null,null,"iii.","That verification of applicant disability will be provided to the owner"]
[null,null,null,null,"iv.","The types of services appropriate to the population that will be made available with the goal of housing stability"]
[null,null,null,null,"v.","Service funding sources"]
[null,null,null,null,"vi.","How services will be provided to tenants"]
[null,null,null,null,"vii.","How the service entity will communicate and coordinate with property management"]
[null,null,null,null,"viii.","Plans for crisis intervention, eviction prevention and lease mitigation"]
[null,null,null,"e.","Units for individuals with disabilities must be provided in an integrated setting."]
[]
[null,"*","Specific performance requirement relief provisions are available for projects that meet the People with Disabilities Selection Criterion for “PWD Units.” Reference Section 6.A. of the HTC Program Procedural Manual for additional details. Specific performance requirements will be incorporated into the LURA and deferred loan documents recorded with the property."]
[]
["2. Serves Lowest Income for Long Durations ",null,null,null,null,null,null,null,null,null,null,null,null,null,"3 to 35 points",{"$f":"ServesLowestIncomeTotalScore","v":0},{"$f":"IF(DEFOnlyScoresheet= TRUE, \"\", IF(ServesLowestIncomeTotalScore>35, \"Selections for Serves Lowest Income Tenants/Rent Reduction and Rental Assistance indicate that the units have been double-counted. Please update your selections.\", \"\"))","v":""}]
[null,"A.","Serves Lowest Income Tenants/Rent Reduction",null,null,null,null,null,null,null,null,null,null,null,"8 to 13 points",{"$f":"ServesLowestIncomeTenantsTotalScore","v":0}]
[]
[null,null,"1.","Eligibility is based on gross rent level, including utilities before rental assistance. Eligible units must have rents affordable to households whose incomes do not exceed 50% of MTSP income limits as published by HUD without rental assistance for the duration of the LURA. MTSP rent limits are available on Minnesota Housing’s website.\n\n"]
[null,null,"1.","Eligibility is based on gross rent level, including utilities before rental assistance. Eligible units must have rents affordable to households whose incomes do not exceed 50% of MTSP income limits as published by HUD without rental assistance for the term of the Minnesota Housing loan documents. MTSP rent limits are available on Minnesota Housing’s website.",null,null,null,null,null,null,null,null,null,null,null,null,null,"Select cell to edit number of units."]
[null,null,null,null,null,null,null,null,null,null,null,null,null,null,null,null,"Number of Units"]
[null,null,null,"The applicant agrees to main the deeper rent structure for which criterion is claimed."]
[]
[null,null,null,"This selection will restrict rents only (tenant incomes will not be restricted to the 50% income level by claiming this section)."]
[]
[null,null,null,"a.",null,"100% of the restricted unit rents affordable to households with incomes at the county 50% HUD MTSP income limit",null,null,null,null,null,null,null,null,"13 points"]
[]
[null,null,null,"b.",null,"At least 50% of the restricted unit rents affordable to households with incomes at the county 50% HUD MTSP income limit",null,null,null,null,null,null,null,null,"8 points"]
[]
[null,null,"NOTE: Serves Lowest Income selection criteria cannot be claimed for units that qualify for or are claiming the Rental Assistance criterion."]
[]
[null,null,"Minnesota Housing will incorporate these restrictions into the LURA and Minnesota Housing loan documents. The applicant must demonstrate, to the sole satisfaction of Minnesota Housing, that the property can achieve these reduced rents and remain financially feasible [IRC § 42(m)(2)]. Contingent upon financial plans demonstrating feasibility, positive cash flow on a 15-year pro forma and gaining Minnesota Housing management approval (for management, operational expenses, and cash flow assumptions)."]
[]
[]
[null,"B.","Rental Assistance",null,null,null,null,null,null,null,null,null,null,null,"6 to 26 points",{"$f":"RentalAssitanceTotalScore","v":0}]
[]
[null,null,"1.","Priority is given to an owner who submits with the application a fully executed binding commitment (i.e., binding Resolution/binding Letter of Approval from the governing body) for project-based rental assistance awarded in accordance with 24 CFR Ch. IX, Section 983.51 or which is effectively project-based by written contract. For the purposes of this category, project-based rental assistance is defined as a project-specific funding stream that supports the operations of the property, reduces the tenant rent burden, and provides for the tenant paid portion of rent to be no greater than 30% of household income."]
[]
[null,null,null,"Minnesota Housing, at its sole discretion, will consider rental assistance programs with alternative rent structures as proposed by the applicant, where households may pay more than 30% of their household income when the program goals align with the needs of low-income populations such as with the Moving to Work and site-based Housing Support programs. For all other types of rental assistance programs with an alternative rent structure, the applicant must submit commitment documentation that includes details regarding the rent structure, tenant paid portion of household income, program structure, goals, and population served."]
[]
[null,null,null,"\u009f","New or transferred federal rental assistance contracts that were executed within the past 15 years are eligible. This includes transfers of existing Section 8 contracts under the 8bb notice to new construction projects or existing developments that currently have no Existing Federal Assistance."]
[null,null,null,"\u009f","Site-based Housing Support* and awards of project-based McKinney Vento Continuum of Care funding, will be considered project-based rental assistance."]
[null,null,null,"\u009f","Privately funded rental assistance must demonstrate a commitment of a minimum of four years. Documentation must also contain language regarding the possibility of future renewals. Be aware that rental assistance from non-governmental organizations will not be treated the same as governmental rental assistance when determining tenant income eligibility for compliance purposes. See the HTC and Deferred Scoring Guide for more information."]
[null,null,null,"\u009f","A current request for Minnesota Housing Rental Assistance is not eligible to claim this category. A past award of existing Rental Assistance will be counted toward meeting the required percentages."]
[]
[null,null,null,"For developments that agree to set aside units and have the required binding commitment for the associated percentage of units with project based rental assistance units as follows. Select one option from a-f. In addition, by selecting an option, the development agrees to continue renewals of existing project-based housing subsidy payment contract(s) for a minimum 10 years from the later of the last placed in service date for any building in the property or loan closing. Applicant agrees that rents will remain affordable at 50% MTSP income limits for a 10 year period if ",null,null,null,null,null,null,null,null,null,null,null,null,null,"Select cell to edit number of units."]
[null,null,null,"the rental assistance is not available for the full period**.",null,null,null,null,null,null,null,null,null,null,null,null,"Number of units"]
[]
[null,null,null,"a.",null,"100% of the total units for project-based rental assistance",null,null,null,null,null,null,null,null,"19 points"]
[]
[null,null,null,"b.",null,"Between 51.1% to 99.9% of the total units ",null,null,null,null,null,null,null,null,"16 points"]
[]
[null,null,null,"c.",null,"20.1% to 51% of the total units",null,null,null,null,null,null,null,null,"13 points"]
[]
[null,null,null,"d.",null,"10.1% to 20% of the total units, with a minimum of  four units",null,null,null,null,null,null,null,null,"10 points"]
[]
[null,null,null,"e.",null,"5% to 10% of the total units, with a minimum of four units",null,null,null,null,null,null,null,null,"7 points"]
[]
[null,null,null,"f.",null,"Less than 5% of units, with a minimum of four units",null,null,null,null,null,null,null,null,"6 points"]
[]
[null,null,"2.","Projects that are eligible under B. 1. a. - f. above and have rental assistance (as described above), that agree to further restrict units "]
[null,null,null,"to households whose incomes do not exceed 30% of MTSP income limit for a 10 year period***. Rental Assistance Commitment ",null,null,null,null,null,null,null,null,null,null,null,null,null,"Select cell to edit number of units."]
[null,null,null,"documentation must indicate that deeper income restrictions on project based units are allowable****. Select one:",null,null,null,null,null,null,null,null,null,null,null,null,"Number of units"]
[]
[null,null,null,"a.",null,"75.1% to 100% of the total units",null,null,null,null,null,null,null,null,"7 points"]
[]
[null,null,null,"b.",null,"50.1% to 75% of the total units",null,null,null,null,null,null,null,null,"6 points"]
[]
[null,null,null,"c.",null,"25.1% to 50% of the total units",null,null,null,null,null,null,null,null,"5 points"]
[]
[null,null,null,"d.",null,"15.1% to 25% of the total units",null,null,null,null,null,null,null,null,"4 points"]
[]
[null,null,null,"e.",null,"5% to 15% of the total units but no fewer than four units",null,null,null,null,null,null,null,null,"3 points"]
[]
[null,"NOTE: Serves Lowest Income selection criteria cannot be claimed for units that qualify for or are claiming the Rental Assistance criterion.\n\nNOTE: Rental Assistance selection criterion cannot be claimed if the development qualifies for or is claiming Existing Federal Assistance under the Preservation criterion. Rental assistance under the Rental Assistance Demonstration Program (components I or II) or the Public Housing Program are also not eligible. "]
[null,"To claim the criterion, the applicant must comply with all program requirements for the assistance at application, including maintaining rents within the appropriate payment standard for the project area in which the project is located for the full compliance and extended use period of the HTCs.\n\nRent for assisted units must be at or below Fair Market Rents (or appropriate payment standard for the project area).  Eligibility and agreeing to a minimum number of assisted units does not release owners from their obligations under the Minnesota Human Rights Act and Section 42 prohibiting refusal to lease to the holder of a voucher of eligibility under Section 8 of the United States Housing Act of 1937 because of the status of the prospective tenant as such a holder.\n"]
[]
[null,"*","Formerly known as Group Residential Housing."]
[null,"**","Specific performance requirement relief provisions are available for projects claiming the Rental Assistance Selection Criterion for “RA Units.” Reference Chapter 6.A. of the HTC Program Procedural Manual for additional details. Specific performance requirements will be incorporated into the LURA and deferred loan documents recorded with the property."]
[null,"***","Specific performance requirement relief provisions are available for projects claiming the Rental Assistance Selection Criterion for Further Restricted Rental Assisted Units (“FRRA Units”). Reference Chapter 6.A. of the HTC Program Procedural Manual for additional details. Specific performance requirements will be incorporated into the LURA and deferred loan documents recorded with the property."]
[null,"****","Site-based Housing Support is excluded from this requirement."]
[]
[null,"C.","Long Term Affordability",null,null,null,null,null,null,null,null,null,null,null,"8 to 9 points",{"$f":"LongTermAffordabilityTotalScore","v":0}]
[]
[null,null,"1.","The owner agrees that the Qualified Contract provisions of IRC §§ 42(h)(6)(E)(i)(II) and 42(h)(6)(F) (which provision would permit the owner to terminate the restrictions under this agreement at the end of the compliance period in the event Minnesota Housing does not present the owner with a qualified contract for the acquisition of the project) do not apply to the project and, where applicable, agrees to extend the long-term affordability of the project by extending the term of the LURA beyond 30 years (beginning on the first day of the compliance period in which the building is a part of a qualified low income housing project). Select one:"]
[]
[null,null,null,"a.",null,"Extend the term of the LURA and waive the right to Qualified Contract for a minimum of 40 years.",null,null,null,null,null,null,null,null,"9 points"]
[]
[null,null,null,"b.",null,"Extend the term of the LURA and waive the right to Qualified Contract for a minimum of 35 years.",null,null,null,null,null,null,null,null,"8 points"]
[]
[]
["3. Increasing Geographic Choice ",null,null,null,null,null,null,null,null,null,null,null,null,null,"1 to 28 points",{"$f":"AreasOfOpportunityTotalScore","v":0}]
[null,"A.","Economic Integration",null,null,null,null,null,null,null,null,null,null,null,"2 to 9 points",{"$f":"EconomicIntegrationTotalScore","v":0}]
[null,null,null,null,null,null,null,null,null,null,null,null,null,null,null,null,null,"Select cell to edit number of units."]
[null,null,"1.","Projects that meet the requirements under economic integration include (select one): ",null,null,null,null,null,null,null,null,null,null,null,null,"Number of units"]
[]
[null,null,null,"a.",null,"Provides the project economic integration by providing at least 25% but not greater than 80% of the total units in the project as",null,null,null,null,null,null,null,null,"2 points"]
[null,null,null,null,null,"qualified assisted low-income units (does not include full-time manager or other common space units)"]
[null,null,null,null,null,"80% of the total units in the project as qualified assisted low-income units (does not include full-time manager or other common space units)"]
[]
[null,null,null,"b.","Promotes economic integration for projects that are located in higher income communities that are in the Twin Cities 7-County Metropolitan Area and areas in or around Duluth, Rochester and St. Cloud. First and second tier economic integration areas are outside of racially and ethnically concentrated areas of poverty."]
[null,null,null,null,"Select Economic Integration under Strategic Priority Threshold to enable the checkboxes for First and Second Tier."]
[null,null,null,null,"First and Second Tier are disabled when Rural/Tribal under the section Supporting Community and Economic Development has been selected."]
[]
[null,null,null,null,"i.",null,"First Tier - The proposed housing is located in a first tier census tract ",null,null,null,null,null,null,null,"9 points"]
[]
[null,null,null,null,"ii.",null,"Second Tier - The proposed housing is located in a second tier census tract",null,null,null,null,null,null,null,"7 points"]
[]
[null,null,"The following resources on Minnesota Housing’s website may be used to determine if the proposed housing is located in areas that meet the requirements under Economic Integration: "]
[null,null,null,"Economic integration area maps and census tract listing"]
[null,null,null,"Rural/Tribal Designated areas maps and census tract listing"]
[null,null,null,"Economic integration and Rural/Tribal Designation Area map overlays in the community profiles interactive mapping tool"]
[]
[null,"B.","Access to Higher Performing Schools ",null,null,null,null,null,null,null,null,null,null,null,"4 points",{"$f":"AccessToSchoolsTotalScore","v":0}]
[null,null,null,null,null,null,null,null,null,null,null,null,null,null,null,null,"Number of units to be marketed"]
[null,null,"1.","Projects serving families in locations that will provide access to higher performing schools must have at least 25% of total assisted units,",null,null,null,null,null,null,null,null,null,null,null,null,"to families with minor children","Select cell to edit number of units."]
[null,null,null,"with a minimum of 15 units, contain two or more bedrooms, and the owner agrees to market the units to families with minor children.",null,null,null,null,null,null,null,null,null,null,null,null,"2 Bedrooms"]
[null,null,null,"Eligible areas are in the Twin Cities 7-County Metropolitan Area and areas in and around Duluth, Rochester and St. Cloud.",null,null,null,null,null,null,null,null,null,null,null,null,"3 Bedrooms"]
[null,null,null,null,null,null,null,null,null,null,null,null,null,null,null,null,"4 Bedrooms"]
[]
[null,null,null,"a.",null,"The proposed housing will serve families and is located in an area considered to have Access to Higher Performing Schools",null,null,null,null,null,null,null,null,"4 points"]
[]
[null,null,"Link to Access to Higher Performing Schools area maps"]
[null,null,"Link to Access to Higher Performing Schools Area map overlays in the community profiles interactive mapping tool"]
[]
[null,"C.","Workforce Housing Communities",null,null,null,null,null,null,null,null,null,null,null,"3 to 6 points",{"$f":"WorkforceHousingCommunitiesTotalScore","v":0}]
[]
[null,null,"1.","Projects located in or near a city or township needing workforce housing (communities having a large number of jobs or job growth, individual employer growth, or having a large share of their workforce commuting long distances, as outlined in the Workforce Housing Communities Methodology). Select one:"]
[]
[null,null,null,"a.",null,"The proposed housing is in a Top Job Center or Net Five Year Job Growth Community ",null,null,null,null,null,null,null,null,"6 points"]
[]
[null,null,null,"b.",null,"The proposed housing is in an Individual Employer Growth community where an individual employer has added at least 100 net jobs",null,null,null,null,null,null,null,null,"6 points"]
[null,null,null,null,null," (for permanent employees of the company) during the previous five years, as evidenced by documentation signed by an authorized representative of the company, subject to validation by Minnesota Housing "]
[]
[null,null,null,"c.",null,"The proposed housing is in a Long Commute Community",null,null,null,null,null,null,null,null,"3 points"]
[]
[null,null,"In the Twin Cities 7-County metropolitan area, project locations must be within five miles of a workforce housing city or township. In Greater Minnesota, project locations must be within ten miles of a workforce housing city or township. \n"]
[]
[null,null,"Link to Top Job Centers, Net Five Year Job Growth communities, and Long Commute communities lists and maps"]
[null,null,"Link to Proximity to workforce housing in the community profiles interactive mapping tool"]
[]
[null,"D.","Location Efficiency",null,null,null,null,null,null,null,null,null,null,null,"1 to 9 points",{"$f":"LocationEfficiencyTotalScore","v":0}]
[]
[null,null,"1.","For projects in the Twin Cities 7-County Metropolitan area, indicate whether the project will promote location efficiency based on access to transit and walkability. "]
[]
[null,null,null,"a.","Access to Transit: To claim access to transit in the Twin Cities 7-County Metropolitan area, a project must be (select one):"]
[]
[null,null,null,null,"i.",null,"Located within one half mile of a planned* or existing LRT, BRT, or commuter rail station ",null,null,null,null,null,null,null,"7 points"]
[]
[null,null,null,null,"ii.",null,"Located within one quarter mile of a fixed route stop on Metro Transit’s Hi-Frequency Network",null,null,null,null,null,null,null,"4 points"]
[]
[null,null,null,null,"iii.",null,"Located within one quarter mile of a high service** public transportation fixed route stop ",null,null,null,null,null,null,null,"2 points"]
[]
[null,null,null,null,"iv.",null,"Located within one half mile of an express bus route stop",null,null,null,null,null,null,null,"2 points"]
[]
[null,null,null,null,"v.",null,"Located within one half mile of a park and ride facility ",null,null,null,null,null,null,null,"2 points"]
[]
[null,null,null,"b.","Walkability: To claim walkability in the Twin Cities 7-County Metropolitan area, a project must meet be (select one):"]
[]
[null,null,null,null,"i.",null,"Located in an area with a Walk Score of 70 or more according to  ",null,null,null,null,null,null,null,"2 points"]
[null,null,null,null,null,null,"www.walkscore.com"]
[]
[null,null,null,null,"ii.",null,"Located in an area with a Walk Score between 50 and 69 according to ",null,null,null,null,null,null,null,"1 point"]
[null,null,null,null,null,null,"www.walkscore.com"]
[]
[null,null,"2.","For projects in Greater Minnesota, choose from urbanized areas and rural and small urban areas. Urbanized areas, according to the U.S. Census are places with populations greater than 50,000, and are defined by the Minnesota Department of Transportation (MnDOT)*** as areas in and around Duluth, East Grand Forks, La Crescent, Rochester, Moorhead, Mankato and St. Cloud. Rural and small urban areas are places with populations fewer than 50,000."]
[]
[null,null,null,"a.","Urbanized Areas (population greater than 50,000):"]
[]
[null,null,null,null,"i.","Access to Transit: To claim access to transit, a project in Greater Minnesota must be (select one, see the Location Efficiency Methodology to determine points):"]
[]
[null,null,null,null,null,"1.",null,"Located within one quarter mile of a planned**** or existing public transportation fixed route stop",null,null,null,null,null,null,"7 points"]
[]
[null,null,null,null,null,"2.",null,"Located between one quarter mile and one half mile of a planned or existing public transportation fixed route stop ",null,null,null,null,null,null,"4 points"]
[]
[null,null,null,null,null,"3.",null,"Located less than one half mile of an express bus route stop or park and ride lot ",null,null,null,null,null,null,"4 points"]
[]
[null,null,null,null,"ii.","Walkability: To claim walkability, a project in Greater Minnesota must be (select one):"]
[]
[null,null,null,null,null,"1.",null,"Located in an area with a Walk Score of 70 or more according to",null,null,null,null,null,null,"2 points"]
[null,null,null,null,null,null,null,"www.walkscore.com"]
[]
[null,null,null,null,null,"2.",null,"Located in an area with a Walk Score between 50 and 69 according to ",null,null,null,null,null,null,"1 point"]
[null,null,null,null,null,null,null,"www.walkscore.com"]
[]
[]
[null,null,null,"b.","Rural and Small Urban Areas (population fewer than 50,000).  For rural and small urban areas, applicants may claim Location Efficiency by having access to route deviation service or demand response/dial-a-ride, and walkability.  Route deviation service is different from fixed route transit in that the vehicle may leave its predetermined route upon request by passengers to be picked up or returned to destinations near the route, after which the vehicle returns to the predetermined route.  Passengers may call in advance for route deviations similar to that of demand response/dial-a-ride or access the service at designated route stops without advanced notice.  Demand response usually involves curb-to-curb or door-to-door service with trips scheduled in advance (also known as “Dial-A-Ride”)."]
[]
[null,null,null,null,"Go to MnDOT's website to locate a project's transit service provider:"]
[null,null,null,null,"http://www.dot.state.mn.us/transit/riders/index.html"]
[]
[null,null,null,null,"i.","Access to Transit: To claim access to transit, a project in Greater Minnesota must be (select one):"]
[]
[null,null,null,null,null,"1.",null,"Located within one half mile of an existing or planned***** designated stop that has service every 60 minutes  OR within",null,null,null,null,null,null,"7 points"]
[null,null,null,null,null,null,null,"one half mile of a commuter rail station OR served by demand response/dial-a-ride with same day service available."]
[]
[null,null,null,null,null,"2.",null,"Served by demand response/dial-a-ride with prior day notice.",null,null,null,null,null,null,"4 points"]
[]
[null,null,null,null,null,"3.",null,"The proposed housing has access to demand response/dial-a-ride service not meeting the scheduling ",null,null,null,null,null,null,"2 points"]
[null,null,null,null,null,null,null,"terms above"]
[]
[null,null,null,null,"ii.","Walkability: To claim walkability, a project in Greater Minnesota must be (select one):"]
[]
[null,null,null,null,null,"1.",null,"Located in an area with a Walk Score of 50 or more according to ",null,null,null,null,null,null,"2 points"]
[null,null,null,null,null,null,null,"www.walkscore.com"]
[]
[null,null,null,null,null,"2.",null,"Located in an area with a Walk Score between 35 – 49 according to ",null,null,null,null,null,null,"1 point"]
[null,null,null,null,null,null,null,"www.walkscore.com"]
[]
[null,null,"Link to Access to transportation maps and census tract listings are found on Minnesota Housing's website"]
[null,null,"Link to Community profiles interactive mapping tool"]
[]
[null,"*","Includes planned stations on future transitways that are in advance design or under construction that meet the following criteria: completion of an Environmental Impact Statement, station area planning underway, and adoption by the Metropolitan Council Transportation Policy Plan.  Transitways entering into advance design after publication will be eligible, but data may not be available using Minnesota Housing scoring tools."]
[null,"**","High service fixed route stop is defined as those serviced from 6 am to 7 pm and with service approximately every half hour during that time.  "]
[null,"***","Greater Minnesota Transit Investment Plan:",null,null,null,null,null,null,null,"http://minnesotago.org/index.php?cID=435"]
[null,"****","For a Greater Minnesota planned stop to be claimed, applicants must provide detailed location and service information including time and frequency of service, along with evidence of service availability from the transit authority providing service. The planned stop of route must be available M-F and provide service every 60 minutes for a minimum of 10 hours per day."]
[null,"*****","For a Greater Minnesota existing or planned stop to be eligible for points under the QAP, applicants must provide detailed location and service information including time and frequency of service, along with evidence of service availability from the transit authority providing service. The existing or planned stop must be available Monday through Friday and provide service every 60 minutes for a minimum of 10 hours per day, with the exception of the commuter rail transit stations serviced by Metro Transit."]
[]
["4. Supporting Community and Economic Development ",null,null,null,null,null,null,null,null,null,null,null,null,null,"1 to 21 points",{"$f":"SupportingCommunityTotalScore","v":0}]
[null,"A.","Community Development Initiative",null,null,null,null,null,null,null,null,null,null,null,"3 points",{"$f":"PlannedCommunityDevelopmentTotalScore","v":0}]
[null,null,"Select Community Development Initiative under Strategic Priorities to enable checkboxes for Community Development Initiative."]
[]
[null,null,"1.",null,"Project contributes to active implementation of a Community Development Initiative to address locally identified"]
[null,null,null,null,"needs and priorities, with active engagement by local stakeholders.  The initiative can be created by, and involve engagement from, a wide variety of public and private local community development partners such as cities, counties, employers, private foundations, public housing authorities, or other community stakeholders.  The plan must contain more components than the project itself.  Documentation must be provided that addresses four requirements for the Community Development Initiative: "]
[null,null,null,null,"Refer to the information below.  If you prefer to see this in a table format click here."]
[]
[null,null,null,null,"a.","Targeted Geographic Area and Map"]
[null,null,null,null,null,"i.","The Targeted Geographic Area boundaries must be larger than the proposed rental project site, yet within a measurable impact area.  For larger geographic areas, the Targeted Area must be small enough that one municipality or county (or a small conglomerate of municipalities or counties) can exercise jurisdiction over it."]
[null,null,null,null,"b.","Current implementation plan with goals or outcomes specific to the need identified by the initiative"]
[null,null,null,null,null,"i.","Include milestones or steps of the plan that have been:"]
[null,null,null,null,null,null,"a.","Completed"]
[null,null,null,null,null,null,"b.","Underway"]
[null,null,null,null,null,null,"c.","Planned"]
[null,null,null,null,"c.","Affordable housing is identified as a key strategy of the initiative"]
[null,null,null,null,"d.","Stakeholder List and Role"]
[null,null,null,null,null,"i.","Provide a list of stakeholders involved and a description of their role in the active implementation of the initiative"]
[]
[null,null,null,null,"If a project is located in a Qualified Census Tract (QCT), in order to be eligible for these points, the application must provide additional evidence that demonstrates a strategy for obtaining commitments of public and/or private investment in non-housing efforts to demonstrate that the project contributes to a concerted community revitalization plan.  Demonstrated strategy for obtaining commitments of public or private investment (or both) in non-housing infrastructure, amenities, or services that could include but are not limited to:"]
[null,null,null,null,"\u009f","Commercial/retail development"]
[null,null,null,null,"\u009f","Economic development"]
[null,null,null,null,"\u009f","Education-related initiatives/development"]
[null,null,null,null,"\u009f","Environmental clean-up"]
[null,null,null,null,"\u009f","Public works/infrastructure"]
[null,null,null,null,"\u009f","Parks, green space and recreation"]
[null,null,null,null,"\u009f","Transit-oriented development or transit initiatives"]
[]
[null,null,null,"Applicants must complete the Community Initiative Narrative and submit documentation demonstrating how the initiative meets the requirements outlined above.  Documents can include plans, charters or other evidence demonstrating active implementation of the Community Development Initiative.  A full copy of all referenced plans or initiatives must be submitted. Note that comprehensive and land use plans are not by themselves considered evidence of a Community Development Initiative."]
[]
[null,"B.","Eventual Tenant Ownership",null,null,null,null,null,null,null,null,null,null,null,"1 point",{"$f":"EventualTenantOwnershipTotalScore","v":0}]
[]
[null,null,"1.",null,"Projects with detached single-family units are eligible for homeowner conversion. The project owner must submit a "]
[null,null,null,null,"preliminary conversion plan with their application that is consistent with the requirements of the Eventual Tenant Ownership (ETO) Guide. The plan must address the transfer of 100% of the HTC unit ownership after the end of the 15-year compliance period from the initial ownership entity (or Minnesota Housing approved \"Transfer of Ownership\" entity) of the project to tenant ownership."]
[]
[null,null,"The unit purchase price at time of sale must be affordable to buyers with incomes meeting HTC eligibility requirements. To be eligible, the buyer must have an HTC qualifying income at the time of initial occupancy (HTC rental tenant). The final conversion plan, to be submitted by the 15th year of initial compliance, must incorporate an ownership exit strategy, a third party Property Capital Needs Assessment report and budget for capital improvements, and services including homeownership education and training. A final conversion plan complying with all of the requirements of the ETO Guide must be submitted to, and approved by, Minnesota Housing prior to commencing the conversion.\n\nThe LURA will contain provisions ensuring compliance with these Eventual Tenant Ownership commitments by the owner, including a right of first refusal allowing tenants to purchase their units. (Refer to the Eventual Tenant Ownership (ETO) Guide and also to Chapter 3W of the HTC Program Procedural Manual for additional information.)\n\nNOTE: Until the time the HTC units are purchased by qualified tenants or in the event that not all HTC units are acquired by qualified tenants, the owner will extend the duration of low-income use for the full extended use period."]
[]
[null,"C.","Rural/Tribal",null,null,null,null,null,null,null,null,null,null,null,"10 points",{"$f":"RuralTribalDesignatedAreaTotalScore","v":0}]
[]
[null,null,"Projects located in Rural/Tribal Designated Areas outside of the Twin Cities 7-County Metropolitan Area and areas in and around Duluth, Rochester \nand St. Cloud."]
[null,null,"Criterion has already been claimed/awarded under Economic Integration First Tier or Second Tier and cannot be claimed here."]
[]
[null,null,"1.",null,"The proposed housing is located in a census tract eligible as a Rural/Tribal Designate Area outside of the Twin Cities"]
[null,null,null,null,"7-County Metropolitan Area and areas in and around Duluth, Rochester and St. Cloud."]
[]
[null,null,"Link to Rural/Tribal Designated Area maps and census tract listing"]
[null,null,"Link to Rural/Tribal Designation Area map overlays in the community profiles interactive mapping tool"]
[]
[null,"D.","QCT/Community Revitalization and Tribal Equivalent Areas",null,null,null,null,null,null,null,null,null,null,null,"3 points",{"$f":"QCTOrTribalEquivalentTotalScore","v":0}]
[]
[null,null,"1.",null,"The proposed housing is located in a QCT Community Revitalization Area or a Tribal Equivalent Area"]
[]
[null,null,"To be eligible for the QCT/Community Revitalization criterion, the project must be located in a Qualified Census Tract (See Qualified Census Tract – Reference Materials Index) and be part of a concerted plan that provides for community revitalization consistent with the definition described in the Community Development Initiative selection criterion. \n\n\n"]
[]
[null,null,"To be eligible for the Tribal Equivalent Areas criterion, the project must be located in one of the Tribal Equivalent Areas. Click here."]
[null,null,"Link to find these areas in the community profiles interactive mapping tool"]
[]
[null,"E.","Minority-owned/Women-owned Business Enterprise (MBE/WBE) ",null,null,null,null,null,null,null,null,null,null,null,"4 points",{"$f":"MBEWBETotalScore","v":0}]
[]
[null,null,"1.",null,"The project sponsor, executive director of a non-profit, general contractor, architect, or management agent is a "]
[null,null,null,null,"MBE/WBE*, as certified by the owner. "]
[]
[null,null,"*A MBE/WBE is a tribe or tribally-designated housing entity, tribal corporate entity, or another entity which is at least 51% owned by one or more minority persons or women, and whose management and daily business operations are controlled by one or more minority persons or women who own it."]
[]
["5. Preservation",null,null,null,null,null,null,null,null,null,null,null,null,null,"5 to 30 points",{"$f":"PreservationTotalScore","v":0}]
[null,"Select Preservation under Strategic Priorities to enable checkboxes."]
[]
[null,"A.","Thresholds: Applicants seeking Preservation points must read the descriptions and then select one of the following \nthree Thresholds:"]
[]
[null,null,"Projects must select one of the three Risk of Loss thresholds below to activate options in Preservation Selection Priority."]
[]
[null,null,"1.",null,"Risk of Loss Due to Market Conversion"]
[]
[null,null,null,null,"a.","Expiration of contract/use-restrictions"]
[null,null,null,null,null,"i.","Existing property at risk of conversion to market rate housing within five years of application date, and conversion is not prohibited by existing financing or use restrictions; OR"]
[null,null,null,null,null,"ii.","Existing HTC developments eligible to exercise their option to file for a Qualified Contract, and have not previously exercised their option; AND"]
[null,null,null,null,"b.","Market for conversion evidenced by low physical vacancy rate (4% or lower) for market rate comparable units (comparable units to be validated by Minnesota Housing at Minnesota Housing’s discretion); AND"]
[null,null,null,null,"c.","Market for conversion evidenced by one or more of the following:"]
[null,null,null,null,null,"i.","An appraisal commissioned by Minnesota Housing within a year of the application date where the as-is unrestricted value is equal to or greater than the as-is restricted value; OR"]
[null,null,null,null,null,"ii.","For properties with Section 8 contracts, a Rent Comparability Study acceptable to Minnesota Housing staff and reviewers which was completed within a year of the application date that shows current rents are below comparable market rents; OR"]
[null,null,null,null,null,"iii.","A market study approved by Minnesota Housing completed within a year of the application date that shows current rents are below comparable market rents and that the property has comparable location, amenities and condition to convert to market rate; AND"]
[null,null,null,null,"d.","Fifteen (15) or more years have passed since the award of the existing federal assistance and the HTC placed in service date (if applicable) for projects claiming Existing Federal Assistance, or 15 years must have passed since the closing of the loan that created rent and income restrictions or the most recent HTC placed in service date for projects claiming Critical Affordable Units."]
[]
[null,null,null,null,"NOTE: Minnesota Housing, at its sole discretion, must agree that a market exists for a conversion to market rate housing. "]
[]
[null,null,"2.",null,"Risk of Loss Due to Critical Physical Needs"]
[]
[null,null,null,null,"a.","Fifteen (15) or more years have passed since the award of the Existing Federal Assistance and the HTC placed in service date (if applicable) for projects claiming Existing Federal Assistance, or 15 years must have passed since the closing of the loan that created rent and income restrictions or the most recent HTC placed in service date for projects claiming Critical Affordable Units; AND"]
[null,null,null,null,"b.","Critical physical needs identified by third party assessment to support the following conclusions:"]
[null,null,null,null,null,"i.","Repair/replacement of major physical plant components have been identified that will result in 15+ years sustained operations; AND"]
[null,null,null,null,null,"ii.","Identified scope of critical physical needs exceeds the available reserves by at least $5,000 per unit, as evidenced by the Three Year Critical Needs Model; "]
[]
[null,null,null,null,"NOTE:  Minnesota Housing will conduct an inspection of the development and must agree with applicant on scope of work, severity levels and cost estimates."]
[]
[null,null,"3.",null,"Risk of Loss Due to Ownership Capacity/Program Commitment"]
[]
[null,null,null,null,"a.","Fifteen (15) or more years have passed since the award of the Existing Federal Assistance and the HTC placed in service date (if applicable) for projects claiming Existing Federal Assistance, or 15 years must have passed since the closing of the loan that created rent and income restrictions or the most recent HTC placed in service date for projects claiming Critical Affordable Units; AND"]
[null,null,null,null,"b.","One of four conditions exist:"]
[null,null,null,null,null,"i.","Existing conditions created by the current owner such as bankruptcy, insolvency, default, foreclosure action, unpaid taxes and assessments, on-going lack of compliance with lenders or terms of federal assistance, or self-determination by non-profit board are severe enough to put the property at significant risk of not remaining decent, safe and affordable. Ownership must be transferred to an unrelated party;  OR "]
[null,null,null,null,null,"ii.","The property has been or will be acquired from an unrelated party within three years of the application date after being offered for sale on the open market after an opt-out notice for the HAP contract had been submitted to Minnesota Housing; OR"]
[null,null,null,null,null,"iii.","The property has been or will be acquired from an unrelated party within 3 years of the application date as a result of a PARIF Right of First Refusal being exercised; OR"]
[null,null,null,null,null,"iv.","The acquisition of a property with USDA Rural Development rental assistance has occurred or will occur when the current or previous owner intends or intended to allow the existing USDA Rural Development mortgage to mature, and has turned down offers from USDA Rural Development to reamortize the mortgage.  Must apply within five years of maturity date and within three years of acquisition."]
[]
[null,null,"NOTE: Minnesota Housing, at its sole discretion, must agree that a change in ownership is necessary for units to remain decent, safe or affordable."]
[]
[null,null,"For projects meeting one of the three thresholds above, choose either Existing Federal Assistance or Critical Affordable Units at Risk of Loss below."]
[]
[null,"B.","Criteria:"]
[]
[null,null,"1.","Existing Federal Assistance - Tier 1 - project-based rental assistance/operating subsidies:",null,null,null,null,null,null,null,null,null,null,"5 to 30 points"]
[null,null,null,"Definition: Any housing receiving project-based rental assistance or operating subsidies under a U.S. Department of Housing and Urban Development (HUD), U.S. Department of Agriculture Rural Development (RD), NAHASDA or other program that is not scheduled to sunset or expire. Properties that have converted their type of federal rental assistance through the Rental Assistance Demonstration program, Component 2 (RAD 2), and RAD for Project Rental Assistance Contracts (PRAC) are eligible. Such assistance must have been committed to the property 15 years prior to the year of application. \n\nOwner will continue renewals of existing project based housing subsidy payment contract(s) for as long as the assistance is available. Except for “good cause,” the owner will not evict existing subsidized residents and must continue to renew leases for those residents. Developments with qualified Existing Federal Assistance and which have secured additional federal rental assistance (including through an 8bb transfer) must count the total number of assisted units below. Such units are not eligible to be counted under Rental Assistance. "]
[null,null,null,null,null,null,null,null,null,null,null,null,null,null,null,null,null,"Select cell to edit number of units."]
[null,null,null,"Select an option from either a. or b. below.",null,null,null,null,null,null,null,null,null,null,null,null,"Number of units"]
[]
[null,null,null,"a.","Existing Federally Assisted Units:"]
[]
[null,null,null,null,"i.",null,"100% of units are federally assisted",null,null,null,null,null,null,null,"30 points"]
[]
[null,null,null,null,"ii.",null,"75.01% - 99.99% of units are federally assisted ",null,null,null,null,null,null,null,"22 points"]
[]
[null,null,null,null,"iii.",null,"50.01 - 75% of units are federally assisted",null,null,null,null,null,null,null,"15 points"]
[]
[null,null,null,null,"iv.",null,"25.01% - 50% of units are federally assisted",null,null,null,null,null,null,null,"10 points"]
[]
[null,null,null,null,"v.",null,"Less than 25% of units are federally assisted",null,null,null,null,null,null,null,"5 points"]
[]
[null,null,null,"b.","Partially assisted projects with Existing Federally Assisted Units within Economic Integration census tracts:"]
[]
[null,null,null,null,"i.",null,"75.01 - 99.99% of units are federally assisted",null,null,null,null,null,null,null,"30 points"]
[]
[null,null,null,null,"ii.",null,"25.01 - 75% of units are federally assisted ",null,null,null,null,null,null,null,"20 points"]
[]
[null,null,null,null,"iii.",null,"Less than 25% of units are federally assisted",null,null,null,null,null,null,null,"10 points"]
[]
[null,"OR"]
[]
[null,null,"2.","Existing Federal Assistance - Tier 2",null,null,null,null,null,null,null,null,null,null,"6 points"]
[]
[null,null,null,"a. ",null,"Any housing which is federally assisted with a current recorded deed restriction limiting rent or income restrictions at or below the ",null,null,null,null,null,null,null,null,"6 points"]
[null,null,null,null,null,"greater of 80% of statewide median income or area median income. Federal assistance includes: existing public housing units, including converting through Rental Assistance Demonstration Program, Component 1 ( RAD 1), HTC units, Rural Development funded units without rental assistance and Existing Federal Assistance not described in paragraph B. above (e.g., 202, 236)."]
[null,null,null,null,"AND"]
[null,null,null,null,null,"You must also claim and be eligible under Serves Lowest Income Tenants/Rent Reduction criterion, unless the project is a RAD 1 conversion with 50% or more of the units covered by a Section 8 rental assistance contract."]
[]
[null,"OR"]
[]
[null,null,"3.","Critical Affordable Units at Risk of Loss  ",null,null,null,null,null,null,null,null,null,null,"6 points"]
[]
[null,null,null,"a.",null,"Any housing with a current recorded deed restriction limiting rent or income restrictions at or below the greater of",null,null,null,null,null,null,null,null,"6 points"]
[null,null,null,null,null,"80% of statewide median income or area median income under another non-federal program, including state, local or intermediary funds. "]
[null,null,null,null,"AND"]
[null,null,null,null,null,"You must also claim and be eligible under Serves Lowest Income Tenants/Rent Reduction criterion unless the project is a RAD 1 conversion with 50% or more of the units covered by a section 8 rental assistance contract."]
[]
["6. Efficient Use of Scarce Resources and Leverage",null,null,null,null,null,null,null,null,null,null,null,null,null,"1 to 38 points",{"$f":"EfficientUseOfScareResourcesTotalScore","v":0}]
[null,"A.","Financial Readiness to Proceed/Leveraged Funds",null,null,null,null,null,null,null,null,null,null,null,"4 to 16 points",{"$f":"FinancialReadinessTotalScore","v":0}]
[]
[null,null,"1.","Applicants who have secured funding commitments for one or more permanent capital funding sources at the time of application must count the source in this calculation. Funding from Minnesota Housing and Funding Partners (i.e., Greater Minnesota Housing Fund, Metropolitan Council Local Housing Incentive Account) can only be included in the calculation if it was committed in a previous funding cycle/round. \n\n"]
[]
[null,null,null,"Calculate your total using the formula below. The calculation must exclude amortizing first mortgage financing and any anticipated proceeds from the current HTC request."]
[]
[null,null,null,"Total eligible funding secured, awarded or committed (excluding amortizing first mortgage financing net of the Tax Increment Financing (TIF) portion, if applicable, any anticipated proceeds from the current HTC request, and sales tax rebate*) divided by Total Development Cost (excluding amortizing first mortgage financing net of the Tax Increment Financing (TIF) portion, if applicable, any anticipated proceeds from the current HTC request, and sales tax rebate) equals Percentage of Funds Committed (round to nearest tenth):"]
[null,null,null,"Calculate your total by entering values in the shaded fields. This will result in the selection of the appropriate option based on \nthe values entered."]
[]
[null,null,null,null,null,null,null,null,null,null,null,"="]
[null,null,null,null,null,null,null,null,"Total eligible funding secured, awarded or committed*",null,"Total Development Cost*",null,"Percentage of funds Committed (rounded to the nearest tenth)"]
[null,null,null,null,null,null,"a.",null,"70% or more of funding secured, awarded or committed**",null,null,null,null,null,"16 points"]
[null,null,null,null,null,null,"b.",null,"60% to 69.9% of funding secured, awarded or committed",null,null,null,null,null,"14 points"]
[null,null,null,null,null,null,"c.",null,"50% to 59.9% of funding secured, awarded or committed",null,null,null,null,null,"12 points"]
[null,null,null,null,null,null,"d.",null,"40% to 49.9% of funding secured, awarded or committed",null,null,null,null,null,"10 points"]
[null,null,null,null,null,null,"e.",null,"30% to 39.9% of funding secured, awarded or committed",null,null,null,null,null,"8 points"]
[null,null,null,null,null,null,"f.",null,"20% to 29.9% of funding secured, awarded or committed",null,null,null,null,null,"6 points"]
[null,null,null,null,null,null,"g.",null,"10% to 19.9% of funding secured, awarded or committed",null,null,null,null,null,"4 points"]
[]
[null,null,null,"*","Sales tax rebate, for the purpose of this scoring category, should be calculated as 40% of the construction contract amount (without contingency) multiplied by the local tax rate for the area where the project is located."]
[null,null,null,"**","Projects that have both a numerator and denominator equal to zero are eligible to claim 70% or more of funding secured, awarded or committed. NOTE: Zero must be entered in both the numerator and denominator fields in order to result in the selection of option a."]
[]
[null,null,"For scoring purposes, the documentation must be in the form of a project specific Letter of Intent, city or council resolution, letter of approval, or statement of agreement or eligibility. Commitment documentation must state the amount and be executed or approved by the lender or contributor. Documentation containing words synonymous with “consider” or “may,” (as in “may award”) regarding the commitment will not be acceptable."]
[]
[null,null,"The list below includes potential Financial Readiness/Leverage Funding Commitments, but is not all inclusive:"]
[null,null,"\u009f","Syndication proceeds due to previously allocated or awarded HTCs: Syndication proceeds from HTCs allocated or awarded in a previous cycle/round may be included if verification is included in the application. Acceptable verification is an executed syndicator agreement or executed Letter of Intent from the syndicator that is acceptable to Minnesota Housing. The executed Letter of Intent must:"]
[null,null,null,"◦","Be current within 15 days of submission of the application"]
[null,null,"\u009f","Syndication proceeds from the current tax credit request"]
[null,null,"\u009f","Monetary grants/donations"]
[null,null,"\u009f","Amortizing first mortgage incorporates tax abatement and payments in lieu of taxes (PILOT) for properties with an amortizing  first mortgage"]
[null,null,"\u009f","Tax Increment Financing (TIF): Provide satisfactory documentation that the contribution is committed to the development at the time of application. The documentation must include a city council resolution indicating its intention to provide TIF assistance. The anticipated amount must be included in the resolution or a letter from the city."]
[null,null,"\u009f","Deferred loans"]
[null,null,"\u009f","Grants from nonprofit charitable organizations converted to deferred loans. An award letter from the nonprofit charitable organization contributor must be provided at the time of application verifying the contribution. Documentation must evidence that the contribution is restricted for housing development uses and the contribution must be included as a development source."]
[null,null,"\u009f","Historic Tax Credits: In addition to the commitment documentation, at the time of application provide written documentation of eligibility through evidence of Historic Register listing or approval of Part 1—Evaluation of Significance along with a syndicator/investor Letter of Intent."]
[null,null,"\u009f","Funder commitments to modify existing debt including: approval of assumption of debt and extension of loan term; commitments must contain no contingencies other than receipt of an HTC allocation or award. At the time of application, written documentation of approval from the funder clearly demonstrating that the approval is for the re-syndication/receipt of new deferred or HTC allocation or award, justifying the amount and the terms of the contribution must be provided."]
[null,null,"\u009f","General Partner commitments can count as long as satisfactory documentation is provided. Examples include:"]
[null,null,null,"◦","GP cash and seller loans"]
[null,null,null,"◦","Deferred developer fee: The applicant must provide the required commitment documentation and provide evidence of repayment within 10 years by the projected cash flow or an amount approved by the syndicator/investor in the LOI."]
[null,null,null,"◦","Purchased reserves: Provide satisfactory documentation to determine that the reserves are available, will be purchased with the property and a commitment that they will be used as a permanent capital source. The documentation could include purchase agreement, financial statements, with a commitment letter from the applicant."]
[null,null,null,"◦","Energy Rebate: Provide satisfactory documentation that the energy rebate will be funded at closing with general partner cash or a general partner loan."]
[]
[null,null,"NOTE:  Financial Readiness to Proceed/Leveraged Funds and Other Contributions selection criteria cannot be claimed for the same sources."]
[]
[null,"B.","Other Contributions",null,null,null,null,null,null,null,null,null,null,null,"2 to 10 points",{"$f":"OtherContributionsTotalScore","v":0}]
[]
[null,null,"1.","For projects that receive non-capital contributions. Contributions can come from any entity including the federal government; a local unit of government; an area employer; and/or a private philanthropic, religious or charitable organization. Calculate your total using the formula below.\n\nTotal “Other” non-capital funding contributions and sources divided by Total Development Cost equals Other Contributions (rounded to the nearest tenth):"]
[null,null,null,"Calculate your total by entering values in the shaded fields. This will result in the selection of the appropriate option based \non the values entered."]
[]
[]
[null,null,null,null,null,null,null,null,null,"/",null,"=",{"$f":"IF(DevOtherContributionsDevelopmentCost=0,0, ROUND(DevOtherContributionsFunding/DevOtherContributionsDevelopmentCost,3))","v":0}]
[null,null,null,null,null,null,null,null,"Total \"Other\" non-funding contributions",null,"Total Development Cost",null,"Percentage of Other Funds Committed (rounded to the nearest 10th)"]
[null,null,null,null,null,null,"a.",null,"10.1% and above",null,null,null,null,null,"10 points"]
[null,null,null,null,null,null,"b.",null,"8.1 to 10% ",null,null,null,null,null,"8 points"]
[null,null,null,null,null,null,"c.",null,"6.1 to 8% ",null,null,null,null,null,"6 points"]
[null,null,null,null,null,null,"d.",null,"3.5 to 6% ",null,null,null,null,null,"4 points"]
[null,null,null,null,null,null,"e.",null,"1.0 to 3.4% ",null,null,null,null,null,"2 points"]
[]
[null,null,null,null,"NOTE: This calculation is based on the Total Development Costs. Applicants should not use any exclusions."]
[]
[null,null,"At the time of application, written documentation from the contributor justifying the amount and the terms of the contribution must be provided and be consistent with current market comparable costs. The documentation must be in the form of a project specific Letter of Intent, city or council resolution, letter of approval, statement of agreement or eligibility, or memorandum of understanding. \n\nFor scoring purposes, the documentation must state the amount and must be executed or approved, at a minimum, by the contributor. Documentation containing words synonymous with “consider” or “may” (as in “may award”) regarding the contribution will not be acceptable.\n\nThe list below includes potential Other Contributions but is not all inclusive:"]
[null,null,"\u009f","Land donation or write-down of the development site.  Documentation used to determine the market value must be submitted.  This could include an appraisal, assessment information, broker opinion with comparable properties, or other data deemed acceptable by Minnesota Housing."]
[null,null,"\u009f","In-kind work and materials that benefit the project are donated at a lower or no cost."]
[null,null,"\u009f","Local government reduction, donation or waiver of project specific costs, assessments or fees (e.g., SAC/WAC)"]
[null,null,"\u009f","Reservation land not subject to local property taxes. Documentation must include the amount and term (up to term of Minnesota Housing deferred loan or LURA). Calculate net present value (NPV) by using NPV discounted by applicable federal rate (AFR) for the term."]
[null,null,"\u009f","Reservation land with long-term low cost leases"]
[null,null,"\u009f","Funder commitments to modify existing debt including: debt forgiveness; forgiveness of interest payable; reduction in interest rate (measured as amount of interest saved over term of loan). Commitments must contain no contingencies other than receipt of an HTC allocation or award. At the time of application, written documentation from the funder justifying the amount and the terms of the contribution must be provided."]
[null,null,"\u009f","Tax Increment Financing (TIF) for properties that cannot support an amortizing first mortgage. Calculate the net present value (NPV) by using NPV discounted by applicable federal rate (AFR) for the term of the TIF.  Provide satisfactory documentation that the contribution is committed to the development at the time of application. The documentation must include a city council resolution indicating its intention to provide TIF assistance. The  anticipated amount must be included in the resolution or a letter from the city.  The documentation should include the TIF analysis from the city or its consultant."]
[null,null,"\u009f","Tax abatement and payments in lieu of taxes for properties that cannot support an amortizing first mortgage. Documentation must include the amount and term (up to the term of the Minnesota Housing deferred loan or LURA). Calculate net present value (NPV) by using NPV discounted by applicable federal rate (AFR) for the term of the abatement (up to the term of the Minnesota Housing deferred loan or LURA). "]
[]
[null,null,"NOTE:  Financial Readiness to Proceed/Leveraged Funds and Other Contributions selection criteria cannot be claimed for the same sources."]
[]
[null,"C.","Intermediary Costs",null,null,null,null,null,null,null,null,null,null,null,"1 to 6 points",{"$f":"IntermediaryCostsTotalScore","v":0}]
[]
[null,null,"1.","Intermediary costs are third-party service costs related to the project development.  Excluded costs are Park Dedication Fees, Surveys, Soil Borings, Payment and Performance Bond Premium, Sewer-Water Access Charge, Furnishing and Equipment, and Hazard and Liability Insurance.\n\nProjects with the lowest intermediary costs on a sliding scale based on percentage of total development costs. For selected projects, this percentage will be enforced at the time of closing for deferred loans or at issuance of the IRS Form 8609 for HTC developments. Calculate your total using the formula below.\n\nIntermediary cost amount divided by Total Development Costs Equals Intermediary Percentage (rounded to the nearest tenth):"]
[]
[null,null,null,"Calculate your total by entering values in the shaded fields. This will result in the selection of the appropriate option based on the values entered."]
[]
[null,null,null,null,null,null,null,null,null,"/",null,"=",{"$f":"IF(DevIntermediaryDevelopmentCost=0,0,ROUND(DevIntermediaryCosts/DevIntermediaryDevelopmentCost,3))","v":0}]
[null,null,null,null,null,null,null,null,"Intermediary Cost Amount",null,"Total Development Cost",null,"Intermediary Percentage (rounded to the nearest tenth)"]
[null,null,null,null,null,null,"a.",null,"0.0 to 15% ",null,null,null,null,null,"6 points"]
[null,null,null,null,null,null,"b.",null,"15.1 to 20% ",null,null,null,null,null,"3 points"]
[null,null,null,null,null,null,"c.",null,"20.1 to 25% ",null,null,null,null,null,"2 points"]
[null,null,null,null,null,null,"d.",null,"25.1 to 30% ",null,null,null,null,null,"1 point"]
[]
[null,"D.","Cost Containment",null,null,null,null,null,null,null,null,null,null,null,"6 points",{"$f":"CostContainmentTotalScore","v":0}]
[]
[null,null,"1.",null,"50% of developments with the lowest costs within each development type/location group will receive priority (subject to the methodology"]
[null,null,null,null,"described in Cost Containment Methodology). \n\nApplicants may claim this criterion and Minnesota Housing will review costs for all applications to confirm eligibility in the funding round."]
[null,null,null,null,"A different process occurs for the second round of 9% HTC selections. For each of the four competition groups, the cost per unit of the proposal at the 50th percentile in Round 1 will determine the cut-off point or threshold for receiving points in Round 2."]
[]
[null,null,"NOTE: Proposals that believe they have contained their costs should select these this criterion. Only proposals that claim cost containment and are awarded through the process described above will be eligible for cost containment."]
[null,null,"CAUTION: If a project receives points under this criterion, failure to keep project costs under the applicable cost threshold will be considered an unacceptable practice and may result in negative four points being awarded in all of the applicant’s HTC submissions in the next funding round in which submissions are made. The penalty will be assessed to an application submitted to the same funding round (Competitive or 4% Only) for which the points were initially awarded. If developers are concerned about their costs and keeping them within the “applicable cost threshold,” they should not claim the cost-containment points. \n"]
[]
[null,null,"Link to Cost Containment Methodology "]
[]
["7. Building Characteristics",null,null,null,null,null,null,null,null,null,null,null,null,null,"1 to 6 points",{"$f":"BuildingCharacteristicsTotalScore","v":0}]
[null,"A.","Universal Design",null,null,null,null,null,null,null,null,null,null,null,"3 points",{"$f":"UniversalDesignTotalScore","v":0}]
[]
[null,null,"1.","A unit that includes all Minimum Essential Universal Design Features below, along with eight Optional Features for units in a new construction or adaptive re-use project, and four Optional Features for units in a rehabilitation project. Type A accessible units (as referenced in Minnesota Housing’s Rental Housing Design and Construction Standards) also meet the definition of a Universal Design unit."]
[null,null,null,null,null,null,null,null,null,null,null,null,null,null,null,null,null,"Select cell to edit number of units."]
[null,null,"2.","Select one:",null,null,null,null,null,null,null,null,null,null,null,null,"Number of Units"]
[]
[null,null,null,"a.",null,"An elevator building with 100% of assisted units meeting the definition of a Universal Design Unit OR",null,null,null,null,null,null,null,null,"3 points"]
[]
[null,null,null,"b.",null,"A non-elevator building with at least 10% of assisted units meeting the definition of a Universal Design Unit",null,null,null,null,null,null,null,null,"3 points"]
[]
[]
[]
[null,null,"Minimum Essential Universal Design Features: "]
[null,null,"\u009f","At least one bedroom or space that can be converted to a bedroom (without changing door locations for new construction or adaptive re-use) on an accessible level and connected to an accessible route, or efficiency units (without a bedroom) on an accessible level and connected to an accessible route"]
[null,null,"\u009f","At least 42” minimum hallways within a unit for new construction or adaptive re-use."]
[null,null,"\u009f","At least one three quarter bathroom on an accessible level with five foot open radius for new construction or adaptive re-use, and clear floor space of 30” x 48” for rehabilitation projects. Accessible \"T\" turn clearance may be accepted in lieu of the five foot open radius."]
[null,null,"\u009f","Lever handles on all doors and plumbing fixtures."]
[null,null,"\u009f","Provide wall blocking in all tub and shower areas for new construction or adaptive re-use, and for rehabilitation if showers are being replaced."]
[null,null,"\u009f","Door thresholds flush with the floor with maximum threshold height of ½” beveled or ¼”square edged."]
[null,null,"\u009f","Kitchen and laundry appliances have parallel approach clear floor space with all controls within maximum height of 48”. Oven controls must have lockout feature. Stackable laundry units with a maximum reach range of 54” will meet this requirement"]
[null,null,"\u009f","If microwave/exhaust hood combination appliances are provided in 95 percent of Universal Design Units, then the remaining 5 percent of Universal Design Units must provide a countertop or accessible microwave or have one in stock and on-site and available upon request."]
[null,null,"\u009f","Kitchen sink area 30” wide minimum with cabinet panel concealing piping or a removable base cabinet."]
[null,null,"\u009f","All common spaces and amenities provided in the housing development located on an accessible route."]
[null,null,"\u009f","For new construction or adaptive re-use projects, deck and patio spaces must have a step-less transition meeting door threshold requirements above, with decking gaps no greater than ¼”.  A step-less transition and door threshold meeting requirements as promulgated by Minnesota Accessibility Code for Type A units is also permitted."]
[null,null,"\u009f","Universal Design features are incorporated in an aesthetic, marketable, non-institutional manner."]
[]
[null,null,"Optional Features:"]
[null,null,"\u009f","High contrast finish selections that include floor to wall transitions, top treads of stairs, counters and adjacent flooring and walls"]
[null,null,"\u009f","Single lever, hands free or touch type faucets are provided throughout the Universal Design Unit"]
[null,null,"\u009f","At least 50% of kitchen storage space within reach range. This can include pull-out shelves, full extension glide drawers or within a roll-in pantry design"]
[null,null,"\u009f","A variety of work surface heights in kitchen and one five foot open radius"]
[null,null,"\u009f","Roll under vanity or sink in 25% of Universal Design qualifying units, rounded up to the nearest whole number"]
[null,null,"\u009f","Cabinet hardware with “D” type pull handles or operation for people with limited dexterity"]
[null,null,"\u009f","Zero threshold shower or transfer space at tub is provided for minimum of half the qualifying Universal Design units, rounded up to the nearest whole number"]
[null,null,"\u009f","Slip resistant flooring in kitchens and baths in the Universal Design Units"]
[null,null,"\u009f","Toilets provided with seats 17”– 19” from the floor"]
[null,null,"\u009f","Windows are provided with maximum sill height of 36”, parallel clear floor space and locks/operating mechanism within 48” and easily operable with one hand. Sidelight or view window at main entry door from a seated position"]
[null,null,"\u009f","Thermostats designed for visually impaired or ability to monitor and operate with electronic device such as a tablet computer"]
[null,null,"\u009f","Majority of closets in Universal Design Units must have shelving that is adjustable OR provide multiple shelving/hanger rod configuration where by majority of shelving/hanger rods are within one of the reach ranges of the Minnesota Accessibility Code-Section 308"]
[null,null,"\u009f","An audio/visual doorbell is included at all main dwelling unit entry doors"]
[null,null,"\u009f","A covered canopy with adequate lighting is provided at exterior main/unit entry. An interior or exterior bench space for parcels or groceries is provided."]
[null,null,"\u009f","Parking spaces provided for at least 50% of Universal Design qualifying units, rounded up to the nearest whole number, with a five foot wide adjacent auxiliary space (access aisle) connected to accessible route"]
[null,null,"\u009f","Residential elevator or chair lift space structured for future use in multiple level homes"]
[null,null,"\u009f","Enterprise Green Communities Model Specifications are used for applicable sections for the Universal Design qualifying units"]
[null,null,"\u009f","On-site accessible physical activity is provided for in a fitness area, biking or walking path or community garden"]
[null,null,"\u009f","Other modifications that make units livable for disabled populations, as demonstrated by credible evidence provided in the application, and at the sole discretion of Minnesota Housing"]
[]
[null,"B.","Smoke Free Buildings",null,null,null,null,null,null,null,null,null,null,null,"1 point",{"$f":"SUM('Named Ranges'!Q186)","v":0}]
[]
[null,null,null,"The projects will institute and maintain a written policy* prohibiting smoking in all the units and all common areas within"]
[null,null,null,"the building/s of the project. The project must include a non-smoking clause in the lease for every household. Projects awarded a point in this scoring criteria will be required to maintain the smoke-free policy for the term of the LURA. "]
[]
[null,null,"*","The written policy must be submitted with the application and must include procedures regarding transitioning to smoke-free for existing residents and establishment of smoking areas outside of units and common areas if applicable. Consequences for violating the smoke-free policy are determined by the owner but must be included in the written policy."]
[]
[null,"C. ","Minnesota Overlay to the Enterprise Green Communities Criteria",null,null,null,null,null,null,null,null,null,null,null,"1 to 2 points",{"$f":"GreenCommunitiesTotalScore","v":0}]
[]
[null,null,"As indicated in the Multifamily Intended Methods Worksheet, all multifamily projects must include all applicable \"Mandatory\" Criteria and meet the baseline minimum number of Optional Criteria points for the most current version of the Minnesota Overlay to the Enterprise Green Communities Criteria. More information on the Minnesota Overlay to the Enterprise Green Communities Criteria can be found on the Building Standards tab of the Minnesota Housing website."]
[]
[null,null,"Link to Multifamily Intended Methods Worksheet"]
[null,null,"Link to Minnesota Overlay to the Enterprise Green Communities Criteria"]
[null,null,"Link to Building Standards tab of the Minnesota Housing website"]
[]
[null,null,"1.",null,"For projects that include at least three times the minimum number of Optional Criteria points, in addition to the Required Mandatory Criteria,",null,null,null,null,null,null,null,null,null,"2 points"]
[null,null,null,null,"as outlined above and as indicated in the Multifamily Intended Methods Worksheet."]
[]
[null,null,"2.",null,"For projects that include at least two times the minimum number of Optional Criteria points, in addition to the Required Mandatory Criteria,",null,null,null,null,null,null,null,null,null,"1 point"]
[null,null,null,null,"as outlined above and as indicated in the Multifamily Intended Methods Worksheet."]
[]
["8. Unacceptable Practices",null,null,null,null,null,null,null,null,null,null,null,null,null,"-4 to -25 points",{"$f":"UnacceptablePracticesTotalScore","v":0}]
[]
[null,null,null,"Minnesota Housing will impose penalty points for unacceptable practices as identified in Chapter 2.G. of the HTC"]
[null,null,null,"Program Procedural Manual."]
[]
["Total Points",null,null,null,null,null,null,null,null,null,null,null,null,null,null,{"$f":"TotalPoints","v":0}]
[]
[]
["Signatures"]
[]
["Under penalty of perjury, owner hereby certifies the information provided herein is true and accurate."]
[]
[]
[null,"Name of Owner"]
[]
[null,"By (Signature)"]
[]
[null,"Of (Name of Legal Entity)"]
[]
[null,"Its (Title) (Managing General Partner)"]
[]
[null,"Print or Type Name of Signatory:"]
[]
["NOTE: During the competition process, Minnesota Housing’s review of the submitted Self-Scoring Worksheet is only to validate that the points claimed are eligible, to reduce points claimed if not eligible, and to determine points awarded. Minnesota Housing will not award additional points that are not initially claimed by the applicant/owner. Many performance obligations are created by the claiming of certain scoring points. As such, Minnesota Housing will not assume the position of creating any such performance obligations on behalf of the applicant/owner. In addition, applications funded under the Joint Powers Agreement must also comply with the suballocators' selection criteria defined in their Qualified Allocation Plan."]

{"sheet":"Scoresheet","index":2,"n_rows":784,"n_cols":18,"rows_kept":784,"cut":false,"hidden":true,"merged":[[777,1,777,13],[778,1,778,13],[779,1,779,13],[781,1,781,13],[783,0,783,13],[770,0,770,13],[772,1,772,13],[773,1,773,13],[774,1,774,13],[775,1,775,13],[776,1,776,13],[737,3,737,13],[739,2,739,13],[741,3,741,13],[742,3,742,13],[744,3,744,13],[760,0,760,8],[732,3,732,13],[733,3,733,13],[734,3,734,13],[735,3,735,13],[736,3,736,13],[746,2,746,13],[748,2,748,13],[750,2,750,13],[751,2,751,13],[752,2,752,13],[754,4,754,13],[755,4,755,13],[757,4,757,13],[758,4,758,13],[726,3,726,13],[727,3,727,13],[728,3,728,13],[729,3,729,13],[730,3,730,13],[731,3,731,13],[720,3,720,13],[721,3,721,13],[722,3,722,13],[723,3,723,13],[724,3,724,13],[725,3,725,13],[713,3,713,13],[714,3,714,13],[715,3,715,13],[716,3,716,13],[718,2,718,13],[719,3,719,13],[706,3,706,13],[707,3,707,13],[708,3,708,13],[709,3,709,13],[710,3,710,13],[711,3,711,13],[712,3,712,13],[694,3,694,13],[696,3,696,13],[698,5,698,13],[700,5,700,13],[704,2,704,13],[705,3,705,13],[685,2,685,13],[686,2,686,13],[687,2,687,13],[689,2,689,10],[691,0,691,13],[692,2,692,13],[676,8,676,13],[680,4,680,13],[681,4,681,13],[663,2,663,13],[667,3,667,13],[669,3,669,13],[673,8,673,13],[674,8,674,13],[675,8,675,13],[656,3,656,13],[657,3,657,13],[658,3,658,13],[659,3,659,13],[660,3,660,13],[661,3,661,13],[648,8,648,13],[649,8,649,13],[653,2,653,13],[654,3,654,13],[655,3,655,13],[635,2,635,13],[639,3,639,13],[640,3,640,13],[645,8,645,13],[646,8,646,13],[647,8,647,13],[624,3,624,13],[625,3,625,13],[626,3,626,13],[627,3,627,13],[628,3,628,13],[629,3,629,13],[630,4,630,13],[631,4,631,13],[632,4,632,13],[633,4,633,13],[620,4,620,13],[622,3,622,13],[623,3,623,13],[613,4,613,13],[614,4,614,13],[616,2,616,13],[617,2,617,13],[618,2,618,13],[619,3,619,13],[621,3,621,13],[607,8,607,13],[608,8,608,13],[609,8,609,13],[610,8,610,13],[611,8,611,13],[596,3,596,13],[598,3,598,13],[600,3,600,13],[601,3,601,13],[605,8,605,13],[606,8,606,13],[588,5,588,13],[589,5,589,13],[590,4,590,13],[591,5,591,13],[593,0,593,13],[594,2,594,13],[545,2,545,13],[548,2,548,13],[549,2,549,13],[551,3,551,13],[557,6,557,13],[586,3,586,13],[581,4,581,13],[579,5,579,13],[580,5,580,13],[582,5,582,13],[537,5,537,13],[538,6,538,13],[539,6,539,13],[540,6,540,13],[541,6,541,13],[543,2,543,13],[528,5,528,13],[529,6,529,13],[530,6,530,13],[532,4,532,13],[534,4,534,13],[536,5,536,13],[518,6,518,13],[519,6,519,13],[520,6,520,13],[521,5,521,13],[525,4,525,13],[527,5,527,13],[511,4,511,13],[513,5,513,13],[514,6,514,13],[515,6,515,13],[516,5,516,13],[517,5,517,13],[504,0,504,13],[505,1,505,13],[507,2,507,13],[509,2,509,13],[510,2,510,13],[494,2,494,13],[495,2,495,11],[497,2,497,13],[499,4,499,13],[500,4,500,13],[502,2,502,13],[483,4,483,13],[485,2,485,13],[486,2,486,13],[488,2,488,13],[490,4,490,13],[492,2,492,13],[473,4,473,13],[475,2,475,13],[477,2,477,13],[479,2,479,13],[480,2,480,13],[482,4,482,13],[464,5,464,13],[465,5,465,13],[466,5,466,13],[468,3,468,13],[470,2,470,13],[472,4,472,13],[459,4,459,13],[460,5,460,13],[461,5,461,13],[462,5,462,13],[463,5,463,13],[454,7,454,13],[455,5,455,13],[456,5,456,13],[457,6,457,13],[448,5,448,13],[449,6,449,13],[450,5,450,13],[451,6,451,13],[452,7,452,13],[453,7,453,13],[440,0,440,13],[441,2,441,13],[442,2,442,13],[444,4,444,13],[445,4,445,13],[446,4,446,13],[432,2,432,13],[434,2,434,13],[435,2,435,13],[436,10,436,12],[437,2,437,13],[438,2,438,13],[425,7,425,13],[426,7,426,13],[428,7,428,13],[429,7,429,13],[431,2,431,13],[415,7,415,13],[417,7,417,13],[418,7,418,13],[420,7,420,13],[421,7,421,13],[423,5,423,13],[402,7,402,13],[404,7,404,13],[405,7,405,13],[407,4,407,13],[412,5,412,13],[414,7,414,13],[389,4,389,13],[391,5,391,13],[393,7,393,13],[395,7,395,13],[397,7,397,13],[399,5,399,13],[409,4,409,13],[410,4,410,13],[379,4,379,13],[381,6,381,13],[382,6,382,13],[384,6,384,12],[385,6,385,13],[387,3,387,13],[367,4,367,13],[369,6,369,13],[371,6,371,13],[373,6,373,13],[375,6,375,13],[377,6,377,13],[356,5,356,13],[358,2,358,13],[360,2,360,13],[361,2,361,13],[363,2,363,13],[365,3,365,13],[345,2,345,13],[347,2,347,13],[349,3,349,13],[351,5,351,13],[353,5,353,13],[354,5,354,13],[332,3,332,10],[333,3,333,10],[334,3,334,13],[336,2,336,13],[344,2,344,13],[313,0,313,13],[314,2,314,13],[316,3,316,13],[327,6,327,12],[329,6,329,12],[331,2,331,13],[338,3,338,13],[339,3,339,13],[340,3,340,13],[302,3,302,13],[305,5,305,13],[307,5,307,13],[309,5,309,13],[311,5,311,13],[289,5,289,12],[291,1,291,13],[293,1,293,13],[295,2,295,12],[296,2,296,13],[297,2,297,13],[298,2,298,13],[303,3,303,13],[281,5,281,12],[283,5,283,12],[285,5,285,12],[287,5,287,12],[268,5,268,12],[270,5,270,12],[272,5,272,11],[274,5,274,12],[300,2,300,13],[257,4,257,13],[258,4,258,13],[259,4,259,13],[261,3,261,13],[264,5,264,12],[250,2,250,13],[252,3,252,13],[254,3,254,13],[276,3,276,13],[246,2,246,13],[248,2,248,13],[226,5,226,13],[227,4,227,13],[229,2,229,13],[231,0,231,13],[232,2,232,13],[234,3,234,13],[256,4,256,13],[220,5,220,13],[221,5,221,13],[222,5,222,13],[223,5,223,13],[224,5,224,13],[225,5,225,13],[214,3,214,13],[215,4,215,13],[216,4,216,13],[217,4,217,13],[218,4,218,13],[219,5,219,13],[206,2,206,13],[208,2,208,13],[210,2,210,13],[211,3,211,13],[212,3,212,13],[213,3,213,13],[198,2,198,13],[200,3,200,13],[201,3,201,13],[202,3,202,13],[203,3,203,13],[204,3,204,13],[184,3,184,13],[185,3,185,13],[187,16,187,17],[188,2,188,12],[190,3,190,11],[177,4,177,13],[178,5,178,13],[179,5,179,13],[180,5,180,13],[181,4,181,13],[183,2,183,13],[171,3,171,13],[172,3,172,13],[173,3,173,13],[174,4,174,13],[175,4,175,13],[176,5,176,13],[149,3,149,13],[159,3,159,13],[162,4,162,13],[166,2,166,13],[168,2,168,13],[170,3,170,13],[107,3,107,15],[108,3,108,15],[109,3,109,15],[134,0,134,13],[137,3,137,13],[139,5,139,12],[144,2,144,13],[146,2,146,13],[147,2,147,13],[118,3,118,13],[119,3,119,13],[123,3,123,15],[124,3,124,13],[125,3,125,13],[126,3,126,13],[129,3,129,15],[130,3,130,15],[105,3,105,15],[24,2,24,15],[30,2,30,15],[61,2,61,15],[45,2,45,15],[48,2,48,15],[50,2,50,15],[53,2,53,15],[94,4,94,13],[95,5,95,13],[80,0,80,15],[81,0,81,15],[82,0,82,15],[88,3,88,13],[92,3,92,13],[93,4,93,13],[27,2,27,15],[34,2,34,15],[37,2,37,15],[62,2,62,8],[31,2,31,8],[22,2,22,15],[192,5,192,13],[196,5,196,13],[194,5,194,13],[77,2,77,15],[79,0,79,13],[55,2,55,15],[58,2,58,15],[65,2,65,15],[68,2,68,15],[71,2,71,15],[74,2,74,15],[96,5,96,13],[97,5,97,13],[98,4,98,13],[102,3,102,13],[111,3,111,15],[112,3,112,13],[113,3,113,13],[114,3,114,13],[115,3,115,15],[117,3,117,15],[103,3,103,13],[104,3,104,13],[1,0,1,13],[231,16,233,19],[683,4,683,13],[682,4,682,13],[0,0,0,13],[2,0,2,13],[3,0,3,13],[4,0,4,13],[9,2,9,7],[9,8,9,11],[10,2,10,7],[10,8,10,11],[12,2,12,15],[14,0,14,13],[6,2,6,7],[6,8,6,11],[7,2,7,7],[7,8,7,9],[8,2,8,7],[8,8,8,9],[39,2,39,15],[42,2,42,15],[17,2,17,15],[20,2,20,15]]}
["Deferred Loan Request with 4% Housing Tax Credit Self-Scoring Worksheet"]
["2021 Housing Tax Credit Self-Scoring Worksheet"]
["4% Housing Tax Credits Only"]
["Deferred Loan Request with 4% Housing Tax Credit projects submitted in a Competitive funding round*"]
["Updated October 2019"]
[]
[null,null,"Project Name:"]
[null,null,"Property Number (D#):",null,null,null,null,null,null,null,"Include \"D\" in the Property Number"]
[null,null,"Project Number (M#):",null,null,null,null,null,null,null,"Include \"M\" in the Project Number. Only enter one Project Number."]
[null,null,"Primary Address:"]
[null,null,"City:"]
[]
[null,null,"*A Competitive funding round includes the Consolidated Request for Proposal (RFP), HTC Round 1, HTC Round 2, and available financing throughout the year including first mortgage products, bonds, and deferred funds in conjunction with 4% HTCs."]
[]
["Instructions"]
[]
["Strategic Priority Policy Threshold:"]
[null,"A.","All projects, must meet at least one of the Strategic Priority Policy Thresholds defined in Article 9 of the State of Minnesota Housing Tax Credit Qualified Allocation Plan (QAP) in order to apply for Housing Tax Credits (HTC)."]
[]
["Minimum Point Requirements:"]
[null,"A.","Request for Minnesota Housing Finance Agency (Minnesota Housing) administered HTCs from the state's HTC volume cap must demonstrate the project is eligible for not fewer than 70 points, excluding projects funded through the Rural Development/Small Projects set-aside."]
[]
[null,"B.","Request for HTCs in association with tax exempt volume limited bonds must demonstrate the project is eligible for no fewer than 40 points."]
[]
[null,"C.","Minnesota Housing reserves the right to reject applications not meeting its Project Selection requirements as contained in the HTC Program Procedural Manual, to revise proposal features, and associated scoring, and to ensure the project meets the requirements."]
[]
["Documentation of Points:"]
[null,"A.","Indicate the selection criteria expected for your project. Where multiple points per section are available, please check the appropriate box (□) for points claimed. In addition to the Self-Scoring Worksheet the applicant must submit documentation that clearly supports the points claimed. See the HTC and Deferred Scoring Guide and Multifamily Customer Portal for additional details. Minnesota Housing will determine the eligible points; points will not be awarded unless the required documentation is provided along with the application to justify the points claimed."]
[]
["Adherence to HTC and Deferred Scoring Guide:"]
[null,"A.","Applicants must meet the requirements outlined in the Self-Scoring Worksheet and the HTC and Deferred Scoring Guide to be eligible for points."]
[null,null,"Link to HTC and Deferred Scoring Guide"]
[]
["Documentation of Units:"]
[null,"A.","Indicate the number of units for each selection criteria expected for your project.  When calculating a percentage for a criterion all units must be rounded up to the next full unit.  The number of units indicated will be required and incorporated into the Tax Credit Declaration of Land Use Restrictive Covenants (LURA) and deferred loan documents with the exception of tenant targeting in the Permanent Supportive Housing for High Priority Homeless."]
[]
["Extended Duration:"]
[null,"A.","Request for Minnesota Housing Finance Agency (Minnesota Housing) administered HTCs from the state’s HTC volume cap must maintain the duration of low-income use for a minimum of 30 years or longer if a longer duration is selected. The owner agrees that the Qualified Contract  provisions of IRC §§ 42(h)(6)(E)(i)(II) and 42(h)(6)(F) (which provision would permit the owner to terminate the restrictions under this agreement at the end of the compliance period in the event Minnesota Housing does not present the owner with a qualified contract for the acquisition of the project) do not apply to the project, and the owner also agrees the Section 42 income and rental restrictions must apply for a period of at least 30 years beginning with the first day of the compliance period in which the building is a part of a qualified low-income housing project. "]
[]
[null,"B.","Request for HTCs in association with tax exempt volume limited bonds must maintain the duration of low-income use for a minimum of 30 years, or longer if a longer duration is selected. The owner agrees that the Qualified Contract provisions of IRC §§ 42(h)(6)(E)(i)(II) and 42(h)(6)(F) (which provision would permit the owner to terminate the restrictions under this agreement at the end of the compliance period in the event Minnesota Housing does not present the owner with a qualified contract for the acquisition of the project) will not apply to the project for a minimum of 20 years beginning with the first day of the compliance period in which the building is a part of a qualified low-income housing project."]
[]
["Design Standards:"]
[null,"A.","The project must meet the requirements in the Minnesota Housing Rental Housing Design/Construction Standards and be evidenced by a Design Standards Certification form executed by the owner and architect. Additional design requirements will be imposed if Large Family Housing points are claimed/awarded or points are claimed/awarded that require specific design elements (e.g. Universal Design). "]
[]
["A Declaration of Land Use Restrictive Covenants:"]
[null,"A.","A Declaration of Land Use Restrictive Covenants (LURA) covering the rent restrictions and occupancy requirements presented at selection must be recorded against the property."]
[]
["Affirmative Fair Housing:"]
[null,"A.","Affirmative Fair Housing Marketing Regulations, held as centrally important by Minnesota Housing, require that each applicant carry out an affirmative marketing program to attract prospective buyers or tenants of all majority and minority groups in the housing market area regardless of race, creed, color, religion, sex, national origin, marital status, status with regard to public assistance, disability, sexual orientation, or familial status. At the time of 8609, all applicants must submit an Affirmative Fair Housing Marketing Plan documenting an acceptable plan to carry out an affirmative marketing program."]
["Strategic Priority Policy Threshold:"]
[null,"A.","As required by Minn. Stat. § 462A.222, subd. (3)(d) residential rental housing projects financed with an allocation of tax-exempt bonds under chapter 474A are the highest strategic priority, and such developments are therefore not required to meet a separate strategic priority threshold. "]
[]
["Minimum Point Requirements:"]
[null,"A.","Request for Housing Tax Credits (HTC) in association with tax exempt volume limited bonds must demonstrate the project is eligible for no fewer than 40 points."]
[]
[null,"B.","Minnesota Housing reserves the right to reject applications not meeting its Project Selection requirements as contained in the HTC Program Procedural Manual, to revise proposal features, and associated scoring, and to ensure the project meets the requirements."]
[]
["Documentation of Points:"]
[null,"A.","Indicate the selection criteria expected for your project. Where multiple points per section are available, please check the appropriate box (□) for points claimed. In addition to the Self-Scoring Worksheet, the applicant must submit documentation that clearly supports the points claimed. See the HTC and Deferred Scoring Guide and Multifamily Customer Portal for additional details. Minnesota Housing will determine the eligible points; points will not be awarded unless the required documentation is provided along with the application to justify the points claimed."]
[]
["Adherence to HTC and Deferred Scoring Guide:"]
[null,"A.","Applicants must meet the requirements outlined in the Self-Scoring Worksheet and the HTC and Deferred Scoring Guide to be eligible for points."]
[null,null,"Link to HTC and Deferred Scoring Guide"]
[]
["Documentation of Units:"]
[null,"A.","Indicate the number of units for each selection criteria expected for your project.  When calculating a percentage for a criterion all units must be rounded up to the next full unit.  The number of units indicated will be required and incorporated into the Tax Credit Declaration of Land Use Restrictive Covenants (LURA) and deferred loan documents with the exception of tenant targeting in the Permanent Supportive Housing for High Priority Homeless."]
[]
["Extended Duration:"]
[null,"A.","Request for HTCs in association with tax exempt volume limited bonds must maintain the duration of low-income use for a minimum of 30 years, or longer if a longer duration is selected. The owner agrees that the Qualified Contract provisions of IRC §§ 42(h)(6)(E)(i)(II) and 42(h)(6)(F) (which provision would permit the owner to terminate the restrictions under this agreement at the end of the compliance period in the event Minnesota Housing does not present the owner with a qualified contract for the acquisition of the project) will not apply to the project for a minimum of 20 years beginning with the first day of the compliance period in which the building is a part of a qualified low-income housing project."]
[]
["Design Standards:"]
[null,"A.","The project must meet the requirements in the Minnesota Housing Rental Housing Design/Construction Standards and be evidenced by a Design Standards Certification form executed by the owner and architect. Additional design requirements will be imposed if Large Family Housing points are claimed/awarded or points are claimed/awarded that require specific design elements (e.g. Universal Design). "]
[]
["A Declaration of Land Use Restrictive Covenants:"]
[null,"A.","A Declaration of Land Use Restrictive Covenants (LURA) covering the rent restrictions and occupancy requirements presented at selection must be recorded against the property."]
[]
["Affirmative Fair Housing:"]
[null,"A.","Affirmative Fair Housing Marketing Regulations, held as centrally important by Minnesota Housing, require that each applicant carry out an affirmative marketing program to attract prospective buyers or tenants of all majority and minority groups in the housing market area regardless of race, creed, color, religion, sex, national origin, marital status, status with regard to public assistance, disability, sexual orientation, or familial status. At the time of 8609, all applicants must submit an Affirmative Fair Housing Marketing Plan documenting an acceptable plan to carry out an affirmative marketing program."]
[]
["Strategic Priority Thresholds"]
[]
["Applicants using this Self-scoring Worksheet must demonstrate that the project meets at least one of the following priorities. "]
["Select at least one Strategic Priority Threshold to activate Selection Criteria."]
[]
["Select all that apply."]
[]
["A.","Access to Fixed Transit: "]
[]
[null,"1.",null,"Projects within one-half mile of a planned or existing LRT, BRT or commuter rail station."]
[]
["B.","Greater Minnesota Workforce Housing:"]
[]
[null,"1.",null,"Projects in Greater Minnesota documenting both of the following:"]
[null,null,null,"a.","Need: Projects in communities with low vacancy (typically considered 4 percent and below, documented by a market study or other "]
[null,null,null,null,"third party data) and:"]
[null,null,null,null,"i.","That have experienced net job growth of 100 or more jobs, or"]
[null,null,null,null,"ii.","With 15 percent or more of the workforce commuting 30 or more miles to work, or"]
[null,null,null,null,"iii.","With planned job expansion documented by a local employer"]
[null,null,null,"b.","Employer Support in the form of a letter of support from an employer with 20 or more full time employees.  "]
[]
["C.","Economic Integration: "]
[]
[null,"1.",null,"Projects located in higher income communities (in the Twin Cities 7-County Metropolitan Area and areas in or around Duluth, Rochester, "]
[null,null,null,"and St. Cloud) with  access to low and moderate wage jobs, meeting either First or Second Tier Economic Integration as defined in the Increasing Geographic Choice category."]
[null,null,null,"This strategic priority must be selected to activate the Economic Integration criterion."]
[]
["D.","Tribal: "]
[]
[null,"1.",null,"Projects sponsored by tribal governments, tribally designated housing entities or tribal corporate entities."]
[]
["E.","Community Development Initiative:"]
[]
[null,"1.",null,"Projects that contribute to active implementation of a Community Development Initiative, as defined in the Community Development "]
[null,null,null,"Initiative selection criterion to address locally identified needs and priorities in which local stakeholders are actively engaged."]
[null,null,null,"This strategic priority must be selected to activate the Community Development Initiative selection criterion."]
[]
["F.","Preservation: "]
[]
[null,"1.",null,"Projects that preserve existing federally assisted housing or other critical affordable housing projects must be eligible under the "]
[null,null,null,"Preservation selection criterion."]
[null,null,null," This strategic priority must be selected to activate the Preservation selection criterion."]
[]
["G.","Supportive Housing:"]
[]
[null,"1.",null,"Projects that will serve people with disabilities or High Priority Homeless (HPH) households must be eligible under the Permanent Supportive "]
[null,null,null,"Housing for High Priority Homeless selection criterion or the People with Disabilities selection criterion. "]
[null,null,null,"This strategic priority must be selected to activate the High Priority Homeless or People with Disabilities selection criteria."]
[]
["H","Tax-Exempt Bond Allocation:"]
[]
[null,"1.",null,"As required by Minn. Stat. § 462A.222, subd. (3)(d) residential rental housing projects financed with an allocation of tax-exempt bonds under "]
[null,null,null,"chapter 474A are the highest strategic priority, and such developments are therefore not required to meet a separate strategic priority."]
[]
["2021 HOUSING TAX CREDIT SELECTION CRITERIA",null,null,null,null,null,null,null,null,null,null,null,null,null,null,"Developer Claimed"]
["1. Greatest Need Tenant Targeting",null,null,null,null,null,null,null,null,null,null,null,null,null,{"$f":"IF(HTC4PercentScoresheet=TRUE,\"7 to 47 points\", \"5 to 39 points\")","v":"5 to 39 points"},{"$f":"GreatestNeedTenantTargetingTotalScore","v":0}]
[null,"A.","Large Family Housing ",null,null,null,null,null,null,null,null,null,null,null,{"$f":"IF(HTC4PercentScoresheet=TRUE,\"10 to 15 points\", \"5 to 7 points\")","v":"5 to 7 points"},{"$f":"LargeFamilyHousingTotalScore","v":0}]
[]
[null,null,"1.","Large Family Housing - The proposal is for a project that provides family housing that is not restricted to persons 55 years old or older. The owner agrees to market to families with minor children. Select all that apply:",null,null,null,null,null,null,null,null,null,null,null,null,"Number of Units with","Select cell to edit number of units."]
[null,null,null,null,null,null,null,null,null,null,null,null,null,null,null,null,"2 Bedrooms"]
[null,null,null,"a.",null,"At least 75% of the total assisted* units contain two or more bedrooms. ",null,null,null,null,null,null,null,null,{"$f":"IF(HTC4PercentScoresheet=TRUE,\"10 points\", \"5 points\")","v":"5 points"},null,"3 Bedrooms"]
[null,null,null,null,null,null,null,null,null,null,null,null,null,null,null,null,"4 Bedrooms"]
[null,null,null,"b.",null,"For Greater Minnesota proposals if eligible under 1. a. above, at least one-third of the 75% contain three or more bedrooms.",null,null,null,null,null,null,null,null,{"$f":"IF(HTC4PercentScoresheet=TRUE,\"5 points\", \"2 points\")","v":"2 points"}]
[]
[]
[null,"*","Assisted is defined as HTC units for HTC applications and affordable units for deferred funding."]
[]
[null,"B.","Permanent Supportive Housing for High Priority Homeless (HPH)*",null,null,null,null,null,null,null,null,null,null,null,"7 to 22 points",{"$f":"PermanentSupportiveHousingTotalScore","v":0}]
[null,null,"Select Supportive Housing under Strategic Priority Threshold to enable checkboxes for Permanent Supportive Housing for High Priority Homeless."]
[]
[null,null,"1.","A minimum of 5% of the total units, but no fewer than four units are set aside and rented to High Priority Homeless who are households ",null,null,null,null,null,null,null,null,null,null,null,null,"Number of Units Representing:"]
[null,null,null,"prioritized for permanent supportive housing by the Coordinated Entry System**  (HPH units) and targeted to the populations indicated ",null,null,null,null,null,null,null,null,null,null,null,null,null,"Select cell to edit number of units."]
[null,null,null,"below. Select one and complete the unit count below:",null,null,null,null,null,null,null,null,null,null,null,null,"Youth with Children"]
[null,null,null,null,null,null,null,null,null,null,null,null,null,null,null,null,"Youth Singles"]
[null,null,null,"a.",null,"50% to 100%, but no fewer than 20 units",null,null,null,null,null,null,null,null,"20 points",null,"Youth Total",{"$f":"SUM(DevSupportiveHousingYouthWithChildrenUnitsValue, DevSupportiveHousingYouthUnitsValue)","v":0}]
[null,null,null,null,null,null,null,null,null,null,null,null,null,null,null,null,"Single Adults"]
[null,null,null,"b.",null,"10% to 49.99%, but no fewer than 7 units",null,null,null,null,null,null,null,null,"10 points",null,"Families with Children"]
[null,null,null,null,null,null,null,null,null,null,null,null,null,null,null,null,"Total High Priority Homeless",{"$f":"SUM(DevSupportiveHousingYouthUnitsValue, DevSupportiveHousingYouthWithChildrenUnitsValue,DevSupportiveHousingSingleAdultUnitsValue,DevSupportiveHousingFamiliesUnitsValue)","v":0}]
[null,null,null,"c.",null,"5% to 9.99%, but no fewer than 4 units",null,null,null,null,null,null,null,null,"7 points"]
[null,null,null,null,null,null,null,null,null,null,null,null,null,null,null,null,null,"Select cell to edit number of units."]
[null,null,"2.","Continuum of Care - Proposals that are eligible for B. 1 above can claim this selection criterion if units will be available for populations",null,null,null,null,null,null,null,null,null,null,null,null,"Number of Units"]
[null,null,null,"consistent with local needs identified by the local Continuum of Care. Published Priorities are available on Minnesota Housing’s",null,null,null,null,null,null,null,null,null,null,null,null,"Priority Type",""]
[null,null,null,"website at:"]
[null,null,null,null,"http://www.mnhousing.gov"]
[]
[null,null,null,"a.",null,"5% of units or more, but no fewer than four units, targeted to Continuum of Care Household Type Priority One",null,null,null,null,null,null,null,null,"2 points"]
[null,null,null,null,null,null,null,null,null,null,""]
[null,null,"NOTE:\nPermanent Supportive Housing for High Priority Homeless (B.) and People with Disabilities (C.) selection criteria cannot be claimed for the same units. \n"]
[]
[null,null,"To be eligible for Permanent Supportive Housing for High Priority Homeless (HPH), the proposal must meet all of the following conditions:"]
[]
[null,null,"1.","The applicant must complete and submit the Supportive Housing application materials, including the narratives, forms and submittals identified in the Application Checklist in the Multifamily Customer Portal."]
[null,null,"2.","The applicant agrees to pursue and continue renewal of rental assistance, operating subsidy or service funding contracts for as long as the funding is available"]
[null,null,"3.","The applicant agrees that if units set aside for High Priority Homeless are occupied by households without rental assistance, the gross rents, including an allowance for tenant-paid utilities cannot exceed the greater of 30% of the household's monthly income or the most current Supportive Housing Standard for the unit size, as published annually by Minnesota Housing in the Multifamily Underwriting Standards in the Supportive Housing Standards - High Priority Homeless or People with Disabilities section.  The owner must establish and implement policies and procedures to specify the calculation method used to determine the appropriate rent amount and periodic income recertification to adjust rents. "]
[null,null,"4.","Supportive Housing Threshold Criteria:"]
[null,null,null,"a.","Supportive Services: On-site service coordination and tenant engagement must be made available to all supportive housing residents. The level and type of services offered must be appropriate for the needs of the target population, with a minimum of tenant service coordination averaging two hours per household per week as further defined in the supportive housing narrative. "]
[null,null,null,"b.","Experienced service provider, or partnering with an experienced service provider, with demonstrated outcomes:"]
[null,null,null,null,"i.","At a minimum, the service provider has experience providing services to a similar population to maintain housing over a period of time, and has sufficient capacity to deliver the services proposed."]
[null,null,null,"c.","Service funding commitments: At a minimum, a portion of service funding is secured with a viable plan for securing the remaining resources, as approved by Minnesota Housing. Evidence must be provided in the application narrative and commitment letters or other documentation."]
[null,null,null,null,"i.","Developments with 5% to 9.99% HPH units must have secured at least 75% of service funding"]
[null,null,null,null,"ii.","Developments with 10% to 49.99% HPH units must have secured at least 20% of service funding"]
[null,null,null,null,"iii.","Developments with 50% to 100% HPH units must have secured at least 5% of service funding"]
[null,null,null,"d.","Coordinated Entry and serving highest need households: The property owner must agree to accept high priority households for the HPH supportive housing units through Coordinated Entry."]
[]
[null,null,"A proposal that claims this category and is selected to receive HTCs will be required to comply with the reporting requirements for Permanent Supportive Housing for High Priority Homeless, as defined by Minnesota Housing. The LURA, including a specific Rider to the LURA and Minnesota Housing loan documents, will contain performance requirements related to these permanent supportive housing units for High Priority Homeless and will be recorded with the property."]
[null,null,"*","Specific performance requirement relief provisions are available for projects eligible for the Permanent Supportive Housing High Priority Homeless category selection criterion for “HPH Units”. Reference Chapter 6.A. of the HTC Program Procedural Manual for additional details. Specific performance requirements will be incorporated into the LURA and deferred loan documents recorded with the property."]
[null,null,"**","Coordinated Entry System is defined by the Statewide Coordinated Entry standards and protocol as adopted by the local Continuum of Care, or such successor system as determined by Minnesota Housing.  "]
[]
[null,"C.","People with Disabilities (PWD)",null,null,null,null,null,null,null,null,null,null,null,"7 to 10 points",{"$f":"PeopleWithDisabilitiesTotalScore","v":0}]
[null,null,"Select Supportive Housing under Strategic Priority Threshold to enable checkboxes for People with Disabilities."]
[null,null,null,null,null,null,null,null,null,null,null,null,null,null,null,null,null,"Select cell to edit number of units."]
[null,null,"1.","Select the number of units set aside for people with disabilities:",null,null,null,null,null,null,null,null,null,null,null,null,"Number of Units"]
[]
[null,null,null,"a.",null,"15% to 25% of units, but not fewer than six units",null,null,null,null,null,null,null,null,"10 points"]
[]
[null,null,null,"b.",null,"10% to 14.99% of units, but not fewer than five units",null,null,null,null,null,null,null,null,"9 points"]
[]
[null,null,null,"c.",null,"5% to 9.99%, but no fewer than four units ",null,null,null,null,null,null,null,null,"7 points"]
[]
[null,null,"Permanent housing proposals are not restricted to persons of a particular age group.  A percentage of the units are set aside and rented to persons with any of the following disabilities* : "]
[]
[null,null,"i.","A serious and persistent mental illness as defined in Minn. Stat. § 245.462, subdivision 20, paragraph (c)"]
[null,null,"ii.","A developmental disability as defined in United States Code, Title 42, Section 6001, paragraph (5), as amended"]
[null,null,"iii.","Assessed as drug dependent as defined in Minn. Stat. § 254A.02, subdivision 5, and are receiving or will receive care and treatment services provided by an approved treatment program as defined in Minn. Stat. § 254A.02, Subdivision 2"]
[null,null,"iv.","A brain injury as defined in Minn. Stat. § 256B.093, Subdivision 4, paragraph (a)"]
[null,null,"v.","Permanent physical disabilities that substantially limit major life activities, if at least 50% of the units in the project are accessible as provided under Minnesota Rules Chapter 1341"]
[]
[null,null,"NOTE:  Minnesota Housing considers accessible units to be Type A and/or Type B units as identified in the referenced Chapter 1341, also known as the Minnesota Accessibility Code."]
[]
[null,null,"NOTE:  This definition is not limited to persons with mobility impairment."]
[]
[null,null,"NOTE:  Permanent Supportive Housing for High Priority Homeless (B.) and People with Disabilities (C.) selection criteria may not be claimed for the same units. \n\nTo be eligible under People with Disabilities, the proposal must also meet all of the following conditions:"]
[null,null,"1.","The applicant must submit the People with Disabilities narratives and any other forms and submittals identified in the Application Checklist in the Multifamily Customer Portal."]
[null,null,"2.","The applicant must submit a signed Service Agreement.  Applicant can either complete the signature page (must be completed by both parties) attached to the People with Disabilities Narrative, or submit a separate signed service agreement."]
[null,null,"3.","The applicant agrees to pursue and continue renewal of rental assistance, operating subsidy or service funding contracts for as long as the funding is available."]
[null,null,"4.","The application must meet the following threshold criteria as evidenced in the People with Disabilities Narrative and Service Agreement:"]
[null,null,null,"a.","Target population: The target population(s) of people with disabilities must be clearly defined in the narrative (e.g., mental illness, developmental disability, physical disability)."]
[null,null,null,"b.","Units are restricted to households with incomes at or below 30% MTSP income limits."]
[null,null,null,"c.","The applicant agrees that if units set aside for People with Disabilities are occupied by households without rental assistance, the gross rents, including an allowance for tenant-paid utilities, cannot exceed the greater of 30% of the household's monthly income or the most current Supportive Housing Standard for the unit size, as published annually by Minnesota Housing in the Multifamily Underwriting Standards in the Supportive Housing Standards - High Priority Homeless or People with Disabilities section.  The owner must establish and implement policies and procedures to specify the calculation method used to determine the appropriate rent amount and periodic income recertification to adjust rents."]
[null,null,null,"d.","Service Agreement: The property owner must have an agreement with the county or tribal human services office specifying:"]
[null,null,null,null,"i.","How they will provide outreach to the target population"]
[null,null,null,null,"ii.","How eligible applicants will be referred to the property management agent"]
[null,null,null,null,"iii.","That verification of applicant disability will be provided to the owner"]
[null,null,null,null,"iv.","The types of services appropriate to the population that will be made available with the goal of housing stability"]
[null,null,null,null,"v.","Service funding sources"]
[null,null,null,null,"vi.","How services will be provided to tenants"]
[null,null,null,null,"vii.","How the service entity will communicate and coordinate with property management"]
[null,null,null,null,"viii.","Plans for crisis intervention, eviction prevention and lease mitigation"]
[null,null,null,"e.","Units for individuals with disabilities must be provided in an integrated setting."]
[]
[null,"*","Specific performance requirement relief provisions are available for projects that meet the People with Disabilities Selection Criterion for “PWD Units.” Reference Section 6.A. of the HTC Program Procedural Manual for additional details. Specific performance requirements will be incorporated into the LURA and deferred loan documents recorded with the property."]
[]
["2. Serves Lowest Income for Long Durations ",null,null,null,null,null,null,null,null,null,null,null,null,null,"3 to 35 points",{"$f":"ServesLowestIncomeTotalScore","v":0},{"$f":"IF(DEFOnlyScoresheet= TRUE, \"\", IF(ServesLowestIncomeTotalScore>35, \"Selections for Serves Lowest Income Tenants/Rent Reduction and Rental Assistance indicate that the units have been double-counted. Please update your selections.\", \"\"))","v":""}]
[null,"A.","Serves Lowest Income Tenants/Rent Reduction",null,null,null,null,null,null,null,null,null,null,null,"8 to 13 points",{"$f":"ServesLowestIncomeTenantsTotalScore","v":0}]
[]
[null,null,"1.","Eligibility is based on gross rent level, including utilities before rental assistance. Eligible units must have rents affordable to \n"]
[null,null,null,"households whose incomes do not exceed 50% of MTSP income limits as published by HUD without rental assistance for the",null,null,null,null,null,null,null,null,null,null,null,null,null,"Select cell to edit number of units."]
[null,null,null,"duration of the LURA. MTSP rent limits are available on Minnesota Housing's website.",null,null,null,null,null,null,null,null,null,null,null,null,"Number of Units"]
[]
[null,null,null,"The applicant agrees to maintain the deeper rent structure for which selection points are requested."]
[]
[null,null,null,"This selection will restrict rents only (tenant incomes will not be restricted to the 50% income level by claiming this section)."]
[]
[null,null,null,"a.",null,"100% of the restricted unit rents affordable to households with incomes at the county 50% HUD MTSP income limit",null,null,null,null,null,null,null,null,"13 points"]
[]
[null,null,null,"b.",null,"At least 50% of the restricted unit rents affordable to households with incomes at the county 50% HUD MTSP income limit",null,null,null,null,null,null,null,null,"8 points"]
[]
[null,null,"NOTE: Serves Lowest Income selection criteria cannot be claimed for units that qualify for or are claiming the Rental Assistance criterion."]
[]
[null,null,"Minnesota Housing will incorporate these restrictions into the LURA and Minnesota Housing loan documents. The applicant must demonstrate, to the sole satisfaction of Minnesota Housing, that the property can achieve these reduced rents and remain financially feasible [IRC § 42(m)(2)]. Contingent upon financial plans demonstrating feasibility, positive cash flow on a 15-year pro forma and gaining Minnesota Housing management approval (for management, operational expenses, and cash flow assumptions)."]
[]
[null,"B.","Rental Assistance",null,null,null,null,null,null,null,null,null,null,null,"6 to 26 points",{"$f":"RentalAssitanceTotalScore","v":0}]
[]
[null,null,"1.","Priority is given to an owner who submits with the application a fully executed binding commitment (i.e., binding Resolution/binding Letter of Approval from the governing body) for project-based rental assistance awarded in accordance with 24 CFR Ch. IX, Section 983.51 or which is effectively project-based by written contract. For the purposes of this category, project-based rental assistance is defined as a project-specific funding stream that supports the operations of the property, reduces the tenant rent burden, and provides for the tenant paid portion of rent to be no greater than 30% of household income."]
[]
[null,null,null,"Minnesota Housing, at its sole discretion, will consider rental assistance programs with alternative rent structures as proposed by the applicant, where households may pay more than 30% of their household income when the program goals align with the needs of low-income populations such as with the Moving to Work and site-based Housing Support programs. For all other types of rental assistance programs with an alternative rent structure, the applicant must submit commitment documentation that includes details regarding the rent structure, tenant paid portion of household income, program structure, goals, and population served."]
[]
[null,null,null,"\u009f","New or transferred federal rental assistance contracts that were executed within the past 15 years are eligible. This includes transfers of existing Section 8 contracts under the 8bb notice to new construction projects or existing developments that currently have no Existing Federal Assistance."]
[null,null,null,"\u009f","Site-based Housing Support* and awards of project-based McKinney Vento Continuum of Care funding, will be considered project-based rental assistance."]
[null,null,null,"\u009f","Privately funded rental assistance must demonstrate a commitment of a minimum of four years. Documentation must also contain language regarding the possibility of future renewals. Be aware that rental assistance from non-governmental organizations will not be treated the same as governmental rental assistance when determining tenant income eligibility for compliance purposes. See the HTC and Deferred Scoring Guide for more information. "]
[null,null,null,"\u009f","A current request for Minnesota Housing Rental Assistance is not eligible to claim this category. A past award of existing Rental Assistance will be counted toward meeting the required percentages."]
[]
[null,null,null,"For developments that agree to set aside units and have the required binding commitment for the associated percentage of units with project-based rental assistance units as follows. Selection one option from a-f. In addition, by selecting an option, the development agrees to continue renewals of existing project-based housing subsidy payment contract(s) for a minimum of 10 years from the later of the last placed in service date for any building in the property or loan closing. Applicant agrees that rent will remain affordable at 50% MTSP income limits for a 10 year period if the ",null,null,null,null,null,null,null,null,null,null,null,null,null,"Select cell to edit number of units."]
[null,null,null,"rental assistance is not available for a full period**.",null,null,null,null,null,null,null,null,null,null,null,null,"Number of units"]
[]
[null,null,null,"a.",null,"100% of the total units for project-based rental assistance",null,null,null,null,null,null,null,null,"19 points"]
[]
[null,null,null,"b.",null,"Between 51.1% to 99.9% of the total units ",null,null,null,null,null,null,null,null,"16 points"]
[]
[null,null,null,"c.",null,"20.1% to 51% of the total units",null,null,null,null,null,null,null,null,"13 points"]
[]
[null,null,null,"d.",null,"10.1% to 20% of the total units, with a minimum of  four units",null,null,null,null,null,null,null,null,"10 points"]
[]
[null,null,null,"e.",null,"5% to 10% of the total units, with a minimum of four units",null,null,null,null,null,null,null,null,"7 points"]
[]
[null,null,null,"f.",null,"Less than 5% of units, with a minimum of four units",null,null,null,null,null,null,null,null,"6 points"]
[]
[null,null,"2.","Projects that are eligible under B. 1. a. - f. above and have rental assistance (as described above), that agree to further restrict units "]
[null,null,null,"to households whose incomes do not exceed 30% of MTSP income limit for a 10 year period***. Rental Assistance Commitment "]
[null,null,null,"documentation must indicate that deeper income restrictions on project based units are allowable****. Select one:"]
[null,null,null,null,null,null,null,null,null,null,null,null,null,null,null,null,null,"Select cell to edit number of units."]
[null,null,null,null,null,null,null,null,null,null,null,null,null,null,null,null,"Number of units"]
[null,null,null,"a.",null,"75.1% to 100% of the total units",null,null,null,null,null,null,null,null,"7 points"]
[]
[null,null,null,"b.",null,"50.1% to 75% of the total units",null,null,null,null,null,null,null,null,"6 points"]
[]
[null,null,null,"c.",null,"25.1% to 50% of the total units",null,null,null,null,null,null,null,null,"5 points"]
[]
[null,null,null,"d.",null,"15.1% to 25% of the total units",null,null,null,null,null,null,null,null,"4 points"]
[]
[null,null,null,"e.",null,"5% to 15% of the total units but no fewer than four units",null,null,null,null,null,null,null,null,"3 points"]
[]
[null,"NOTE: Serves Lowest Income selection criterion cannot be claimed for units that qualify for or are claiming the Rental Assistance criterion.\n\nNOTE: Rental Assistance selection criterion cannot be claimed if the development qualifies for or is claiming Existing Federal Assistance under the Preservation criterion. Rental assistance under the Rental Assistance Demonstration Program (components I or II) or the Public Housing Program are also not eligible. "]
[]
[null,"To claim the criterion, the applicant must comply with all program requirements for the assistance at application, including maintaining rents within the appropriate payment standard for the project area in which the project is located for the full compliance and extended use period of the HTCs.\n\nRent for assisted units must be at or below Fair Market Rents (or appropriate payment standard for the project area).  Eligibility and agreeing to a minimum number of assisted units does not release owners from their obligations under the Minnesota Human Rights Act and Section 42 prohibiting refusal to lease to the holder of a voucher of eligibility under Section 8 of the United States Housing Act of 1937 because of the status of the prospective tenant as such a holder.\n"]
[]
[null,"*","Formerly known as Group Residential Housing."]
[null,"**","Specific performance requirement relief provisions are available for projects claiming the Rental Assistance Selection Criterion for \"RA Units.\" Reference Chapter 6.A. of the HTC Program Procedural Manual for additional details. Specific performance requirements will be incorporated into the LURA and deferred loan documents recorded with the property."]
[null,"***","Specific performance requirement relief provisions are available for projects claiming the Rental Assistance Selection Criterion for Further Restricted Rental Assisted units (“FRRA Units”). Reference Chapter 6.A. of the HTC Program Procedural Manual for additional details. Specific performance requirements will be incorporated into the LURA and deferred loan documents recorded with the property."]
[null,"****","Site-based Housing Support is excluded from this requirement."]
[]
[null,"C.","Long Term Affordability",null,null,null,null,null,null,null,null,null,null,null,"3 to 9 points",{"$f":"LongTermAffordabilityTotalScore","v":0}]
[]
[null,null,"1.","The owner agrees that the Qualified Contract provisions of IRC §§ 42(h)(6)(E)(i)(II) and 42(h)(6)(F) (which provision would permit the owner to terminate the restrictions under this agreement at the end of the compliance period in the event Minnesota Housing does not present the owner with a qualified contract for the acquisition of the project) do not apply to the project and, where applicable, agrees to extend the long-term affordability of the project by extending the term of the LURA beyond 30 years (beginning on the first day of the compliance period in which the building is a part of a qualified low income housing project). Select one:"]
[null,null,"1.","The owner agrees that the Qualified Contract provisions of IRC §§ 42(h)(6)(E)(i)(II) and 42(h)(6)(F) (which provision would permit the owner to terminate the restrictions under this agreement at the end of the compliance period in the event Minnesota Housing does not present the owner with a qualified contract for the acquisition of the project) do not apply to the project, except as set out below and, where applicable, agrees to extend the long-term affordability of the project by extending the term of the LURA beyond 30 years (beginning on the first day of the compliance period in which the building is a part of a qualified low income housing project). Select one:"]
[]
[null,null,null,"a.",null,"Extend the term of the LURA and waive the right to Qualified Contract for a minimum of 40 years.",null,null,null,null,null,null,null,null,"9 points"]
[]
[null,null,null,"b.",null,"Extend the term of the LURA and waive the right to Qualified Contract for a minimum of 35 years.",null,null,null,null,null,null,null,null,"8 points"]
[]
[null,null,null,"c.",null,"Waive the right to Qualified Contract for a minimum of 30 years.",null,null,null,null,null,null,null,null,"7 points"]
[]
[null,null,null,"d.",null,"Waive the right to Qualified Contract for a minimum of 25 years.",null,null,null,null,null,null,null,null,"3 points"]
[]
["3. Increasing Geographic Choice ",null,null,null,null,null,null,null,null,null,null,null,null,null,"1 to 28 points",{"$f":"AreasOfOpportunityTotalScore","v":0}]
[null,"A.","Economic Integration",null,null,null,null,null,null,null,null,null,null,null,"2 to 9 points",{"$f":"EconomicIntegrationTotalScore","v":0}]
[]
[null,null,"1.","Projects that meet the requirements under economic integration include (select one): "]
[null,null,null,null,null,null,null,null,null,null,null,null,null,null,null,null,null,"Select cell to edit number of units."]
[null,null,null,"a.",null,"Provides the project economic integration by providing at least 25% but not greater than 80% of the total units in the project as",null,null,null,null,null,null,null,null,"2 points",null,"Number of units"]
[null,null,null,null,null,"qualified assisted low-income units (does not include full-time manager or other common space units)"]
[]
[null,null,null,"b.","Promotes economic integration for projects that are located in higher income communities that are in the Twin Cities 7-County Metropolitan "]
[null,null,null,null,"Area and areas in or around Duluth, Rochester, and St. Cloud. First and second tier economic integration areas are outside of racially and "]
[null,null,null,null,"ethnically concentrated areas of poverty. "]
[null,null,null,null,"Select Economic Integration under Strategic Priority Threshold to enable the checkboxes for First and Second Tier."]
[null,null,null,null,"First and Second Tier are disabled when Rural/Tribal under the section Supporting Community and Economic Development has been selected."]
[]
[null,null,null,null,"i.",null,"First Tier - The proposed housing is located in a first tier census tract ",null,null,null,null,null,null,null,"9 points"]
[]
[null,null,null,null,"ii.",null,"Second Tier - The proposed housing is located in a second tier census tract",null,null,null,null,null,null,null,"7 points"]
[]
[null,null,"The following resources on Minnesota Housing’s website may be used to determine if the proposed housing is located in areas that meet the requirements under Economic Integration: "]
[null,null,null,"Economic integration area maps and census tract listing"]
[null,null,null,"Rural/Tribal Designated areas maps and census tract listing"]
[null,null,null,"Economic integration and Rural/Tribal Designation Area map overlays in the community profiles interactive mapping tool"]
[]
[null,"B.","Access to Higher Performing Schools ",null,null,null,null,null,null,null,null,null,null,null,"4 points",{"$f":"AccessToSchoolsTotalScore","v":0}]
[null,null,null,null,null,null,null,null,null,null,null,null,null,null,null,null,"Number of units to be marketed"]
[null,null,"1.","Projects serving families in locations that will provide access to higher performing schools must have at least 25% of total assisted units, ",null,null,null,null,null,null,null,null,null,null,null,null,"to families with minor children","Select cell to edit number of units."]
[null,null,null,"with a minimum of 15 units, contain two or more bedrooms, and the owner agrees to market the units to families with minor children. ",null,null,null,null,null,null,null,null,null,null,null,null,"2 Bedrooms"]
[null,null,null,"Eligible areas are in the Twin Cities 7-County Metropolitan Area and areas in and around Duluth, Rochester, and St. Cloud.",null,null,null,null,null,null,null,null,null,null,null,null,"3 Bedrooms"]
[null,null,null,null,null,null,null,null,null,null,null,null,null,null,null,null,"4 Bedrooms"]
[null,null,null,"a.",null,"The proposed housing will serve families and is located in an area considered to have Access to Higher Performing Schools",null,null,null,null,null,null,null,null,"4 points"]
[]
[null,null,"Link to Access to Higher Performing Schools area maps"]
[null,null,"Link to Access to Higher Performing Schools Area map overlays in the community profiles interactive mapping tool"]
[]
[null,"C.","Workforce Housing Communities",null,null,null,null,null,null,null,null,null,null,null,"3 to 6 points",{"$f":"WorkforceHousingCommunitiesTotalScore","v":0}]
[]
[null,null,"1.","Projects located in or near a city or township needing workforce housing (communities having a large number of jobs or job growth, individual employer growth, or having a large share of their workforce commuting long distances, as outlined in the Workforce Housing Communities Methodology). Select one: "]
[]
[null,null,null,"a.",null,"The proposed housing is in a Top Job Center or Net Five Year Job Growth Community ",null,null,null,null,null,null,null,null,"6 points"]
[]
[null,null,null,"b.",null,"The proposed housing is in an Individual Employer Growth community where an individual employer has added at least 100 net jobs",null,null,null,null,null,null,null,null,"6 points"]
[null,null,null,null,null," (for permanent employees of the company) during the previous five years, as evidenced by documentation signed by an authorized representative of the company, subject to validation by Minnesota Housing "]
[]
[null,null,null,"c.",null,"The proposed housing is in a Long Commute Community",null,null,null,null,null,null,null,null,"3 points"]
[]
[null,null,"In the Twin Cities 7-County Metropolitan Area, project locations must be within five miles of a workforce housing city or township. In Greater Minnesota, project locations must be within ten miles of a workforce housing city or township. \n"]
[]
[null,null,"Link to Top Job Centers, Net Five Year Job Growth communities, and Long Commute communities lists and maps"]
[null,null,"Link to Proximity to workforce housing in the community profiles interactive mapping tool"]
[]
[null,"D.","Location Efficiency",null,null,null,null,null,null,null,null,null,null,null,"1 to 9 points",{"$f":"LocationEfficiencyTotalScore","v":0}]
[]
[null,null,"1.","For projects in the Twin Cities 7-County Metropolitan Area, indicate whether the project will promote location efficiency based on access to transit and walkability. "]
[]
[null,null,null,"a.","Access to Transit: To claim access to transit in the Twin Cities 7-County Metropolitan Area, a project must be (select one):"]
[]
[null,null,null,null,"i.",null,"Located within one half mile of a planned* or existing LRT, BRT, or commuter rail station ",null,null,null,null,null,null,null,"7 points"]
[]
[null,null,null,null,"ii.",null,"Located within one quarter mile of a fixed route stop on Metro Transit’s Hi-Frequency Network",null,null,null,null,null,null,null,"4 points"]
[]
[null,null,null,null,"iii.",null,"Located within one quarter mile of a high service** public transportation fixed route stop ",null,null,null,null,null,null,null,"2 points"]
[]
[null,null,null,null,"iv.",null,"Located within one half mile of an express bus route stop",null,null,null,null,null,null,null,"2 points"]
[]
[null,null,null,null,"v.",null,"Located within one half mile of a park and ride facility ",null,null,null,null,null,null,null,"2 points"]
[]
[null,null,null,"b.","Walkability: To claim walkability in the Twin Cities 7-County Metropolitan Area, a project must be (select one):"]
[]
[null,null,null,null,"i.",null,"Located in an area with a Walk Score of 70 or more according to  ",null,null,null,null,null,null,null,"2 points"]
[null,null,null,null,null,null,"www.walkscore.com"]
[]
[null,null,null,null,"ii.",null,"Located in an area with a Walk Score between 50 and 69 according to ",null,null,null,null,null,null,null,"1 point"]
[null,null,null,null,null,null,"www.walkscore.com"]
[]
[null,null,"2.","For projects in Greater Minnesota, choose from urbanized areas and rural and small urban areas. Urbanized areas, according to the U.S. Census are places with populations greater than 50,000, and are defined by the Minnesota Department of Transportation (MnDOT)*** as areas in and around Duluth, East Grand Forks, La Crescent, Rochester, Moorhead, Mankato and St. Cloud. Rural and small urban areas are places with populations fewer than 50,000."]
[]
[null,null,null,"a.","Urbanized Areas (population greater than 50,000):"]
[]
[null,null,null,null,"i.","Access to Transit: To claim access to transit, a project in Greater Minnesota must be (select one, see the Location Efficiency Methodology to determine points):"]
[]
[null,null,null,null,null,"1.",null,"Located within one quarter mile of a planned**** or existing public transportation fixed route stop",null,null,null,null,null,null,"7 points"]
[]
[null,null,null,null,null,"2.",null,"Located between one quarter mile and one half mile of a planned or existing public transportation fixed route stop ",null,null,null,null,null,null,"4 points"]
[]
[null,null,null,null,null,"3.",null,"Located less than one half mile of an express bus route stop or park and ride lot ",null,null,null,null,null,null,"4 points"]
[]
[null,null,null,null,"ii.","Walkability: To claim walkability, a project in Greater Minnesota must be (select one):"]
[]
[null,null,null,null,null,"1.",null,"Located in an area with a Walk Score of 70 or more according to",null,null,null,null,null,null,"2 points"]
[null,null,null,null,null,null,null,"www.walkscore.com"]
[]
[null,null,null,null,null,"2.",null,"Located in an area with a Walk Score between 50 and 69 according to ",null,null,null,null,null,null,"1 point"]
[null,null,null,null,null,null,null,"www.walkscore.com"]
[]
[null,null,null,"b.","Rural and Small Urban Areas (population fewer than 50,000).  For rural and small urban areas, applicants may claim Location Efficiency by having access to route deviation service or demand response/dial-a-ride, and walkability.  Route deviation service is different from fixed route transit in that the vehicle may leave its predetermined route upon request by passengers to be picked up or returned to destinations near the route, after which the vehicle returns to the predetermined route.  Passengers may call in advance for route deviations similar to that of demand response/dial-a-ride or access the service at designated route stops without advanced notice.  Demand response usually involves curb-to-curb or door-to-door service with trips scheduled in advance (also known as “Dial-A-Ride”)."]
[]
[null,null,null,null,"Go to MnDOT's website to locate a project's transit service provider:"]
[null,null,null,null,"http://www.dot.state.mn.us/transit/riders/index.html"]
[]
[null,null,null,null,"i.","Access to Transit: To claim access to transit, a project in Greater Minnesota must be (select one):"]
[]
[null,null,null,null,null,"1.",null,"Located within one half mile of an existing or planned***** designated stop that has service every 60 minutes OR within ",null,null,null,null,null,null,"7 points"]
[null,null,null,null,null,null,null,"one half mile of a commuter rail station OR served by demand response/dial-a-ride with same day service available."]
[]
[null,null,null,null,null,"2.",null,"Served by demand response/dial-a-ride with prior day notice.",null,null,null,null,null,null,"4 points"]
[]
[]
[null,null,null,null,null,"3.",null,"The proposed housing has access to demand response/dial-a-ride service not meeting the scheduling ",null,null,null,null,null,null,"2 points"]
[null,null,null,null,null,null,null,"terms above"]
[]
[null,null,null,null,"ii.","Walkability: To claim walkability, a project in Greater Minnesota must be (select one):"]
[]
[null,null,null,null,null,"1.",null,"Located in an area with a Walk Score of 50 or more according to ",null,null,null,null,null,null,"2 points"]
[null,null,null,null,null,null,null,"www.walkscore.com"]
[]
[null,null,null,null,null,"2.",null,"Located in an area with a Walk Score between 35 – 49 according to ",null,null,null,null,null,null,"1 point"]
[null,null,null,null,null,null,null,"www.walkscore.com"]
[]
[null,null,"Link to Access to transportation maps and census tract listings are found on Minnesota Housing's website"]
[null,null,"Link to Community profiles interactive mapping tool"]
[]
[null,"*","Includes planned stations on future transitways that are in advance design or under construction that meet the following criteria:  completion of an Environment Impact Statement, station area planning underway, and adoption by the Metropolitan Council Transportation Policy Plan.  Transitways entering into advance design after publication will be eligible, but data may not be available using Minnesota Housing scoring tools."]
[null,"**","High service fixed route stop is defined as those serviced from 6 am to 7 pm and with service approximately every half hour during that time.  "]
[null,"***","Greater Minnesota Transit Investment Plan:",null,null,null,null,null,null,null,"http://minnesotago.org/index.php?cID=435"]
[null,"****","For a Greater Minnesota planned stop to be claimed, applicants must provide detailed location and service information including time and frequency of service, along with evidence of service availability from the transit authority providing service.  The planned stop of route must be available M-F and provide service every 60 minutes for a minimum of 10 hours per day."]
[null,"*****","For a Greater Minnesota existing or planned stop to be eligible for points under the QAP, applicants must provide detailed location and service information including time and frequency of service, along with evidence of service availability from the transit authority providing service. The existing or planned stop must be available Monday through Friday and provide service every 60 minutes for a minimum of 10 hours per day, with the exception of the commuter rail transit stations serviced by Metro Transit."]
[]
["4. Supporting Community and Economic Development ",null,null,null,null,null,null,null,null,null,null,null,null,null,"1 to 21 points",{"$f":"SupportingCommunityTotalScore","v":0}]
[null,"A.","Community Development Initiative",null,null,null,null,null,null,null,null,null,null,null,"3 points",{"$f":"PlannedCommunityDevelopmentTotalScore","v":0}]
[null,null,"Select Community Development Initiative under Strategic Priorities to enable checkboxes for Community Development Initiative."]
[]
[null,null,"1.",null,"Project contributes to active implementation of a Community Development Initiative to address locally identified"]
[null,null,null,null,"needs and priorities, with active engagement by local stakeholders.  The initiative can be created by, and involve engagement from, a wide variety of public and private local community development partners such as cities, counties, employers, private foundations, public housing authorities, or other community stakeholders.  The plan must contain more components than the project itself.  Documentation must be provided that addresses four requirements for the Community Development Initiative: "]
[null,null,null,null,"Refer to the information below.  If you prefer to see this in a table format click here."]
[]
[null,null,null,null,"a.","Targeted Geographic Area and Map"]
[null,null,null,null,null,"i.","The Targeted Geographic Area boundaries must be larger than the proposed rental project site, yet within a measurable impact area.  For larger geographic areas, the Targeted Area must be small enough that one municipality or county (or a small conglomerate of municipalities or counties) can exercise jurisdiction over it."]
[null,null,null,null,"b.","Current implementation plan with goals or outcomes specific to the need identified by the initiative"]
[null,null,null,null,null,"i.","Include milestones or steps of the plan that have been:"]
[null,null,null,null,null,null,"a.","Completed"]
[null,null,null,null,null,null,"b.","Underway"]
[null,null,null,null,null,null,"c.","Planned"]
[null,null,null,null,"c.","Affordable housing is identified as a key strategy of the initiative"]
[null,null,null,null,"d.","Stakeholder List and Role"]
[null,null,null,null,null,"i.","Provide a list of stakeholders involved and a description of their role in the active implementation of the initiative"]
[]
[null,null,null,null,"If a project is located in a Qualified Census Tract (QCT), in order to be eligible for these points, the application must provide additional evidence that demonstrates a strategy for obtaining commitments of public and/or private investment in non-housing efforts to demonstrate that the project contributes to a concerted community revitalization plan. Demonstrated strategy for obtaining commitments of public or private investment (or both) in non-housing infrastructure, amenities, or services that could include but are not limited to:"]
[null,null,null,null,"\u009f","Commercial/retail development"]
[null,null,null,null,"\u009f","Economic development"]
[null,null,null,null,"\u009f","Education-related initiatives/development"]
[null,null,null,null,"\u009f","Environmental clean-up"]
[null,null,null,null,"\u009f","Public works/infrastructure"]
[null,null,null,null,"\u009f","Parks, green space and recreation"]
[null,null,null,null,"\u009f","Transit-oriented development or transit initiatives"]
[]
[null,null,null,"Applicants must complete the Community Initiative Narrative and submit documentation demonstrating how the initiative meets the requirements outlined above.  Documents can include plans, charters or other evidence demonstrating active implementation of the Community Development Initiative.  A full copy of all referenced plans or initiatives must be submitted. Note that comprehensive and land use plans are not by themselves considered evidence of a Community Development Initiative."]
[]
[null,"B.","Eventual Tenant Ownership",null,null,null,null,null,null,null,null,null,null,null,"1 point",{"$f":"EventualTenantOwnershipTotalScore","v":0}]
[]
[null,null,"1.",null,"Projects with detached single-family units are eligible for homeowner conversion. The project owner must submit a "]
[null,null,null,null,"preliminary conversion plan with their application that is consistent with the requirements of the Eventual Tenant Ownership (ETO) Guide. The plan must address the transfer of 100% of the HTC unit ownership after the end of the 15-year compliance period from the initial ownership entity (or Minnesota Housing approved \"Transfer of Ownership\" entity) of the project to tenant ownership."]
[]
[null,null,"The unit purchase price at time of sale must be affordable to buyers with incomes meeting HTC eligibility requirements. To be eligible, the buyer must have an HTC qualifying income at the time of initial occupancy (HTC rental tenant). The final conversion plan, to be submitted by the 15th year of initial compliance, must incorporate an ownership exit strategy, a third party Property Capital Needs Assessment report and budget for capital improvements, and services including homeownership education and training. A final conversion plan complying with all of the requirements of the ETO Guide must be submitted to, and approved by, Minnesota Housing prior to commencing the conversion.\n\nThe LURA will contain provisions ensuring compliance with these Eventual Tenant Ownership commitments by the owner, including a right of first refusal allowing tenants to purchase their units. (Refer to the Eventual Tenant Ownership (ETO) Guide and also to Chapter 3W of the HTC Program Procedural Manual for additional information.)\n\nNOTE: Until the time the HTC units are purchased by qualified tenants or in the event that not all HTC units are acquired by qualified tenants, the owner will extend the duration of low-income use for the full extended use period."]
[]
[null,"C.","Rural/Tribal",null,null,null,null,null,null,null,null,null,null,null,"10 points",{"$f":"RuralTribalDesignatedAreaTotalScore","v":0}]
[]
[null,null,"Projects located in Rural/Tribal Designated Areas outside of the Twin Cities 7-County Metropolitan Area and areas in and around Duluth, Rochester \nand St. Cloud."]
[null,null,"Criterion has already been claimed/awarded under Economic Integration First Tier or Second Tier and cannot be claimed here."]
[]
[null,null,"1.",null,"The proposed housing is located in a census tract eligible as a Rural/Tribal Designate Area outside of the Twin Cities"]
[null,null,null,null,"7-County Metropolitan Area and areas in and around Duluth, Rochester and St. Cloud."]
[]
[null,null,"Link to Rural/Tribal Designated Area maps and census tract listing"]
[null,null,"Link to Rural/Tribal Designation Area map overlays in the community profiles interactive mapping tool"]
[]
[null,"D.","QCT/Community Revitalization and Tribal Equivalent Areas",null,null,null,null,null,null,null,null,null,null,null,"3 points",{"$f":"QCTOrTribalEquivalentTotalScore","v":0}]
[]
[null,null,"1.",null,"The proposed housing is located in a QCT Community Revitalization Area or a Tribal Equivalent Area"]
[]
[null,null,"To be eligible for the QCT/Community Revitalization criterion, the project must be located in a Qualified Census Tract (See Qualified Census Tract – Reference Materials Index) and be part of a concerted plan that provides for community revitalization consistent with the definition described in the Community Development Initiative selection criterion. \n\n\n"]
[]
[null,null,"To be eligible for the Tribal Equivalent Areas criterion, the project must be located in one of the Tribal Equivalent Areas. Click here."]
[null,null,"Link to find these areas in the community profiles interactive mapping tool"]
[]
[null,"E.","Minority-owned/Women-owned Business Enterprise (MBE/WBE) ",null,null,null,null,null,null,null,null,null,null,null,"4 points",{"$f":"MBEWBETotalScore","v":0}]
[]
[null,null,"1.",null,"The project sponsor, executive director of a non-profit, general contractor, architect, or management agent is a "]
[null,null,null,null,"MBE/WBE*, as certified by the owner. "]
[]
[null,null,"*A MBE/WBE is a tribe or tribally-designated housing entity, tribal corporate entity, or another entity which is at least 51% owned by one or more minority persons or women, and whose management and daily business operations are controlled by one or more minority persons or women who own it."]
[]
["5. Preservation",null,null,null,null,null,null,null,null,null,null,null,null,null,"5 to 30 points",{"$f":"PreservationTotalScore","v":0}]
[null,"Select Preservation under Strategic Priorities to enable checkboxes."]
[]
[null,null,"Thresholds: Applicants seeking Preservation points must read the descriptions and then select one of the following \nthree Thresholds:"]
[]
[null,null,"Projects must select one of the three Risk of Loss thresholds below to activate options in Preservation Selection Priority."]
[]
[null,null,"1.",null,"Risk of Loss Due to Market Conversion"]
[]
[null,null,null,null,"a.","Expiration of contract/use-restrictions"]
[null,null,null,null,null,"i.","Existing property at risk of conversion to market rate housing within five years of application date, and conversion is not prohibited by existing financing or use restrictions; OR"]
[null,null,null,null,null,"ii.","Existing HTC developments eligible to exercise their option to file for a Qualified Contract, and have not previously exercised their option; AND"]
[null,null,null,null,"b.","Market for conversion evidenced by low physical vacancy rate (4% or lower) for market rate comparable units (comparable units to be validated by Minnesota Housing at Minnesota Housing’s discretion); AND"]
[null,null,null,null,"c.","Market for conversion evidenced by one or more of the following:"]
[null,null,null,null,null,"i.","An appraisal commissioned by Minnesota Housing within a year of the application date where the as-is unrestricted value is equal to or greater than the as-is restricted value; OR"]
[null,null,null,null,null,"ii.","For properties with Section 8 contracts, a Rent Comparability Study acceptable to Minnesota Housing staff and reviewers which was completed within a year of the application date that shows current rents are below comparable market rents; OR"]
[null,null,null,null,null,"iii.","A market study approved by Minnesota Housing completed within a year of the application date that shows current rents are below comparable market rents and that the property has comparable location, amenities and condition to convert to market rate; AND"]
[null,null,null,null,"d.","Fifteen (15) or more years have passed since the award of the existing federal assistance and the HTC placed in service date (if applicable) for projects claiming Existing Federal Assistance, or 15 years must have passed since the closing of the loan that created rent and income restrictions or the most recent HTC placed in service date for projects claiming Critical Affordable Units."]
[]
[null,null,null,null,"NOTE: Minnesota Housing, at its sole discretion, must agree that a market exists for a conversion to market rate housing. "]
[]
[null,null,"2.",null,"Risk of Loss Due to Critical Physical Needs"]
[]
[null,null,null,null,"a.","Fifteen (15) or more years have passed since the award of the Existing Federal Assistance and the HTC placed in service date (if applicable) for projects claiming Existing Federal Assistance, or 15 years must have passed since the closing of the loan that created rent and income restrictions or the most recent HTC placed in service date for projects claiming Critical Affordable Units; AND"]
[null,null,null,null,"b.","Critical physical needs identified by third party assessment to support the following conclusions:"]
[null,null,null,null,null,"i.","Repair/replacement of major physical plant components have been identified that will result in 15+ years sustained operations; AND"]
[null,null,null,null,null,"ii.","Identified scope of critical physical needs exceeds the available reserves by at least $5,000 per unit, as evidenced by the Three Year Critical Needs Model; "]
[]
[null,null,null,null,"NOTE:  Minnesota Housing will conduct an inspection of the development and must agree with applicant on scope of work, severity levels and cost estimates."]
[]
[null,null,"3.",null,"Risk of Loss Due to Ownership Capacity/Program Commitment"]
[]
[null,null,null,null,"a.","Fifteen (15) or more years have passed since the award of the Existing Federal Assistance and the HTC placed in service date (if applicable) for projects claiming Existing Federal Assistance, or 15 years must have passed since the closing of the loan that created rent and income restrictions or the most recent HTC placed in service date for projects claiming Critical Affordable Units; AND"]
[null,null,null,null,"b.","One of four conditions exist:"]
[null,null,null,null,null,"i.","Existing conditions created by the current owner such as bankruptcy, insolvency, default, foreclosure action, unpaid taxes and assessments, on-going lack of compliance with lenders or terms of federal assistance, or self-determination by non-profit board are severe enough to put the property at significant risk of not remaining decent, safe and affordable. Ownership must be transferred to an unrelated party;  OR "]
[null,null,null,null,null,"ii.","The property has been or will be acquired from an unrelated party within three years of the application date after being offered for sale on the open market after an opt-out notice for the HAP contract had been submitted to Minnesota Housing; OR"]
[null,null,null,null,null,"iii.","The property has been or will be acquired from an unrelated party within 3 years of the application date as a result of a PARIF Right of First Refusal being exercised; OR"]
[null,null,null,null,null,"iv.","The acquisition of a property with USDA Rural Development rental assistance has occurred or will occur when the current or previous owner intends or intended to allow the existing USDA Rural Development mortgage to mature, and has turned down offers from USDA Rural Development to reamortize the mortgage.  Must apply within five years of maturity date and within three years of acquisition."]
[]
[null,null,"NOTE: Minnesota Housing, at its sole discretion, must agree that a change in ownership is necessary for units to remain decent, safe or affordable."]
[]
[null,null,"For projects meeting one of the three thresholds above, choose either Existing Federal Assistance or Critical Affordable Units at Risk of Loss below."]
[]
[]
[null,null,"Criteria:"]
[]
[null,null,"1.","Existing Federal Assistance - Tier 1 - project-based rental assistance/operating subsidies",null,null,null,null,null,null,null,null,null,null,"5 to 30 points"]
[null,null,null,"Definition: Any housing receiving project-based rental assistance or operating subsidies under a U.S. Department of Housing and Urban Development (HUD), U.S. Department of Agriculture Rural Development (RD), NAHASDA or other program that is not scheduled to sunset or expire. Properties that have converted their type of federal rental assistance through the Rental Assistance Demonstration program, Component 2 (RAD 2), and RAD for Project Rental Assistance Contracts (PRAC) are eligible. Such assistance must have been committed to the property 15 years prior to the year of application. \n\nOwner will continue renewals of existing project based housing subsidy payment contract(s) for as long as the assistance is available. Except for “good cause,” the owner will not evict existing subsidized residents and must continue to renew leases for those residents. Developments with qualified Existing Federal Assistance and which have secured additional federal rental assistance (including through an 8bb transfer) must count the total number of assisted units below. Such units are not eligible to be counted under Rental Assistance. "]
[null,null,null,null,null,null,null,null,null,null,null,null,null,null,null,null,null,"Select cell to edit number of units."]
[null,null,null,"Select an option from either a. or b. below.",null,null,null,null,null,null,null,null,null,null,null,null,"Number of units"]
[]
[null,null,null,"a.","Existing Federally Assisted Units:"]
[]
[null,null,null,null,"i.",null,"100% of units are federally assisted",null,null,null,null,null,null,null,"30 points"]
[]
[null,null,null,null,"ii.",null,"75.01% - 99.99% of units are federally assisted ",null,null,null,null,null,null,null,"22 points"]
[]
[null,null,null,null,"iii.",null,"50.01 - 75% of units are federally assisted",null,null,null,null,null,null,null,"15 points"]
[]
[null,null,null,null,"iv.",null,"25.01% - 50% of units are federally assisted",null,null,null,null,null,null,null,"10 points"]
[]
[null,null,null,null,"v.",null,"Less than 25% of units are federally assisted",null,null,null,null,null,null,null,"5 points"]
[]
[null,null,null,"b.","Partially assisted projects with Existing Federally Assisted Units within Economic Integration census tracts:"]
[]
[null,null,null,null,"i.",null,"75.01 - 99.99% of units are federally assisted",null,null,null,null,null,null,null,"30 points"]
[]
[null,null,null,null,"ii.",null,"25.01 - 75% of units are federally assisted ",null,null,null,null,null,null,null,"20 points"]
[]
[null,null,null,null,"iii.",null,"Less than 25% of units are federally assisted",null,null,null,null,null,null,null,"10 points"]
[]
[null,"OR"]
[]
[null,null,"2.","Existing Federal Assistance - Tier 2",null,null,null,null,null,null,null,null,null,null,"6 points"]
[]
[null,null,null,"a.",null,"Any housing which is federally assisted with a current recorded deed restriction limiting rent or income restrictions at or below the ",null,null,null,null,null,null,null,null,"6 points"]
[null,null,null,null,null,"greater of 80% of statewide median income or area median income. Federal assistance includes: existing public housing units, including converting through Rental Assistance Demonstration Program, Component 1 ( RAD 1), HTC units, Rural Development funded units without rental assistance and Existing Federal Assistance not described in paragraph A. above (e.g., 202, 236)."]
[null,null,null,null,"AND"]
[null,null,null,null,null,"You must also claim and be eligible under Serves Lowest Income Tenants/Rent Reduction criterion, unless the project is a RAD 1 conversion with 50% or more of the units covered by a Section 8 rental assistance contract."]
[]
[null,"OR"]
[]
[null,null,"3.","Critical Affordable Units at Risk of Loss  ",null,null,null,null,null,null,null,null,null,null,"6 points"]
[]
[null,null,null,"a.",null,"Any housing with a current recorded deed restriction limiting rent or income restrictions at or below the greater of",null,null,null,null,null,null,null,null,"6 points"]
[null,null,null,null,null,"80% of statewide median income or area median income under another non-federal program, including state, local or intermediary funds. "]
[null,null,null,null,"AND"]
[null,null,null,null,null,"You must also claim and be eligible under Serves Lowest Income Tenants/Rent Reduction criterion unless the project is a RAD 1 conversion with 50% or more of the units covered by a section 8 rental assistance contract."]
[]
["6. Efficient Use of Scarce Resources and Leverage",null,null,null,null,null,null,null,null,null,null,null,null,null,"1 to 38 points",{"$f":"EfficientUseOfScareResourcesTotalScore","v":0}]
[null,"A.","Financial Readiness to Proceed/Leveraged Funds",null,null,null,null,null,null,null,null,null,null,null,"4 to 16 points",{"$f":"FinancialReadinessTotalScore","v":0}]
[]
[null,null,"1.","Applicants who have secured funding commitments for one or more permanent capital funding sources at the time of application must count the source in this calculation. Funding from Minnesota Housing and Funding Partners (i.e., Greater Minnesota Housing Fund, Metropolitan Council Local Housing Incentive Account) can only be included in the calculation if it was committed in a previous funding cycle/round. \n\n\n\n"]
[]
[null,null,null,"Calculate your total using the formula below. The calculation must exclude amortizing first mortgage financing and any anticipated proceeds from the current HTC request."]
[]
[null,null,null,"Total eligible funding secured, awarded or committed (excluding amortizing first mortgage financing net of the Tax Increment Financing (TIF) portion, if applicable, any anticipated proceeds from the current HTC request, and sales tax rebate*) divided by Total Development Cost (excluding amortizing first mortgage financing net of the Tax Increment Financing (TIF) portion, if applicable, any anticipated proceeds from the current HTC request, and sales tax rebate) equals Percentage of Funds Committed (round to nearest tenth):"]
[null,null,null,"Calculate your total by entering values in the shaded fields. This will result in the selection of the appropriate option based on \nthe values entered."]
[]
[null,null,null,null,null,null,null,null,null,null,null,"="]
[null,null,null,null,null,null,null,null,"Total eligible funding secured, awarded or committed*",null,"Total Development Cost*",null,"Percentage of funds Committed (rounded to the nearest tenth)"]
[null,null,null,null,null,null,"a.",null,"70% or more of funding secured, awarded or committed**",null,null,null,null,null,"16 points"]
[null,null,null,null,null,null,"b.",null,"60% to 69.9% of funding secured, awarded or committed",null,null,null,null,null,"14 points"]
[null,null,null,null,null,null,"c.",null,"50% to 59.9% of funding secured, awarded or committed",null,null,null,null,null,"12 points"]
[null,null,null,null,null,null,"d.",null,"40% to 49.9% of funding secured, awarded or committed",null,null,null,null,null,"10 points"]
[null,null,null,null,null,null,"e.",null,"30% to 39.9% of funding secured, awarded or committed",null,null,null,null,null,"8 points"]
[null,null,null,null,null,null,"f.",null,"20% to 29.9% of funding secured, awarded or committed",null,null,null,null,null,"6 points"]
[null,null,null,null,null,null,"g.",null,"10% to 19.9% of funding secured, awarded or committed",null,null,null,null,null,"4 points"]
[]
[null,null,null,"*","Sales tax rebate, for the purpose of this scoring category, should be calculated as 40% of the construction contract amount (without contingency) multiplied by the local tax rate for the area where the project is located."]
[null,null,null,"**","Projects that have both a numerator and denominator equal to zero are eligible to claim 70% or more of funding secured, awarded or committed. NOTE: Zero must be entered in both the numerator and denominator fields in order to result in the selection of option a."]
[]
[null,null,"For scoring purposes, the documentation must be in the form of a project specific Letter of Intent, city or council resolution, letter of approval, or statement of agreement or eligibility. Commitment documentation must state the amount and be executed or approved by the lender or contributor. Documentation containing words synonymous with “consider” or “may,” (as in “may award”) regarding the commitment will not be acceptable."]
[]
[null,null,"The list below includes potential Financial Readiness/Leverage Funding Commitments, but is not all inclusive:"]
[null,null,"\u009f","Syndication proceeds due to previously allocated or awarded HTCs: Syndication proceeds from HTCs allocated or awarded in a previous cycle/round may be included if verification is included in the application. Acceptable verification is an executed syndicator agreement or executed Letter of Intent from the syndicator that is acceptable to Minnesota Housing. The executed Letter of Intent must:"]
[null,null,null,"◦","Be current within 15 days of submission of the application"]
[null,null,"\u009f","Syndication proceeds from the current tax credit request"]
[null,null,"\u009f","Monetary grants/donations"]
[null,null,"\u009f","Amortizing first mortgage incorporates tax abatement and payments in lieu of taxes (PILOT) for properties with an amortizing  first mortgage"]
[null,null,"\u009f","Tax Increment Financing (TIF): Provide satisfactory documentation that the contribution is committed to the development at the time of application. The documentation must include a city council resolution indicating its intention to provide TIF assistance. The anticipated amount must be included in the resolution or a letter from the city."]
[null,null,"\u009f","Deferred loans"]
[null,null,"\u009f","Grants from nonprofit charitable organizations converted to deferred loans. An award letter from the nonprofit charitable organization contributor must be provided at the time of application verifying the contribution. Documentation must evidence that the contribution is restricted for housing development uses and the contribution must be included as a development source."]
[null,null,"\u009f","Historic Tax Credits: In addition to the commitment documentation, at the time of application provide written documentation of eligibility through evidence of Historic Register listing or approval of Part 1—Evaluation of Significance along with a syndicator/investor Letter of Intent."]
[null,null,"\u009f","Funder commitments to modify existing debt including: approval of assumption of debt and extension of loan term; commitments must contain no contingencies other than receipt of an HTC allocation or award. At the time of application, written documentation of approval from the funder clearly demonstrating that the approval is for the re-syndication/receipt of new deferred or HTC allocation or award, justifying the amount and the terms of the contribution must be provided."]
[null,null,"\u009f","General Partner commitments can count as long as satisfactory documentation is provided. Examples include:"]
[null,null,null,"◦","GP cash and seller loans"]
[null,null,null,"◦","Deferred developer fee: The applicant must provide the required commitment documentation and provide evidence of repayment within 10 years by the projected cash flow or an amount approved by the syndicator/investor in the LOI."]
[null,null,null,"◦","Purchased reserves: Provide satisfactory documentation to determine that the reserves are available, will be purchased with the property and a commitment that they will be used as a permanent capital source. The documentation could include purchase agreement, financial statements, with a commitment letter from the applicant."]
[null,null,null,"◦","Energy Rebate: Provide satisfactory documentation that the energy rebate will be funded at closing with general partner cash or a general partner loan."]
[]
[null,null,"NOTE:  Financial Readiness to Proceed/Leveraged Funds and Other Contributions selection criteria cannot be claimed for the same sources."]
[]
[null,"B.","Other Contributions",null,null,null,null,null,null,null,null,null,null,null,"2 to 10 points",{"$f":"OtherContributionsTotalScore","v":0}]
[]
[null,null,"1.","For projects that receive non-capital contributions. Contributions can come from any entity including the federal government; a local unit of government; an area employer; and/or a private philanthropic, religious or charitable organization. Calculate your total using the formula below.\n\nTotal “Other” non-capital funding contributions and sources divided by Total Development Cost equals Other Contributions (rounded to the nearest tenth):"]
[null,null,null,"Calculate your total by entering values in the shaded fields. This will result in the selection of the appropriate option based \non the values entered."]
[]
[]
[null,null,null,null,null,null,null,null,null,"/",null,"=",{"$f":"IF(DevOtherContributionsDevelopmentCost=0,0, ROUND(DevOtherContributionsFunding/DevOtherContributionsDevelopmentCost,3))","v":0}]
[null,null,null,null,null,null,null,null,"Total \"Other\" non-funding contributions",null,"Total Development Cost",null,"Percentage of Other Funds Committed (rounded to the nearest 10th)"]
[null,null,null,null,null,null,"a.",null,"10.1% and above",null,null,null,null,null,"10 points"]
[null,null,null,null,null,null,"b.",null,"8.1 to 10% ",null,null,null,null,null,"8 points"]
[null,null,null,null,null,null,"c.",null,"6.1 to 8% ",null,null,null,null,null,"6 points"]
[null,null,null,null,null,null,"d.",null,"3.5 to 6% ",null,null,null,null,null,"4 points"]
[null,null,null,null,null,null,"e.",null,"1.0 to 3.4% ",null,null,null,null,null,"2 points"]
[]
[null,null,null,null,"NOTE: This calculation is based on the Total Development Costs. Applicants should not use any exclusions."]
[]
[null,null,"At the time of application, written documentation from the contributor justifying the amount and the terms of the contribution must be provided and be consistent with current market comparable costs. The documentation must be in the form of a project specific Letter of Intent, city or council resolution, letter of approval, statement of agreement or eligibility, or memorandum of understanding. \n\nFor scoring purposes, the documentation must state the amount and must be executed or approved, at a minimum, by the contributor. Documentation containing words synonymous with “consider” or “may” (as in “may award”) regarding the contribution will not be acceptable.\n\nThe list below includes potential Other Contributions but is not all inclusive:"]
[null,null,"\u009f","Land donation or write-down of the development site.  Documentation used to determine the market value must be submitted.  This could include an appraisal, assessment information, broker opinion with comparable properties, or other data deemed acceptable by Minnesota Housing."]
[null,null,"\u009f","In-kind work and materials that benefit the project are donated at a lower or no cost."]
[null,null,"\u009f","Local government reduction, donation or waiver of project specific costs, assessments or fees (e.g., SAC/WAC)"]
[null,null,"\u009f","Reservation land not subject to local property taxes. Documentation must include the amount and term (up to term of Minnesota Housing deferred loan or LURA). Calculate net present value (NPV) by using NPV discounted by applicable federal rate (AFR) for the term."]
[null,null,"\u009f","Reservation land with long-term low cost leases"]
[null,null,"\u009f","Funder commitments to modify existing debt including: debt forgiveness; forgiveness of interest payable; reduction in interest rate (measured as amount of interest saved over term of loan). Commitments must contain no contingencies other than receipt of an HTC allocation or award. At the time of application, written documentation from the funder justifying the amount and the terms of the contribution must be provided."]
[null,null,"\u009f","Tax Increment Financing (TIF) for properties that cannot support an amortizing first mortgage. Calculate the net present value (NPV) by using NPV discounted by applicable federal rate (AFR) for the term of the TIF.  Provide satisfactory documentation that the contribution is committed to the development at the time of application. The documentation must include a city council resolution indicating its intention to provide TIF assistance. The  anticipated amount must be included in the resolution or a letter from the city.  The documentation should include the TIF analysis from the city or its consultant."]
[null,null,"\u009f","Tax abatement and payments in lieu of taxes for properties that cannot support an amortizing first mortgage. Documentation must include the amount and term (up to the term of the Minnesota Housing deferred loan or LURA). Calculate net present value (NPV) by using NPV discounted by applicable federal rate (AFR) for the term of the abatement (up to the term of the Minnesota Housing deferred loan or LURA). "]
[]
[null,null,"NOTE:  Financial Readiness to Proceed/Leveraged Funds and Other Contributions selection criteria cannot be claimed for the same sources."]
[]
[null,"C.","Intermediary Costs",null,null,null,null,null,null,null,null,null,null,null,"1 to 6 points",{"$f":"IntermediaryCostsTotalScore","v":0}]
[]
[null,null,"1.","Intermediary costs are third-party service costs related to the project development.  Excluded costs are Park Dedication Fees, Surveys, Soil Borings, Payment and Performance Bond Premium, Sewer-Water Access Charge, Furnishing and Equipment, and Hazard and Liability Insurance.\n\nProjects with the lowest intermediary costs on a sliding scale based on percentage of total development costs. For selected projects, this percentage will be enforced at the time of closing for deferred loans or at issuance of the IRS Form 8609 for HTC developments. Calculate your total using the formula below.\n\nIntermediary cost amount divided by Total Development Costs Equals Intermediary Percentage (rounded to the nearest tenth):"]
[]
[null,null,null,"Calculate your total by entering values in the shaded fields. This will result in the selection of the appropriate option based on the values entered."]
[]
[null,null,null,null,null,null,null,null,null,"/",null,"=",{"$f":"IF(DevIntermediaryDevelopmentCost=0,0,ROUND(DevIntermediaryCosts/DevIntermediaryDevelopmentCost,3))","v":0}]
[null,null,null,null,null,null,null,null,"Intermediary Cost Amount",null,"Total Development Cost",null,"Intermediary Percentage (rounded to the nearest tenth)"]
[null,null,null,null,null,null,"a.",null,"0.0 to 15% ",null,null,null,null,null,"6 points"]
[null,null,null,null,null,null,"b.",null,"15.1 to 20% ",null,null,null,null,null,"3 points"]
[null,null,null,null,null,null,"c.",null,"20.1 to 25% ",null,null,null,null,null,"2 points"]
[null,null,null,null,null,null,"d.",null,"25.1 to 30% ",null,null,null,null,null,"1 point"]
[]
[null,"D.","Cost Containment",null,null,null,null,null,null,null,null,null,null,null,"6 points",{"$f":"CostContainmentTotalScore","v":0}]
[]
[null,null,"1.",null,"Proposals will receive points based on the cost containment methodology. For each of the four competition groups, the cost  per unit"]
[null,null,null,null,"at the 50th percentile in Round 1 will determine the cut-off point or threshold for receiving points for 4% tax credits."]
[null,null,"1.",null,"50% of developments with the lowest costs within each development type/location group will receive priority (subject to the methodology "]
[null,null,null,null,"described in Cost Containment Methodology). \n\nApplicants may claim this criterion and Minnesota Housing will review costs for all applications to confirm eligibility in the funding round. \n\nA different process occurs for the second round of 9% HTC selections. For each of the four competition groups, the cost per unit of the proposal at the 50th percentile in Round 1 will determine the cut-off point or threshold for receiving points in Round 2."]
[]
[null,null,"NOTE: Proposals that believe they have contained their costs should select this criterion. Only proposals that claim cost containment and are awarded through the process described above will be eligible for cost containment."]
[null,null,"CAUTION: If a project receives points under this criterion, failure to keep project costs under the applicable cost threshold will be considered an unacceptable practice and may result in negative four points being awarded in all of the applicant’s HTC submissions in the next funding round in which submissions are made. The penalty will be assessed to an application submitted to the same funding round (Competitive or 4% Only) for which the points were initially awarded. HTC developments awarded points via the 4% Only award process will receive a penalty if the points were necessary to meet the minimum point requirement. If developers are concerned about their costs and keeping them within the “applicable cost threshold,” they should not claim the cost-containment points. \n"]
[null,null,"CAUTION: If a project receives points under this criterion, failure to keep project costs under the applicable cost threshold will be considered an unacceptable practice and may result in negative four points being awarded in all of the applicant’s HTC submissions in the next funding round in which submissions are made. The penalty will be assessed to an application submitted to the same funding round (Competitive or 4% Only) for which the points were initially awarded. If developers are concerned about their costs and keeping them within the “applicable cost threshold,” they should not claim the cost-containment points. \n"]
[]
[null,null,"Link to Cost Containment Methodology "]
[]
["7. Building Characteristics",null,null,null,null,null,null,null,null,null,null,null,null,null,"1 to 6 points",{"$f":"BuildingCharacteristicsTotalScore","v":0}]
[null,"A.","Universal Design",null,null,null,null,null,null,null,null,null,null,null,"3 points",{"$f":"UniversalDesignTotalScore","v":0}]
[]
[null,null,"1.","A unit that includes all Minimum Essential Universal Design Features below, along with eight Optional Features for units in a new construction or adaptive re-use project, and four Optional Features for units in a rehabilitation project. Type A accessible units (as referenced in Minnesota Housing’s Rental Housing Design and Construction Standards) also meet the definition of a Universal Design unit."]
[null,null,null,null,null,null,null,null,null,null,null,null,null,null,null,null,null,"Select cell to edit number of units."]
[null,null,null,"Select one:",null,null,null,null,null,null,null,null,null,null,null,null,"Number of Units"]
[]
[null,null,null,"a.",null,"An elevator building with 100% of assisted units meeting the definition of a Universal Design Unit OR",null,null,null,null,null,null,null,null,"3 points"]
[]
[null,null,null,"b.",null,"A non-elevator building with at least 10% of assisted units meeting the definition of a Universal Design Unit",null,null,null,null,null,null,null,null,"3 points"]
[]
[]
[]
[null,null,"Minimum Essential Universal Design Features: "]
[null,null,"\u009f","At least one bedroom or space that can be converted to a bedroom (without changing door locations for new construction or adaptive re-use) on an accessible level and connected to an accessible route, or efficiency units (without a bedroom) on an accessible level and connected to an accessible route."]
[null,null,"\u009f","At least 42” minimum hallways within a unit for new construction or adaptive re-use."]
[null,null,"\u009f","At least one three quarter bathroom on an accessible level with five foot open radius for new construction or adaptive re-use, and clear floor space of 30” x 48” for rehabilitation projects. Accessible \"T\" turn clearance may be accepted in lieu of the five foot open radius."]
[null,null,"\u009f","Lever handles on all doors and plumbing fixtures."]
[null,null,"\u009f","Provide wall blocking in all tub and shower areas for new construction or adaptive re-use, and for rehabilitation if showers are being replaced."]
[null,null,"\u009f","Door thresholds flush with the floor with maximum threshold height of ½” beveled or ¼”square edged."]
[null,null,"\u009f","Kitchen and laundry appliances have parallel approach clear floor space with all controls within maximum height of 48”. Oven controls must have lockout feature. Stackable laundry units with a maximum reach range of 54” will meet this requirement."]
[null,null,"\u009f","If microwave/exhaust hood combination appliances are provided in 95 percent of Universal Design Units, then the remaining 5 percent of Universal Design Units must provide a countertop or accessible microwave or have one in stock and on-site and available upon request."]
[null,null,"\u009f","Kitchen sink area 30” wide minimum with cabinet panel concealing piping or a removable base cabinet."]
[null,null,"\u009f","All common spaces and amenities provided in the housing development located on an accessible route."]
[null,null,"\u009f","For new construction or adaptive re-use projects, deck and patio spaces must have a step-less transition meeting door threshold requirements above, with decking gaps no greater than ¼”.  A step-less transition and door threshold meeting requirements as promulgated by Minnesota Accessibility Code for Type A units is also permitted."]
[null,null,"\u009f","Universal Design features are incorporated in an aesthetic, marketable, non-institutional manner."]
[]
[null,null,"Optional Features:"]
[null,null,"\u009f","High contrast finish selections that include floor to wall transitions, top treads of stairs, counters and adjacent flooring and walls"]
[null,null,"\u009f","Single lever, hands free or touch type faucets are provided throughout the Universal Design Unit"]
[null,null,"\u009f","At least 50% of kitchen storage space within reach range. This can include pull-out shelves, full extension glide drawers or within a roll-in pantry design"]
[null,null,"\u009f","A variety of work surface heights in kitchen and one five foot open radius"]
[null,null,"\u009f","Roll under vanity or sink in 25% of Universal Design qualifying units, rounded up to the nearest whole number"]
[null,null,"\u009f","Cabinet hardware with “D” type pull handles or operation for people with limited dexterity"]
[null,null,"\u009f","Zero threshold shower or transfer space at tub is provided for minimum of half the qualifying Universal Design units, rounded up to the nearest whole number"]
[null,null,"\u009f","Slip resistant flooring in kitchens and baths in the Universal Design Units"]
[null,null,"\u009f","Toilets provided with seats 17”– 19” from the floor"]
[null,null,"\u009f","Windows are provided with maximum sill height of 36”, parallel clear floor space and locks/operating mechanism within 48” and easily operable with one hand. Sidelight or view window at main entry door from a seated position"]
[null,null,"\u009f","Thermostats designed for visually impaired or ability to monitor and operate with electronic device such as a tablet computer"]
[null,null,"\u009f","Majority of closets in Universal Design Units must have shelving that is adjustable OR provide multiple shelving/hanger rod configuration where by majority of shelving/hanger rods are within one of the reach ranges of the Minnesota Accessibility Code-Section 308"]
[null,null,"\u009f","An audio/visual doorbell is included at all main dwelling unit entry doors"]
[null,null,"\u009f","A covered canopy with adequate lighting is provided at exterior main/unit entry. An interior or exterior bench space for parcels or groceries is provided."]
[null,null,"\u009f","Parking spaces provided for at least 50% of Universal Design qualifying units, rounded up to the nearest whole number, with a five foot wide adjacent auxiliary space (access aisle) connected to accessible route"]
[null,null,"\u009f","Residential elevator or chair lift space structured for future use in multiple level homes"]
[null,null,"\u009f","Enterprise Green Communities Model Specifications are used for applicable sections for the Universal Design qualifying units"]
[null,null,"\u009f","On-site accessible physical activity is provided for in a fitness area, biking or walking path or community garden"]
[null,null,"\u009f","Other modifications that make units livable for disabled populations, as demonstrated by credible evidence provided in the application, and at the sole discretion of Minnesota Housing"]
[]
[null,"B.","Smoke Free Buildings",null,null,null,null,null,null,null,null,null,null,null,"1 point",{"$f":"SmokeFreeBuildingsTotalScore","v":0}]
[]
[null,null,null,"The projects will institute and maintain a written policy* prohibiting smoking in all the units and all common areas within"]
[null,null,null,"the building/s of the project. The project must include a non-smoking clause in the lease for every household. Projects awarded a point in this scoring criteria will be required to maintain the smoke-free policy for the term of the LURA. "]
[]
[null,null,"*","The written policy must be submitted with the application and must include procedures regarding transitioning to smoke-free for existing residents and establishment of smoking areas outside of units and common areas if applicable. Consequences for violating the smoke-free policy are determined by the owner but must be included in the written policy."]
[]
[null,"C.","Minnesota Overlay to the Enterprise Green Communities Criteria",null,null,null,null,null,null,null,null,null,null,null,"1 to 2 points",{"$f":"GreenCommunitiesTotalScore","v":0}]
[]
[null,null,"As indicated in the Multifamily Intended Methods Worksheet, all multifamily projects must include all applicable \"Mandatory\" Criteria and meet the baseline minimum number of Optional Criteria points for the most current version of the Minnesota Overlay to the Enterprise Green Communities Criteria. More information on the Minnesota Overlay to the Enterprise Green Communities Criteria can be found on the Building Standards tab of the Minnesota Housing website."]
[]
[null,null,"Link to Multifamily Intended Methods Worksheet"]
[null,null,"Link to Minnesota Overlay to the Enterprise Green Communities Criteria"]
[null,null,"Link to Building Standards tab of the Minnesota Housing website"]
[]
[null,null,"1. ",null,"For projects that include at least three times the minimum number of Optional Criteria points, in addition to the Required Mandatory Criteria,",null,null,null,null,null,null,null,null,null,"2 points"]
[null,null,null,null,"as outlined above and as indicated in the Multifamily Intended Methods Worksheet."]
[]
[null,null,"2.",null,"For projects that include at least two times the minimum number of Optional Criteria points, in addition to the Required Mandatory Criteria,",null,null,null,null,null,null,null,null,null,"1 point"]
[null,null,null,null,"as outlined above and as indicated in the Multifamily Intended Methods Worksheet."]
[]
["8. Unacceptable Practices",null,null,null,null,null,null,null,null,null,null,null,null,null,"-4 to -25 points",{"$f":"UnacceptablePracticesTotalScore","v":0}]
[]
[null,null,null,"Minnesota Housing will impose penalty points for unacceptable practices as identified in Chapter 2.G. of the HTC"]
[null,null,null,"Program Procedural Manual."]
[]
["Total Points",null,null,null,null,null,null,null,null,null,null,null,null,null,null,{"$f":"TotalPoints","v":0}]
[]
[]
["Signatures"]
[]
["Under penalty of perjury, owner hereby certifies the information provided herein is true and accurate."]
[]
[]
[null,"Name of Owner"]
[]
[null,"By (Signature)"]
[]
[null,"Of (Name of Legal Entity)"]
[]
[null,"Its (Title) (Managing General Partner)"]
[]
[null,"Print or Type Name of Signatory:"]
[]
["NOTE: During the competition process, Minnesota Housing’s review of the submitted Self-Scoring Worksheet is only to validate that the points claimed are eligible, to reduce points claimed if not eligible, and to determine points awarded. Minnesota Housing will not award additional points that are not initially claimed by the applicant/owner. Many performance obligations are created by the claiming of certain scoring points. As such, Minnesota Housing will not assume the position of creating any such performance obligations on behalf of the applicant/owner. In addition, applications funded under the Joint Powers Agreement must also comply with the suballocators' selection criteria defined in their Qualified Allocation Plan."]

{"sheet":"Named Ranges","index":3,"n_rows":196,"n_cols":22,"rows_kept":196,"cut":false,"hidden":true,"merged":[]}
["Display Order","Header","Main Section","Sub Sect 1","Sub Sect 2","Sub Sect 3","QSTN_TMPLT_INCL_SUB_TOT_VAL","QSTN_TMPT_SCR_TYP_CD","Checkbox Name","QSTN_TMPLT_FRMT_CD","QSTN_TMPLT_SCALE_NUM","Named Range for Values","Values","Section Min","Section Max","Question Points"]
[1,"Round 1 - Minimum Threshold Requirements",null,null,null,null,null,null,null,null,null,null,null,null,null,null,null,false,null,null,"DevelopmentName",{"$f":"IF('Cover Sheet Links'!SelectedScoresheet=\"Competitive\", Competitive!DevelopmentName_Competitive, IF('Cover Sheet Links'!SelectedScoresheet=\"Scoresheet\", Scoresheet!DevelopmentName_4Percent, \"\"))","v":0}]
[2,null,"In the Metropolitan Area",null,null,null,null,null,null,null,null,null,null,null,null,null,null,null,null,null,"DevelopmentNumber",{"$f":"IF('Cover Sheet Links'!SelectedScoresheet=\"Competitive\", Competitive!DevelopmentNumber_Competitive, IF('Cover Sheet Links'!SelectedScoresheet=\"Scoresheet\", Scoresheet!DevelopmentNumber_4Percent, \"\"))","v":0}]
[3,null,null,null,null,null,null,"CHECKBOX","ckMTRMetroSRO","Boolean",null,"MTRMetroSRO",false,null,null,null,null,null,null,null,"ApplicationNumber",{"$f":"IF('Cover Sheet Links'!SelectedScoresheet=\"Competitive\", Competitive!ApplicationNumber_Competitive, IF('Cover Sheet Links'!SelectedScoresheet=\"Scoresheet\", Scoresheet!ApplicationNumber_4Percent, \"\"))","v":0}]
[4,null,null,null,null,null,null,"CHECKBOX","ckMTRMetroLargeFamily","Boolean",null,"MTRMetroLargeFamily",false,null,null,null,null,null,null,null,"DevelopmentLocation",{"$f":"IF('Cover Sheet Links'!SelectedScoresheet=\"Competitive\", Competitive!DevelopmentLocation_Competitive, IF('Cover Sheet Links'!SelectedScoresheet=\"Scoresheet\", Scoresheet!DevelopmentLocation_4Percent, \"\"))","v":0}]
[5,null,null,null,null,null,null,"CHECKBOX","ckMTRMetroRehabilitation","Boolean",null,"MTRMetroRehabilitation",false,null,null,null,null,null,null,null,"DevelopmentCity",{"$f":"IF('Cover Sheet Links'!SelectedScoresheet=\"Competitive\", Competitive!DevelopmentCity_Competitive, IF('Cover Sheet Links'!SelectedScoresheet=\"Scoresheet\", Scoresheet!DevelopmentCity_4Percent, \"\"))","v":0}]
[6,null,"Outside the Metropolitan Area"]
[7,null,null,null,null,null,null,"CHECKBOX","ckMTRShortSupply","Boolean",null,"MTRShortSupply",false]
[8,null,"Projects not restricted to person of a particular age group"]
[9,null,null,null,null,null,null,"CHECKBOX","ckMTRNotRestricted","Boolean",null,"MTRNotRestricted",false]
[10,null,"Perserve Existing Subsidized Housing"]
[11,null,null,null,null,null,null,"CHECKBOX","ckMTRPreservation","Boolean",null,"MTRPreservation",false]
[12,null,"Rural Development"]
[13,null,null,null,null,null,null,"CHECKBOX","ckMTRRuralDevelopment","Boolean",null,"MTRRuralDevelopment",false]
[14,"Strategic Priority Thresholds",null,null,null,null,null,null,null,null,null,""]
[15,null,null,null,null,null,null,"CHECKBOX","ckSPTAccessToFixedTransit","Boolean",null,"SPTAccessToFixedTransit",false]
[16,null,null,null,null,null,null,"CHECKBOX","ckSPTGreaterMNWorkforceHsg","Boolean",null,"SPTGreaterMNWorkforceHsg",false]
[17,null,null,null,null,null,null,"CHECKBOX","ckSPTEconomicIntegration","Boolean",null,"SPTEconomicIntegration",false]
[18,null,null,null,null,null,null,"CHECKBOX","ckSPTTribal","Boolean",null,"SPTTribal",false]
[19,null,null,null,null,null,null,"CHECKBOX","ckSPTPlannedCommunity","Boolean",null,"SPTPlannedCommunity",false]
[20,null,null,null,null,null,null,"CHECKBOX","ckSPTPreservation","Boolean",null,"SPTPreservation",false]
[21,null,null,null,null,null,null,"CHECKBOX","ckSPTSupportiveHsg","Boolean",null,"SPTSupportiveHsg",false]
[null,null,null,null,null,null,null,"CHECKBOX","ckSPTProposalType","Boolean",null,"SPTProposalType",false]
[22,"2019 Housing Tax Credit Selection Criteria"]
[23,null,"Greatest Need Tenant Targeting",null,null,null,null,null,null,null,null,null,null,5,39,null,null,{"$f":"SUM(Q27:Q47)","v":0}]
[24,null,null,"Large Family Housing",null,null,null,null,null,null,null,null,null,5,7,null,null,{"$f":"SUM(Q27:Q31)","v":0}]
[25,null,null,null,null,null,null,"CHECKBOX","ckLargeFamily2Bedroom","Boolean",null,"LargeFamily2Bedroom",false,null,null,{"$f":"IF(HTC4PercentScoresheet=TRUE,10, 5)","v":5},{"$f":"IF(LargeFamily2Bedroom=TRUE, P27,0)","v":0}]
[26,null,null,null,null,null,null,"SCR_VAL",null,"Fixed",0,"LargeFamilyHousing2BedroomUnitsValue",{"$f":"IF('Cover Sheet Links'!SelectedScoresheet = \"Competitive\", Competitive!DevLargeFamilyHousing2BedroomUnitsValue, IF('Cover Sheet Links'!SelectedScoresheet=\"Scoresheet\", Scoresheet!DevLargeFamilyHousing2BedroomUnitsValue, \"\"))","v":0}]
[27,null,null,null,null,null,null,"SCR_VAL",null,"Fixed",0,"LargeFamilyHousing3BedroomUnitsValue",{"$f":"IF('Cover Sheet Links'!SelectedScoresheet = \"Competitive\", Competitive!DevLargeFamilyHousing3BedroomUnitsValue, IF('Cover Sheet Links'!SelectedScoresheet=\"Scoresheet\", Scoresheet!DevLargeFamilyHousing3BedroomUnitsValue, \"\"))","v":0}]
[28,null,null,null,null,null,null,"SCR_VAL",null,"Fixed",0,"LargeFamilyHousing4BedroomUnitsValue",{"$f":"IF('Cover Sheet Links'!SelectedScoresheet = \"Competitive\", Competitive!DevLargeFamilyHousing4BedroomUnitsValue, IF('Cover Sheet Links'!SelectedScoresheet=\"Scoresheet\", Scoresheet!DevLargeFamilyHousing4BedroomUnitsValue, \"\"))","v":0}]
[29,null,null,null,null,null,null,"CHECKBOX","ckLargeFamily3Bedroom","Boolean",null,"LargeFamily3Bedroom",false,null,null,{"$f":"IF(HTC4PercentScoresheet=TRUE,5, 2)","v":2},{"$f":"IF(LargeFamily3Bedroom=TRUE, P31,0)","v":0}]
[30,null,null,"Permanent Supportive Housing for High Priority Homeless",null,null,null,null,null,null,null,null,null,7,22,null,null,{"$f":"SUM(Q33:Q42)","v":0}]
[31,null,null,null,null,null,null,"CHECKBOX","ckSupportiveHousing20Units","Boolean",null,"SupportiveHousing20Units",false,null,null,20,{"$f":"IF(M33 = TRUE, P33, 0)","v":0}]
[32,null,null,null,null,null,null,"CHECKBOX","ckSupportiveHousing7Units","Boolean",null,"SupportiveHousing7Units",false,null,null,10,{"$f":"IF(M34 = TRUE, P34, 0)","v":0}]
[33,null,null,null,null,null,null,"CHECKBOX","ckSupportiveHousing4Units","Boolean",null,"SupportiveHousing4Units",false,null,null,7,{"$f":"IF(M35 = TRUE, P35, 0)","v":0}]
[34,null,null,null,null,null,null,"SCR_VAL",null,"Fixed",0,"SupportiveHousingFamiliesUnitsValue",{"$f":"IF('Cover Sheet Links'!SelectedScoresheet = \"Competitive\", Competitive!DevSupportiveHousingFamiliesUnitsValue, IF('Cover Sheet Links'!SelectedScoresheet=\"Scoresheet\", Scoresheet!DevSupportiveHousingFamiliesUnitsValue, \"\"))","v":0}]
[35,null,null,null,null,null,null,"SCR_VAL",null,"Fixed",0,"SupportiveHousingYouthWithChildrenUnitsValue",{"$f":"IF('Cover Sheet Links'!SelectedScoresheet = \"Competitive\", Competitive!DevSupportiveHousingYouthWithChildrenUnitsValue, IF('Cover Sheet Links'!SelectedScoresheet=\"Scoresheet\", Scoresheet!DevSupportiveHousingYouthWithChildrenUnitsValue, \"\"))","v":0}]
[36,null,null,null,null,null,null,"SCR_VAL",null,"Fixed",0,"SupportiveHousingYouthUnitsValue",{"$f":"IF('Cover Sheet Links'!SelectedScoresheet = \"Competitive\", Competitive!DevSupportiveHousingYouthUnitsValue, IF('Cover Sheet Links'!SelectedScoresheet=\"Scoresheet\", Scoresheet!DevSupportiveHousingYouthUnitsValue, \"\"))","v":0}]
[37,null,null,null,null,null,null,"SCR_VAL",null,"Fixed",0,"SupportiveHousingSingleAdultUnitsValue",{"$f":"IF('Cover Sheet Links'!SelectedScoresheet = \"Competitive\", Competitive!DevSupportiveHousingSingleAdultUnitsValue, IF('Cover Sheet Links'!SelectedScoresheet=\"Scoresheet\", Scoresheet!DevSupportiveHousingSingleAdultUnitsValue, \"\"))","v":0}]
[38,null,null,null,null,null,null,"CHECKBOX","ckSupportiveHousingPriority","Boolean",null,"SupportiveHousingPriority",false,null,null,2,{"$f":"IF(M40 = TRUE, P40, 0)","v":0}]
[39,null,null,null,null,null,null,"SCR_VAL",null,"Fixed",0,"SupportiveHousingPriorityUnitsValue",{"$f":"IF('Cover Sheet Links'!SelectedScoresheet = \"Competitive\", Competitive!DevSupportiveHousingPriorityUnitsValue, IF('Cover Sheet Links'!SelectedScoresheet=\"Scoresheet\", Scoresheet!DevSupportiveHousingPriorityUnitsValue, \"\"))","v":0}]
[40,null,null,null,null,null,null,null,null,"Fixed",null,"SupportiveHousingPriorityType",{"$f":"IF('Cover Sheet Links'!SelectedScoresheet = \"Competitive\", Competitive!DevSupportiveHousingPriorityType, IF('Cover Sheet Links'!SelectedScoresheet=\"Scoresheet\", Scoresheet!DevSupportiveHousingPriorityType, \"\"))","v":""}]
[41,null,null,"People with Disabilities",null,null,null,null,null,null,null,"",null,7,10,null,null,{"$f":"SUM(Q44:Q46)","v":0}]
[42,null,null,null,null,null,null,"CHECKBOX","ckDisabilities15Percent","Boolean",null,"Disabilities15Percent",false,null,null,10,{"$f":"IF(M44 = TRUE, P44, 0)","v":0}]
[43,null,null,null,null,null,null,"CHECKBOX","ckDisabilities10Percent","Boolean",null,"Disabilities10Percent",false,null,null,9,{"$f":"IF(M45 = TRUE, P45, 0)","v":0}]
[44,null,null,null,null,null,null,"CHECKBOX","ckDisabilities5Percent","Boolean",null,"Disabilities5Percent",false,null,null,7,{"$f":"IF(M46 = TRUE, P46, 0)","v":0}]
[45,null,null,null,null,null,null,"SCR_VAL",null,"Fixed",0,"DisabilitiesUnitsValue",{"$f":"IF('Cover Sheet Links'!SelectedScoresheet = \"Competitive\", Competitive!DevDisabilitiesUnitsValue, IF('Cover Sheet Links'!SelectedScoresheet=\"Scoresheet\", Scoresheet!DevDisabilitiesUnitsValue, \"\"))","v":0}]
[46,null,"Serves Lowest Income for Long Durations",null,null,null,null,null,null,null,null,"",null,3,35,null,null,{"$f":"SUM(Q49:Q73)","v":0}]
[47,null,null,"Serves Lowest Income Tenants/Rent Reduction",null,null,null,null,null,null,null,"",null,8,13,null,null,{"$f":"SUM(Q50:Q51)","v":0}]
[48,null,null,null,null,null,null,"CHECKBOX","ckServesLowestIncOpt1","Boolean",null,"ServesLowestIncOpt1",false,null,null,13,{"$f":"IF(M50 = TRUE, P50, 0)","v":0}]
[49,null,null,null,null,null,null,"CHECKBOX","ckServesLowestIncOpt2","Boolean",null,"ServesLowestIncOpt2",false,null,null,8,{"$f":"IF(M51 = TRUE, P51, 0)","v":0}]
[50,null,null,null,null,null,null,"SCR_VAL",null,"Fixed",0,"ServesLowestIncUnitsValue",{"$f":"IF('Cover Sheet Links'!SelectedScoresheet = \"Competitive\", Competitive!DevServesLowestIncUnitsValue, IF('Cover Sheet Links'!SelectedScoresheet=\"Scoresheet\", Scoresheet!DevServesLowestIncUnitsValue, \"\"))","v":0}]
[51,null,null,"Rental Assistance",null,null,null,null,null,null,null,"",null,6,26,null,null,{"$f":"SUM(Q55:Q61,Q63:Q68)","v":0}]
[52,null,null,null,"For developments that agree to set aside units and have the required binding commitment ",null,null,null,null,null,null,""]
[53,null,null,null,null,null,null,"CHECKBOX","ckRA100PercentUnits","Boolean",null,"RA100PercentUnits",false,null,null,19,{"$f":"IF(M55 = TRUE, P55, 0)","v":0}]
[54,null,null,null,null,null,null,"SCR_VAL",null,"Fixed",0,"RA100PercentUnitsValue",{"$f":"IF('Cover Sheet Links'!SelectedScoresheet = \"Competitive\", Competitive!DevRAUnitsValue, IF('Cover Sheet Links'!SelectedScoresheet=\"Scoresheet\",Scoresheet!DevRAUnitsValue, \"\"))","v":0}]
[55,null,null,null,null,null,null,"CHECKBOX","ckRA51PercentUnits","Boolean",null,"RA51PercentUnits",false,null,null,16,{"$f":"IF(M57 = TRUE, P57, 0)","v":0}]
[56,null,null,null,null,null,null,"CHECKBOX","ckRA20PercentUnits","Boolean",null,"RA20PercentUnits",false,null,null,13,0]
[57,null,null,null,null,null,null,"CHECKBOX","ckRA10PercentUnits","Boolean",null,"RA10PercentUnits",false,null,null,10,0]
[58,null,null,null,null,null,null,"CHECKBOX","ckRA5PercentUnits","Boolean",null,"RA5PercentUnits",false,null,null,7,0]
[59,null,null,null,null,null,null,"CHECKBOX","ckRALessThan5PercentUnits","Boolean",null,"RALessThan5PercentUnits",false,null,null,6,0]
[61,null,null,null,"Projects that have rental assistance that agree to further restrict units",null,null,null,null,null,null,""]
[62,null,null,null,null,null,null,"CHECKBOX","ckRA15Percent10YrUnits","Boolean",null,"RA15Percent10YrUnits",false,null,null,3,{"$f":"IF(M63 = TRUE, P63, 0)","v":0}]
[63,null,null,null,null,null,null,"SCR_VAL",null,"Fixed",0,"RA15Percent10YrUnitsValue",{"$f":"IF('Cover Sheet Links'!SelectedScoresheet = \"Competitive\", Competitive!DevRA10YrUnitsValue, IF('Cover Sheet Links'!SelectedScoresheet=\"Scoresheet\", Scoresheet!DevRA10YrUnitsValue, \"\"))","v":0}]
[64,null,null,null,null,null,null,"CHECKBOX","ckRA25Percent10YrUnits","Boolean",null,"RA25Percent10YrUnits",false,null,null,4,{"$f":"IF(M65 = TRUE, P65, 0)","v":0}]
[65,null,null,null,null,null,null,"CHECKBOX","ckRA50Percent10YrUnits","Boolean",null,"RA50Percent10YrUnits",false,null,null,5,{"$f":"IF(M66 = TRUE, P66, 0)","v":0}]
[66,null,null,null,null,null,null,"CHECKBOX","ckRA75Percent10YrUnits","Boolean",null,"RA75Percent10YrUnits",false,null,null,6,{"$f":"IF(M67 = TRUE, P67, 0)","v":0}]
[67,null,null,null,null,null,null,"CHECKBOX","ckRA100Percent10YrUnits","Boolean",null,"RA100Percent10YrUnits",false,null,null,7,{"$f":"IF(M68 = TRUE, P68, 0)","v":0}]
[68,null,null,"Long Term Affordability",null,null,null,null,null,null,null,"",null,8,9,null,null,{"$f":"SUM(Q70:Q73)","v":0}]
[69,null,null,null,null,null,null,"CHECKBOX","ckLongTermAffordability40","Boolean",null,"LongTermAffordability40",false,null,null,9,{"$f":"IF(M70 = TRUE, P70, 0)","v":0}]
[70,null,null,null,null,null,null,"CHECKBOX","ckLongTermAffordability35","Boolean",null,"LongTermAffordability35",false,null,null,8,{"$f":"IF(M71 = TRUE, P71, 0)","v":0}]
[null,null,null,null,null,null,null,"CHECKBOX","ckLongTermAffordabilityWaive30","Boolean",null,"LongTermAffordabilityWaive30",false,null,null,7,{"$f":"IF(M72 = TRUE, P72, 0)","v":0}]
[null,null,null,null,null,null,null,"CHECKBOX","ckLongTermAffordabilityWaive25","Boolean",null,"LongTermAffordabilityWaive25",false,null,null,3,0]
[71,null,"Areas of Opportunity",null,null,null,null,null,null,null,null,"",null,1,28,null,null,{"$f":"SUM(Q76:Q115)","v":0}]
[72,null,null,"Economic Integration",null,null,null,null,null,null,null,"",null,2,9,null,null,{"$f":"SUM(Q76:Q79)","v":0}]
[73,null,null,null,null,null,null,"CHECKBOX","ckEconIntegrationMixed","Boolean",null,"EconIntegrationMixed",false,null,null,2,{"$f":"IF(M76 = TRUE, P76, 0)","v":0}]
[74,null,null,null,null,null,null,null,null,null,0,"EconIntegrationMixedUnitsValue",{"$f":"IF('Cover Sheet Links'!SelectedScoresheet = \"Competitive\", Competitive!DevEconIntegrationMixedUnitsValue, IF('Cover Sheet Links'!SelectedScoresheet=\"Scoresheet\", Scoresheet!DevEconIntegrationMixedUnitsValue, \"\"))","v":0}]
[75,null,null,null,null,null,null,"CHECKBOX","ckEconIntegration1stTier","Boolean",null,"EconIntegration1stTier",false,null,null,9,{"$f":"IF(M78 = TRUE, P78, 0)","v":0}]
[76,null,null,null,null,null,null,"CHECKBOX","ckEconIntegration2ndTier","Boolean",null,"EconIntegration2ndTier",false,null,null,7,{"$f":"IF(M79 = TRUE, P79, 0)","v":0}]
[77,null,null,"Access to Higher Performing Schools ",null,null,null,null,null,null,null,"",null,0,4,null,null,{"$f":"SUM(Q81:Q84)","v":0}]
[78,null,null,null,null,null,null,"CHECKBOX","ckAccessToSchools","Boolean",null,"AccessToSchools",false,null,null,4,{"$f":"IF(M81 = TRUE, P81, 0)","v":0}]
[79,null,null,null,null,null,null,"SCR_VAL",null,"Fixed",0,"AccessToSchools2BedroomsUnitsValue",{"$f":"IF('Cover Sheet Links'!SelectedScoresheet = \"Competitive\", Competitive!DevAccessToSchools2BedroomsUnitsValue, IF('Cover Sheet Links'!SelectedScoresheet=\"Scoresheet\", Scoresheet!DevAccessToSchools2BedroomsUnitsValue, \"\"))","v":0}]
[80,null,null,null,null,null,null,"SCR_VAL",null,"Fixed",0,"AccessToSchools3BedroomsUnitsValue",{"$f":"IF('Cover Sheet Links'!SelectedScoresheet = \"Competitive\", Competitive!DevAccessToSchools3BedroomsUnitsValue, IF('Cover Sheet Links'!SelectedScoresheet=\"Scoresheet\", Scoresheet!DevAccessToSchools3BedroomsUnitsValue, \"\"))","v":0}]
[81,null,null,null,null,null,null,"SCR_VAL",null,"Fixed",0,"AccessToSchools4BedroomsUnitsValue",{"$f":"IF('Cover Sheet Links'!SelectedScoresheet = \"Competitive\", Competitive!DevAccessToSchools4BedroomsUnitsValue, IF('Cover Sheet Links'!SelectedScoresheet=\"Scoresheet\", Scoresheet!DevAccessToSchools4BedroomsUnitsValue, \"\"))","v":0}]
[82,null,null,"Workforce Housing Communities",null,null,null,null,null,null,null,"",null,3,6,null,null,{"$f":"SUM(Q86:Q88)","v":0}]
[83,null,null,null,null,null,null,"CHECKBOX","ckWorkforceTopJobCenter","Boolean",null,"WorkforceTopJobCenter",false,null,null,6,{"$f":"IF(M86 = TRUE, P86, 0)","v":0}]
[84,null,null,null,null,null,null,"CHECKBOX","ckWorkforceEmpGrowth","Boolean",null,"WorkforceEmpGrowth",false,null,null,6,{"$f":"IF(M87 = TRUE, P87, 0)","v":0}]
[85,null,null,null,null,null,null,"CHECKBOX","ckWorkforceLongCommute","Boolean",null,"WorkforceLongCommute",false,null,null,3,{"$f":"IF(M88 = TRUE, P88, 0)","v":0}]
[86,null,null,"Location Efficiency",null,null,null,null,null,null,null,"",null,1,9,null,null,{"$f":"SUM(Q92:Q115)","v":0}]
[87,null,null,null,"Twin Cities metropolitan area",null,null,null,null,null,null,""]
[88,null,null,null,null,"Access to Transit",null,null,null,null,null,""]
[89,null,null,null,null,null,null,"CHECKBOX","ckMetroTransitLRTBRT","Boolean",null,"MetroTransitLRTBRT",false,null,null,7,{"$f":"IF(M92 = TRUE, P92, 0)","v":0}]
[90,null,null,null,null,null,null,"CHECKBOX","ckMetroTransitHiFrequency","Boolean",null,"MetroTransitHiFrequency",false,null,null,4,{"$f":"IF(M93 = TRUE, P93, 0)","v":0}]
[91,null,null,null,null,null,null,"CHECKBOX","ckMetroHighSrvPublicTrans","Boolean",null,"MetroHighSrvPublicTrans",false,null,null,2,{"$f":"IF(M94 = TRUE, P94, 0)","v":0}]
[92,null,null,null,null,null,null,"CHECKBOX","ckMetroExpressBusRoute","Boolean",null,"MetroExpressBusRoute",false,null,null,2,{"$f":"IF(M95 = TRUE, P95, 0)","v":0}]
[93,null,null,null,null,null,null,"CHECKBOX","ckMetroParkAndRide","Boolean",null,"MetroParkAndRide",false,null,null,2,{"$f":"IF(M96 = TRUE, P96, 0)","v":0}]
[94,null,null,null,null,"Walkability",null,null,null,null,null,""]
[95,null,null,null,null,null,null,"CHECKBOX","ckMetroWalkScore70","Boolean",null,"MetroWalkScore70",false,null,null,2,{"$f":"IF(M98 = TRUE, P98, 0)","v":0}]
[96,null,null,null,null,null,null,"CHECKBOX","ckMetroWalkScore50","Boolean",null,"MetroWalkScore50",false,null,null,1,{"$f":"IF(M99 = TRUE, P99, 0)","v":0}]
[97,null,null,null,"Greater Minnesota",null,null,null,null,null,null,""]
[98,null,null,null,null,"Access to Transit",null,null,null,null,null,""]
[99,null,null,null,null,null,null,"CHECKBOX","ckGrtMnFixedOneQtrMile","Boolean",null,"GrtMnFixedOneQtrMile",false,null,null,7,{"$f":"IF(M102 = TRUE, P102, 0)","v":0}]
[100,null,null,null,null,null,null,"CHECKBOX","ckGrtMnFixedOneHalfMile","Boolean",null,"GrtMnFixedOneHalfMile",false,null,null,4,{"$f":"IF(M103 = TRUE, P103, 0)","v":0}]
[101,null,null,null,null,null,null,"CHECKBOX","ckGrtMnFixedExpressBusRoute","Boolean",null,"GrtMnFixedExpressBusRoute",false,null,null,4,{"$f":"IF(M104 = TRUE, P104, 0)","v":0}]
[102,null,null,null,null,"Walkability",null,null,null,null,null,""]
[103,null,null,null,null,null,null,"CHECKBOX","ckGrtMnFixedWalkScore70","Boolean",null,"GrtMnFixedWalkScore70",false,null,null,2,{"$f":"IF(M106 = TRUE, P106, 0)","v":0}]
[104,null,null,null,null,null,null,"CHECKBOX","ckGrtMnFixedWalkScore50","Boolean",null,"GrtMnFixedWalkScore50",false,null,null,1,{"$f":"IF(M107 = TRUE, P107, 0)","v":0}]
[105,null,null,null,"Rural and Small Urban Areas",null,null,null,null,null,null,""]
[106,null,null,null,null,"Access to Transit",null,null,null,null,null,""]
[107,null,null,null,null,null,null,"CHECKBOX","ckGtrMNNoFixedRideOneHour","Boolean",null,"GtrMNNoFixedRideOneHour",false,null,null,7,{"$f":"IF(M110 = TRUE, P110, 0)","v":0}]
[108,null,null,null,null,null,null,"CHECKBOX","ckGtrMNNoFixedRideSameDay","Boolean",null,"GtrMNNoFixedRideSameDay",false,null,null,4,{"$f":"IF(M111 = TRUE, P111, 0)","v":0}]
[109,null,null,null,null,null,null,"CHECKBOX","ckGtrMNNoFixedLowService","Boolean",null,"GtrMNNoFixedLowService",false,null,null,2,{"$f":"IF(M112 = TRUE, P112, 0)","v":0}]
[110,null,null,null,null,"Walkability",null,null,null,null,null,""]
[111,null,null,null,null,null,null,"CHECKBOX","ckGrtMnNoFixedWalkScore50","Boolean",null,"GrtMnNoFixedWalkScore50",false,null,null,2,{"$f":"IF(M114 = TRUE, P114, 0)","v":0}]
[112,null,null,null,null,null,null,"CHECKBOX","ckGrtMnNoFixedWalkScore35","Boolean",null,"GrtMnNoFixedWalkScore35",false,null,null,1,{"$f":"IF(M115 = TRUE, P115, 0)","v":0}]
[113,null,"Supporting Community and Economic Development",null,null,null,null,null,null,null,null,"",null,1,21,null,null,{"$f":"SUM(Q118:Q126)","v":0}]
[114,null,null,"Planned Community Development",null,null,null,null,null,null,null,""]
[115,null,null,null,null,null,null,"CHECKBOX","ckPlannedCommunityDev","Boolean",null,"PlannedCommunityDev",false,null,null,3,{"$f":"IF(M118 = TRUE, P118, 0)","v":0}]
[116,null,null,"Eventual Tenant Ownership",null,null,null,null,null,null,null,""]
[117,null,null,null,null,null,null,"CHECKBOX","ckEventualTenantOwnership","Boolean",null,"EventualTenantOwnership",false,null,null,1,{"$f":"IF(M120 = TRUE, P120, 0)","v":0}]
[118,null,null,"Rural/Tribal",null,null,null,null,null,null,null,""]
[119,null,null,null,null,null,null,"CHECKBOX","ckRuralTribalDesignatedArea","Boolean",null,"RuralTribalDesignatedArea",false,null,null,10,{"$f":"IF(M122 = TRUE, P122, 0)","v":0}]
[120,null,null,"QCT/Community Revitalization and Tribal Equivalent Areas",null,null,null,null,null,null,null,""]
[121,null,null,null,null,null,null,"CHECKBOX","ckQCTorTribalEquivalent","Boolean",null,"QCTorTribalEquivalent",false,null,null,3,{"$f":"IF(M124 = TRUE, P124, 0)","v":0}]
[122,null,null,"Minority-owned/Women-owned Business Enterprise (MBE/WBE) ",null,null,null,null,null,null,null,""]
[123,null,null,null,null,null,null,"CHECKBOX","ckMBEWBE","Boolean",null,"MBEWBE",false,null,null,4,{"$f":"IF(M126 = TRUE, P126, 0)","v":0}]
[124,null,"Preservation",null,null,null,null,null,null,null,null,"",null,5,30,null,null,{"$f":"SUM(Q134:Q148)","v":0}]
[125,null,null,"Thresholds",null,null,null,null,null,null,null,""]
[126,null,null,null,null,null,null,"CHECKBOX","ckLossDuetoMarketConversion","Boolean",null,"LossDuetoMarketConversion",false]
[127,null,null,null,null,null,null,"CHECKBOX","ckLossDuetoCriticalPhysical","Boolean",null,"LossDuetoCriticalPhysical",false]
[128,null,null,null,null,null,null,"CHECKBOX","ckLossDuetoOwnershipCap","Boolean",null,"LossDuetoOwnershipCap",false]
[129,null,null,"Scoring",null,null,null,null,null,null,null,""]
[130,null,null,null,"Existing Federally Assisted Units",null,null,null,null,null,null,"",null,5,30]
[131,null,null,null,null,null,null,"CHECKBOX","ckExistingFedAssistUnits100","Boolean",null,"ExistingFedAssistUnits100",false,null,null,30,{"$f":"IF(M134 = TRUE, P134, 0)","v":0}]
[132,null,null,null,null,null,null,"CHECKBOX","ckExistingFedAssistUnits99","Boolean",null,"ExistingFedAssistUnits99",false,null,null,22,{"$f":"IF(M135 = TRUE, P135, 0)","v":0}]
[133,null,null,null,null,null,null,"CHECKBOX","ckExistingFedAssistUnits75","Boolean",null,"ExistingFedAssistUnits75",false,null,null,15,{"$f":"IF(M136 = TRUE, P136, 0)","v":0}]
[134,null,null,null,null,null,null,"CHECKBOX","ckExistingFedAssistUnits50","Boolean",null,"ExistingFedAssistUnits50",false,null,null,10,{"$f":"IF(M137 = TRUE, P137, 0)","v":0}]
[135,null,null,null,null,null,null,"CHECKBOX","ckExistingFedAssistUnits25","Boolean",null,"ExistingFedAssistUnits25",false,null,null,5,{"$f":"IF(M138 = TRUE, P138, 0)","v":0}]
[136,null,null,null,"Partially Assisted Projects",null,null,null,null,null,null,""]
[137,null,null,null,null,null,null,"CHECKBOX","ckPartialFedAssistUnits99","Boolean",null,"PartialFedAssistUnits99",false,null,null,30,{"$f":"IF(M140 = TRUE, P140, 0)","v":0}]
[138,null,null,null,null,null,null,"CHECKBOX","ckPartialFedAssistUnits75","Boolean",null,"PartialFedAssistUnits75",false,null,null,20,{"$f":"IF(M141 = TRUE, P141, 0)","v":0}]
[139,null,null,null,null,null,null,"CHECKBOX","ckPartialFedAssistUnits25","Boolean",null,"PartialFedAssistUnits25",false,null,null,10,{"$f":"IF(M142 = TRUE, P142, 0)","v":0}]
[140]
[null,null,null,null,"Existing Federally Assisted Units Tier 2"]
[null,null,null,null,null,null,null,"CHECKBOX","ckExistingFedAssistanceTier2","Boolean",null,"ExistingFedAssistanceTier2",false,null,null,6,{"$f":"IF(M145 = TRUE, P145, 0)","v":0}]
[141,null,null,null,null,null,null,"SCR_VAL",null,null,0,"FedAssistUnitsUnitsValue",{"$f":"IF('Cover Sheet Links'!SelectedScoresheet = \"Competitive\", Competitive!DevFedAssistUnitsUnitsValue, IF('Cover Sheet Links'!SelectedScoresheet=\"Scoresheet\", Scoresheet!DevFedAssistUnitsUnitsValue, \"\"))","v":0}]
[142,null,null,null,"Critical Affordable Units at Risk of Loss",null,null,null,null,null,null,"",null,0,6]
[143,null,null,null,null,null,null,"CHECKBOX","ckCriticalAffordableUnits+7853:147","Boolean",null,"CriticalAffordableUnits",false,null,null,6,{"$f":"IF(M148 = TRUE, P148, 0)","v":0}]
[144,null,"Efficient Use of Scarce Resources and Leverage",null,null,null,null,null,null,null,null,"",null,1,38,null,null,{"$f":"SUM(Q154:Q177,CostContainmentTotalScore)","v":0}]
[145,null,null,"Financial Readiness to Proceed",null,null,null,null,null,null,null,"",null,4,16,null,null,{"$f":"SUM(Q154:Q160)","v":0}]
[146,null,null,null,null,null,null,"SCR_VAL",null,"Currency",0,"FinancialReadinessEligibleFunding",{"$f":"IF('Cover Sheet Links'!SelectedScoresheet = \"Competitive\", Competitive!DevFinancialReadinessEligibleFunding, IF('Cover Sheet Links'!SelectedScoresheet=\"Scoresheet\", Scoresheet!DevFinancialReadinessEligibleFunding, \"\"))","v":0}]
[147,null,null,null,null,null,null,"SCR_VAL",null,"Currency",0,"FinancialReadinessDevelopmentCost",{"$f":"IF('Cover Sheet Links'!SelectedScoresheet = \"Competitive\", Competitive!DevFinancialReadinessDevelopmentCost, IF('Cover Sheet Links'!SelectedScoresheet=\"Scoresheet\", Scoresheet!DevFinancialReadinessDevelopmentCost, \"\"))","v":0}]
[148,null,null,null,null,null,null,"SCR_VAL",null,"Percent",1,"FinancialReadinessFundsCommitted",{"$f":"IF('Cover Sheet Links'!SelectedScoresheet = \"Competitive\", Competitive!DevFinancialReadinessFundsCommitted, IF('Cover Sheet Links'!SelectedScoresheet=\"Scoresheet\", Scoresheet!DevFinancialReadinessFundsCommitted, \"\"))","v":0}]
[149,null,null,null,null,null,null,"CHECKBOX","ckHTCFinancialReadiness70","Boolean",null,"FinancialReadiness70",false,null,null,16,{"$f":"IF(M154 = TRUE, P154, 0)","v":0}]
[150,null,null,null,null,null,null,"CHECKBOX","ckHTCFinancialReadiness60","Boolean",null,"FinancialReadiness60",false,null,null,14,0]
[151,null,null,null,null,null,null,"CHECKBOX","ckHTCFinancialReadiness50","Boolean",null,"FinancialReadiness50",false,null,null,12,0]
[152,null,null,null,null,null,null,"CHECKBOX","ckHTCFinancialReadiness40","Boolean",null,"FinancialReadiness40",false,null,null,10,0]
[153,null,null,null,null,null,null,"CHECKBOX","ckHTCFinancialReadiness30","Boolean",null,"FinancialReadiness30",false,null,null,8,0]
[154,null,null,null,null,null,null,"CHECKBOX","ckHTCFinancialReadiness20","Boolean",null,"FinancialReadiness20",false,null,null,6,0]
[155,null,null,null,null,null,null,"CHECKBOX","ckHTCFinancialReadiness10","Boolean",null,"FinancialReadiness10",false,null,null,4,0]
[157,null,null,"Other Contributions",null,null,null,null,null,null,null,"",null,2,10,null,null,{"$f":"SUM(Q165:Q169)","v":0}]
[158,null,null,null,null,null,null,"SCR_VAL",null,"Currency",0,"OtherContributionsFunding",{"$f":"IF('Cover Sheet Links'!SelectedScoresheet = \"Competitive\", Competitive!DevOtherContributionsFunding, IF('Cover Sheet Links'!SelectedScoresheet=\"Scoresheet\", Scoresheet!DevOtherContributionsFunding, \"\"))","v":0}]
[159,null,null,null,null,null,null,"SCR_VAL",null,"Currency",0,"OtherContributionsDevelopmentCost",{"$f":"IF('Cover Sheet Links'!SelectedScoresheet = \"Competitive\", Competitive!DevOtherContributionsDevelopmentCost, IF('Cover Sheet Links'!SelectedScoresheet=\"Scoresheet\", Scoresheet!DevOtherContributionsDevelopmentCost, \"\"))","v":0}]
[160,null,null,null,null,null,null,"SCR_VAL",null,"Percent",1,"OtherFundsCommittedPercentage",{"$f":"IF('Cover Sheet Links'!SelectedScoresheet = \"Competitive\", Competitive!DevOtherFundsCommittedPercentage, IF('Cover Sheet Links'!SelectedScoresheet=\"Scoresheet\", Scoresheet!DevOtherFundsCommittedPercentage, \"\"))","v":0}]
[161,null,null,null,null,null,null,"CHECKBOX","ckOtherFunds20","Boolean",null,"OtherFunds20",false,null,null,10,{"$f":"IF(M165 = TRUE, P165, 0)","v":0}]
[162,null,null,null,null,null,null,"CHECKBOX","ckOtherFunds15","Boolean",null,"OtherFunds15",false,null,null,8,0]
[163,null,null,null,null,null,null,"CHECKBOX","ckOtherFunds10","Boolean",null,"OtherFunds10",false,null,null,6,0]
[164,null,null,null,null,null,null,"CHECKBOX","ckOtherFunds5","Boolean",null,"OtherFunds5",false,null,null,4,0]
[165,null,null,null,null,null,null,"CHECKBOX","ckOtherFunds2","Boolean",null,"OtherFunds2",false,null,null,2,0]
[167,null,null,"Intermediary Costs",null,null,null,null,null,null,null,"",null,1,6,null,null,{"$f":"SUM(Q174:Q177)","v":0}]
[168,null,null,null,null,null,null,"SCR_VAL",null,"Currency",0,"IntermediaryCosts",{"$f":"IF('Cover Sheet Links'!SelectedScoresheet = \"Competitive\", Competitive!DevIntermediaryCosts, IF('Cover Sheet Links'!SelectedScoresheet=\"Scoresheet\", Scoresheet!DevIntermediaryCosts, \"\"))","v":0}]
[169,null,null,null,null,null,null,"SCR_VAL",null,"Currency",0,"IntermediaryDevelopmentCost",{"$f":"IF('Cover Sheet Links'!SelectedScoresheet = \"Competitive\", Competitive!DevIntermediaryDevelopmentCost, IF('Cover Sheet Links'!SelectedScoresheet=\"Scoresheet\", Scoresheet!DevIntermediaryDevelopmentCost, \"\"))","v":0}]
[170,null,null,null,null,null,null,"SCR_VAL",null,"Percent",1,"IntermediaryPercentage",{"$f":"IF('Cover Sheet Links'!SelectedScoresheet = \"Competitive\", Competitive!DevIntermediaryPercentage, IF('Cover Sheet Links'!SelectedScoresheet=\"Scoresheet\", Scoresheet!DevIntermediaryPercentage, \"\"))","v":0}]
[171,null,null,null,null,null,null,"CHECKBOX","ckHTCIntermediaryCost15","Boolean",null,"IntermediaryCost15",false,null,null,6,{"$f":"IF(M174 = TRUE, P174, 0)","v":0}]
[172,null,null,null,null,null,null,"CHECKBOX","ckHTCIntermediaryCost20","Boolean",null,"IntermediaryCost20",false,null,null,3,{"$f":"IF(M175 = TRUE, P175, 0)","v":0}]
[173,null,null,null,null,null,null,"CHECKBOX","ckHTCIntermediaryCost25","Boolean",null,"IntermediaryCost25",false,null,null,2,{"$f":"IF(M176 = TRUE, P176, 0)","v":0}]
[174,null,null,null,null,null,null,"CHECKBOX","ckHTCIntermediaryCost30","Boolean",null,"IntermediaryCost30",false,null,null,1,{"$f":"IF(M177 = TRUE, P177, 0)","v":0}]
[176,null,null,"Cost Containment",null,null,null,null,null,null,null,"",null,0,6]
[177,null,null,null,null,null,null,"CHECKBOX","ckCostContainment","Boolean",null,"CostContainment",false,null,null,6,{"$f":"IF(M179 = TRUE, P179, 0)","v":0}]
[178,null,"Building Characteristics",null,null,null,null,null,null,null,null,"",null,1,6,null,null,{"$f":"SUM(Q182:Q190)","v":0}]
[179,null,null,"Universal Design",null,null,null,null,null,null,null,"",null,1,3,null,null,{"$f":"SUM(Q182:Q183)","v":0}]
[180,null,null,null,null,null,null,"CHECKBOX","ckElevator","Boolean",null,"Elevator",false,null,null,3,{"$f":"IF(M182 = TRUE, P182, 0)","v":0}]
[181,null,null,null,null,null,null,"CHECKBOX","ckNonElevator","Boolean",null,"NonElevator",false,null,null,3,{"$f":"IF(M183 = TRUE, P183, 0)","v":0}]
[182,null,null,null,null,null,null,"SCR_VAL",null,"Fixed",0,"UniversalDesignUnitsValue",{"$f":"IF('Cover Sheet Links'!SelectedScoresheet = \"Competitive\", Competitive!DevUniversalDesignUnitsValue, IF('Cover Sheet Links'!SelectedScoresheet=\"Scoresheet\", Scoresheet!DevUniversalDesignUnitsValue, \"\"))","v":0}]
[183,null,null,"Smoke Free Buildings",null,null,null,null,null,null,null,"",null,null,1]
[184,null,null,null,null,null,null,"CHECKBOX","ckSmokeFreeBuildings","Boolean",null,"SmokeFreeBuildings",false,null,null,1,{"$f":"IF(M186 = TRUE, P186, 0)","v":0}]
[null,null,"Green Communities Criteria",null,null,null,null,null,null,null,null,null,null,1,2]
[null,null,null,"Green Communities Criteria",null,null,null,null,null,null,null,null,null,null,null,null,null,{"$f":"SUM(Q189:Q190)","v":0}]
[null,null,null,null,null,null,null,"CHECKBOX","ckGreenCommunities3x","Boolean",null,"GreenCommunities3x",false,null,null,2,{"$f":"IF(M189 = TRUE, P189, 0)","v":0}]
[null,null,null,null,null,null,null,"CHECKBOX","ckGreenCommunities2x","Boolean",null,"GreenCommunities2x",false,null,null,1,{"$f":"IF(M190 = TRUE, P190, 0)","v":0}]
[185,null,"Unacceptable Practices",null,null,null,null,null,null,null,null,""]
[186,null,null,"Unacceptable Practices",null,null,null,null,null,null,null,"",null,-25,-4]
[187,null,null,null,null,null,null,"SCR_VAL",null,"Fixed",0,"UnacceptablePractices",{"$f":"IF('Cover Sheet Links'!SelectedScoresheet = \"Scoresheet\", Scoresheet!DevUnacceptablePractices, Competitive!DevUnacceptablePractices)","v":0},null,null,null,{"$f":"UnacceptablePractices","v":0}]
[null,null,null,null,null,null,null,null,null,null,null,null,null,null,null,null,null,{"$f":"SUM(R180,R149,R116,R74,R48,R25,R127,UnacceptablePracticesTotalScore)","v":0}]
[]
[null,null,null,null,null,null,null,null,"Atlakvitha5En5Gronlenzka"]

{"sheet":"TOC Data","index":4,"n_rows":71,"n_cols":4,"rows_kept":71,"cut":false,"hidden":true,"merged":[]}
["Minimum Threshold Requirements",null,"chkClrMTRMetroSRO",-6]
["Strategic Priority Thresholds",null,"chkClrSPTAccessToFixedTransit",-9]
["Selection Criteria",null,"chkClrLargeFamily2Bedroom",-6]
["Greatest Need Tenant Targeting",null,"chkClrLargeFamily2Bedroom",-5]
[null,"Large Family","chkClrLargeFamily2Bedroom",-4]
[null,"Permanent Supportive Housing - Homeless","chkClrSupportiveHousing20Units",-7]
[null,"People with Disabilities","chkClrDisabilities15Percent",-5]
["Serves Lowest Income for Long Durations",null,"chkClrServesLowestIncOpt1",-11]
[null,"Serves Lowest Income Tenants","chkClrServesLowestIncOpt1",-10]
[null,"Rental Assistance","chkClrRA100PercentUnits",-14]
[null,"Long Term Affordability","chkClrLongTermAffordability40",-4]
["Areas of Opportunity",null,"chkClrEconIntegrationMixed",-5]
[null,"Economic Integration","chkClrEconIntegrationMixed",-4]
[null,"Access to Higher Performing Schools","chkClrAccessToSchools",-6]
[null,"Workforce Housing Communities","chkClrWorkforceTopJobCenter",-4]
[null,"Location Efficiency - Metro","chkClrMetroTransitLRTBRT",-6]
[null,"Location Efficiency - Greater MN Urbanized","chkClrGrtMnFixedOneQtrMile",-6]
[null,"Location Efficiency - Greater MN Rural","chkClrGtrMNNoFixedRideOneHour",-4]
["Supporting Community and Economic Development",null,"chkClrPlannedCommunityDev",-4]
[null,"Community Development Initiative","chkClrPlannedCommunityDev",-3]
[null,"Eventual Tenant Ownership","chkClrEventualTenantOwnership",-2]
[null,"Rural/Tribal","chkClrRuralTribalDesignatedArea",-5]
[null,"QCT/Community Revitalization","chkClrQCTorTribalEquivalent",-2]
[null,"Minority-owned/Women-owned Business Enterprise","chkClrMBEWBE",-2]
["Preservation",null,"chkClrLossDuetoMarketConversion",-8]
[null,"Preservation Thresholds","chkClrLossDuetoMarketConversion",-4]
[null,"Preservation Scoring Criteria","chkClrExistingFedAssistUnits100",-9]
["Efficient Use of Scare Resources",null,"DevFinancialReadinessEligibleFunding",-10]
[null,"Financial Readiness to Proceed","DevFinancialReadinessEligibleFunding",-9]
[null,"Other Contributions","DevOtherContributionsFunding",-6]
[null,"Intermediary Costs","DevIntermediaryCosts",-6]
[null,"Cost Containment","chkClrCostContainment",-2]
["Building Characteristics",null,"chkClrElevator",-7]
[null,"Universal Design","chkClrElevator",-6]
[null,"Smoke Free Buildings","chkClrSmokeFreeBuildings",-2]
["Unacceptable Practices",null,"DevUnacceptablePractices",-2]
[]
[]
[]
["Strategic Priority Thresholds",null,"chkClrSPTAccessToFixedTransit",-9]
["Selection Criteria",null,"chkClrLargeFamily2Bedroom",-6]
["Greatest Need Tenant Targeting",null,"chkClrLargeFamily2Bedroom",-5]
[null,"Large Family","chkClrLargeFamily2Bedroom",-4]
[null,"Permanent Supportive Housing - Homeless","chkClrSupportiveHousing20Units",-7]
[null,"People with Disabilities","chkClrDisabilities15Percent",-5]
["Serves Lowest Income for Long Durations",null,"chkClrServesLowestIncOpt1",-11]
[null,"Serves Lowest Income Tenants","chkClrServesLowestIncOpt1",-10]
[null,"Rental Assistance","chkClrRA100PercentUnits",-14]
["Areas of Opportunity",null,"chkClrEconIntegrationMixed",-5]
[null,"Economic Integration","chkClrEconIntegrationMixed",-4]
[null,"Access to Higher Performing Schools","chkClrAccessToSchools",-6]
[null,"Workforce Housing Communities","chkClrWorkforceTopJobCenter",-4]
[null,"Location Efficiency - Metro","chkClrMetroTransitLRTBRT",-6]
[null,"Location Efficiency - Greater MN Urbanized","chkClrGrtMnFixedOneQtrMile",-6]
[null,"Location Efficiency - Greater MN Rural","chkClrGtrMNNoFixedRideOneHour",-4]
["Supporting Community and Economic Development",null,"chkClrPlannedCommunityDev",-4]
[null,"Community Development Initiative","chkClrPlannedCommunityDev",-3]
[null,"Rural/Tribal","chkClrRuralTribalDesignatedArea",-5]
[null,"QCT/Community Revitalization","chkClrQCTorTribalEquivalent",-2]
[null,"Minority-owned/Women-owned Business Enterprise","chkClrMBEWBE",-2]
["Preservation",null,"chkClrLossDuetoMarketConversion",-8]
[null,"Preservation Thresholds","chkClrLossDuetoMarketConversion",-4]
[null,"Preservation Scoring Criteria","chkClrExistingFedAssistUnits100",-9]
["Efficient Use of Scare Resources",null,"DevFinancialReadinessEligibleFunding",-10]
[null,"Financial Readiness to Proceed","DevFinancialReadinessEligibleFunding",-9]
[null,"Other Contributions","DevOtherContributionsFunding",-6]
[null,"Intermediary Costs","DevIntermediaryCosts",-6]
[null,"Cost Containment","chkClrCostContainment",-2]
["Building Characteristics",null,"chkClrElevator",-7]
[null,"Universal Design","chkClrElevator",-6]
[null,"Smoke Free Buildings","chkClrSmokeFreeBuildings",-2]

{"sheet":"Dropdown Lists","index":5,"n_rows":23,"n_cols":3,"rows_kept":23,"cut":false,"hidden":true,"merged":[]}
["High Priority Homeless List",null,"Unacceptable Practices list"]
["Families with Children",null,-4]
["Youth Singles",null,-5]
["Youth with Children",null,-6]
["Single Adults",null,-7]
[null,null,-8]
[null,null,-9]
[null,null,-10]
[null,null,-11]
[null,null,-12]
[null,null,-13]
[null,null,-14]
[null,null,-15]
[null,null,-16]
[null,null,-17]
[null,null,-18]
[null,null,-19]
[null,null,-20]
[null,null,-21]
[null,null,-22]
[null,null,-23]
[null,null,-24]
[null,null,-25]

{"sheet":"Cover Sheet Links","index":6,"n_rows":10,"n_cols":7,"rows_kept":10,"cut":false,"hidden":true,"merged":[]}
["Workbook Name:","2020 Self Scoring Workbook",null,null,null,null,"Workbook named range is used by Pentaho extraction job"]
["Workbook Version:","2020 02 07 Ver 1",null,null,null,null,"Version named range is used by Pentaho extraction job"]
[]
[]
["Funding Type Selected"]
["ckCompOnly","Competitive","Competitive","COMPScoresheet",false,"4Percent","FundingTypeSelected named range is used by Pentaho extraction job"]
["ckCompAndDef","Competitive","Competitive","COMPAndDefScoresheet",false,"HTC4"]
["ckDEFOnly","Competitive","Deferred","DEFOnlyScoresheet",false,"Scoresheet"]
["ck4PercentAndDef","Scoresheet","HTC4andDef","4PercentAndDEFScoresheet",false]
["ck4Percent","Scoresheet","HTC4","4Percent",false]

{"sheet":"Competitve Information","index":7,"n_rows":197,"n_cols":22,"rows_kept":197,"cut":false,"hidden":true,"merged":[]}
["Address",null,"Row","R1C1 Address",null,null,"Range Name",null,"Section","Sub Section","Checkbox Names",null,"Checkbox Link","Address","Row","Column",null,null,null,"9% and 9% w/Deferred"]
["$A$1:$S$2","A",1,"=Competitive!R1C1:R2C19",null,"Form Header","Header_Deferred",null,null,null,null,null,null,null,null,null,null,null,null,null,"Indicates enabled for any SPT checkbox selection"]
["$A$3:$S$4","A",3,"=Competitive!R3C1:R4C19",null,"Form Header","Header_Competitive",null,null,null,null,null,null,null,null,null,null,null,null,null,"Indicates enabled for listed SPT checkbox selection"]
["$I$9",null,null,"=Competitive!R9C9",null,"Project Information","ApplicationNumber",null,null,null,null,null,null,null,null,null,null,null,null,null,null,"SPTSupportiveHsg"]
["$I$11",null,null,"=Competitive!R11C9",null,"Project Information","DevelopmentCity",null,null,null,null,null,null,null,null,null,null,null,null,null,null,"SPTEconomicIntegration"]
["$I$10",null,null,"=Competitive!R10C9",null,"Project Information","DevelopmentLocation",null,null,null,null,null,null,null,null,null,null,null,null,null,null,"SPTPreservation"]
["$I$7",null,null,"=Competitive!R7C9",null,"Project Information","DevelopmentName",null,null,null,null,null,null,null,null,null,null,null,null,null,null,"SPTPlannedCommunity"]
["$I$8",null,null,"=Competitive!R8C9",null,"Project Information","DevelopmentNumber"]
["$A$17:$S$45","A",null,"=Competitive!R17C1:R45C19",null,"Funding Type Specific Language","Worksheet_CompetitiveLanguage_Instructions",null,null,null,null,null,null,null,null,null,null,17,null,"Deferred Only"]
["$A$46:$S$56","A",null,"=Competitive!R46C1:R56C19",null,"Funding Type Specific Language","Worksheet_DeferredLanguage_Instructions",null,null,null,null,null,null,null,null,null,null,46,null,null,"Indicates enabled for any SPT checkbox selection"]
["$A$57:$S$100","A",null,"=Competitive!R57C1:R100C19",null,"Funding Type Specific Language","Worksheet_CompetitiveLanguage_MTR",null,null,"Minimum Threshold Help Text",null,null,null,null,null,null,null,57,null,null,"Indicates enabled for listed SPT checkbox selection"]
["$C$64","C",63,"=Competitive!R64C3",null,"Checkbox Back Color","chkClrMTRMetroSRO","Check",null,"Minimum Threshold Requirements","ckMTRMetroSRO",null,"MTRMetroSRO",{"$f":"\"$\" & Q12 & \"$\" & O12","v":"$B$63"},63,2,"B",64,null,null,null,"SPTSupportiveHsg"]
["$C$67","C",67,"=Competitive!R67C3",null,"Checkbox Back Color","chkClrMTRMetroLargeFamily",null,null,null,"ckMTRMetroLargeFamily",null,"MTRMetroLargeFamily","$C$67",67,3,"C",67,null,null,null,"SPTEconomicIntegration"]
["$C$70","C",70,"=Competitive!R70C3",null,"Checkbox Back Color","chkClrMTRMetroRehabilitation",null,null,null,"ckMTRMetroRehabilitation",null,"MTRMetroRehabilitation","$C$70",70,3,"C",70,null,null,null,"SPTPreservation"]
["$C$74","C",74,"=Competitive!R74C3",null,"Checkbox Back Color","chkClrMTRShortSupply",null,null,null,"ckMTRShortSupply",null,"MTRShortSupply","$C$74",74,3,"C",74,null,null,null,"SPTPlannedCommunity"]
["$B$76","B",76,"=Competitive!R76C2",null,"Checkbox Back Color","chkClrMTRNotRestricted",null,null,null,"ckMTRNotRestricted",null,"MTRNotRestricted","$A$76",76,1,"A",76]
["$C$95","C",95,"=Competitive!R95C3",null,"Checkbox Back Color","chkClrMTRPreservation",null,null,null,"ckMTRPreservation",null,"MTRPreservation","$C$95",95,3,"C",95]
["$C$100","C",100,"=Competitive!R100C3",null,"Checkbox Back Color","chkClrMTRRuralDevelopment",null,null,null,"ckMTRRuralDevelopment",null,"MTRRuralDevelopment","$C$100",100,3,"C",100]
["$A$106:$P$107","A",null,"=Competitive!R106C1:R107C16",null,"Section Header","HelpText_SPTInstructions",null,null,null,null,null,null,null,null,null,null,106]
["$A$107","A",null,"=Competitive!R107C1",null,"Help Text","HelpText_SPT",null,null,null,null,null,null,null,null,null,null,107]
["$A$107,$D$128,$D$138,$D$144,$D$150,$C$175,$C$217,$E$348,$C$466,$B$529","A",null,"=Competitive!R107C1,Competitive!R128C4,Competitive!R138C4,Competitive!R144C4,Competitive!R150C4,Competitive!R175C3,Competitive!R217C3,Competitive!R348C5,Competitive!R466C3,Competitive!R529C2",null,"Help Text","HelpText_SPT_AllSPTandSPTQuestionHelpText",null,null,null,null,null,null,null,null,null,null,107]
["$A$107,$D$128,$D$138,$D$144,$D$150","A",null,"=Competitive!R107C1,Competitive!R128C4,Competitive!R138C4,Competitive!R144C4,Competitive!R150C4",null,"Help Text","HelpText_SPT_AllSPTHelpText",null,null,null,null,null,null,null,null,null,null,107]
[null,null,null,null,null,null,"Worksheet_StrategicPriorityThresholds",null,null,"Strategic Priority Thresholds"]
["$C$113","C",113,"=Competitive!R113C3",null,"Checkbox Back Color","chkClrSPTAccessToFixedTransit",null,null,null,"ckSPTAccessToFixedTransit",null,"SPTAccessToFixedTransit",{"$f":"\"$\" & Q24 & \"$\" & O24","v":"$C$113"},113,3,"C",113]
["$C$117","C",117,"=Competitive!R117C3",null,"Checkbox Back Color","chkClrSPTGreaterMNWorkforceHsg",null,null,null,"ckSPTGreaterMNWorkforceHsg",null,"SPTGreaterMNWorkforceHsg",{"$f":"\"$\" & Q25 & \"$\" & O25","v":"$C$117"},117,3,"C",117]
["$C$126","C",126,"=Competitive!R126C3",null,"Checkbox Back Color","chkClrSPTEconomicIntegration",null,null,null,"ckSPTEconomicIntegration",null,"SPTEconomicIntegration",{"$f":"\"$\" & Q26 & \"$\" & O26","v":"$C$126"},126,3,"C",126]
["$D$128","D",null,"=Competitive!R128C4",null,"Help Text","HelpText_SPT_EconomicIntegration",null,null,null,null,null,null,null,null,null,null,128]
["$C$132","C",132,"=Competitive!R132C3",null,"Checkbox Back Color","chkClrSPTTribal",null,null,null,"ckSPTTribal",null,"SPTTribal",{"$f":"\"$\" & Q28 & \"$\" & O28","v":"$C$132"},132,3,"C",132]
["$C$136","C",136,"=Competitive!R136C3",null,"Checkbox Back Color","chkClrSPTPlannedCommunity",null,null,null,"ckSPTPlannedCommunity",null,"SPTPlannedCommunity",{"$f":"\"$\" & Q29 & \"$\" & O29","v":"$C$136"},136,3,"C",136]
["$D$138","D",null,"=Competitive!R138C4",null,"Help Text","HelpText_SPT_PlannedCommunityDevelopment",null,null,null,null,null,null,null,null,null,null,138]
["$C$142","C",142,"=Competitive!R142C3",null,"Checkbox Back Color","chkClrSPTPreservation",null,null,null,"ckSPTPreservation",null,"SPTPreservation",{"$f":"\"$\" & Q31 & \"$\" & O31","v":"$C$142"},142,3,"C",142]
["$D$144","D",147,"=Competitive!R144C4",null,"Help Text","HelpText_SPT_PreservationThresholds",null,null,null,"ckSPTSupportiveHsg",null,"SPTSupportiveHsg",{"$f":"\"$\" & Q32 & \"$\" & O32","v":"$C$147"},147,3,"C",144]
["$C$148","C",null,"=Competitive!R148C3",null,"Checkbox Back Color","chkClrSPTSupportiveHsg",null,null,null,null,null,null,null,null,null,null,148]
["$D$150","D",null,"=Competitive!R150C4",null,"Help Text","HelpText_SPT_SupportiveHousing",null,null,null,null,null,null,null,null,null,null,150]
["$C$155","C",155,"=Competitive!R155C3",null,"Checkbox Back Color","chkClrSPTProposalType",null,null,null,"ckSPTProposalType",null,"SPTProposalType",{"$f":"\"$\" & Q35 & \"$\" & O35","v":"$C$155"},155,3,"C",155]
[null,null,null,null,null,null,"Worksheet_DeferredLanguage_SPTProposalType"]
[null,null,null,null,null,null,"Worksheet_CompetitiveLanguage_SPTProposalType"]
[null,null,null,null,null,null,"Worksheet_CompetitiveLanguage_SPTProposalTypeCheckbox"]
[null,null,null,null,null,null,"Worksheet_DeferredLanguage_SPTProposalTypeCheckbox"]
["$A$162","A",null,"=Competitive!R162C1","Worksheet_SelectionCriteriaHeaderText",null,"SelectionCriteriaHeaderText",null,"Greatest Need Tenant Targeting",null,null,null,null,null,null,null,null,162]
["$R$167","R",null,"=Competitive!R167C18",null,"Developer Input","DevLargeFamilyHousing2BedroomUnitsValue","Text",null,null,null,null,null,null,null,null,null,167]
["$R$167:$R$169","R",null,"=Competitive!R167C18:R169C18",null,null,"DevLargeFamilyHousingUnitsValue",null,null,null,null,null,null,null,null,null,null,167]
["$E$168","E",168,"=Competitive!R168C5",null,"Checkbox Back Color","chkClrLargeFamily2Bedroom",null,null,null,"ckLargeFamily2Bedroom",null,"LargeFamily2Bedroom",{"$f":"\"$\" & Q43 & \"$\" & O43","v":"$E$168"},168,5,"E",168]
["$R$168","R",null,"=Competitive!R168C18",null,"Developer Input","DevLargeFamilyHousing3BedroomUnitsValue",null,null,null,null,null,null,null,null,null,null,168]
["$R$168:$R$169","R",null,"=Competitive!R168C18:R169C18",null,null,"DevLargeFamilyHousingGrtMNUnitsValue",null,null,null,null,null,null,null,null,null,null,168]
["$R$169","R",null,"=Competitive!R169C18",null,"Developer Input","DevLargeFamilyHousing4BedroomUnitsValue",null,null,null,null,null,null,null,null,null,null,169]
["$E$170","E",170,"=Competitive!R170C5",null,"Checkbox Back Color","chkClrLargeFamily3Bedroom",null,null,null,"ckLargeFamily3Bedroom",null,"LargeFamily3Bedroom",{"$f":"\"$\" & Q47 & \"$\" & O47","v":"$E$170"},170,5,"E",170]
["$C$175","C",null,"=Competitive!R175C3",null,"Help Text","HelpText_SPTQuestion_PermanentSupportiveHousing",null,null,"Supportive Housing",null,null,null,null,null,null,null,175]
["$R$179,$R$180,$R$182,$R$183","R",null,"=Competitive!R179C18,Competitive!R180C18,Competitive!R182C18,Competitive!R183C18",null,null,"DevSupportiveHousingUnitsValue",null,null,null,null,null,null,null,null,null,null,179]
["$R$179","R",null,"=Competitive!R179C18",null,"Developer Input","DevSupportiveHousingYouthWithChildrenUnitsValue",null,null,null,null,null,null,null,null,null,null,179]
["$R$180","R",null,"=Competitive!R180C18",null,"Developer Input","DevSupportiveHousingYouthUnitsValue",null,null,null,null,null,null,null,null,null,null,180]
["$E$181","E",181,"=Competitive!R181C5",null,"Checkbox Back Color","chkClrSupportiveHousing20Units",null,null,null,"ckSupportiveHousing20Units",null,"SupportiveHousing20Units",{"$f":"\"$\" & Q52 & \"$\" & O52","v":"$E$181"},181,5,"E",181]
["$R$182","R",null,"=Competitive!R182C18",null,"Developer Input","DevSupportiveHousingSingleAdultUnitsValue",null,null,null,null,null,null,null,null,null,null,182]
["$E$183","E",183,"=Competitive!R183C5",null,"Checkbox Back Color","chkClrSupportiveHousing7Units",null,null,null,"ckSupportiveHousing7Units",null,"SupportiveHousing7Units",{"$f":"\"$\" & Q54 & \"$\" & O54","v":"$E$183"},183,5,"E",183]
["$R$183","R",null,"=Competitive!R183C18",null,"Developer Input","DevSupportiveHousingFamiliesUnitsValue",null,null,null,null,null,null,null,null,null,null,183]
["$E$185","E",185,"=Competitive!R185C5",null,"Checkbox Back Color","chkClrSupportiveHousing4Units",null,null,null,"ckSupportiveHousing4Units",null,"SupportiveHousing4Units",{"$f":"\"$\" & Q56 & \"$\" & O56","v":"$E$185"},185,5,"E",185]
["$R$187","R",null,"=Competitive!R187C18",null,"Developer Input","DevSupportiveHousingPriorityUnitsValue",null,null,null,null,null,null,null,null,null,null,187]
["$R$187,$R$188","R",null,"=Competitive!R187C18,Competitive!R188C18",null,null,"DevSupportiveHousingPriorityValues",null,null,null,null,null,null,null,null,null,null,187]
["$R$188","R",null,"=Competitive!R188C18",null,"Developer Input","DevSupportiveHousingPriorityType",null,null,null,null,null,null,null,null,null,null,188]
["$E$192","E",192,"=Competitive!R192C5",null,"Checkbox Back Color","chkClrSupportiveHousingPriority",null,null,null,"ckSupportiveHousingPriority",null,"SupportiveHousingPriority",{"$f":"\"$\" & Q60 & \"$\" & O60","v":"$E$192"},192,5,"E",192]
["$C$211","C",null,"=Competitive!R211C3",null,"Funding Type Specific Language","Worksheet_CompetitiveLanguage_PermanentSupportiveHousing",null,null,null,null,null,null,null,null,null,null,211]
["$C$212","C",null,"=Competitive!R212C3",null,"Funding Type Specific Language","Worksheet_DeferredLanguage_PermanentSupportiveHousing",null,null,null,null,null,null,null,null,null,null,212]
["$C$217","C",null,"=Competitive!R217C3",null,"Help Text","HelpText_SPTQuestion_PeopleWithDisabilities",null,"Serves Lowest Income",null,null,null,null,null,null,null,null,217]
["$R$219","R",null,"=Competitive!R219C18",null,"Developer Input","DevDisabilitiesUnitsValue",null,null,null,null,null,null,null,null,null,null,219]
["$E$221","E",221,"=Competitive!R221C5",null,"Checkbox Back Color","chkClrDisabilities15Percent",null,null,null,"ckDisabilities15Percent",null,"Disabilities15Percent",{"$f":"\"$\" & Q65 & \"$\" & O65","v":"$E$221"},221,5,"E",221]
["$E$223","E",223,"=Competitive!R223C5",null,"Checkbox Back Color","chkClrDisabilities10Percent",null,null,null,"ckDisabilities10Percent",null,"Disabilities10Percent",{"$f":"\"$\" & Q66 & \"$\" & O66","v":"$E$222"},222,5,"E",223]
["$E$225","E",225,"=Competitive!R225C5",null,"Checkbox Back Color","chkClrDisabilities5Percent",null,null,null,"ckDisabilities5Percent",null,"Disabilities5Percent",{"$f":"\"$\" & Q67 & \"$\" & O67","v":"$E$225"},225,5,"E",225]
["$R$265","R",null,"=Competitive!R265C18",null,"Developer Input","DevServesLowestIncUnitsValue",null,null,null,null,null,null,null,null,null,null,265]
["$E$271","E",271,"=Competitive!R271C5",null,"Checkbox Back Color","chkClrServesLowestIncOpt1",null,null,null,"ckServesLowestIncOpt1",null,"ServesLowestIncOpt1",{"$f":"\"$\" & Q69 & \"$\" & O69","v":"$E$271"},271,5,"E",271]
["$E$273","E",273,"=Competitive!R273C5",null,"Checkbox Back Color","chkClrServesLowestIncOpt2",null,null,null,"ckServesLowestIncOpt2",null,"ServesLowestIncOpt2",{"$f":"\"$\" & Q70 & \"$\" & O70","v":"$E$273"},273,5,"E",273]
["$R$292","R",null,"=Competitive!R292C18",null,"Developer Input","DevRAUnitsValue",null,null,null,null,null,null,null,null,null,null,292]
["$E$294","E",294,"=Competitive!R294C5",null,"Checkbox Back Color","chkClrRA100PercentUnits",null,null,null,"ckRA100PercentUnits",null,"RA100PercentUnits",{"$f":"\"$\" & Q72 & \"$\" & O72","v":"$E$294"},294,5,"E",294]
["$E$296","E",296,"=Competitive!R296C5",null,"Checkbox Back Color","chkClrRA51PercentUnits",null,null,null,"ckRA51PercentUnits",null,"RA51PercentUnits","$E$296",296,5,"E",296]
["$E$298","E",298,"=Competitive!R298C5",null,"Checkbox Back Color","chkClrRA20PercentUnits",null,null,null,"ckRA20PercentUnits",null,"RA20PercentUnits","$E$298",298,5,"E",298]
["$E$300","E",300,"=Competitive!R300C5",null,"Checkbox Back Color","chkClrRA10PercentUnits",null,null,null,"ckRA10PercentUnits",null,"RA10PercentUnits","$E$300",300,5,"E",300]
["$E$302","E",302,"=Competitive!R302C5",null,"Checkbox Back Color","chkClrRA5PercentUnits",null,null,null,"ckRA5PercentUnits",null,"RA5PercentUnits","$E$302",302,5,"E",302]
["$E$304","E",304,"=Competitive!R304C5",null,"Checkbox Back Color","chkClrRALessThan5PercentUnits",null,null,null,"ckRALessThan5PercentUnits",null,"RALessThan5PercentUnits","$E$304",304,5,"E",304]
["$R$308","R",null,"=Competitive!R308C18",null,"Developer Input","DevRA10YrUnitsValue",null,null,null,null,null,null,null,null,null,null,308]
["$E$310","E",310,"=Competitive!R310C5",null,"Checkbox Back Color","chkClrRA100Percent10YrUnits",null,null,null,"ckRA100Percent10YrUnits",null,"RA100Percent10YrUnits",{"$f":"\"$\" & Q79 & \"$\" & O79","v":"$E$310"},310,5,"E",310]
["$E$312","E",312,"=Competitive!R312C5",null,"Checkbox Back Color","chkClrRA75Percent10YrUnits",null,null,null,"ckRA75Percent10YrUnits",null,"RA75Percent10YrUnits",{"$f":"\"$\" & Q80 & \"$\" & O80","v":"$E$312"},312,5,"E",312]
["$E$314","E",314,"=Competitive!R314C5",null,"Checkbox Back Color","chkClrRA50Percent10YrUnits",null,null,null,"ckRA50Percent10YrUnits",null,"RA50Percent10YrUnits",{"$f":"\"$\" & Q81 & \"$\" & O81","v":"$E$314"},314,5,"E",314]
["$E$316","E",316,"=Competitive!R316C5",null,"Checkbox Back Color","chkClrRA25Percent10YrUnits",null,null,null,"ckRA25Percent10YrUnits",null,"RA25Percent10YrUnits",{"$f":"\"$\" & Q82 & \"$\" & O82","v":"$E$316"},316,5,"E",316]
["$E$318","E",318,"=Competitive!R318C5",null,"Checkbox Back Color","chkClrRA15Percent10YrUnits",null,null,null,"ckRA15Percent10YrUnits",null,"RA15Percent10YrUnits",{"$f":"\"$\" & Q83 & \"$\" & O83","v":"$E$318"},318,5,"E",318]
["$A$329:$N$337","A",null,"=Competitive!R329C1:R337C14",null,"Funding Type Specific Language","Worksheet_CompetitiveLanguage_LongTermAffordability",null,null,null,null,null,null,null,null,null,null,329]
["$E$333","E",333,"=Competitive!R333C5",null,"Checkbox Back Color","chkClrLongTermAffordability40",null,null,null,"ckLongTermAffordability40",null,"LongTermAffordability40",{"$f":"\"$\" & Q85 & \"$\" & O85","v":"$E$333"},333,5,"E",333]
["$E$335","E",335,"=Competitive!R335C5",null,"Checkbox Back Color","chkClrLongTermAffordability35",null,null,null,"ckLongTermAffordability35",null,"LongTermAffordability35",{"$f":"\"$\" & Q86 & \"$\" & O86","v":"$E$335"},335,5,"E",335]
["$R$341","R",null,"=Competitive!R341C18",null,"Developer Input","DevEconIntegrationMixedUnitsValue",null,"Increasing Geographic Choice",null,null,null,null,null,null,null,null,341]
["$E$343","E",343,"=Competitive!R343C5",null,"Checkbox Back Color","chkClrEconIntegrationMixed",null,null,null,"ckEconIntegrationMixed",null,"EconIntegrationMixed",{"$f":"\"$\" & Q88 & \"$\" & O88","v":"$E$343"},343,5,"E",343]
["$F$344","F",null,"=Competitive!R344C6",null,"Funding Type Specific Language","Worksheet_CompetitiveLanguage_EconomicIntegration",null,null,null,null,null,null,null,null,null,null,344]
["$F$345","F",null,"=Competitive!R345C6",null,"Funding Type Specific Language","Worksheet_DeferredLanguage_EconomicIntegration",null,null,null,null,null,null,null,null,null,null,345]
["$E$348","E",null,"=Competitive!R348C5",null,"Help Text","HelpText_SPTQuestion_EconomicIntegration",null,null,null,null,null,null,null,null,null,null,348]
["$E$349","E",null,"=Competitive!R349C5",null,"Help Text","HelpText_EconomicIntegrationRuralTribal",null,null,null,null,null,null,null,null,null,null,349]
["$F$351","F",351,"=Competitive!R351C6",null,"Checkbox Back Color","chkClrEconIntegration1stTier",null,null,null,"ckEconIntegration1stTier",null,"EconIntegration1stTier",{"$f":"\"$\" & Q93 & \"$\" & O93","v":"$F$351"},351,6,"F",351]
["$F$353","F",353,"=Competitive!R353C6",null,"Checkbox Back Color","chkClrEconIntegration2ndTier",null,null,null,"ckEconIntegration2ndTier",null,"EconIntegration2ndTier",{"$f":"\"$\" & Q94 & \"$\" & O94","v":"$F$353"},353,6,"F",353]
["$R$363","R",null,"=Competitive!R363C18",null,"Developer Input","DevAccessToSchools2BedroomsUnitsValue",null,null,null,null,null,null,null,null,null,null,363]
["$R$363:$R$365","R",null,"=Competitive!R363C18:R365C18",null,"Developer Input","DevAccessToSchoolsUnitsValue",null,null,null,null,null,null,null,null,null,null,363]
["$R$364","R",null,"=Competitive!R364C18",null,"Developer Input","DevAccessToSchools3BedroomsUnitsValue",null,null,null,null,null,null,null,null,null,null,364]
["$R$365","R",null,"=Competitive!R365C18",null,"Developer Input","DevAccessToSchools4BedroomsUnitsValue",null,null,null,null,null,null,null,null,null,null,365]
["$E$367","E",367,"=Competitive!R367C5",null,"Checkbox Back Color","chkClrAccessToSchools",null,null,null,"ckAccessToSchools",null,"AccessToSchools",{"$f":"\"$\" & Q99 & \"$\" & O99","v":"$E$367"},367,5,"E",367]
["$E$376","E",376,"=Competitive!R376C5",null,"Checkbox Back Color","chkClrWorkforceTopJobCenter",null,null,null,"ckWorkforceTopJobCenter",null,"WorkforceTopJobCenter","$E$376",376,5,"E",376]
["$E$378","E",378,"=Competitive!R378C5",null,"Checkbox Back Color","chkClrWorkforceEmpGrowth",null,null,null,"ckWorkforceEmpGrowth",null,"WorkforceEmpGrowth","$E$378",378,5,"E",378]
["$E$381","E",381,"=Competitive!R381C5",null,"Checkbox Back Color","chkClrWorkforceLongCommute",null,null,null,"ckWorkforceLongCommute",null,"WorkforceLongCommute","$E$381",381,5,"E",381]
["$F$394","F",394,"=Competitive!R394C6",null,"Checkbox Back Color","chkClrMetroTransitLRTBRT",null,null,null,"ckMetroTransitLRTBRT",null,"MetroTransitLRTBRT","$F$394",394,6,"F",394]
["$F$396","F",396,"=Competitive!R396C6",null,"Checkbox Back Color","chkClrMetroTransitHiFrequency",null,null,null,"ckMetroTransitHiFrequency",null,"MetroTransitHiFrequency","$F$396",396,6,"F",396]
["$F$398","F",398,"=Competitive!R398C6",null,"Checkbox Back Color","chkClrMetroHighSrvPublicTrans",null,null,null,"ckMetroHighSrvPublicTrans",null,"MetroHighSrvPublicTrans","$F$398",398,6,"F",398]
["$F$400","F",400,"=Competitive!R400C6",null,"Checkbox Back Color","chkClrMetroExpressBusRoute",null,null,null,"ckMetroExpressBusRoute",null,"MetroExpressBusRoute","$F$400",400,6,"F",400]
["$F$402","F",402,"=Competitive!R402C6",null,"Checkbox Back Color","chkClrMetroParkAndRide",null,null,null,"ckMetroParkAndRide",null,"MetroParkAndRide","$F$402",402,6,"F",402]
["$F$406","F",406,"=Competitive!R406C6",null,"Checkbox Back Color","chkClrMetroWalkScore70",null,null,null,"ckMetroWalkScore70",null,"MetroWalkScore70","$F$406",406,6,"F",406]
["$F$409","F",409,"=Competitive!R409C6",null,"Checkbox Back Color","chkClrMetroWalkScore50",null,null,null,"ckMetroWalkScore50",null,"MetroWalkScore50","$F$409",409,6,"F",409]
["$G$418","G",418,"=Competitive!R418C7",null,"Checkbox Back Color","chkClrGrtMnFixedOneQtrMile",null,null,null,"ckGrtMnFixedOneQtrMile",null,"GrtMnFixedOneQtrMile","$G$418",418,7,"G",418]
["$G$420","G",420,"=Competitive!R420C7",null,"Checkbox Back Color","chkClrGrtMnFixedOneHalfMile",null,null,null,"ckGrtMnFixedOneHalfMile",null,"GrtMnFixedOneHalfMile","$G$420",420,7,"G",420]
["$G$422","G",422,"=Competitive!R422C7",null,"Checkbox Back Color","chkClrGrtMnFixedExpressBusRoute",null,null,null,"ckGrtMnFixedExpressBusRoute",null,"GrtMnFixedExpressBusRoute","$G$422",422,7,"G",422]
["$G$426","G",426,"=Competitive!R426C7",null,"Checkbox Back Color","chkClrGrtMnFixedWalkScore70",null,null,null,"ckGrtMnFixedWalkScore70",null,"GrtMnFixedWalkScore70","$G$426",426,7,"G",426]
["$G$429","G",429,"=Competitive!R429C7",null,"Checkbox Back Color","chkClrGrtMnFixedWalkScore50",null,null,null,"ckGrtMnFixedWalkScore50",null,"GrtMnFixedWalkScore50","$G$429",429,7,"G",429]
["$G$440","G",440,"=Competitive!R440C7",null,"Checkbox Back Color","chkClrGtrMNNoFixedRideOneHour",null,null,null,"ckGtrMNNoFixedRideOneHour",null,"GtrMNNoFixedRideOneHour","$G$440",440,7,"G",440]
["$G$443","G",443,"=Competitive!R443C7",null,"Checkbox Back Color","chkClrGtrMNNoFixedRideSameDay",null,null,null,"ckGtrMNNoFixedRideSameDay",null,"GtrMNNoFixedRideSameDay","$G$443",443,7,"G",443]
["$G$445","G",445,"=Competitive!R445C7",null,"Checkbox Back Color","chkClrGtrMNNoFixedLowService",null,null,null,"ckGtrMNNoFixedLowService",null,"GtrMNNoFixedLowService","$G$445",445,7,"G",445]
["$G$450","G",450,"=Competitive!R450C7",null,"Checkbox Back Color","chkClrGrtMnNoFixedWalkScore50",null,null,null,"ckGrtMnNoFixedWalkScore50",null,"GrtMnNoFixedWalkScore50","$G$450",450,7,"G",450]
["$G$453","G",453,"=Competitive!R453C7",null,"Checkbox Back Color","chkClrGrtMnNoFixedWalkScore35",null,null,null,"ckGrtMnNoFixedWalkScore35",null,"GrtMnNoFixedWalkScore35","$G$453",453,7,"G",453]
["$C$466","C",null,"=Competitive!R466C3",null,"Help Text","HelpText_SPTQuestion_PlannedCommunityDev",null,"Supporting Community & Economic Development",null,null,null,null,null,null,null,null,466]
["$D$468","D",468,"=Competitive!R468C4",null,"Checkbox Back Color","chkClrPlannedCommunityDev",null,null,null,"ckPlannedCommunityDev",null,"PlannedCommunityDev",{"$f":"\"$\" & Q121 & \"$\" & O121","v":"$D$468"},468,4,"D",468]
["$A$494:$N$500","A",null,"=Competitive!R494C1:R500C14",null,"Funding Type Specific Language","Worksheet_CompetitiveLanguage_EventualTenantOwnership",null,null,null,null,null,null,null,null,null,null,494]
["$D$496","D",496,"=Competitive!R496C4",null,"Checkbox Back Color","chkClrEventualTenantOwnership",null,null,null,"ckEventualTenantOwnership",null,"EventualTenantOwnership",{"$f":"\"$\" & Q123 & \"$\" & O123","v":"$D$496"},496,4,"D",496]
["$B$501","B",null,"=Competitive!R501C2",null,null,"Order_RuralTribalDesignatedArea",null,null,null,null,null,null,null,null,null,null,501]
["$C$504","C",null,"=Competitive!R504C3",null,"Help Text","HelpText_RuralTribalEconomicIntegration",null,null,null,null,null,null,null,null,null,null,504]
["$D$506","D",506,"=Competitive!R506C4",null,"Checkbox Back Color","chkClrRuralTribalDesignatedArea",null,null,null,"ckRuralTribalDesignatedArea",null,"RuralTribalDesignatedArea",{"$f":"\"$\" & Q126 & \"$\" & O126","v":"$D$506"},506,4,"D",506]
["$B$512","B",null,"=Competitive!R512C2",null,null,"Order_QCTorTribalEquivalent",null,null,null,null,null,null,null,null,null,null,512]
["$D$514","D",514,"=Competitive!R514C4",null,"Checkbox Back Color","chkClrQCTorTribalEquivalent",null,null,null,"ckQCTorTribalEquivalent",null,"QCTorTribalEquivalent",{"$f":"\"$\" & Q128 & \"$\" & O128","v":"$D$514"},514,4,"D",514]
["$B$521","B",null,"=Competitive!R521C2",null,null,"Order_MBEWBE",null,null,null,null,null,null,null,null,null,null,521]
["$D$523","D",523,"=Competitive!R523C4",null,"Checkbox Back Color","chkClrMBEWBE",null,null,null,"ckMBEWBE",null,"MBEWBE",{"$f":"\"$\" & Q130 & \"$\" & O130","v":"$D$523"},523,4,"D",523]
["$B$529","B",null,"=Competitive!R529C2",null,"Help Text","HelpText_SPTQuestion_PreservationThresholds",null,"Preservation",null,null,null,null,null,null,null,null,529]
["$B$530","B",null,"=Competitive!R530C2",null,"Funding Type Specific Language","Worksheet_CompetitiveLanguage_Preservation_Instruction",null,null,null,null,null,null,null,null,null,null,530]
["$B$532:$N$532","B",null,"=Competitive!R532C2:R532C14",null,"Funding Type Specific Language","Worksheet_CompetitiveLanguage_Preservation_Thresholds",null,null,null,null,null,null,null,null,null,null,532]
["$D$536","D",536,"=Competitive!R536C4",null,"Checkbox Back Color","chkClrLossDuetoMarketConversion",null,null,null,"ckLossDuetoMarketConversion",null,"LossDuetoMarketConversion",{"$f":"\"$\" & Q134 & \"$\" & O134","v":"$D$536"},536,4,"D",536]
["$D$550","D",550,"=Competitive!R550C4",null,"Checkbox Back Color","chkClrLossDuetoCriticalPhysical",null,null,null,"ckLossDuetoCriticalPhysical",null,"LossDuetoCriticalPhysical",{"$f":"\"$\" & Q135 & \"$\" & O135","v":"$D$550"},550,4,"D",550]
["$D$559","D",559,"=Competitive!R559C4",null,"Checkbox Back Color","chkClrLossDuetoOwnershipCap",null,null,null,"ckLossDuetoOwnershipCap",null,"LossDuetoOwnershipCap",{"$f":"\"$\" & Q136 & \"$\" & O136","v":"$D$559"},559,4,"D",559]
["$C$570","C",null,"=Competitive!R570C3",null,"Funding Type Specific Language","Worksheet_CompetitiveLanguage_PreservationCriteria_Instruction",null,null,null,null,null,null,null,null,null,null,570]
["$Q$576","Q",null,"=Competitive!R576C17",null,"Developer Input","DevManualEntryCellsInstructionsPreservationFedAssist",null,null,null,null,null,null,null,null,null,null,576]
["$R$577","R",null,"=Competitive!R577C18",null,"Developer Input","DevFedAssistUnitsUnitsValue",null,null,null,null,null,null,null,null,null,null,577]
["$F$581","F",581,"=Competitive!R581C6",null,"Checkbox Back Color","chkClrExistingFedAssistUnits100",null,null,null,"ckExistingFedAssistUnits100",null,"ExistingFedAssistUnits100",{"$f":"\"$\" & Q140 & \"$\" & O140","v":"$F$581"},581,6,"F",581]
["$F$583","F",583,"=Competitive!R583C6",null,"Checkbox Back Color","chkClrExistingFedAssistUnits99",null,null,null,"ckExistingFedAssistUnits99",null,"ExistingFedAssistUnits99","$F$583",583,6,"F",583]
["$F$585","F",585,"=Competitive!R585C6",null,"Checkbox Back Color","chkClrExistingFedAssistUnits75",null,null,null,"ckExistingFedAssistUnits75",null,"ExistingFedAssistUnits75","$F$585",585,6,"F",585]
["$F$587","F",587,"=Competitive!R587C6",null,"Checkbox Back Color","chkClrExistingFedAssistUnits50",null,null,null,"ckExistingFedAssistUnits50",null,"ExistingFedAssistUnits50","$F$587",587,6,"F",587]
["$F$589","F",589,"=Competitive!R589C6",null,"Checkbox Back Color","chkClrExistingFedAssistUnits25",null,null,null,"ckExistingFedAssistUnits25",null,"ExistingFedAssistUnits25","$F$589",589,6,"F",589]
["$F$593","F",593,"=Competitive!R593C6",null,"Checkbox Back Color","chkClrPartialFedAssistUnits99",null,null,null,"ckPartialFedAssistUnits99",null,"PartialFedAssistUnits99","$F$593",593,6,"F",593]
["$F$595","F",595,"=Competitive!R595C6",null,"Checkbox Back Color","chkClrPartialFedAssistUnits75",null,null,null,"ckPartialFedAssistUnits75",null,"PartialFedAssistUnits75","$F$595",595,6,"F",595]
["$F$597","F",597,"=Competitive!R597C6",null,"Checkbox Back Color","chkClrPartialFedAssistUnits25",null,null,null,"ckPartialFedAssistUnits25",null,"PartialFedAssistUnits25","$F$597",597,6,"F",597]
["$E$603","E",603,"=Competitive!R603C5",null,"Checkbox Back Color","chkClrCriticalAffordableUnits",null,null,null,"ckCriticalAffordableUnits",null,"CriticalAffordableUnits","$E$603",603,5,"E",603]
["$I$618,$K$618","I",null,"=Competitive!R618C9,Competitive!R618C11",null,"Developer Input","DevFinancialReadiness",null,"Efficient Use of Scarce Resources",null,null,null,null,null,null,null,null,618]
["$K$618","K",null,"=Competitive!R618C11",null,"Developer Input","DevFinancialReadinessDevelopmentCost",null,null,null,null,null,null,null,null,null,null,618]
["$I$618","I",null,"=Competitive!R618C9",null,"Developer Input","DevFinancialReadinessEligibleFunding",null,null,null,null,null,null,null,null,null,null,618]
["$M$618","M",null,"=Competitive!R618C13",null,"Formula","DevFinancialReadinessFundsCommitted",null,null,null,null,null,null,null,null,null,null,618]
[null,null,620,null,null,null,null,null,null,null,"ckinancialReadiness70",null,"FinancialReadiness70",{"$f":"\"$\" & Q153 & \"$\" & O153","v":"$H$620"},620,8,"H"]
[null,null,621,null,null,null,null,null,null,null,"ckinancialReadiness60",null,"FinancialReadiness60","$H$621",621,8,"H"]
[null,null,622,null,null,null,null,null,null,null,"ckinancialReadiness50",null,"FinancialReadiness50","$H$622",622,8,"H"]
[null,null,623,null,null,null,null,null,null,null,"ckinancialReadiness40",null,"FinancialReadiness40","$H$623",623,8,"H"]
[null,null,624,null,null,null,null,null,null,null,"ckinancialReadiness30",null,"FinancialReadiness30","$H$624",624,8,"H"]
[null,null,624,null,null,null,null,null,null,null,"ckinancialReadiness20",null,"FinancialReadiness20","$H$624",624,8,"H"]
[null,null,626,null,null,null,null,null,null,null,"ckinancialReadiness10",null,"FinancialReadiness10","$H$626",626,8,"H"]
[null,null,627,null,null,null,null,null,null,null,"ckinancialReadiness9",null,"FinancialReadiness9","$H$627",627,8,"H"]
[]
["$I$655,$K$655","I",null,"=Competitive!R655C9,Competitive!R655C11",null,"Developer Input","DevOtherContributions",null,null,null,null,null,null,null,null,null,null,655]
["$K$655","K",null,"=Competitive!R655C11",null,"Developer Input","DevOtherContributionsDevelopmentCost",null,null,null,null,null,null,null,null,null,null,655]
["$I$655","I",null,"=Competitive!R655C9",null,"Developer Input","DevOtherContributionsFunding",null,null,null,null,null,null,null,null,null,null,655]
["$M$655","M",null,"=Competitive!R655C13",null,"Developer Input","DevOtherFundsCommittedPercentage",null,null,null,null,null,null,null,null,null,null,655]
[null,null,657,null,null,null,null,null,null,null,"ckOtherFunds20",null,"OtherFunds20",{"$f":"\"$\" & Q166 & \"$\" & O166","v":"$H$657"},657,8,"H"]
[null,null,658,null,null,null,null,null,null,null,"ckOtherFunds15",null,"OtherFunds15","$H$658",658,8,"H"]
[null,null,659,null,null,null,null,null,null,null,"ckOtherFunds10",null,"OtherFunds10","$H$659",659,8,"H"]
[null,null,660,null,null,null,null,null,null,null,"ckOtherFunds5",null,"OtherFunds5","$H$660",660,8,"H"]
[null,null,661,null,null,null,null,null,null,null,"ckOtherFunds2",null,"OtherFunds2","$H$661",661,8,"H"]
[null,null,661,null,null,null,null,null,null,null,"ckOtherFunds0",null,"OtherFunds0","$H$661",661,8,"H"]
["$K$682,$I$682","K",null,"=Competitive!R682C11,Competitive!R682C9",null,"Developer Input","DevIntermediary",null,null,null,null,null,null,null,null,null,null,682]
["$I$682","I",null,"=Competitive!R682C9",null,"Developer Input","DevIntermediaryCosts",null,null,null,null,null,null,null,null,null,null,682]
["$K$682","K",null,"=Competitive!R682C11",null,"Developer Input","DevIntermediaryDevelopmentCost",null,null,null,null,null,null,null,null,null,null,682]
["$M$682","M",null,"=Competitive!R682C13",null,"Developer Input","DevIntermediaryPercentage",null,null,null,null,null,null,null,null,null,null,682]
[null,null,684,null,null,null,null,null,null,null,"ckntermediaryCost15",null,"IntermediaryCost15",{"$f":"\"$\" & Q176 & \"$\" & O176","v":"$H$684"},684,8,"H"]
[null,null,685,null,null,null,null,null,null,null,"ckntermediaryCost20",null,"IntermediaryCost20","$H$685",685,8,"H"]
[null,null,686,null,null,null,null,null,null,null,"ckntermediaryCost25",null,"IntermediaryCost25","$H$686",686,8,"H"]
[null,null,687,null,null,null,null,null,null,null,"ckntermediaryCost30",null,"IntermediaryCost30","$H$687",687,8,"H"]
[null,null,688,null,null,null,null,null,null,null,"ckntermediaryCostOver30",null,"IntermediaryCostOver30","$H$688",688,8,"H"]
["$D$692","D",692,"=Competitive!R692C4",null,"Checkbox Back Color","chkClrCostContainment",null,null,null,"ckCostContainment",null,"CostContainment","$D$692",692,4,"D",692]
["$E$694","E",null,"=Competitive!R694C5",null,"Funding Type Specific Language","Worksheet_CompetitiveLanguage_CostContainmentProcess",null,null,null,null,null,null,null,null,null,null,694]
["$C$697","C",null,"=Competitive!R697C3",null,"Funding Type Specific Language","Worksheet_CompetitiveLanguage_CostContainmentCaution",null,null,null,null,null,null,null,null,null,null,697]
["$R$706","R",null,"=Competitive!R706C18",null,"Developer Input","DevUniversalDesignUnitsValue",null,"Building Characteristics",null,null,null,null,null,null,null,null,706]
["$E$708","E",708,"=Competitive!R708C5",null,"Checkbox Back Color","chkClrElevator",null,null,null,"ckElevator",null,"Elevator",{"$f":"\"$\" & Q185 & \"$\" & O185","v":"$E$708"},708,5,"E",708]
["$E$710","E",710,"=Competitive!R710C5",null,"Checkbox Back Color","chkClrNonElevator",null,null,null,"ckNonElevator",null,"NonElevator",{"$f":"\"$\" & Q186 & \"$\" & O186","v":"$E$710"},710,5,"E",710]
["$C$751","C",751,"=Competitive!R751C3",null,"Checkbox Back Color","chkClrSmokeFreeBuildings",null,null,null,"ckSmokeFreeBuildings",null,"SmokeFreeBuildings",{"$f":"\"$\" & Q187 & \"$\" & O187","v":"$C$751"},751,3,"C",751]
[null,null,null,null,null,null,null,null,"Green Communities"]
[null,null,null,null,null,null,null,null,null,null,"ckGreenCommunities3x",null,"GreenCommunities3x"]
[null,null,null,null,null,null,null,null,null,null,"ckGreenCommunities2x",null,"GreenCommunities2x"]
["$B$756:$N$760","B",null,"=Competitive!R756C2:R760C14",null,"Funding Type Specific Language","Worksheet_CompetitiveLanguage_UnacceptablePractices",null,"Unacceptalbe Practices",null,null,null,null,null,null,null,null,756]
["$B$758","B",null,"=Competitive!R758C2",null,"Developer Input","DevUnacceptablePractices",null,null,null,null,null,null,null,null,null,null,758]
["$A$761:$N$779","A",null,"=Competitive!R761C1:R779C14",null,"Funding Type Specific Language","Worksheet_CompetitiveLanguage_Signature",null,"Signature Block",null,null,null,null,null,null,null,null,761]
[]
["$A$756:$N$779","A",null,"=Competitive!R756C1:R779C14",null,"Funding Type Specific Language","Worksheet_CompetitiveLanguage_End",null,null,null,null,null,null,null,null,null,null,756]
["$C$175,$C$217,$E$348,$C$466,$B$529","C",null,"=Competitive!R175C3,Competitive!R217C3,Competitive!R348C5,Competitive!R466C3,Competitive!R529C2",null,"Help Text","HelpText_SPT_AllSPTQuestionHelpText",null,null,null,null,null,null,null,null,null,null,175]
["$R$166,$R$178,$R$186,$R$218,$R$264,$R$291,$R$307,$R$340,$R$361,$R$576,$R$705","R",null,"=Competitive!R166C18,Competitive!R178C18,Competitive!R186C18,Competitive!R218C18,Competitive!R264C18,Competitive!R291C18,Competitive!R307C18,Competitive!R340C18,Competitive!R361C18,Competitive!R576C18,Competitive!R705C18",null,"Developer Input","HelpText_DevEditUnitsValueCells",null,null,null,null,null,null,null,null,null,null,166]

{"sheet":"4% Only","index":8,"n_rows":184,"n_cols":19,"rows_kept":184,"cut":false,"hidden":true,"merged":[]}
["Address","Column","Row","R1C1 Address","Range Name",null,null,null,null,null,"Checkbox Names",null,"Checkbox Link","Address","Row","Column",null,"4% w/Deferred"]
["$A$1,$A$3","A",1,"='4 Percent'!R1C1,'4 Percent'!R3C1","Worksheet_Header_HTCandDef",null,"Form Header",null,null,null,null,null,null,null,null,null,null,null,"Enabled when proposal type is selected"]
["$A$1:$N$2","A",1,"='4 Percent'!R1C1:R2C14","Worksheet_Header_HTC",null,"Form Header",null,null,null,null,null,null,null,null,null,null,null,"Enabled for all SPT checkbox selections"]
["$I$6","I",6,"='4 Percent'!R6C9","DevelopmentName",null,"Project Information"]
["$I$7","I",7,"='4 Percent'!R7C9","DevelopmentNumber",null,"Project Information",null,null,null,null,null,null,null,null,null,null,"4% Only"]
["$I$8","I",8,"='4 Percent'!R8C9","ApplicationNumber",null,"Project Information",null,null,null,null,null,null,null,null,null,null,null,"Disabled when proposal type is selected"]
["$I$9","I",9,"='4 Percent'!R9C9","DevelopmentLocation",null,"Project Information",null,null,null,null,null,null,null,null,null,null,null,"Enabled when proposal type is selected"]
["$I$10","I",10,"='4 Percent'!R10C9","DevelopmentCity",null,"Project Information"]
["$C$12","C",12,"='4 Percent'!R12C3","Worksheet_DeferredLanguage_OpeningNote",null,"Funding Type Specific Language"]
["$A$16:$P$42","A",16,"='4 Percent'!R16C1:R42C16","Worksheet_Instructions_CompetitiveDeferred","Worksheet_CompetitiveDeferredLanguage_Instructions","Funding Type Specific Language"]
["$A$43:$P$67","A",43,"='4 Percent'!R43C1:R67C16","Worksheet_Instructions_Competitive","Worksheet_CompetitiveLanguage_Instructions","Funding Type Specific Language"]
["$A$69:$P$116","A",69,"='4 Percent'!R69C1:R116C16","Worksheet_StrategicPriorityThresholds",null,"Section Header",null,null,"Strategic Priority Threshold"]
["$A$72","A",72,"='4 Percent'!R72C1","InstructionsStrategicPriorityThresholds","HelpText_SPTInstructions","Help Text"]
["$C$78","C",78,"='4 Percent'!R78C3","chkClrSPTAccessToFixedTransit",null,"Checkbox Back Color",null,null,null,"ckSPTAccessToFixedTransit",null,"SPTAccessToFixedTransit",null,78,2,"B"]
["$C$82","C",82,"='4 Percent'!R82C3","chkClrSPTGreaterMNWorkforceHsg",null,"Checkbox Back Color",null,null,null,"ckSPTGreaterMNWorkforceHsg",null,"SPTGreaterMNWorkforceHsg",null,82,2,"B"]
["$C$92","C",92,"='4 Percent'!R92C3","chkClrSPTEconomicIntegration",null,"Checkbox Back Color",null,null,null,"ckSPTEconomicIntegration",null,"SPTEconomicIntegration",null,92,2,"B"]
["$D$94","D",94,"='4 Percent'!R94C4","InstructionsStrategicPriorityThresholdsEconomicIntegration","HelpText_SPT_EconomicIntegration","Help Text"]
["$C$98","C",98,"='4 Percent'!R98C3","chkClrSPTTribal",null,"Checkbox Back Color",null,null,null,"ckSPTTribal",null,"SPTTribal",null,98,2,"B"]
["$C$102","C",102,"='4 Percent'!R102C3","chkClrSPTPlannedCommunity",null,"Checkbox Back Color",null,null,null,"ckSPTPlannedCommunity",null,"SPTPlannedCommunity",null,102,2,"B"]
["$D$104","D",104,"='4 Percent'!R104C4","InstructionsStrategicPriorityThresholdsPlannedCommunityDevelopment","HelpText_SPT_PlannedCommunityDevelopment","Help Text"]
["$C$108","C",108,"='4 Percent'!R108C3","chkClrSPTPreservation",null,"Checkbox Back Color",null,null,null,"ckSPTPreservation",null,"SPTPreservation",null,108,2,"B"]
["$D$110","D",110,"='4 Percent'!R110C4","InstructionsStrategicPriorityThresholdsPreservation","HelpText_SPT_PreservationThresholds","Help Text"]
["$C$114","C",114,"='4 Percent'!R114C3","chkClrSPTSupportiveHsg",null,"Checkbox Back Color",null,null,null,"ckSPTSupportiveHsg",null,"SPTSupportiveHsg",null,114,2,"B"]
["$D$116","D",116,"='4 Percent'!R116C4","InstructionsStrategicPriorityThresholdsSupportiveHousing","HelpText_SPT_SupportiveHousing","Help Text"]
["$A$118","A",118,"='4 Percent'!R118C1","Worksheet_SelectionCriteriaHeaderText",null,"Funding Type Specific Language",null,"Greatest Need Tenant Targeting"]
["$R$123","R",123,"='4 Percent'!R123C18","DevLargeFamilyHousing2BedroomUnitsValue",null,"Developer Input",null,null,"Large Family Housing"]
["$R$123:$R$125","R",123,"='4 Percent'!R123C18:R125C18","DevLargeFamilyHousingUnitsValue"]
["$E$124","E",124,"='4 Percent'!R124C5","chkClrLargeFamily2Bedroom",null,"Checkbox Back Color",null,null,null,"ckLargeFamily2Bedroom",null,"LargeFamily2Bedroom",null,124,5,"E"]
["$R$124","R",124,"='4 Percent'!R124C18","DevLargeFamilyHousing3BedroomUnitsValue",null,"Developer Input"]
["$R$124:$R$125","R",124,"='4 Percent'!R124C18:R125C18","DevLargeFamilyHousingGrtMNUnitsValue"]
["$R$125","R",125,"='4 Percent'!R125C18","DevLargeFamilyHousing4BedroomUnitsValue",null,"Developer Input"]
["$E$126","E",126,"='4 Percent'!R126C5","chkClrLargeFamily3Bedroom",null,"Checkbox Back Color",null,null,null,"ckLargeFamily3Bedroom",null,"LargeFamily3Bedroom",null,126,5,"E"]
["$C$132","C",132,"='4 Percent'!R132C3","InstructionsPermanentSupportiveHousing","HelpText_SPTQuestion_PermanentSupportiveHousing","Help Text",null,null,"Supportive Housing"]
["$R$136","R",136,"='4 Percent'!R136C18","DevSupportiveHousingYouthWithChildrenUnitsValue",null,"Developer Input"]
["$R$136,$R$137,$R$139,$R$140","R",136,"='4 Percent'!R136C18,'4 Percent'!R137C18,'4 Percent'!R139C18,'4 Percent'!R140C18","DevSupportiveHousingUnitsValue"]
["$R$137","R",137,"='4 Percent'!R137C18","DevSupportiveHousingYouthUnitsValue",null,"Developer Input"]
["$E$138","E",138,"='4 Percent'!R138C5","chkClrSupportiveHousing20Units",null,"Checkbox Back Color",null,null,null,"ckSupportiveHousing20Units",null,"SupportiveHousing20Units",null,138,5,"E"]
["$R$139","R",139,"='4 Percent'!R139C18","DevSupportiveHousingSingleAdultUnitsValue",null,"Developer Input"]
["$E$140","E",140,"='4 Percent'!R140C5","chkClrSupportiveHousing7Units",null,"Checkbox Back Color",null,null,null,"ckSupportiveHousing7Units",null,"SupportiveHousing7Units",null,140,5,"E"]
["$R$140","R",140,"='4 Percent'!R140C18","DevSupportiveHousingFamiliesUnitsValue",null,"Developer Input"]
["$E$142","E",142,"='4 Percent'!R142C5","chkClrSupportiveHousing4Units",null,"Checkbox Back Color",null,null,null,"ckSupportiveHousing4Units",null,"SupportiveHousing4Units",null,142,5,"E"]
["$R$144","R",144,"='4 Percent'!R144C18","DevSupportiveHousingPriorityUnitsValue",null,"Developer Input"]
["$R$144,$R$145","R",144,"='4 Percent'!R144C18,'4 Percent'!R145C18","DevSupportiveHousingPriorityValues"]
["$R$145","R",145,"='4 Percent'!R145C18","DevSupportiveHousingPriorityType",null,"Developer Input"]
["$E$149","E",149,"='4 Percent'!R149C5","chkClrSupportiveHousingPriority",null,"Checkbox Back Color",null,null,null,"ckSupportiveHousingPriority",null,"SupportiveHousingPriority",null,149,5,"E"]
["$C$168","C",168,"='4 Percent'!R168C3","Worksheet_CompetitiveLanguage_PermanentSupportiveHousing",null,"Funding Type Specific Language"]
["$C$173","C",173,"='4 Percent'!R173C3","InstructionsPeopleWithDisabilities","HelpText_SPTQuestion_PeopleWithDisabilities","Help Text",null,"Serves Lowest Income"]
["$R$175","R",175,"='4 Percent'!R175C18","DevDisabilitiesUnitsValue",null,"Developer Input"]
["$E$177","E",177,"='4 Percent'!R177C5","chkClrDisabilities15Percent",null,"Checkbox Back Color",null,null,null,"ckDisabilities15Percent",null,"Disabilities15Percent",null,177,5,"E"]
["$E$179","E",179,"='4 Percent'!R179C5","chkClrDisabilities10Percent",null,"Checkbox Back Color",null,null,null,"ckDisabilities10Percent",null,"Disabilities10Percent",null,179,5,"E"]
["$E$181","E",181,"='4 Percent'!R181C5","chkClrDisabilities5Percent",null,"Checkbox Back Color",null,null,null,"ckDisabilities5Percent",null,"Disabilities5Percent",null,181,5,"E"]
["$R$221","R",221,"='4 Percent'!R221C18","DevServesLowestIncUnitsValue",null,"Developer Input"]
["$E$227","E",227,"='4 Percent'!R227C5","chkClrServesLowestIncOpt1",null,"Checkbox Back Color",null,null,null,"ckServesLowestIncOpt1",null,"ServesLowestIncOpt1",null,227,5,"E"]
["$E$229","E",229,"='4 Percent'!R229C5","chkClrServesLowestIncOpt2",null,"Checkbox Back Color",null,null,null,"ckServesLowestIncOpt2",null,"ServesLowestIncOpt2",null,229,5,"E"]
["$R$256","R",256,"='4 Percent'!R256C18","DevRAUnitsValue",null,"Developer Input"]
["$E$258","E",258,"='4 Percent'!R258C5","chkClrRA100PercentUnits",null,"Checkbox Back Color",null,null,null,"ckRA100PercentUnits",null,"RA100PercentUnits",null,258,5,"E"]
["$E$260","E",260,"='4 Percent'!R260C5","chkClrRA51PercentUnits",null,"Checkbox Back Color",null,null,null,"ckRA51PercentUnits",null,"RA51PercentUnits",null,260,5,"E"]
["$E$262","E",262,"='4 Percent'!R262C5","chkClrRA20PercentUnits",null,"Checkbox Back Color",null,null,null,"ckRA20PercentUnits",null,"RA20PercentUnits",null,262,5,"E"]
["$E$264","E",264,"='4 Percent'!R264C5","chkClrRA10PercentUnits",null,"Checkbox Back Color",null,null,null,"ckRA10PercentUnits",null,"RA10PercentUnits",null,264,5,"E"]
["$E$266","E",266,"='4 Percent'!R266C5","chkClrRA5PercentUnits",null,"Checkbox Back Color",null,null,null,"ckRA5PercentUnits",null,"RA5PercentUnits",null,266,5,"E"]
["$E$268","E",268,"='4 Percent'!R268C5","chkClrRALessThan5PercentUnits",null,"Checkbox Back Color",null,null,null,"ckRALessThan5PercentUnits",null,"RALessThan5PercentUnits",null,268,5,"E"]
["$E$270","E",270,"='4 Percent'!R270C5","chkClrRA10YearContract",null,"Checkbox Back Color",null,null,null,"ckRA10YearContract",null,"RA10YearContract",null,270,5,"E"]
["$C$273:$N$275","C",273,"='4 Percent'!R273C3:R275C14","InstructionsDEFRAPercent10YrUnits",null,"Help Text"]
["$C$276:$N$279","C",276,"='4 Percent'!R276C3:R279C14","InstructionsHTCRAPercent10YrUnits",null,"Help Text"]
["$R$281","R",281,"='4 Percent'!R281C18","DevRA10YrUnitsValue",null,"Developer Input"]
["$E$282","E",282,"='4 Percent'!R282C5","chkClrRA100Percent10YrUnits",null,"Checkbox Back Color",null,null,null,"ckRA100Percent10YrUnits",null,"RA100Percent10YrUnits",null,282,5,"E"]
["$E$284","E",284,"='4 Percent'!R284C5","chkClrRA75Percent10YrUnits",null,"Checkbox Back Color",null,null,null,"ckRA75Percent10YrUnits",null,"RA75Percent10YrUnits",null,284,5,"E"]
["$E$286","E",286,"='4 Percent'!R286C5","chkClrRA50Percent10YrUnits",null,"Checkbox Back Color",null,null,null,"ckRA50Percent10YrUnits",null,"RA50Percent10YrUnits",null,286,5,"E"]
["$E$288","E",288,"='4 Percent'!R288C5","chkClrRA25Percent10YrUnits",null,"Checkbox Back Color",null,null,null,"ckRA25Percent10YrUnits",null,"RA25Percent10YrUnits",null,288,5,"E"]
["$E$290","E",290,"='4 Percent'!R290C5","chkClrRA15Percent10YrUnits",null,"Checkbox Back Color",null,null,null,"ckRA15Percent10YrUnits",null,"RA15Percent10YrUnits",null,290,5,"E"]
[null,null,null,null,"HelpText_4PercentOnlyLanguage_LongTermAffordability"]
[null,null,null,null,"HelpText_4PercentDeferredLanguage_LongTermAffordability"]
["$E$304","E",304,"='4 Percent'!R304C5","chkClrLongTermAffordability40",null,"Checkbox Back Color",null,null,null,"ckLongTermAffordability40",null,"LongTermAffordability40",null,304,5,"E"]
["$E$306","E",306,"='4 Percent'!R306C5","chkClrLongTermAffordability35",null,"Checkbox Back Color",null,null,null,"ckLongTermAffordability35",null,"LongTermAffordability35",null,306,5,"E"]
["$E$308","E",308,"='4 Percent'!R308C5","chkClrLongTermAffordabilityWaive30",null,"Checkbox Back Color",null,null,null,"ckLongTermAffordabilityWaive30",null,"LongTermAffordabilityWaive30",null,308,4,"D"]
["$E$310","E",310,"='4 Percent'!R310C5","chkClrLongTermAffordabilityWaive25",null,"Checkbox Back Color",null,null,null,"ckLongTermAffordabilityWaive25",null,"LongTermAffordabilityWaive25",null,310,4,"D"]
["$E$317","E",317,"='4 Percent'!R317C5","chkClrEconIntegrationMixed",null,"Checkbox Back Color",null,"'Increasing Geographic Choice",null,"ckEconIntegrationMixed",null,"EconIntegrationMixed",null,317,5,"E"]
["$R$317","R",317,"='4 Percent'!R317C18","DevEconIntegrationMixedUnitsValue",null,"Developer Input"]
["$E$322","E",322,"='4 Percent'!R322C5","Worksheet_DeferredLanguage_EconomicIntegration","HelpText_SPTQuestion_EconomicIntegration","Funding Type Specific Language"]
["$E$323","E",323,"='4 Percent'!R323C5","InstructionsEconIntegrationRuralTribal","HelpText_EconomicIntegrationRuralTribal","Help Text"]
["$F$325","F",325,"='4 Percent'!R325C6","chkClrEconIntegration1stTier",null,"Checkbox Back Color",null,null,null,"ckEconIntegration1stTier",null,"EconIntegration1stTier",null,325,6,"F"]
["$F$327","F",327,"='4 Percent'!R327C6","chkClrEconIntegration2ndTier",null,"Checkbox Back Color",null,null,null,"ckEconIntegration2ndTier",null,"EconIntegration2ndTier",null,327,6,"F"]
["$R$337","R",337,"='4 Percent'!R337C18","DevAccessToSchools2BedroomsUnitsValue",null,"Developer Input"]
["$R$337:$R$339","R",337,"='4 Percent'!R337C18:R339C18","DevAccessToSchoolsUnitsValue"]
["$R$338","R",338,"='4 Percent'!R338C18","DevAccessToSchools3BedroomsUnitsValue",null,"Developer Input"]
["$R$339","R",339,"='4 Percent'!R339C18","DevAccessToSchools4BedroomsUnitsValue",null,"Developer Input"]
["$E$340","E",340,"='4 Percent'!R340C5","chkClrAccessToSchools",null,"Checkbox Back Color",null,null,null,"ckAccessToSchools",null,"AccessToSchools",null,340,5,"E"]
["$E$349","E",349,"='4 Percent'!R349C5","chkClrWorkforceTopJobCenter",null,"Checkbox Back Color",null,null,null,"ckWorkforceTopJobCenter",null,"WorkforceTopJobCenter",null,349,5,"E"]
["$E$351","E",351,"='4 Percent'!R351C5","chkClrWorkforceEmpGrowth",null,"Checkbox Back Color",null,null,null,"ckWorkforceEmpGrowth",null,"WorkforceEmpGrowth",null,351,5,"E"]
["$E$354","E",354,"='4 Percent'!R354C5","chkClrWorkforceLongCommute",null,"Checkbox Back Color",null,null,null,"ckWorkforceLongCommute",null,"WorkforceLongCommute",null,354,5,"E"]
["$F$367","F",367,"='4 Percent'!R367C6","chkClrMetroTransitLRTBRT",null,"Checkbox Back Color",null,null,null,"ckMetroTransitLRTBRT",null,"MetroTransitLRTBRT",null,367,6,"F"]
["$F$369","F",369,"='4 Percent'!R369C6","chkClrMetroTransitHiFrequency",null,"Checkbox Back Color",null,null,null,"ckMetroTransitHiFrequency",null,"MetroTransitHiFrequency",null,369,6,"F"]
["$F$371","F",371,"='4 Percent'!R371C6","chkClrMetroHighSrvPublicTrans",null,"Checkbox Back Color",null,null,null,"ckMetroHighSrvPublicTrans",null,"MetroHighSrvPublicTrans",null,371,6,"F"]
["$F$373","F",373,"='4 Percent'!R373C6","chkClrMetroExpressBusRoute",null,"Checkbox Back Color",null,null,null,"ckMetroExpressBusRoute",null,"MetroExpressBusRoute",null,373,6,"F"]
["$F$375","F",375,"='4 Percent'!R375C6","chkClrMetroParkAndRide",null,"Checkbox Back Color",null,null,null,"ckMetroParkAndRide",null,"MetroParkAndRide",null,375,6,"F"]
["$F$379","F",379,"='4 Percent'!R379C6","chkClrMetroWalkScore70",null,"Checkbox Back Color",null,null,null,"ckMetroWalkScore70",null,"MetroWalkScore70",null,379,6,"F"]
["$F$382","F",382,"='4 Percent'!R382C6","chkClrMetroWalkScore50",null,"Checkbox Back Color",null,null,null,"ckMetroWalkScore50",null,"MetroWalkScore50",null,382,6,"F"]
["$G$391","G",391,"='4 Percent'!R391C7","chkClrGrtMnFixedOneQtrMile",null,"Checkbox Back Color",null,null,null,"ckGrtMnFixedOneQtrMile",null,"GrtMnFixedOneQtrMile",null,391,7,"G"]
["$G$393","G",393,"='4 Percent'!R393C7","chkClrGrtMnFixedOneHalfMile",null,"Checkbox Back Color",null,null,null,"ckGrtMnFixedOneHalfMile",null,"GrtMnFixedOneHalfMile",null,393,7,"G"]
["$G$395","G",395,"='4 Percent'!R395C7","chkClrGrtMnFixedExpressBusRoute",null,"Checkbox Back Color",null,null,null,"ckGrtMnFixedExpressBusRoute",null,"GrtMnFixedExpressBusRoute",null,395,7,"G"]
["$G$399","G",399,"='4 Percent'!R399C7","chkClrGrtMnFixedWalkScore70",null,"Checkbox Back Color",null,null,null,"ckGrtMnFixedWalkScore70",null,"GrtMnFixedWalkScore70",null,399,7,"G"]
["$G$402","G",402,"='4 Percent'!R402C7","chkClrGrtMnFixedWalkScore50",null,"Checkbox Back Color",null,null,null,"ckGrtMnFixedWalkScore50",null,"GrtMnFixedWalkScore50",null,402,7,"G"]
["$G$409","G",409,"='4 Percent'!R409C7","chkClrGtrMNNoFixedRideOneHour",null,"Checkbox Back Color",null,null,null,"ckGtrMNNoFixedRideOneHour",null,"GtrMNNoFixedRideOneHour",null,409,7,"G"]
["$G$412","G",412,"='4 Percent'!R412C7","chkClrGtrMNNoFixedRideSameDay",null,"Checkbox Back Color",null,null,null,"ckGtrMNNoFixedRideSameDay",null,"GtrMNNoFixedRideSameDay",null,412,7,"G"]
["$G$415","G",415,"='4 Percent'!R415C7","chkClrGtrMNNoFixedLowService",null,"Checkbox Back Color",null,null,null,"ckGtrMNNoFixedLowService",null,"GtrMNNoFixedLowService",null,415,7,"G"]
["$G$420","G",420,"='4 Percent'!R420C7","chkClrGrtMnNoFixedWalkScore50",null,"Checkbox Back Color",null,null,null,"ckGrtMnNoFixedWalkScore50",null,"GrtMnNoFixedWalkScore50",null,420,7,"G"]
["$G$423","G",423,"='4 Percent'!R423C7","chkClrGrtMnNoFixedWalkScore35",null,"Checkbox Back Color",null,null,null,"ckGrtMnNoFixedWalkScore35",null,"GrtMnNoFixedWalkScore35",null,423,7,"G"]
["$C$441","C",441,"='4 Percent'!R441C3","InstructionsPlannedCommunityDev","HelpText_SPTQuestion_PlannedCommunityDev","Help Text",null,"Supporting Community & Economic Development"]
["$C$441,$F$448:$N$448,$F$450:$N$453,$E$454:$N$454,$E$456:$N$458,$E$461:$N$468","C",441,"='4 Percent'!R441C3,'4 Percent'!R448C6:R448C14,'4 Percent'!R450C6:R453C14,'4 Percent'!R454C5:R454C14,'4 Percent'!R456C5:R458C14,'4 Percent'!R461C5:R468C14","InstructionsDEFPlannedCommunityDev",null,"Help Text"]
["$D$443","D",443,"='4 Percent'!R443C4","chkClrPlannedCommunityDev",null,"Checkbox Back Color",null,null,null,"ckPlannedCommunityDev",null,"PlannedCommunityDev",null,443,4,"D"]
["$F$448:$N$448,$F$450:$N$453,$E$454:$N$454,$E$457:$N$458,$E$461:$N$468","F",448,"='4 Percent'!R448C6:R448C14,'4 Percent'!R450C6:R453C14,'4 Percent'!R454C5:R454C14,'4 Percent'!R457C5:R458C14,'4 Percent'!R461C5:R468C14","Worksheet_Language_Deferred_PlannedCommunityDev",null,"Funding Type Specific Language"]
["$E$455:$N$456,$E$460","E",455,"='4 Percent'!R455C5:R456C14,'4 Percent'!R460C5","Worksheet_Language_HTC_PlannedCommunityDev",null,"Funding Type Specific Language"]
["$E$456:$N$456","E",456,"='4 Percent'!R456C5:R456C14","Worksheet_Language_HTC_PlannedCommunityDev_D",null,"Funding Type Specific Language"]
["$D$474","D",474,"='4 Percent'!R474C4","chkClrEventualTenantOwnership",null,"Checkbox Back Color",null,null,null,"ckEventualTenantOwnership",null,"EventualTenantOwnership",null,474,4,"D"]
["$B$479","B",479,"='4 Percent'!R479C2","orderRuralTribalDesignatedArea","Order_RuralTribalDesignatedArea"]
["$C$482","C",482,"='4 Percent'!R482C3","InstructionsRuralTribalDesignatedArea","HelpText_RuralTribalEconomicIntegration","Help Text"]
["$D$484","D",484,"='4 Percent'!R484C4","chkClrRuralTribalDesignatedArea",null,"Checkbox Back Color",null,null,null,"ckRuralTribalDesignatedArea",null,"RuralTribalDesignatedArea",null,484,4,"D"]
["$B$490","B",490,"='4 Percent'!R490C2","orderQCTorTribalEquivalent","Order_QCTorTribalEquivalent",null,null,null,null,"ckQCTorTribalEquivalent",null,"QCTorTribalEquivalent",null,492,4,"D"]
["$D$492","D",492,"='4 Percent'!R492C4","chkClrQCTorTribalEquivalent",null,"Checkbox Back Color"]
["$B$499","B",499,"='4 Percent'!R499C2","orderMBEWBE","Order_MBEWBE"]
["$D$501","D",501,"='4 Percent'!R501C4","chkClrMBEWBE",null,"Checkbox Back Color",null,null,null,"ckMBEWBE",null,"MBEWBE",null,501,4,"D"]
["$B$507","B",507,"='4 Percent'!R507C2","InstructionsPreservationThresholds","HelpText_SPTQuestion_PreservationThresholds","Help Text",null,"Preservation"]
["$B$508:$N$549","B",508,"='4 Percent'!R508C2:R549C14","Worksheet_Language_DeferredAnd4HTC_PreservationThresholds","Worksheet_4PercentDeferredLanguage_PreservationThresholds","Funding Type Specific Language"]
["$D$514","D",514,"='4 Percent'!R514C4","chkClrLossDuetoMarketConversion",null,"Checkbox Back Color",null,null,null,"ckLossDuetoMarketConversion",null,"LossDuetoMarketConversion",null,514,4,"D"]
["$D$528","D",528,"='4 Percent'!R528C4","chkClrLossDuetoCriticalPhysical",null,"Checkbox Back Color",null,null,null,"ckLossDuetoCriticalPhysical",null,"LossDuetoCriticalPhysical",null,528,4,"D"]
["$D$537","D",537,"='4 Percent'!R537C4","chkClrLossDuetoOwnershipCap",null,"Checkbox Back Color",null,null,null,"ckLossDuetoOwnershipCap",null,"LossDuetoOwnershipCap",null,537,4,"D"]
["$Q$555","Q",555,"='4 Percent'!R555C17","DevManualEntryCellsInstructionsPreservationFedAssist",null,"Help Text"]
["$R$556","R",556,"='4 Percent'!R556C18","DevFedAssistUnitsUnitsValue",null,"Developer Input"]
["$F$560","F",560,"='4 Percent'!R560C6","chkClrExistingFedAssistUnits100",null,"Checkbox Back Color",null,null,null,"ckExistingFedAssistUnits100",null,"ExistingFedAssistUnits100",null,560,6,"F"]
["$F$562","F",562,"='4 Percent'!R562C6","chkClrExistingFedAssistUnits99",null,"Checkbox Back Color",null,null,null,"ckExistingFedAssistUnits99",null,"ExistingFedAssistUnits99",null,562,6,"F"]
["$F$564","F",564,"='4 Percent'!R564C6","chkClrExistingFedAssistUnits75",null,"Checkbox Back Color",null,null,null,"ckExistingFedAssistUnits75",null,"ExistingFedAssistUnits75",null,564,6,"F"]
["$F$566","F",566,"='4 Percent'!R566C6","chkClrExistingFedAssistUnits50",null,"Checkbox Back Color",null,null,null,"ckExistingFedAssistUnits50",null,"ExistingFedAssistUnits50",null,566,6,"F"]
["$F$568","F",568,"='4 Percent'!R568C6","chkClrExistingFedAssistUnits25",null,"Checkbox Back Color",null,null,null,"ckExistingFedAssistUnits25",null,"ExistingFedAssistUnits25",null,568,6,"F"]
["$F$572","F",572,"='4 Percent'!R572C6","chkClrPartialFedAssistUnits99",null,"Checkbox Back Color",null,null,null,"ckPartialFedAssistUnits99",null,"PartialFedAssistUnits99",null,572,6,"F"]
["$F$574","F",574,"='4 Percent'!R574C6","chkClrPartialFedAssistUnits75",null,"Checkbox Back Color",null,null,null,"ckPartialFedAssistUnits75",null,"PartialFedAssistUnits75",null,574,6,"F"]
["$F$576","F",576,"='4 Percent'!R576C6","chkClrPartialFedAssistUnits25",null,"Checkbox Back Color",null,null,null,"ckPartialFedAssistUnits25",null,"PartialFedAssistUnits25",null,576,6,"F"]
["$E$582","E",582,"='4 Percent'!R582C5","chkClrCriticalAffordableUnits",null,"Checkbox Back Color",null,null,null,"ckCriticalAffordableUnits",null,"CriticalAffordableUnits",null,582,5,"E"]
["$I$597","I",597,"='4 Percent'!R597C9","DevFinancialReadinessEligibleFunding",null,"Developer Input",null,"Efficient Use of Scarce Resources"]
["$I$597,$K$597","I",597,"='4 Percent'!R597C9,'4 Percent'!R597C11","DevFinancialReadiness"]
["$K$597","K",597,"='4 Percent'!R597C11","DevFinancialReadinessDevelopmentCost",null,"Developer Input"]
["$M$597","M",597,"='4 Percent'!R597C13","DevFinancialReadinessFundsCommitted",null,"Developer Input"]
["$C$628","C",628,"='4 Percent'!R628C3","Worksheet_Language_HTCFinancialReadiness",null,"Funding Type Specific Language"]
[null,null,null,null,null,null,null,null,null,null,"ckinancialReadiness70",null,"FinancialReadiness70",null,599,8,"H"]
[null,null,null,null,null,null,null,null,null,null,"ckinancialReadiness60",null,"FinancialReadiness60",null,600,8,"H"]
[null,null,null,null,null,null,null,null,null,null,"ckinancialReadiness50",null,"FinancialReadiness50",null,601,8,"H"]
[null,null,null,null,null,null,null,null,null,null,"ckinancialReadiness40",null,"FinancialReadiness40",null,602,8,"H"]
[null,null,null,null,null,null,null,null,null,null,"ckinancialReadiness30",null,"FinancialReadiness30",null,603,8,"H"]
[null,null,null,null,null,null,null,null,null,null,"ckinancialReadiness20",null,"FinancialReadiness20",null,604,8,"H"]
[null,null,null,null,null,null,null,null,null,null,"ckinancialReadiness10",null,"FinancialReadiness10",null,605,8,"H"]
[null,null,null,null,null,null,null,null,null,null,"ckinancialReadiness9",null,"FinancialReadiness9",null,606,8,"H"]
["$I$636","I",636,"='4 Percent'!R636C9","DevOtherContributionsFunding",null,"Developer Input"]
["$I$636,$K$636","I",636,"='4 Percent'!R636C9,'4 Percent'!R636C11","DevOtherContributions"]
["$K$636","K",636,"='4 Percent'!R636C11","DevOtherContributionsDevelopmentCost",null,"Developer Input"]
["$M$636","M",636,"='4 Percent'!R636C13","DevOtherFundsCommittedPercentage",null,"Developer Input"]
[null,null,null,null,null,null,null,null,null,null,"ckOtherFunds20",null,"OtherFunds20",null,638,8,"H"]
[null,null,null,null,null,null,null,null,null,null,"ckOtherFunds15",null,"OtherFunds15",null,639,8,"H"]
[null,null,null,null,null,null,null,null,null,null,"ckOtherFunds10",null,"OtherFunds10",null,640,8,"H"]
[null,null,null,null,null,null,null,null,null,null,"ckOtherFunds5",null,"OtherFunds5",null,641,8,"H"]
[null,null,null,null,null,null,null,null,null,null,"ckOtherFunds2",null,"OtherFunds2",null,642,8,"H"]
[null,null,null,null,null,null,null,null,null,null,"ckOtherFunds0",null,"OtherFunds0",null,643,8,"H"]
["$I$663","I",663,"='4 Percent'!R663C9","DevIntermediaryCosts",null,"Developer Input"]
["$K$663","K",663,"='4 Percent'!R663C11","DevIntermediaryDevelopmentCost",null,"Developer Input"]
["$K$663,$I$663","K",663,"='4 Percent'!R663C11,'4 Percent'!R663C9","DevIntermediary"]
["$M$663","M",663,"='4 Percent'!R663C13","DevIntermediaryPercentage",null,"Developer Input"]
[null,null,null,null,null,null,null,null,null,null,"ckntermediaryCost15",null,"IntermediaryCost15",null,665,8,"H"]
[null,null,null,null,null,null,null,null,null,null,"ckntermediaryCost20",null,"IntermediaryCost20",null,666,8,"H"]
[null,null,null,null,null,null,null,null,null,null,"ckntermediaryCost25",null,"IntermediaryCost25",null,667,8,"H"]
[null,null,null,null,null,null,null,null,null,null,"ckntermediaryCost30",null,"IntermediaryCost30",null,668,8,"H"]
[null,null,null,null,null,null,null,null,null,null,"ckntermediaryCostOver30",null,"IntermediaryCostOver30",null,669,8,"H"]
["$D$673,$D$675","D",673,"='4 Percent'!R673C4,'4 Percent'!R675C4","chkClrCostContainment",null,"Checkbox Back Color",null,null,null,"ckCostContainment",null,"CostContainment",null,673,4,"D"]
["$E$675:$N$676,$C$678","E",675,"='4 Percent'!R675C5:R676C14,'4 Percent'!R678C3","Worksheet_Language_DEF_CostContainment",null,"Funding Type Specific Language"]
["$E$675:$N$676,$C$680,$C$678","E",675,"='4 Percent'!R675C5:R676C14,'4 Percent'!R680C3,'4 Percent'!R678C3","Worksheet_Language_HTCDef_CostContainment","Worksheet_4PercentDeferredLanguage_CostContainment","Funding Type Specific Language"]
["$C$678:$N$679,$E$673:$N$674","C",678,"='4 Percent'!R678C3:R679C14,'4 Percent'!R673C5:R674C14","Worksheet_Language_HTC_CostContainment","Worksheet_4PercentLanguage_CostContainment","Funding Type Specific Language"]
["$R$689","R",689,"='4 Percent'!R689C18","DevUniversalDesignUnitsValue",null,"Developer Input",null,"Building Characteristics"]
["$E$691","E",691,"='4 Percent'!R691C5","chkClrElevator",null,"Checkbox Back Color",null,null,null,"ckElevator",null,"Elevator",null,691,5,"E"]
["$E$693","E",693,"='4 Percent'!R693C5","chkClrNonElevator",null,"Checkbox Back Color",null,null,null,"ckNonElevator",null,"NonElevator",null,693,5,"E"]
["$C$734","C",734,"='4 Percent'!R734C3","chkClrSmokeFreeBuildings",null,"Checkbox Back Color",null,null,null,"ckSmokeFreeBuildings",null,"SmokeFreeBuildings",null,734,3,"C"]
[null,null,null,null,null,null,null,null,"Green Communities"]
[null,null,null,null,null,null,null,null,null,null,"ckGreenCommunities3x",null,"GreenCommunities3x"]
[null,null,null,null,null,null,null,null,null,null,"ckGreenCommunities2x",null,"GreenCommunities2x"]
["$B$741","B",741,"='4 Percent'!R741C2","DevUnacceptablePractices",null,"Developer Input",null,"Unacceptable Practices"]
["$A$744:$N$762","A",744,"='4 Percent'!R744C1:R762C14","Worksheet_HTCSignature",null,"Developer Input",null,"Signature Block"]
[]
["$R$122,$R$135,$R$143,$R$174,$R$220,$R$255,$R$278,$R$314,$R$335,$R$555,$R$688","R",122,"='4 Percent'!R122C18,'4 Percent'!R135C18,'4 Percent'!R143C18,'4 Percent'!R174C18,'4 Percent'!R220C18,'4 Percent'!R255C18,'4 Percent'!R278C18,'4 Percent'!R314C18,'4 Percent'!R335C18,'4 Percent'!R555C18,'4 Percent'!R688C18","HelpText_DevEditUnitsValueCells"]

{"sheet":"Sheet2","index":9,"n_rows":547,"n_cols":4,"rows_kept":547,"cut":false,"hidden":true,"merged":[]}
["R1C1","Scope","Name","Address"]
["='4 Percent'!R8C9","4 Percent","ApplicationNumber","$I$8"]
["='4 Percent'!R340C5","4 Percent","chkClrAccessToSchools","$E$340"]
["='4 Percent'!R678C4,'4 Percent'!R680C4","4 Percent","chkClrCostContainment","$D$678,$D$680"]
["='4 Percent'!R586C5","4 Percent","chkClrCriticalAffordableUnits","$E$586"]
["='4 Percent'!R192C5","4 Percent","chkClrDisabilities10Percent","$E$192"]
["='4 Percent'!R190C5","4 Percent","chkClrDisabilities15Percent","$E$190"]
["='4 Percent'!R194C5","4 Percent","chkClrDisabilities5Percent","$E$194"]
["='4 Percent'!R325C6","4 Percent","chkClrEconIntegration1stTier","$F$325"]
["='4 Percent'!R327C6","4 Percent","chkClrEconIntegration2ndTier","$F$327"]
["='4 Percent'!R316C5","4 Percent","chkClrEconIntegrationMixed","$E$316"]
["='4 Percent'!R696C5","4 Percent","chkClrElevator","$E$696"]
["='4 Percent'!R470C4","4 Percent","chkClrEventualTenantOwnership","$D$470"]
["='4 Percent'!R555C6","4 Percent","chkClrExistingFedAssistUnits100","$F$555"]
["='4 Percent'!R563C6","4 Percent","chkClrExistingFedAssistUnits25","$F$563"]
["='4 Percent'!R561C6","4 Percent","chkClrExistingFedAssistUnits50","$F$561"]
["='4 Percent'!R559C6","4 Percent","chkClrExistingFedAssistUnits75","$F$559"]
["='4 Percent'!R557C6","4 Percent","chkClrExistingFedAssistUnits99","$F$557"]
["='4 Percent'!R395C7","4 Percent","chkClrGrtMnFixedExpressBusRoute","$G$395"]
["='4 Percent'!R393C7","4 Percent","chkClrGrtMnFixedOneHalfMile","$G$393"]
["='4 Percent'!R391C7","4 Percent","chkClrGrtMnFixedOneQtrMile","$G$391"]
["='4 Percent'!R402C7","4 Percent","chkClrGrtMnFixedWalkScore50","$G$402"]
["='4 Percent'!R399C7","4 Percent","chkClrGrtMnFixedWalkScore70","$G$399"]
["='4 Percent'!R426C7","4 Percent","chkClrGrtMnNoFixedWalkScore35","$G$426"]
["='4 Percent'!R423C7","4 Percent","chkClrGrtMnNoFixedWalkScore50","$G$423"]
["='4 Percent'!R418C7","4 Percent","chkClrGtrMNNoFixedLowService","$G$418"]
["='4 Percent'!R412C7","4 Percent","chkClrGtrMNNoFixedRideOneHour","$G$412"]
["='4 Percent'!R415C7","4 Percent","chkClrGtrMNNoFixedRideSameDay","$G$415"]
["='4 Percent'!R137C5","4 Percent","chkClrLargeFamily2Bedroom","$E$137"]
["='4 Percent'!R139C5","4 Percent","chkClrLargeFamily3Bedroom","$E$139"]
["='4 Percent'!R305C5","4 Percent","chkClrLongTermAffordability35","$E$305"]
["='4 Percent'!R303C5","4 Percent","chkClrLongTermAffordability40","$E$303"]
["='4 Percent'!R309C5","4 Percent","chkClrLongTermAffordabilityWaive25","$E$309"]
["='4 Percent'!R307C5","4 Percent","chkClrLongTermAffordabilityWaive30","$E$307"]
["='4 Percent'!R523C4","4 Percent","chkClrLossDuetoCriticalPhysical","$D$523"]
["='4 Percent'!R509C4","4 Percent","chkClrLossDuetoMarketConversion","$D$509"]
["='4 Percent'!R532C4","4 Percent","chkClrLossDuetoOwnershipCap","$D$532"]
["='4 Percent'!R497C4","4 Percent","chkClrMBEWBE","$D$497"]
["='4 Percent'!R373C6","4 Percent","chkClrMetroExpressBusRoute","$F$373"]
["='4 Percent'!R371C6","4 Percent","chkClrMetroHighSrvPublicTrans","$F$371"]
["='4 Percent'!R375C6","4 Percent","chkClrMetroParkAndRide","$F$375"]
["='4 Percent'!R369C6","4 Percent","chkClrMetroTransitHiFrequency","$F$369"]
["='4 Percent'!R367C6","4 Percent","chkClrMetroTransitLRTBRT","$F$367"]
["='4 Percent'!R382C6","4 Percent","chkClrMetroWalkScore50","$F$382"]
["='4 Percent'!R379C6","4 Percent","chkClrMetroWalkScore70","$F$379"]
["='4 Percent'!R698C5","4 Percent","chkClrNonElevator","$E$698"]
["='4 Percent'!R571C6","4 Percent","chkClrPartialFedAssistUnits25","$F$571"]
["='4 Percent'!R569C6","4 Percent","chkClrPartialFedAssistUnits75","$F$569"]
["='4 Percent'!R567C6","4 Percent","chkClrPartialFedAssistUnits99","$F$567"]
["='4 Percent'!R442C4","4 Percent","chkClrPlannedCommunityDev","$D$442"]
["='4 Percent'!R488C4","4 Percent","chkClrQCTorTribalEquivalent","$D$488"]
["='4 Percent'!R279C5","4 Percent","chkClrRA100Percent10YrUnits","$E$279"]
["='4 Percent'!R262C5","4 Percent","chkClrRA100PercentUnits","$E$262"]
["='4 Percent'!R268C5","4 Percent","chkClrRA10PercentUnits","$E$268"]
["='4 Percent'!#REF!","4 Percent","chkClrRA10YearContract"]
["='4 Percent'!R287C5","4 Percent","chkClrRA15Percent10YrUnits","$E$287"]
["='4 Percent'!R266C5","4 Percent","chkClrRA20PercentUnits","$E$266"]
["='4 Percent'!R285C5","4 Percent","chkClrRA25Percent10YrUnits","$E$285"]
["='4 Percent'!R283C5","4 Percent","chkClrRA50Percent10YrUnits","$E$283"]
["='4 Percent'!R264C5","4 Percent","chkClrRA51PercentUnits","$E$264"]
["='4 Percent'!R270C5","4 Percent","chkClrRA5PercentUnits","$E$270"]
["='4 Percent'!R281C5","4 Percent","chkClrRA75Percent10YrUnits","$E$281"]
["='4 Percent'!R272C5","4 Percent","chkClrRALessThan5PercentUnits","$E$272"]
["='4 Percent'!R480C4","4 Percent","chkClrRuralTribalDesignatedArea","$D$480"]
["='4 Percent'!R240C5","4 Percent","chkClrServesLowestIncOpt1","$E$240"]
["='4 Percent'!R242C5","4 Percent","chkClrServesLowestIncOpt2","$E$242"]
["='4 Percent'!R739C3","4 Percent","chkClrSmokeFreeBuildings","$C$739"]
["='4 Percent'!R86C3","4 Percent","chkClrSPTAccessToFixedTransit","$C$86"]
["='4 Percent'!R100C3","4 Percent","chkClrSPTEconomicIntegration","$C$100"]
["='4 Percent'!R90C3","4 Percent","chkClrSPTGreaterMNWorkforceHsg","$C$90"]
["='4 Percent'!R110C3","4 Percent","chkClrSPTPlannedCommunity","$C$110"]
["='4 Percent'!R116C3","4 Percent","chkClrSPTPreservation","$C$116"]
["='4 Percent'!R122C3","4 Percent","chkClrSPTSupportiveHsg","$C$122"]
["='4 Percent'!R106C3","4 Percent","chkClrSPTTribal","$C$106"]
["='4 Percent'!R151C5","4 Percent","chkClrSupportiveHousing20Units","$E$151"]
["='4 Percent'!R155C5","4 Percent","chkClrSupportiveHousing4Units","$E$155"]
["='4 Percent'!R153C5","4 Percent","chkClrSupportiveHousing7Units","$E$153"]
["='4 Percent'!R162C5","4 Percent","chkClrSupportiveHousingPriority","$E$162"]
["='4 Percent'!R351C5","4 Percent","chkClrWorkforceEmpGrowth","$E$351"]
["='4 Percent'!R354C5","4 Percent","chkClrWorkforceLongCommute","$E$354"]
["='4 Percent'!R349C5","4 Percent","chkClrWorkforceTopJobCenter","$E$349"]
["='4 Percent'!R337C18","4 Percent","DevAccessToSchools2BedroomsUnitsValue","$R$337"]
["='4 Percent'!R338C18","4 Percent","DevAccessToSchools3BedroomsUnitsValue","$R$338"]
["='4 Percent'!R339C18","4 Percent","DevAccessToSchools4BedroomsUnitsValue","$R$339"]
["='4 Percent'!R337C18:R339C18","4 Percent","DevAccessToSchoolsUnitsValue","$R$337:$R$339"]
["='4 Percent'!R188C18","4 Percent","DevDisabilitiesUnitsValue","$R$188"]
["='4 Percent'!R316C18","4 Percent","DevEconIntegrationMixedUnitsValue","$R$316"]
["='4 Percent'!R135C18,'4 Percent'!R148C18,'4 Percent'!R156C18,'4 Percent'!R187C18,'4 Percent'!R233C18,'4 Percent'!R259C18,'4 Percent'!#REF!,'4 Percent'!R313C18,'4 Percent'!R335C18,'4 Percent'!R550C18,'4 Percent'!R693C18","4 Percent","DevEditUnitsValueCells"]
["='4 Percent'!R10C9","4 Percent","DevelopmentCity","$I$10"]
["='4 Percent'!R9C9","4 Percent","DevelopmentLocation","$I$9"]
["='4 Percent'!R6C9","4 Percent","DevelopmentName","$I$6"]
["='4 Percent'!R7C9","4 Percent","DevelopmentNumber","$I$7"]
["='4 Percent'!R551C18","4 Percent","DevFedAssistUnitsUnitsValue","$R$551"]
["='4 Percent'!R601C9,'4 Percent'!R601C11","4 Percent","DevFinancialReadiness","$I$601,$K$601"]
["='4 Percent'!R601C11","4 Percent","DevFinancialReadinessDevelopmentCost","$K$601"]
["='4 Percent'!R601C9","4 Percent","DevFinancialReadinessEligibleFunding","$I$601"]
["='4 Percent'!R601C13","4 Percent","DevFinancialReadinessFundsCommitted","$M$601"]
["='4 Percent'!R669C11,'4 Percent'!R669C9","4 Percent","DevIntermediary","$K$669,$I$669"]
["='4 Percent'!R669C9","4 Percent","DevIntermediaryCosts","$I$669"]
["='4 Percent'!R669C11","4 Percent","DevIntermediaryDevelopmentCost","$K$669"]
["='4 Percent'!R669C13","4 Percent","DevIntermediaryPercentage","$M$669"]
["='4 Percent'!R136C18","4 Percent","DevLargeFamilyHousing2BedroomUnitsValue","$R$136"]
["='4 Percent'!R137C18","4 Percent","DevLargeFamilyHousing3BedroomUnitsValue","$R$137"]
["='4 Percent'!R138C18","4 Percent","DevLargeFamilyHousing4BedroomUnitsValue","$R$138"]
["='4 Percent'!R137C18:R138C18","4 Percent","DevLargeFamilyHousingGrtMNUnitsValue","$R$137:$R$138"]
["='4 Percent'!R136C18:R138C18","4 Percent","DevLargeFamilyHousingUnitsValue","$R$136:$R$138"]
["='4 Percent'!R641C9,'4 Percent'!R641C11","4 Percent","DevOtherContributions","$I$641,$K$641"]
["='4 Percent'!R641C11","4 Percent","DevOtherContributionsDevelopmentCost","$K$641"]
["='4 Percent'!R641C9","4 Percent","DevOtherContributionsFunding","$I$641"]
["='4 Percent'!R641C13","4 Percent","DevOtherFundsCommittedPercentage","$M$641"]
["='4 Percent'!R278C18","4 Percent","DevRA10YrUnitsValue","$R$278"]
["='4 Percent'!R260C18","4 Percent","DevRAUnitsValue","$R$260"]
["='4 Percent'!R234C18","4 Percent","DevServesLowestIncUnitsValue","$R$234"]
["='4 Percent'!R153C18","4 Percent","DevSupportiveHousingFamiliesUnitsValue","$R$153"]
["='4 Percent'!R158C18","4 Percent","DevSupportiveHousingPriorityType","$R$158"]
["='4 Percent'!R157C18","4 Percent","DevSupportiveHousingPriorityUnitsValue","$R$157"]
["='4 Percent'!R157C18,'4 Percent'!R158C18","4 Percent","DevSupportiveHousingPriorityValues","$R$157,$R$158"]
["='4 Percent'!R152C18","4 Percent","DevSupportiveHousingSingleAdultUnitsValue","$R$152"]
["='4 Percent'!R149C18,'4 Percent'!R150C18,'4 Percent'!R152C18,'4 Percent'!R153C18","4 Percent","DevSupportiveHousingUnitsValue","$R$149,$R$150,$R$152,$R$153"]
["='4 Percent'!R150C18","4 Percent","DevSupportiveHousingYouthUnitsValue","$R$150"]
["='4 Percent'!R149C18","4 Percent","DevSupportiveHousingYouthWithChildrenUnitsValue","$R$149"]
["='4 Percent'!R760C2","4 Percent","DevUnacceptablePractices","$B$760"]
["='4 Percent'!R694C18","4 Percent","DevUniversalDesignUnitsValue","$R$694"]
["='4 Percent'!R323C5","4 Percent","HelpText_EconomicIntegrationRuralTribal","$E$323"]
["='4 Percent'!R478C3","4 Percent","HelpText_RuralTribalEconomicIntegration","$C$478"]
["='4 Percent'!R102C4","4 Percent","HelpText_SPT_EconomicIntegration","$D$102"]
["='4 Percent'!R112C4","4 Percent","HelpText_SPT_PlannedCommunityDevelopment","$D$112"]
["='4 Percent'!R118C4","4 Percent","HelpText_SPT_PreservationThresholds","$D$118"]
["='4 Percent'!R124C4","4 Percent","HelpText_SPT_SupportiveHousing","$D$124"]
["='4 Percent'!R79C1:R80C16+'4 Percent'!R79C1:R80C16","4 Percent","HelpText_SPTInstructions"]
["='4 Percent'!R322C5","4 Percent","HelpText_SPTQuestion_EconomicIntegration","$E$322"]
["='4 Percent'!R186C3","4 Percent","HelpText_SPTQuestion_PeopleWithDisabilities","$C$186"]
["='4 Percent'!R145C3","4 Percent","HelpText_SPTQuestion_PermanentSupportiveHousing","$C$145"]
["='4 Percent'!R440C3","4 Percent","HelpText_SPTQuestion_PlannedCommunityDev","$C$440"]
["='4 Percent'!R503C2","4 Percent","HelpText_SPTQuestion_PreservationThresholds","$B$503"]
["='4 Percent'!R495C2","4 Percent","Order_MBEWBE","$B$495"]
["='4 Percent'!R486C2","4 Percent","Order_QCTorTribalEquivalent","$B$486"]
["='4 Percent'!R475C2","4 Percent","Order_RuralTribalDesignatedArea","$B$475"]
["='4 Percent'!R680C5:R681C14,'4 Percent'!R685C3,'4 Percent'!R683C3","4 Percent","Worksheet_4PercentDeferredLanguage_CostContainment","$E$680:$N$681,$C$685,$C$683"]
["='4 Percent'!R504C2:R544C14","4 Percent","Worksheet_4PercentDeferredLanguage_PreservationThresholds","$B$504:$N$544"]
["='4 Percent'!R683C3:R684C14,'4 Percent'!R678C5:R679C14","4 Percent","Worksheet_4PercentLanguage_CostContainment","$C$683:$N$684,$E$678:$N$679"]
["='4 Percent'!R16C1:R47C16","4 Percent","Worksheet_CompetitiveDeferredLanguage_Instructions","$A$16:$P$47"]
["='4 Percent'!R48C1:R75C16","4 Percent","Worksheet_CompetitiveLanguage_Instructions","$A$48:$P$75"]
["='4 Percent'!R181C3","4 Percent","Worksheet_CompetitiveLanguage_PermanentSupportiveHousing","$C$181"]
["='4 Percent'!R1C1:R2C14","4 Percent","Worksheet_Header_HTC","$A$1:$N$2"]
["='4 Percent'!R1C1,'4 Percent'!R3C1","4 Percent","Worksheet_Header_HTCandDef","$A$1,$A$3"]
["='4 Percent'!R763C1:R781C14","4 Percent","Worksheet_HTCSignature","$A$763:$N$781"]
["='4 Percent'!R633C3","4 Percent","Worksheet_Language_HTCFinancialReadiness","$C$633"]
["='4 Percent'!R131C1","4 Percent","Worksheet_SelectionCriteriaHeaderText","$A$131"]
["='4 Percent'!R77C1:R130C16","4 Percent","Worksheet_StrategicPriorityThresholds","$A$77:$P$130"]
["='4 Percent'!R300C1:R300C14","2020 2021 Self Scoring.xlsm","HelpText_4PercentDeferredLanguage_LongTermAffordability","$A$300:$N$300"]
["='4 Percent'!R301C1:R301C14","2020 2021 Self Scoring.xlsm","HelpText_4PercentOnlyLanguage_LongTermAffordability","$A$301:$N$301"]
[]
["=Competitive!R104C1:R160C16","2020 2021 Self Scoring.xlsm","Worksheet_StrategicPriorityThresholds","$A$104:$P$160"]
["=Competitive!R9C9","Competitive","ApplicationNumber","$I$9"]
["=Competitive!R366C5","Competitive","chkClrAccessToSchools","$E$366"]
["=Competitive!R701C4","Competitive","chkClrCostContainment","$D$701"]
["=Competitive!R609C5","Competitive","chkClrCriticalAffordableUnits","$E$609"]
["=Competitive!R223C5","Competitive","chkClrDisabilities10Percent","$E$223"]
["=Competitive!R221C5","Competitive","chkClrDisabilities15Percent","$E$221"]
["=Competitive!R225C5","Competitive","chkClrDisabilities5Percent","$E$225"]
["=Competitive!R350C6","Competitive","chkClrEconIntegration1stTier","$F$350"]
["=Competitive!R352C6","Competitive","chkClrEconIntegration2ndTier","$F$352"]
["=Competitive!R342C5","Competitive","chkClrEconIntegrationMixed","$E$342"]
["=Competitive!R717C5","Competitive","chkClrElevator","$E$717"]
["=Competitive!R496C4","Competitive","chkClrEventualTenantOwnership","$D$496"]
["=Competitive!R580C6","Competitive","chkClrExistingFedAssistUnits100","$F$580"]
["=Competitive!R588C6","Competitive","chkClrExistingFedAssistUnits25","$F$588"]
["=Competitive!R586C6","Competitive","chkClrExistingFedAssistUnits50","$F$586"]
["=Competitive!R584C6","Competitive","chkClrExistingFedAssistUnits75","$F$584"]
["=Competitive!R582C6","Competitive","chkClrExistingFedAssistUnits99","$F$582"]
["=Competitive!R421C7","Competitive","chkClrGrtMnFixedExpressBusRoute","$G$421"]
["=Competitive!R419C7","Competitive","chkClrGrtMnFixedOneHalfMile","$G$419"]
["=Competitive!R417C7","Competitive","chkClrGrtMnFixedOneQtrMile","$G$417"]
["=Competitive!R428C7","Competitive","chkClrGrtMnFixedWalkScore50","$G$428"]
["=Competitive!R425C7","Competitive","chkClrGrtMnFixedWalkScore70","$G$425"]
["=Competitive!R452C7","Competitive","chkClrGrtMnNoFixedWalkScore35","$G$452"]
["=Competitive!R449C7","Competitive","chkClrGrtMnNoFixedWalkScore50","$G$449"]
["=Competitive!R444C7","Competitive","chkClrGtrMNNoFixedLowService","$G$444"]
["=Competitive!R439C7","Competitive","chkClrGtrMNNoFixedRideOneHour","$G$439"]
["=Competitive!R442C7","Competitive","chkClrGtrMNNoFixedRideSameDay","$G$442"]
["=Competitive!R168C5","Competitive","chkClrLargeFamily2Bedroom","$E$168"]
["=Competitive!R170C5","Competitive","chkClrLargeFamily3Bedroom","$E$170"]
["=Competitive!R334C5","Competitive","chkClrLongTermAffordability35","$E$334"]
["=Competitive!R332C5","Competitive","chkClrLongTermAffordability40","$E$332"]
["=Competitive!R549C4","Competitive","chkClrLossDuetoCriticalPhysical","$D$549"]
["=Competitive!R535C4","Competitive","chkClrLossDuetoMarketConversion","$D$535"]
["=Competitive!R558C4","Competitive","chkClrLossDuetoOwnershipCap","$D$558"]
["=Competitive!R523C4","Competitive","chkClrMBEWBE","$D$523"]
["=Competitive!R399C6","Competitive","chkClrMetroExpressBusRoute","$F$399"]
["=Competitive!R397C6","Competitive","chkClrMetroHighSrvPublicTrans","$F$397"]
["=Competitive!R401C6","Competitive","chkClrMetroParkAndRide","$F$401"]
["=Competitive!R395C6","Competitive","chkClrMetroTransitHiFrequency","$F$395"]
["=Competitive!R393C6","Competitive","chkClrMetroTransitLRTBRT","$F$393"]
["=Competitive!R408C6","Competitive","chkClrMetroWalkScore50","$F$408"]
["=Competitive!R405C6","Competitive","chkClrMetroWalkScore70","$F$405"]
["=Competitive!R67C3","Competitive","chkClrMTRMetroLargeFamily","$C$67"]
["=Competitive!R70C3","Competitive","chkClrMTRMetroRehabilitation","$C$70"]
["=Competitive!R64C3","Competitive","chkClrMTRMetroSRO","$C$64"]
["=Competitive!R76C2","Competitive","chkClrMTRNotRestricted","$B$76"]
["=Competitive!R95C3","Competitive","chkClrMTRPreservation","$C$95"]
["=Competitive!R100C3","Competitive","chkClrMTRRuralDevelopment","$C$100"]
["=Competitive!R74C3","Competitive","chkClrMTRShortSupply","$C$74"]
["=Competitive!R719C5","Competitive","chkClrNonElevator","$E$719"]
["=Competitive!R596C6","Competitive","chkClrPartialFedAssistUnits25","$F$596"]
["=Competitive!R594C6","Competitive","chkClrPartialFedAssistUnits75","$F$594"]
["=Competitive!R592C6","Competitive","chkClrPartialFedAssistUnits99","$F$592"]
["=Competitive!R468C4","Competitive","chkClrPlannedCommunityDev","$D$468"]
["=Competitive!R514C4","Competitive","chkClrQCTorTribalEquivalent","$D$514"]
["=Competitive!R310C5","Competitive","chkClrRA100Percent10YrUnits","$E$310"]
["=Competitive!R294C5","Competitive","chkClrRA100PercentUnits","$E$294"]
["=Competitive!R300C5","Competitive","chkClrRA10PercentUnits","$E$300"]
["=Competitive!R318C5","Competitive","chkClrRA15Percent10YrUnits","$E$318"]
["=Competitive!R298C5","Competitive","chkClrRA20PercentUnits","$E$298"]
["=Competitive!R316C5","Competitive","chkClrRA25Percent10YrUnits","$E$316"]
["=Competitive!R314C5","Competitive","chkClrRA50Percent10YrUnits","$E$314"]
["=Competitive!R296C5","Competitive","chkClrRA51PercentUnits","$E$296"]
["=Competitive!R302C5","Competitive","chkClrRA5PercentUnits","$E$302"]
["=Competitive!R312C5","Competitive","chkClrRA75Percent10YrUnits","$E$312"]
["=Competitive!R304C5","Competitive","chkClrRALessThan5PercentUnits","$E$304"]
["=Competitive!R506C4","Competitive","chkClrRuralTribalDesignatedArea","$D$506"]
["=Competitive!R271C5","Competitive","chkClrServesLowestIncOpt1","$E$271"]
["=Competitive!R273C5","Competitive","chkClrServesLowestIncOpt2","$E$273"]
["=Competitive!R761C3","Competitive","chkClrSmokeFreeBuildings","$C$761"]
["=Competitive!R113C3","Competitive","chkClrSPTAccessToFixedTransit","$C$113"]
["=Competitive!R126C3","Competitive","chkClrSPTEconomicIntegration","$C$126"]
["=Competitive!R117C3","Competitive","chkClrSPTGreaterMNWorkforceHsg","$C$117"]
["=Competitive!R136C3","Competitive","chkClrSPTPlannedCommunity","$C$136"]
["=Competitive!R142C3","Competitive","chkClrSPTPreservation","$C$142"]
["=Competitive!R155C3","Competitive","chkClrSPTProposalType","$C$155"]
["=Competitive!R148C3","Competitive","chkClrSPTSupportiveHsg","$C$148"]
["=Competitive!R132C3","Competitive","chkClrSPTTribal","$C$132"]
["=Competitive!R181C5","Competitive","chkClrSupportiveHousing20Units","$E$181"]
["=Competitive!R185C5","Competitive","chkClrSupportiveHousing4Units","$E$185"]
["=Competitive!R183C5","Competitive","chkClrSupportiveHousing7Units","$E$183"]
["=Competitive!R192C5","Competitive","chkClrSupportiveHousingPriority","$E$192"]
["=Competitive!R377C5","Competitive","chkClrWorkforceEmpGrowth","$E$377"]
["=Competitive!R380C5","Competitive","chkClrWorkforceLongCommute","$E$380"]
["=Competitive!R375C5","Competitive","chkClrWorkforceTopJobCenter","$E$375"]
["=Competitive!R362C18","Competitive","DevAccessToSchools2BedroomsUnitsValue","$R$362"]
["=Competitive!R363C18","Competitive","DevAccessToSchools3BedroomsUnitsValue","$R$363"]
["=Competitive!R364C18","Competitive","DevAccessToSchools4BedroomsUnitsValue","$R$364"]
["=Competitive!R362C18:R364C18","Competitive","DevAccessToSchoolsUnitsValue","$R$362:$R$364"]
["=Competitive!R219C18","Competitive","DevDisabilitiesUnitsValue","$R$219"]
["=Competitive!R340C18","Competitive","DevEconIntegrationMixedUnitsValue","$R$340"]
["=Competitive!R166C18,Competitive!R178C18,Competitive!R186C18,Competitive!R218C18,Competitive!R264C18,Competitive!R291C18,Competitive!R307C18,Competitive!R339C18,Competitive!R360C18,Competitive!R575C18,Competitive!R714C18","Competitive","DevEditUnitsValueCells","$R$166,$R$178,$R$186,$R$218,$R$264,$R$291,$R$307,$R$339,$R$360,$R$575,$R$714"]
["=Competitive!R11C9","Competitive","DevelopmentCity","$I$11"]
["=Competitive!R10C9","Competitive","DevelopmentLocation","$I$10"]
["=Competitive!R7C9","Competitive","DevelopmentName","$I$7"]
["=Competitive!R8C9","Competitive","DevelopmentNumber","$I$8"]
["=Competitive!R576C18","Competitive","DevFedAssistUnitsUnitsValue","$R$576"]
["=Competitive!R624C9,Competitive!R624C11","Competitive","DevFinancialReadiness","$I$624,$K$624"]
["=Competitive!R624C11","Competitive","DevFinancialReadinessDevelopmentCost","$K$624"]
["=Competitive!R624C9","Competitive","DevFinancialReadinessEligibleFunding","$I$624"]
["=Competitive!R624C13","Competitive","DevFinancialReadinessFundsCommitted","$M$624"]
["=Competitive!R692C11,Competitive!R692C9","Competitive","DevIntermediary","$K$692,$I$692"]
["=Competitive!R692C9","Competitive","DevIntermediaryCosts","$I$692"]
["=Competitive!R692C11","Competitive","DevIntermediaryDevelopmentCost","$K$692"]
["=Competitive!R692C13","Competitive","DevIntermediaryPercentage","$M$692"]
["=Competitive!R167C18","Competitive","DevLargeFamilyHousing2BedroomUnitsValue","$R$167"]
["=Competitive!R168C18","Competitive","DevLargeFamilyHousing3BedroomUnitsValue","$R$168"]
["=Competitive!R169C18","Competitive","DevLargeFamilyHousing4BedroomUnitsValue","$R$169"]
["=Competitive!R168C18:R169C18","Competitive","DevLargeFamilyHousingGrtMNUnitsValue","$R$168:$R$169"]
["=Competitive!R167C18:R169C18","Competitive","DevLargeFamilyHousingUnitsValue","$R$167:$R$169"]
["=Competitive!R167C18:R169C18,Competitive!R179C18,Competitive!R180C18,Competitive!R182C18,Competitive!R183C18,Competitive!R187C18,Competitive!R188C18,Competitive!R219C18,Competitive!R265C18,Competitive!R292C18,Competitive!R308C18,Competitive!R340C18,Competitive!R362C18:R364C18,Competitive!R576C18,Competitive!R624C9,Competitive!R624C11,Competitive!R664C9,Competitive!R664C11,Competitive!R692C9,Competitive!R692C11,Competitive!R715C18,Competitive!R782C2","Competitive","DevManualEntryCells","$R$167:$R$169,$R$179,$R$180,$R$182,$R$183,$R$187,$R$188,$R$219,$R$265,$R$292,$R$308,$R$340"]
["=Competitive!R664C9,Competitive!R664C11","Competitive","DevOtherContributions","$I$664,$K$664"]
["=Competitive!R664C11","Competitive","DevOtherContributionsDevelopmentCost","$K$664"]
["=Competitive!R664C9","Competitive","DevOtherContributionsFunding","$I$664"]
["=Competitive!R664C13","Competitive","DevOtherFundsCommittedPercentage","$M$664"]
["=Competitive!R308C18","Competitive","DevRA10YrUnitsValue","$R$308"]
["=Competitive!R292C18","Competitive","DevRAUnitsValue","$R$292"]
["=Competitive!R265C18","Competitive","DevServesLowestIncUnitsValue","$R$265"]
["=Competitive!R183C18","Competitive","DevSupportiveHousingFamiliesUnitsValue","$R$183"]
["=Competitive!R188C18","Competitive","DevSupportiveHousingPriorityType","$R$188"]
["=Competitive!R187C18","Competitive","DevSupportiveHousingPriorityUnitsValue","$R$187"]
["=Competitive!R187C18,Competitive!R188C18","Competitive","DevSupportiveHousingPriorityValues","$R$187,$R$188"]
["=Competitive!R182C18","Competitive","DevSupportiveHousingSingleAdultUnitsValue","$R$182"]
["=Competitive!R179C18,Competitive!R180C18,Competitive!R182C18,Competitive!R183C18","Competitive","DevSupportiveHousingUnitsValue","$R$179,$R$180,$R$182,$R$183"]
["=Competitive!R180C18","Competitive","DevSupportiveHousingYouthUnitsValue","$R$180"]
["=Competitive!R179C18","Competitive","DevSupportiveHousingYouthWithChildrenUnitsValue","$R$179"]
["=Competitive!R782C2","Competitive","DevUnacceptablePractices","$B$782"]
["=Competitive!R715C18","Competitive","DevUniversalDesignUnitsValue","$R$715"]
["=Competitive!R3C1:R4C19","Competitive","Header_Competitive","$A$3:$S$4"]
["=Competitive!R1C1:R2C19","Competitive","Header_Deferred","$A$1:$S$2"]
["=Competitive!R348C5","Competitive","HelpText_EconomicIntegrationRuralTribal","$E$348"]
["=Competitive!R533C3,Competitive!R569C3","Competitive","HelpText_PreservationCriteria_Instruction","$C$533,$C$569"]
["=Competitive!R504C3","Competitive","HelpText_RuralTribalEconomicIntegration","$C$504"]
["=Competitive!R107C1","Competitive","HelpText_SPT","$A$107"]
["=Competitive!R107C1,Competitive!R128C4,Competitive!R138C4,Competitive!R144C4,Competitive!R150C4,Competitive!R175C3,Competitive!R217C3,Competitive!R347C5,Competitive!R466C3,Competitive!R529C2","Competitive","HelpText_SPT_AllSPTandSPTQuestionHelpText","$A$107,$D$128,$D$138,$D$144,$D$150,$C$175,$C$217,$E$347,$C$466,$B$529"]
["=Competitive!R107C1,Competitive!R128C4,Competitive!R138C4,Competitive!R144C4,Competitive!R150C4","Competitive","HelpText_SPT_AllSPTHelpText","$A$107,$D$128,$D$138,$D$144,$D$150"]
["=Competitive!R175C3,Competitive!R217C3,Competitive!R347C5,Competitive!R466C3,Competitive!R529C2","Competitive","HelpText_SPT_AllSPTQuestionHelpText","$C$175,$C$217,$E$347,$C$466,$B$529"]
["=Competitive!R128C4","Competitive","HelpText_SPT_EconomicIntegration","$D$128"]
["=Competitive!R138C4","Competitive","HelpText_SPT_PlannedCommunityDevelopment","$D$138"]
["=Competitive!R144C4","Competitive","HelpText_SPT_PreservationThresholds","$D$144"]
["=Competitive!R150C4","Competitive","HelpText_SPT_SupportiveHousing","$D$150"]
["=Competitive!R106C1:R107C16","Competitive","HelpText_SPTInstructions","$A$106:$P$107"]
["=Competitive!R347C5","Competitive","HelpText_SPTQuestion_EconomicIntegration","$E$347"]
["=Competitive!R217C3","Competitive","HelpText_SPTQuestion_PeopleWithDisabilities","$C$217"]
["=Competitive!R175C3","Competitive","HelpText_SPTQuestion_PermanentSupportiveHousing","$C$175"]
["=Competitive!R466C3","Competitive","HelpText_SPTQuestion_PlannedCommunityDev","$C$466"]
["=Competitive!R529C2","Competitive","HelpText_SPTQuestion_PreservationThresholds","$B$529"]
["=Competitive!R521C2","Competitive","Order_MBEWBE","$B$521"]
["=Competitive!R512C2","Competitive","Order_QCTorTribalEquivalent","$B$512"]
["=Competitive!R501C2","Competitive","Order_RuralTribalDesignatedArea","$B$501"]
["=Competitive!R706C3","Competitive","Worksheet_CompetitiveLanguage_CostContainmentCaution","$C$706"]
["=Competitive!R703C5","Competitive","Worksheet_CompetitiveLanguage_CostContainmentProcess","$E$703"]
["=Competitive!R343C6","Competitive","Worksheet_CompetitiveLanguage_EconomicIntegration","$F$343"]
["=Competitive!R780C1:R803C14","Competitive","Worksheet_CompetitiveLanguage_End","$A$780:$N$803"]
["=Competitive!R494C1:R500C14","Competitive","Worksheet_CompetitiveLanguage_EventualTenantOwnership","$A$494:$N$500"]
["=Competitive!R17C1:R45C19","Competitive","Worksheet_CompetitiveLanguage_Instructions","$A$17:$S$45"]
["=Competitive!R328C1:R336C14","Competitive","Worksheet_CompetitiveLanguage_LongTermAffordability","$A$328:$N$336"]
["=Competitive!R57C1:R100C19","Competitive","Worksheet_CompetitiveLanguage_MTR","$A$57:$S$100"]
["=Competitive!R211C3","Competitive","Worksheet_CompetitiveLanguage_PermanentSupportiveHousing","$C$211"]
["=Competitive!#REF!","Competitive","Worksheet_CompetitiveLanguage_Preservation_Instruction"]
["=Competitive!R531C2:R531C14","Competitive","Worksheet_CompetitiveLanguage_Preservation_Thresholds","$B$531:$N$531"]
["=Competitive!R785C1:R803C14","Competitive","Worksheet_CompetitiveLanguage_Signature","$A$785:$N$803"]
["=Competitive!R780C2:R784C14","Competitive","Worksheet_CompetitiveLanguage_UnacceptablePractices","$B$780:$N$784"]
["=Competitive!R344C6","Competitive","Worksheet_DeferredLanguage_EconomicIntegration","$F$344"]
["=Competitive!R46C1:R56C19","Competitive","Worksheet_DeferredLanguage_Instructions","$A$46:$S$56"]
["=Competitive!R212C3","Competitive","Worksheet_DeferredLanguage_PermanentSupportiveHousing","$C$212"]
["=Competitive!R162C1","Competitive","Worksheet_SelectionCriteriaHeaderText","$A$162"]
["=Competitive!R602C5","2020 2021 Self Scoring.xlsm","chkClrExistingFedAssistanceTier2","$E$602"]
["=Competitive!R774C4","2020 2021 Self Scoring.xlsm","chkClrGreenCommunities3x","$D$774"]
["=Competitive!R777C4","2020 2021 Self Scoring.xlsm","chkClrGreenCommunities2x","$D$777"]
[]
["='Cover Sheet Links'!R10C5","2020 2021 Self Scoring.xlsm","HTC4PercentScoresheet","$E$10"]
["='Cover Sheet Links'!R1C2","2020 2021 Self Scoring.xlsm","WorkbookName","$B$1"]
["='Cover Sheet Links'!R2C2","2020 2021 Self Scoring.xlsm","Version","$B$2"]
["='Cover Sheet Links'!R6C5","2020 2021 Self Scoring.xlsm","HTC9OnlyScoresheet","$E$6"]
["='Cover Sheet Links'!R6C5:R10C5","2020 2021 Self Scoring.xlsm","FundingTypeSelected","$E$6:$E$10"]
["='Cover Sheet Links'!R7C5","2020 2021 Self Scoring.xlsm","HTC9AndDefScoresheet","$E$7"]
["='Cover Sheet Links'!R8C5","2020 2021 Self Scoring.xlsm","DEFOnlyScoresheet","$E$8"]
["='Cover Sheet Links'!R9C5","2020 2021 Self Scoring.xlsm","HTC4PercentAndDEFScoresheet","$E$9"]
["='Cover Sheet'!R13C2","2020 2021 Self Scoring.xlsm","chkClrCOMPScoresheet","$B$13"]
["='Cover Sheet'!R15C2","2020 2021 Self Scoring.xlsm","chkClrCOMPAndDefScoresheet","$B$15"]
["='Cover Sheet'!R17C2","2020 2021 Self Scoring.xlsm","chkClr4Percent","$B$17"]
["='Cover Sheet'!R19C2","2020 2021 Self Scoring.xlsm","chkClr4PercentAndDEFScoresheet","$B$19"]
["='Cover Sheet'!R1C1:R37C16","Cover Sheet","Cover Sheet'!Print_Area","$A$1:$P$37"]
["='Cover Sheet'!R21C2","2020 2021 Self Scoring.xlsm","chkClrDEFOnlyScoresheet","$B$21"]
["='Dropdown Lists'!R2C1:R5C1","2020 2021 Self Scoring.xlsm","List_HighPriorityHomelessType","$A$2:$A$5"]
["='Dropdown Lists'!R2C3:R23C3","2020 2021 Self Scoring.xlsm","List_UnacceptablePractices","$C$2:$C$23"]
["='Named Ranges'!R100C13","2020 2021 Self Scoring.xlsm","GrtMnFixedOneQtrMile","$M$100"]
["='Named Ranges'!R100C13,'Named Ranges'!R101C13,'Named Ranges'!R102C13,'Named Ranges'!R104C13,'Named Ranges'!R105C13,'Named Ranges'!R108C13,'Named Ranges'!R109C13,'Named Ranges'!R110C13,'Named Ranges'!R112C13,'Named Ranges'!R113C13","2020 2021 Self Scoring.xlsm","LocationEfficiencyGtrMN","$M$100,$M$101,$M$102,$M$104,$M$105,$M$108,$M$109,$M$110,$M$112,$M$113"]
["='Named Ranges'!R100C13:R102C13","2020 2021 Self Scoring.xlsm","AccessToTransitFixedGtrMN","$M$100:$M$102"]
["='Named Ranges'!R100C13:R102C13,'Named Ranges'!R104C13,'Named Ranges'!R105C13","2020 2021 Self Scoring.xlsm","LocationEfficiencyGtrMNFixed","$M$100:$M$102,$M$104,$M$105"]
["='Named Ranges'!R101C13","2020 2021 Self Scoring.xlsm","GrtMnFixedOneHalfMile","$M$101"]
["='Named Ranges'!R102C13","2020 2021 Self Scoring.xlsm","GrtMnFixedExpressBusRoute","$M$102"]
["='Named Ranges'!R104C13","2020 2021 Self Scoring.xlsm","GrtMnFixedWalkScore70","$M$104"]
["='Named Ranges'!R104C13:R105C13","2020 2021 Self Scoring.xlsm","WalkabilityFixedGtrMN","$M$104:$M$105"]
["='Named Ranges'!R105C13","2020 2021 Self Scoring.xlsm","GrtMnFixedWalkScore50","$M$105"]
["='Named Ranges'!R108C13","2020 2021 Self Scoring.xlsm","GtrMNNoFixedRideOneHour","$M$108"]
["='Named Ranges'!R108C13:R110C13","2020 2021 Self Scoring.xlsm","AccessToTransitNoFixedGtrMN","$M$108:$M$110"]
["='Named Ranges'!R108C13:R110C13,'Named Ranges'!R112C13,'Named Ranges'!R113C13","2020 2021 Self Scoring.xlsm","LocationEfficiencyGtrMNNoFixed","$M$108:$M$110,$M$112,$M$113"]
["='Named Ranges'!R109C13","2020 2021 Self Scoring.xlsm","GtrMNNoFixedRideSameDay","$M$109"]
["='Named Ranges'!R10C13","2020 2021 Self Scoring.xlsm","MTRNotRestricted","$M$10"]
["='Named Ranges'!R110C13","2020 2021 Self Scoring.xlsm","GtrMNNoFixedLowService","$M$110"]
["='Named Ranges'!R112C13","2020 2021 Self Scoring.xlsm","GrtMnNoFixedWalkScore50","$M$112"]
["='Named Ranges'!R112C13:R113C13","2020 2021 Self Scoring.xlsm","WalkabilityNoFixedGtrMN","$M$112:$M$113"]
["='Named Ranges'!R113C13","2020 2021 Self Scoring.xlsm","GrtMnNoFixedWalkScore35","$M$113"]
["='Named Ranges'!R114C18","2020 2021 Self Scoring.xlsm","SupportingCommunityTotalScore","$R$114"]
["='Named Ranges'!R116C13","2020 2021 Self Scoring.xlsm","PlannedCommunityDev","$M$116"]
["='Named Ranges'!R116C17","2020 2021 Self Scoring.xlsm","PlannedCommunityDevelopmentTotalScore","$Q$116"]
["='Named Ranges'!R118C13","2020 2021 Self Scoring.xlsm","EventualTenantOwnership","$M$118"]
["='Named Ranges'!R118C17","2020 2021 Self Scoring.xlsm","EventualTenantOwnershipTotalScore","$Q$118"]
["='Named Ranges'!R120C13","2020 2021 Self Scoring.xlsm","RuralTribalDesignatedArea","$M$120"]
["='Named Ranges'!R120C17","2020 2021 Self Scoring.xlsm","RuralTribalDesignatedAreaTotalScore","$Q$120"]
["='Named Ranges'!R122C13","2020 2021 Self Scoring.xlsm","QCTorTribalEquivalent","$M$122"]
["='Named Ranges'!R122C17","2020 2021 Self Scoring.xlsm","QCTOrTribalEquivalentTotalScore","$Q$122"]
["='Named Ranges'!R124C13","2020 2021 Self Scoring.xlsm","MBEWBE","$M$124"]
["='Named Ranges'!R124C17","2020 2021 Self Scoring.xlsm","MBEWBETotalScore","$Q$124"]
["='Named Ranges'!R125C18","2020 2021 Self Scoring.xlsm","PreservationTotalScore","$R$125"]
["='Named Ranges'!R127C13","2020 2021 Self Scoring.xlsm","LossDuetoMarketConversion","$M$127"]
["='Named Ranges'!R127C13:R129C13","2020 2021 Self Scoring.xlsm","PreservationThresholds","$M$127:$M$129"]
["='Named Ranges'!R128C13","2020 2021 Self Scoring.xlsm","LossDuetoCriticalPhysical","$M$128"]
["='Named Ranges'!R129C13","2020 2021 Self Scoring.xlsm","LossDuetoOwnershipCap","$M$129"]
["='Named Ranges'!R12C13","2020 2021 Self Scoring.xlsm","MTRPreservation","$M$12"]
["='Named Ranges'!R132C13","2020 2021 Self Scoring.xlsm","ExistingFedAssistUnits100","$M$132"]
["='Named Ranges'!R132C13,'Named Ranges'!R133C13,'Named Ranges'!R134C13,'Named Ranges'!R135C13,'Named Ranges'!R136C13,'Named Ranges'!R138C13,'Named Ranges'!R139C13,'Named Ranges'!R140C13,'Named Ranges'!R146C13","2020 2021 Self Scoring.xlsm","Preservation","$M$132,$M$133,$M$134,$M$135,$M$136,$M$138,$M$139,$M$140,$M$146"]
["='Named Ranges'!R132C13:R136C13","2020 2021 Self Scoring.xlsm","ExistingFedAssistUnits","$M$132:$M$136"]
["='Named Ranges'!R132C13:R136C13,'Named Ranges'!R138C13,'Named Ranges'!R139C13,'Named Ranges'!R140C13","2020 2021 Self Scoring.xlsm","FedAssistUnits","$M$132:$M$136,$M$138,$M$139,$M$140"]
["='Named Ranges'!R133C13","2020 2021 Self Scoring.xlsm","ExistingFedAssistUnits99","$M$133"]
["='Named Ranges'!R134C13","2020 2021 Self Scoring.xlsm","ExistingFedAssistUnits75","$M$134"]
["='Named Ranges'!R135C13","2020 2021 Self Scoring.xlsm","ExistingFedAssistUnits50","$M$135"]
["='Named Ranges'!R136C13","2020 2021 Self Scoring.xlsm","ExistingFedAssistUnits25","$M$136"]
["='Named Ranges'!R138C13","2020 2021 Self Scoring.xlsm","PartialFedAssistUnits99","$M$138"]
["='Named Ranges'!R138C13:R140C13","2020 2021 Self Scoring.xlsm","PartialFedAssistUnits","$M$138:$M$140"]
["='Named Ranges'!R139C13","2020 2021 Self Scoring.xlsm","PartialFedAssistUnits75","$M$139"]
["='Named Ranges'!R140C13","2020 2021 Self Scoring.xlsm","PartialFedAssistUnits25","$M$140"]
["='Named Ranges'!R143C13","2020 2021 Self Scoring.xlsm","ExistingFedAssistanceTier2","$M$143"]
["='Named Ranges'!R144C13","2020 2021 Self Scoring.xlsm","FedAssistUnitsUnitsValue","$M$144"]
["='Named Ranges'!R146C13","2020 2021 Self Scoring.xlsm","CriticalAffordableUnits","$M$146"]
["='Named Ranges'!R147C18","2020 2021 Self Scoring.xlsm","EfficientUseOfScareResourcesTotalScore","$R$147"]
["='Named Ranges'!R148C18","2020 2021 Self Scoring.xlsm","FinancialReadinessTotalScore","$R$148"]
["='Named Ranges'!R149C13","2020 2021 Self Scoring.xlsm","FinancialReadinessEligibleFunding","$M$149"]
["='Named Ranges'!R14C13","2020 2021 Self Scoring.xlsm","MTRRuralDevelopment","$M$14"]
["='Named Ranges'!R150C13","2020 2021 Self Scoring.xlsm","FinancialReadinessDevelopmentCost","$M$150"]
["='Named Ranges'!R151C13","2020 2021 Self Scoring.xlsm","FinancialReadinessFundsCommitted","$M$151"]
["='Named Ranges'!R152C13","2020 2021 Self Scoring.xlsm","FinancialReadiness70","$M$152"]
["='Named Ranges'!R152C13,'Named Ranges'!R153C13,'Named Ranges'!R154C13,'Named Ranges'!R155C13,'Named Ranges'!R156C13,'Named Ranges'!R157C13,'Named Ranges'!R158C13,'Named Ranges'!R159C13","2020 2021 Self Scoring.xlsm","FinancialReadiness","$M$152,$M$153,$M$154,$M$155,$M$156,$M$157,$M$158,$M$159"]
["='Named Ranges'!R153C13","2020 2021 Self Scoring.xlsm","FinancialReadiness60","$M$153"]
["='Named Ranges'!R154C13","2020 2021 Self Scoring.xlsm","FinancialReadiness50","$M$154"]
["='Named Ranges'!R155C13","2020 2021 Self Scoring.xlsm","FinancialReadiness40","$M$155"]
["='Named Ranges'!R156C13","2020 2021 Self Scoring.xlsm","FinancialReadiness30","$M$156"]
["='Named Ranges'!R157C13","2020 2021 Self Scoring.xlsm","FinancialReadiness20","$M$157"]
["='Named Ranges'!R158C13","2020 2021 Self Scoring.xlsm","FinancialReadiness10","$M$158"]
["='Named Ranges'!R160C18","2020 2021 Self Scoring.xlsm","OtherContributionsTotalScore","$R$160"]
["='Named Ranges'!R161C13","2020 2021 Self Scoring.xlsm","OtherContributionsFunding","$M$161"]
["='Named Ranges'!R162C13","2020 2021 Self Scoring.xlsm","OtherContributionsDevelopmentCost","$M$162"]
["='Named Ranges'!R163C13","2020 2021 Self Scoring.xlsm","OtherFundsCommittedPercentage","$M$163"]
["='Named Ranges'!R164C13","2020 2021 Self Scoring.xlsm","OtherFunds20","$M$164"]
["='Named Ranges'!R164C13,'Named Ranges'!R165C13,'Named Ranges'!R166C13,'Named Ranges'!R167C13,'Named Ranges'!R168C13,'Named Ranges'!R169C13","2020 2021 Self Scoring.xlsm","OtherFunds","$M$164,$M$165,$M$166,$M$167,$M$168,$M$169"]
["='Named Ranges'!R165C13","2020 2021 Self Scoring.xlsm","OtherFunds15","$M$165"]
["='Named Ranges'!R166C13","2020 2021 Self Scoring.xlsm","OtherFunds10","$M$166"]
["='Named Ranges'!R167C13","2020 2021 Self Scoring.xlsm","OtherFunds5","$M$167"]
["='Named Ranges'!R168C13","2020 2021 Self Scoring.xlsm","OtherFunds2","$M$168"]
["='Named Ranges'!R16C13","2020 2021 Self Scoring.xlsm","SPTAccessToFixedTransit","$M$16"]
["='Named Ranges'!R16C13:R23C13","2020 2021 Self Scoring.xlsm","SPTAll","$M$16:$M$23"]
["='Named Ranges'!R170C18","2020 2021 Self Scoring.xlsm","IntermediaryCostsTotalScore","$R$170"]
["='Named Ranges'!R171C13","2020 2021 Self Scoring.xlsm","IntermediaryCosts","$M$171"]
["='Named Ranges'!R172C13","2020 2021 Self Scoring.xlsm","IntermediaryDevelopmentCost","$M$172"]
["='Named Ranges'!R173C13","2020 2021 Self Scoring.xlsm","IntermediaryPercentage","$M$173"]
["='Named Ranges'!R174C13","2020 2021 Self Scoring.xlsm","IntermediaryCost15","$M$174"]
["='Named Ranges'!R174C13,'Named Ranges'!R175C13,'Named Ranges'!R176C13,'Named Ranges'!R177C13,'Named Ranges'!R178C13","2020 2021 Self Scoring.xlsm","IntermediaryCost","$M$174,$M$175,$M$176,$M$177,$M$178"]
["='Named Ranges'!R175C13","2020 2021 Self Scoring.xlsm","IntermediaryCost20","$M$175"]
["='Named Ranges'!R176C13","2020 2021 Self Scoring.xlsm","IntermediaryCost25","$M$176"]
["='Named Ranges'!R177C13","2020 2021 Self Scoring.xlsm","IntermediaryCost30","$M$177"]
["='Named Ranges'!R17C13","2020 2021 Self Scoring.xlsm","SPTGreaterMNWorkforceHsg","$M$17"]
["='Named Ranges'!R180C13","2020 2021 Self Scoring.xlsm","CostContainment","$M$180"]
["='Named Ranges'!R180C17","2020 2021 Self Scoring.xlsm","CostContainmentTotalScore","$Q$180"]
["='Named Ranges'!R181C18","2020 2021 Self Scoring.xlsm","BuildingCharacteristicsTotalScore","$R$181"]
["='Named Ranges'!R182C18","2020 2021 Self Scoring.xlsm","UniversalDesignTotalScore","$R$182"]
["='Named Ranges'!R183C13","2020 2021 Self Scoring.xlsm","Elevator","$M$183"]
["='Named Ranges'!R183C13:R184C13","2020 2021 Self Scoring.xlsm","UniversalDesign","$M$183:$M$184"]
["='Named Ranges'!R184C13","2020 2021 Self Scoring.xlsm","NonElevator","$M$184"]
["='Named Ranges'!R185C13","2020 2021 Self Scoring.xlsm","UniversalDesignUnitsValue","$M$185"]
["='Named Ranges'!R187C13","2020 2021 Self Scoring.xlsm","SmokeFreeBuildings","$M$187"]
["='Named Ranges'!R187C13,'Named Ranges'!R184C13,'Named Ranges'!R183C13,'Named Ranges'!R180C13,'Named Ranges'!R124C13,'Named Ranges'!R122C13,'Named Ranges'!R120C13,'Named Ranges'!R118C13,'Named Ranges'!R110C13,'Named Ranges'!R109C13,'Named Ranges'!R108C13,'Named Ranges'!R102C13,'Named Ranges'!R101C13,'Named Ranges'!R100C13,'Named Ranges'!R94C13,'Named Ranges'!R93C13,'Named Ranges'!R92C13,'Named Ranges'!R91C13,'Named Ranges'!R90C13,'Named Ranges'!R86C13,'Named Ranges'!R85C13,'Named Ranges'!R84C13,'Named Ranges'!R79C13,'Named Ranges'!R74C13,'Named Ranges'!R71C13,'Named Ranges'!R70C13,'Named Ranges'!R61C13,'Named Ranges'!R60C13,'Named Ranges'!R59C13,'Named Ranges'!R58C13,'Named Ranges'!R57C13,'Named Ranges'!R55C13,'Named Ranges'!R51C13,'Named Ranges'!R50C13,'Named Ranges'!R27C13","2020 2021 Self Scoring.xlsm","SPTSelectionCriteria"]
["='Named Ranges'!R187C17","2020 2021 Self Scoring.xlsm","SmokeFreeBuildingsTotalScore","$Q$187"]
["='Named Ranges'!R18C13","2020 2021 Self Scoring.xlsm","SPTEconomicIntegration","$M$18"]
["='Named Ranges'!R190C13","2020 2021 Self Scoring.xlsm","GreenCommunities3x","$M$190"]
["='Named Ranges'!R190C13:R191C13","2020 2021 Self Scoring.xlsm","GreenCommunities","$M$190:$M$191"]
["='Named Ranges'!R191C13","2020 2021 Self Scoring.xlsm","GreenCommunities2x","$M$191"]
["='Named Ranges'!R194C13","2020 2021 Self Scoring.xlsm","UnacceptablePractices","$M$194"]
["='Named Ranges'!R194C17","2020 2021 Self Scoring.xlsm","UnacceptablePracticesTotalScore","$Q$194"]
["='Named Ranges'!R195C18","2020 2021 Self Scoring.xlsm","TotalPoints","$R$195"]
["='Named Ranges'!R19C13","2020 2021 Self Scoring.xlsm","SPTTribal","$M$19"]
["='Named Ranges'!R20C13","2020 2021 Self Scoring.xlsm","SPTPlannedCommunity","$M$20"]
["='Named Ranges'!R21C13","2020 2021 Self Scoring.xlsm","SPTPreservation","$M$21"]
["='Named Ranges'!R22C13","2020 2021 Self Scoring.xlsm","SPTSupportiveHsg","$M$22"]
["='Named Ranges'!R23C13","2020 2021 Self Scoring.xlsm","SPTProposalType","$M$23"]
["='Named Ranges'!R25C18","2020 2021 Self Scoring.xlsm","GreatestNeedTenantTargetingTotalScore","$R$25"]
["='Named Ranges'!R26C18","2020 2021 Self Scoring.xlsm","LargeFamilyHousingTotalScore","$R$26"]
["='Named Ranges'!R27C13","2020 2021 Self Scoring.xlsm","LargeFamily2Bedroom","$M$27"]
["='Named Ranges'!R27C13,'Named Ranges'!R50C13,'Named Ranges'!R51C13,'Named Ranges'!R55C13,'Named Ranges'!R57C13,'Named Ranges'!R58C13,'Named Ranges'!R59C13,'Named Ranges'!R60C13,'Named Ranges'!R61C13,'Named Ranges'!R70C13,'Named Ranges'!R71C13,'Named Ranges'!R74C13,'Named Ranges'!R79C13,'Named Ranges'!R84C13,'Named Ranges'!R85C13,'Named Ranges'!R86C13,'Named Ranges'!R90C13,'Named Ranges'!R91C13,'Named Ranges'!R92C13,'Named Ranges'!R93C13,'Named Ranges'!R94C13,'Named Ranges'!R100C13,'Named Ranges'!R101C13,'Named Ranges'!R102C13,'Named Ranges'!R108C13,'Named Ranges'!R109C13,'Named Ranges'!R110C13,'Named Ranges'!R118C13,'Named Ranges'!R120C13,'Named Ranges'!R122C13,'Named Ranges'!R124C13,'Named Ranges'!R180C13,'Named Ranges'!R183C13,'Named Ranges'!R184C13,'Named Ranges'!R187C13","2020 2021 Self Scoring.xlsm","AllSelectionCriteria","$M$27,$M$50,$M$51,$M$55,$M$57,$M$58,$M$59,$M$60,$M$61,$M$70,$M$71"]
["='Named Ranges'!R27C17","2020 2021 Self Scoring.xlsm","LargeFamily2BedroomQstnScore","$Q$27"]
["='Named Ranges'!R28C13","2020 2021 Self Scoring.xlsm","LargeFamilyHousing2BedroomUnitsValue","$M$28"]
["='Named Ranges'!R29C13","2020 2021 Self Scoring.xlsm","LargeFamilyHousing3BedroomUnitsValue","$M$29"]
["='Named Ranges'!R2C18","2020 2021 Self Scoring.xlsm","InitialSetupComplete","$R$2"]
["='Named Ranges'!R30C13","2020 2021 Self Scoring.xlsm","LargeFamilyHousing4BedroomUnitsValue","$M$30"]
["='Named Ranges'!R31C13","2020 2021 Self Scoring.xlsm","LargeFamily3Bedroom","$M$31"]
["='Named Ranges'!R31C17","2020 2021 Self Scoring.xlsm","LargeFamily3BedroomQstnScore","$Q$31"]
["='Named Ranges'!R32C18","2020 2021 Self Scoring.xlsm","PermanentSupportiveHousingTotalScore","$R$32"]
["='Named Ranges'!R33C13","2020 2021 Self Scoring.xlsm","SupportiveHousing20Units","$M$33"]
["='Named Ranges'!R33C13,'Named Ranges'!R34C13,'Named Ranges'!R35C13","2020 2021 Self Scoring.xlsm","SupportiveHousingUnits","$M$33,$M$34,$M$35"]
["='Named Ranges'!R33C13,'Named Ranges'!R34C13,'Named Ranges'!R35C13,'Named Ranges'!R40C13,'Named Ranges'!R44C13,'Named Ranges'!R45C13,'Named Ranges'!R46C13","2020 2021 Self Scoring.xlsm","SupportiveHousing","$M$33,$M$34,$M$35,$M$40,$M$44,$M$45,$M$46"]
["='Named Ranges'!R34C13","2020 2021 Self Scoring.xlsm","SupportiveHousing7Units","$M$34"]
["='Named Ranges'!R35C13","2020 2021 Self Scoring.xlsm","SupportiveHousing4Units","$M$35"]
["='Named Ranges'!R36C13","2020 2021 Self Scoring.xlsm","SupportiveHousingFamiliesUnitsValue","$M$36"]
["='Named Ranges'!R37C13","2020 2021 Self Scoring.xlsm","SupportiveHousingYouthWithChildrenUnitsValue","$M$37"]
["='Named Ranges'!R38C13","2020 2021 Self Scoring.xlsm","SupportiveHousingYouthUnitsValue","$M$38"]
["='Named Ranges'!R39C13","2020 2021 Self Scoring.xlsm","SupportiveHousingSingleAdultUnitsValue","$M$39"]
["='Named Ranges'!R3C18","2020 2021 Self Scoring.xlsm","ProposalType","$R$3"]
["='Named Ranges'!R40C13","2020 2021 Self Scoring.xlsm","SupportiveHousingPriority","$M$40"]
["='Named Ranges'!R41C13","2020 2021 Self Scoring.xlsm","SupportiveHousingPriorityUnitsValue","$M$41"]
["='Named Ranges'!R42C13","2020 2021 Self Scoring.xlsm","SupportiveHousingPriorityType","$M$42"]
["='Named Ranges'!R43C18","2020 2021 Self Scoring.xlsm","PeopleWithDisabilitiesTotalScore","$R$43"]
["='Named Ranges'!R44C13","2020 2021 Self Scoring.xlsm","Disabilities15Percent","$M$44"]
["='Named Ranges'!R44C13,'Named Ranges'!R45C13,'Named Ranges'!R46C13","2020 2021 Self Scoring.xlsm","Disabilities","$M$44,$M$45,$M$46"]
["='Named Ranges'!R45C13","2020 2021 Self Scoring.xlsm","Disabilities10Percent","$M$45"]
["='Named Ranges'!R46C13","2020 2021 Self Scoring.xlsm","Disabilities5Percent","$M$46"]
["='Named Ranges'!R47C13","2020 2021 Self Scoring.xlsm","DisabilitiesUnitsValue","$M$47"]
["='Named Ranges'!R48C18","2020 2021 Self Scoring.xlsm","ServesLowestIncomeTotalScore","$R$48"]
["='Named Ranges'!R49C18","2020 2021 Self Scoring.xlsm","ServesLowestIncomeTenantsTotalScore","$R$49"]
["='Named Ranges'!R4C13","2020 2021 Self Scoring.xlsm","MTRMetroSRO","$M$4"]
["='Named Ranges'!R4C13,'Named Ranges'!R5C13,'Named Ranges'!R6C13,'Named Ranges'!R8C13","2020 2021 Self Scoring.xlsm","MTROutMetro","$M$4,$M$5,$M$6,$M$8"]
["='Named Ranges'!R4C13,'Named Ranges'!R5C13,'Named Ranges'!R6C13,'Named Ranges'!R8C13,'Named Ranges'!R10C13:R10C13,'Named Ranges'!R12C13,'Named Ranges'!R14C13","2020 2021 Self Scoring.xlsm","MTRAll","$M$4,$M$5,$M$6,$M$8,$M$10,$M$12,$M$14"]
["='Named Ranges'!R4C13:R5C13,'Named Ranges'!R8C13","2020 2021 Self Scoring.xlsm","MTRMetroNewConstruction","$M$4:$M$5,$M$8"]
["='Named Ranges'!R4C13:R6C13","2020 2021 Self Scoring.xlsm","MTRMetro","$M$4:$M$6"]
["='Named Ranges'!R50C13","2020 2021 Self Scoring.xlsm","ServesLowestIncOpt1","$M$50"]
["='Named Ranges'!R50C13,'Named Ranges'!R51C13","2020 2021 Self Scoring.xlsm","ServesLowestInc","$M$50,$M$51"]
["='Named Ranges'!R51C13","2020 2021 Self Scoring.xlsm","ServesLowestIncOpt2","$M$51"]
["='Named Ranges'!R52C13","2020 2021 Self Scoring.xlsm","ServesLowestIncUnitsValue","$M$52"]
["='Named Ranges'!R53C18","2020 2021 Self Scoring.xlsm","RentalAssitanceTotalScore","$R$53"]
["='Named Ranges'!R55C13","2020 2021 Self Scoring.xlsm","RA100PercentUnits","$M$55"]
["='Named Ranges'!R55C13,'Named Ranges'!R57C13:R61C13","2020 2021 Self Scoring.xlsm","RAPercentUnits","$M$55,$M$57:$M$61"]
["='Named Ranges'!R56C13","2020 2021 Self Scoring.xlsm","RA100PercentUnitsValue","$M$56"]
["='Named Ranges'!R57C13","2020 2021 Self Scoring.xlsm","RA51PercentUnits","$M$57"]
["='Named Ranges'!R58C13","2020 2021 Self Scoring.xlsm","RA20PercentUnits","$M$58"]
["='Named Ranges'!R59C13","2020 2021 Self Scoring.xlsm","RA10PercentUnits","$M$59"]
["='Named Ranges'!R5C13","2020 2021 Self Scoring.xlsm","MTRMetroLargeFamily","$M$5"]
["='Named Ranges'!R60C13","2020 2021 Self Scoring.xlsm","RA5PercentUnits","$M$60"]
["='Named Ranges'!R61C13","2020 2021 Self Scoring.xlsm","RALessThan5PercentUnits","$M$61"]
["='Named Ranges'!R63C13","2020 2021 Self Scoring.xlsm","RA15Percent10YrUnits","$M$63"]
["='Named Ranges'!R63C13,'Named Ranges'!R65C13,'Named Ranges'!R66C13,'Named Ranges'!R67C13,'Named Ranges'!R68C13","2020 2021 Self Scoring.xlsm","RAPercent10YrUnits","$M$63,$M$65,$M$66,$M$67,$M$68"]
["='Named Ranges'!R64C13","2020 2021 Self Scoring.xlsm","RA15Percent10YrUnitsValue","$M$64"]
["='Named Ranges'!R65C13","2020 2021 Self Scoring.xlsm","RA25Percent10YrUnits","$M$65"]
["='Named Ranges'!R66C13","2020 2021 Self Scoring.xlsm","RA50Percent10YrUnits","$M$66"]
["='Named Ranges'!R67C13","2020 2021 Self Scoring.xlsm","RA75Percent10YrUnits","$M$67"]
["='Named Ranges'!R68C13","2020 2021 Self Scoring.xlsm","RA100Percent10YrUnits","$M$68"]
["='Named Ranges'!R69C18","2020 2021 Self Scoring.xlsm","LongTermAffordabilityTotalScore","$R$69"]
["='Named Ranges'!R6C13","2020 2021 Self Scoring.xlsm","MTRMetroRehabilitation","$M$6"]
["='Named Ranges'!R6C13,'Named Ranges'!R8C13","2020 2021 Self Scoring.xlsm","MTRMetroOutRehabilitation","$M$6,$M$8"]
["='Named Ranges'!R70C13","2020 2021 Self Scoring.xlsm","LongTermAffordability40","$M$70"]
["='Named Ranges'!R70C13:R71C13","2020 2021 Self Scoring.xlsm","LongTermAffordability","$M$70:$M$71"]
["='Named Ranges'!R71C13","2020 2021 Self Scoring.xlsm","LongTermAffordability35","$M$71"]
["='Named Ranges'!R72C18","2020 2021 Self Scoring.xlsm","AreasOfOpportunityTotalScore","$R$72"]
["='Named Ranges'!R73C18","2020 2021 Self Scoring.xlsm","EconomicIntegrationTotalScore","$R$73"]
["='Named Ranges'!R74C13","2020 2021 Self Scoring.xlsm","EconIntegrationMixed","$M$74"]
["='Named Ranges'!R75C13","2020 2021 Self Scoring.xlsm","EconIntegrationMixedUnitsValue","$M$75"]
["='Named Ranges'!R76C13","2020 2021 Self Scoring.xlsm","EconIntegration1stTier","$M$76"]
["='Named Ranges'!R76C13:R77C13","2020 2021 Self Scoring.xlsm","EconIntegrationTiers","$M$76:$M$77"]
["='Named Ranges'!R77C13","2020 2021 Self Scoring.xlsm","EconIntegration2ndTier","$M$77"]
["='Named Ranges'!R78C18","2020 2021 Self Scoring.xlsm","AccessToSchoolsTotalScore","$R$78"]
["='Named Ranges'!R79C13","2020 2021 Self Scoring.xlsm","AccessToSchools","$M$79"]
["='Named Ranges'!R80C13","2020 2021 Self Scoring.xlsm","AccessToSchools2BedroomsUnitsValue","$M$80"]
["='Named Ranges'!R81C13","2020 2021 Self Scoring.xlsm","AccessToSchools3BedroomsUnitsValue","$M$81"]
["='Named Ranges'!R82C13","2020 2021 Self Scoring.xlsm","AccessToSchools4BedroomsUnitsValue","$M$82"]
["='Named Ranges'!R83C18","2020 2021 Self Scoring.xlsm","WorkforceHousingCommunitiesTotalScore","$R$83"]
["='Named Ranges'!R84C13","2020 2021 Self Scoring.xlsm","WorkforceTopJobCenter","$M$84"]
["='Named Ranges'!R84C13:R86C13","2020 2021 Self Scoring.xlsm","WorkforceHousing","$M$84:$M$86"]
["='Named Ranges'!R85C13","2020 2021 Self Scoring.xlsm","WorkforceEmpGrowth","$M$85"]
["='Named Ranges'!R86C13","2020 2021 Self Scoring.xlsm","WorkforceLongCommute","$M$86"]
["='Named Ranges'!R87C18","2020 2021 Self Scoring.xlsm","LocationEfficiencyTotalScore","$R$87"]
["='Named Ranges'!R8C13","2020 2021 Self Scoring.xlsm","MTRShortSupply","$M$8"]
["='Named Ranges'!R90C13","2020 2021 Self Scoring.xlsm","MetroTransitLRTBRT","$M$90"]
["='Named Ranges'!R90C13:R94C13","2020 2021 Self Scoring.xlsm","AccessToTransitMetro","$M$90:$M$94"]
["='Named Ranges'!R90C13:R94C13,'Named Ranges'!R96C13,'Named Ranges'!R97C13","2020 2021 Self Scoring.xlsm","LocationEfficiencyMetro","$M$90:$M$94,$M$96,$M$97"]
["='Named Ranges'!R90C13:R94C13,'Named Ranges'!R96C13,'Named Ranges'!R97C13,'Named Ranges'!R100C13,'Named Ranges'!R101C13,'Named Ranges'!R102C13,'Named Ranges'!R104C13,'Named Ranges'!R105C13,'Named Ranges'!R108C13:R110C13,'Named Ranges'!R112C13,'Named Ranges'!R113C13","2020 2021 Self Scoring.xlsm","LocationEfficiency","$M$90:$M$94,$M$96,$M$97,$M$100,$M$101,$M$102,$M$104,$M$105,$M$108:$M$110,$M$112"]
["='Named Ranges'!R91C13","2020 2021 Self Scoring.xlsm","MetroTransitHiFrequency","$M$91"]
["='Named Ranges'!R92C13","2020 2021 Self Scoring.xlsm","MetroHighSrvPublicTrans","$M$92"]
["='Named Ranges'!R93C13","2020 2021 Self Scoring.xlsm","MetroExpressBusRoute","$M$93"]
["='Named Ranges'!R94C13","2020 2021 Self Scoring.xlsm","MetroParkAndRide","$M$94"]
["='Named Ranges'!R96C13","2020 2021 Self Scoring.xlsm","MetroWalkScore70","$M$96"]
["='Named Ranges'!R96C13:R97C13","2020 2021 Self Scoring.xlsm","WalkabilityMetro","$M$96:$M$97"]
["='Named Ranges'!R97C13","2020 2021 Self Scoring.xlsm","MetroWalkScore50","$M$97"]
["='TOC Data'!R1C1:R36C4","2020 2021 Self Scoring.xlsm","TableOfContents","$A$1:$D$36"]
["='TOC Data'!R40C1:R71C4","2020 2021 Self Scoring.xlsm","DEFTableOfContents","$A$40:$D$71"]

{"sheet":"Sheet1","index":10,"n_rows":208,"n_cols":11,"rows_kept":208,"cut":false,"hidden":true,"merged":[]}
["HelpText_SPT_AllSPTandSPTQuestionHelpText",null,"New Name","Old Name",null,null,null,null,null,"Competitive, Competitive with deferred and Deferred only Hide All","4% and 4% with deferred"]
[null,"HelpText_SPT_AllSPTHelpText"]
[null,null,"HelpText_SPT","InstructionsStrategicPriorityThresholds",107,null,null,null,null,"Worksheet_DeferredLanguage_Instructions","Worksheet_CompetitiveLanguage_End"]
[null,null,"HelpText_SPT_EconomicIntegration","InstructionsStrategicPriorityThresholdsEconomicIntegration",128,null,348,null,null,"Worksheet_CompetitiveLanguage_Instructions","Worksheet_CompetitiveLanguage_PermanentSupportiveHousing"]
[null,null,"HelpText_SPT_PlannedCommunityDevelopment","InstructionsStrategicPriorityThresholdsPlannedCommunityDevelopment",138,null,466,null,null,"Worksheet_CompetitiveLanguage_CostContainmentCaution","Worksheet_DeferredLanguage_EconomicIntegration"]
[null,null,"HelpText_SPT_Preservation","InstructionsStrategicPriorityThresholdsPreservation",144,null,529,null,null,"Worksheet_CompetitiveLanguage_CostContainmentProcess","Worksheet_DeferredLanguage_OpeningNote"]
[null,null,"HelpText_SPT_SupportiveHousing","InstructionsStrategicPriorityThresholdsSupportiveHousing",150,null,175,217,null,"Worksheet_CompetitiveLanguage_EconomicIntegration","Worksheet_DeferredLanguage_PermanentSupportiveHousing"]
[null,null,null,null,null,null,null,null,null,"Worksheet_CompetitiveLanguage_End","Worksheet_Header_Deferred"]
[null,null,null,null,null,null,null,null,null,"Worksheet_CompetitiveLanguage_EventualTenantOwnership","Worksheet_Header_HTC"]
[null,"HelpText_SPT_AllSPTQuestionHelpText",null,null,null,null,null,null,null,"Worksheet_CompetitiveLanguage_Instructions","Worksheet_Header_HTCandDef"]
[null,null,"HelpText_SPTQuestion_PermanentSupportiveHousing","InstructionsPermanentSupportiveHousing",175,null,150,null,null,"Worksheet_CompetitiveLanguage_LongTermAffordability","Worksheet_HTCSignature"]
[null,null,"HelptText_SPTQuestion_PeopleWithDisabilities","InstructionsPeopleWithDisabilities",217,null,150,null,null,"Worksheet_CompetitiveLanguage_MTR","Worksheet_Instructions_Competitive"]
[null,null,"HelpText_SPTQuestion_EconomicIntegration","InstructionsEconIntegration",348,null,128,null,null,"Worksheet_CompetitiveLanguage_PermanentSupportiveHousing","Worksheet_Instructions_CompetitiveDeferred"]
[null,null,"HelpText_SPTQuestion_PlannedCommunityDev","InstructionsPlannedCommunityDev",466,null,138,null,null,"Worksheet_CompetitiveLanguage_Preservation_Instruction","Worksheet_Instructions_Deferred"]
[null,null,"HelpText_SPTQuestion_PreverationThresholds","InstructionsPreservationThresholds",529,null,144,null,null,"Worksheet_CompetitiveLanguage_Preservation_Thresholds","Worksheet_Language_DEF_CostContainment"]
[null,null,null,null,null,null,null,null,null,"Worksheet_CompetitiveLanguage_PreservationCriteria_Instruction","Worksheet_Language_Deferred_PlannedCommunityDev"]
[null,null,"HelpText_EconomicIntegrationRuralTribal","InstructionsEconIntegrationRuralTribal",null,null,null,null,null,"Worksheet_CompetitiveLanguage_Signature","Worksheet_Language_DeferredAnd4HTC_PreservationThresholds"]
[null,null,"HelpText_RuralTribalEconomicIntegration","InstructionsRuralTribalDesignatedArea",null,null,null,null,null,"Worksheet_CompetitiveLanguage_UnacceptablePractices","Worksheet_Language_HTC_CostContainment"]
[null,null,null,null,null,null,null,null,null,"Worksheet_DeferredLanguage_EconomicIntegration","Worksheet_Language_HTC_EventualTenantOwnership"]
[null,null,"Worksheet_Competitive_Signature","Worksheet_HTCSignature",null,null,null,null,null,"Worksheet_DeferredLanguage_Instructions","Worksheet_Language_HTC_PlannedCommunityDev"]
[null,null,"Worksheet_CompetitiveLanguage_MTR","Worksheet_Competitive_MTR",null,null,null,null,null,"Worksheet_DeferredLanguage_PermanentSupportiveHousing","Worksheet_Language_HTC_PlannedCommunityDev_D"]
[null,null,"Worksheet_CompetitiveLanguage_EventualTenantOwnership","Worksheet_Language_EventualTenantOwnership",null,null,null,null,null,"Header_Deferred","Worksheet_Language_HTCDef_CostContainment"]
[null,null,"Worksheet_CompetitiveLanguage_LongTermAffordability","Worksheet_Language_LongTermAffordability",null,null,null,null,null,"Header_Competitive","Worksheet_Language_HTCFinancialReadiness"]
[null,null,"Worksheet_CompetitiveLanguage_UnacceptablePractices","Worksheet_Language_UnacceptablePractices",null,null,null,null,null,"HelpText_EconomicIntegrationRuralTribal","Worksheet_Language_LongTermAffordability"]
[null,null,"Worksheet_CompetitiveLanguage_Instructions","WorksheetInstructions_Competitive",null,null,null,null,null,"HelpText_RuralTribalEconomicIntegration","Worksheet_SelectionCriteriaHeaderText"]
[null,null,"Worksheet_DeferredLanguage_Instructions","WorksheetInstructions_Deferred",null,null,null,null,null,"HelpText_SPT","Worksheet_StrategicPriorityThresholds"]
[null,null,null,null,null,null,null,null,null,"HelpText_SPT_AllSPTandSPTQuestionHelpText","InstructionsDEFPlannedCommunityDev"]
[null,null,"Header_Competitive","Header_HTC",null,null,null,null,null,"HelpText_SPT_AllSPTHelpText","InstructionsDEFRAPercent10YrUnits"]
[null,null,null,null,null,null,null,null,null,"HelpText_SPT_AllSPTQuestionHelpText","InstructionsEconIntegrationRuralTribal"]
[null,null,null,null,null,null,null,null,null,"HelpText_SPT_EconomicIntegration","InstructionsHTCRAPercent10YrUnits"]
[null,null,null,null,null,null,null,null,null,"HelpText_SPT_PlannedCommunityDevelopment","InstructionsPeopleWithDisabilities"]
["Scoresheet!ApplicationNumber","$I$10","Scoresheet","Testing!ApplicationNumber","$I$9","Testing",null,null,null,"HelpText_SPT_PreservationThresholds","InstructionsPermanentSupportiveHousing"]
["Scoresheet!chkClrAccessToSchools","$E$354","Scoresheet","Testing!chkClrAccessToSchools","$E$367","Testing",null,null,null,"HelpText_SPT_SupportiveHousing","InstructionsPlannedCommunityDev"]
["Scoresheet!chkClrCostContainment","$D$687,$D$689","Scoresheet","Testing!chkClrCostContainment","$D$692","Testing",null,null,null,"HelpText_SPTQuestion_EconomicIntegration","InstructionsPreservationThresholds"]
["Scoresheet!chkClrCriticalAffordableUnits","$E$596","Scoresheet","Testing!chkClrCriticalAffordableUnits","$E$603","Testing",null,null,null,"HelpText_SPTQuestion_PeopleWithDisabilities","InstructionsRuralTribalDesignatedArea"]
["Scoresheet!chkClrDisabilities10Percent","$E$193","Scoresheet","Testing!chkClrDisabilities10Percent","$E$223","Testing",null,null,null,"HelpText_SPTQuestion_PermanentSupportiveHousing","InstructionsStrategicPriorityThresholds"]
["Scoresheet!chkClrDisabilities15Percent","$E$191","Scoresheet","Testing!chkClrDisabilities15Percent","$E$221","Testing",null,null,null,"HelpText_SPTQuestion_PlannedCommunityDev","InstructionsStrategicPriorityThresholdsEconomicIntegration"]
["Scoresheet!chkClrDisabilities5Percent","$E$195","Scoresheet","Testing!chkClrDisabilities5Percent","$E$225","Testing",null,null,null,"HelpText_SPTQuestion_PreservationThresholds","InstructionsStrategicPriorityThresholdsPlannedCommunityDevelopment"]
["Scoresheet!chkClrEconIntegration1stTier","$F$339","Scoresheet","Testing!chkClrEconIntegration1stTier","$F$351","Testing",null,null,null,null,"InstructionsStrategicPriorityThresholdsPreservation"]
["Scoresheet!chkClrEconIntegration2ndTier","$F$341","Scoresheet","Testing!chkClrEconIntegration2ndTier","$F$353","Testing",null,null,null,null,"InstructionsStrategicPriorityThresholdsSupportiveHousing"]
["Scoresheet!chkClrEconIntegrationMixed","$E$331","Scoresheet","Testing!chkClrEconIntegrationMixed","$E$343","Testing"]
["Scoresheet!chkClrElevator","$E$705","Scoresheet","Testing!chkClrElevator","$E$708","Testing"]
["Scoresheet!chkClrEventualTenantOwnership","$D$488","Scoresheet","Testing!chkClrEventualTenantOwnership","$D$496","Testing"]
["Scoresheet!chkClrExistingFedAssistUnits100","$F$574","Scoresheet","Testing!chkClrExistingFedAssistUnits100","$F$581","Testing"]
["Scoresheet!chkClrExistingFedAssistUnits25","$F$582","Scoresheet","Testing!chkClrExistingFedAssistUnits25","$F$589","Testing"]
["Scoresheet!chkClrExistingFedAssistUnits50","$F$580","Scoresheet","Testing!chkClrExistingFedAssistUnits50","$F$587","Testing"]
["Scoresheet!chkClrExistingFedAssistUnits75","$F$578","Scoresheet","Testing!chkClrExistingFedAssistUnits75","$F$585","Testing"]
["Scoresheet!chkClrExistingFedAssistUnits99","$F$576","Scoresheet","Testing!chkClrExistingFedAssistUnits99","$F$583","Testing"]
["Scoresheet!chkClrGrtMnFixedExpressBusRoute","$G$409","Scoresheet","Testing!chkClrGrtMnFixedExpressBusRoute","$G$422","Testing"]
["Scoresheet!chkClrGrtMnFixedOneHalfMile","$G$407","Scoresheet","Testing!chkClrGrtMnFixedOneHalfMile","$G$420","Testing"]
["Scoresheet!chkClrGrtMnFixedOneQtrMile","$G$405","Scoresheet","Testing!chkClrGrtMnFixedOneQtrMile","$G$418","Testing"]
["Scoresheet!chkClrGrtMnFixedWalkScore50","$G$416","Scoresheet","Testing!chkClrGrtMnFixedWalkScore50","$G$429","Testing"]
["Scoresheet!chkClrGrtMnFixedWalkScore70","$G$413","Scoresheet","Testing!chkClrGrtMnFixedWalkScore70","$G$426","Testing"]
["Scoresheet!chkClrGrtMnNoFixedWalkScore35","$G$437","Scoresheet","Testing!chkClrGrtMnNoFixedWalkScore35","$G$453","Testing"]
["Scoresheet!chkClrGrtMnNoFixedWalkScore50","$G$434","Scoresheet","Testing!chkClrGrtMnNoFixedWalkScore50","$G$450","Testing"]
["Scoresheet!chkClrGtrMNNoFixedLowService","$G$429","Scoresheet","Testing!chkClrGtrMNNoFixedLowService","$G$445","Testing"]
["Scoresheet!chkClrGtrMNNoFixedRideOneHour","$G$423","Scoresheet","Testing!chkClrGtrMNNoFixedRideOneHour","$G$440","Testing"]
["Scoresheet!chkClrGtrMNNoFixedRideSameDay","$G$426","Scoresheet","Testing!chkClrGtrMNNoFixedRideSameDay","$G$443","Testing"]
["Scoresheet!chkClrLargeFamily2Bedroom","$E$137","Scoresheet","Testing!chkClrLargeFamily2Bedroom","$E$168","Testing"]
["Scoresheet!chkClrLargeFamily3Bedroom","$E$139","Scoresheet","Testing!chkClrLargeFamily3Bedroom","$E$170","Testing"]
["Scoresheet!chkClrLongTermAffordability35","$E$320","Scoresheet","Testing!chkClrLongTermAffordability35","$E$335","Testing"]
["Scoresheet!chkClrLongTermAffordability40","$E$318","Scoresheet","Testing!chkClrLongTermAffordability40","$E$333","Testing"]
["Scoresheet!chkClrLongTermAffordabilityWaive25","$E$324","Scoresheet"]
["Scoresheet!chkClrLongTermAffordabilityWaive30","$E$322","Scoresheet"]
["Scoresheet!chkClrLossDuetoCriticalPhysical","$D$542","Scoresheet","Testing!chkClrLossDuetoCriticalPhysical","$D$550","Testing"]
["Scoresheet!chkClrLossDuetoMarketConversion","$D$528","Scoresheet","Testing!chkClrLossDuetoMarketConversion","$D$536","Testing"]
["Scoresheet!chkClrLossDuetoOwnershipCap","$D$551","Scoresheet","Testing!chkClrLossDuetoOwnershipCap","$D$559","Testing"]
["Scoresheet!chkClrMBEWBE","$D$515","Scoresheet","Testing!chkClrMBEWBE","$D$523","Testing"]
["Scoresheet!chkClrMetroExpressBusRoute","$F$387","Scoresheet","Testing!chkClrMetroExpressBusRoute","$F$400","Testing"]
["Scoresheet!chkClrMetroHighSrvPublicTrans","$F$385","Scoresheet","Testing!chkClrMetroHighSrvPublicTrans","$F$398","Testing"]
["Scoresheet!chkClrMetroParkAndRide","$F$389","Scoresheet","Testing!chkClrMetroParkAndRide","$F$402","Testing"]
["Scoresheet!chkClrMetroTransitHiFrequency","$F$383","Scoresheet","Testing!chkClrMetroTransitHiFrequency","$F$396","Testing"]
["Scoresheet!chkClrMetroTransitLRTBRT","$F$381","Scoresheet","Testing!chkClrMetroTransitLRTBRT","$F$394","Testing"]
["Scoresheet!chkClrMetroWalkScore50","$F$396","Scoresheet","Testing!chkClrMetroWalkScore50","$F$409","Testing"]
["Scoresheet!chkClrMetroWalkScore70","$F$393","Scoresheet","Testing!chkClrMetroWalkScore70","$F$406","Testing"]
[null,null,null,"Testing!chkClrMTRMetroLargeFamily","$C$67","Testing"]
[null,null,null,"Testing!chkClrMTRMetroRehabilitation","$C$70","Testing"]
[null,null,null,"Testing!chkClrMTRMetroSRO","$C$64","Testing"]
[null,null,null,"Testing!chkClrMTRNotRestricted","$B$76","Testing"]
[null,null,null,"Testing!chkClrMTRPreservation","$C$95","Testing"]
[null,null,null,"Testing!chkClrMTRRuralDevelopment","$C$100","Testing"]
[null,null,null,"Testing!chkClrMTRShortSupply","$C$74","Testing"]
["Scoresheet!chkClrNonElevator","$E$707","Scoresheet","Testing!chkClrNonElevator","$E$710","Testing"]
["Scoresheet!chkClrPartialFedAssistUnits25","$F$590","Scoresheet","Testing!chkClrPartialFedAssistUnits25","$F$597","Testing"]
["Scoresheet!chkClrPartialFedAssistUnits75","$F$588","Scoresheet","Testing!chkClrPartialFedAssistUnits75","$F$595","Testing"]
["Scoresheet!chkClrPartialFedAssistUnits99","$F$586","Scoresheet","Testing!chkClrPartialFedAssistUnits99","$F$593","Testing"]
["Scoresheet!chkClrPlannedCommunityDev","$D$457","Scoresheet","Testing!chkClrPlannedCommunityDev","$D$468","Testing"]
["Scoresheet!chkClrQCTorTribalEquivalent","$D$506","Scoresheet","Testing!chkClrQCTorTribalEquivalent","$D$514","Testing"]
["Scoresheet!chkClrRA100Percent10YrUnits","$E$296","Scoresheet","Testing!chkClrRA100Percent10YrUnits","$E$310","Testing"]
["Scoresheet!chkClrRA100PercentUnits","$E$272","Scoresheet","Testing!chkClrRA100PercentUnits","$E$294","Testing"]
["Scoresheet!chkClrRA10PercentUnits","$E$278","Scoresheet","Testing!chkClrRA10PercentUnits","$E$300","Testing"]
["Scoresheet!chkClrRA10YearContract","$E$284","Scoresheet"]
["Scoresheet!chkClrRA15Percent10YrUnits","$E$304","Scoresheet","Testing!chkClrRA15Percent10YrUnits","$E$318","Testing"]
["Scoresheet!chkClrRA20PercentUnits","$E$276","Scoresheet","Testing!chkClrRA20PercentUnits","$E$298","Testing"]
["Scoresheet!chkClrRA25Percent10YrUnits","$E$302","Scoresheet","Testing!chkClrRA25Percent10YrUnits","$E$316","Testing"]
["Scoresheet!chkClrRA50Percent10YrUnits","$E$300","Scoresheet","Testing!chkClrRA50Percent10YrUnits","$E$314","Testing"]
["Scoresheet!chkClrRA51PercentUnits","$E$274","Scoresheet","Testing!chkClrRA51PercentUnits","$E$296","Testing"]
["Scoresheet!chkClrRA5PercentUnits","$E$280","Scoresheet","Testing!chkClrRA5PercentUnits","$E$302","Testing"]
["Scoresheet!chkClrRA75Percent10YrUnits","$E$298","Scoresheet","Testing!chkClrRA75Percent10YrUnits","$E$312","Testing"]
["Scoresheet!chkClrRALessThan5PercentUnits","$E$282","Scoresheet","Testing!chkClrRALessThan5PercentUnits","$E$304","Testing"]
["Scoresheet!chkClrRuralTribalDesignatedArea","$D$498","Scoresheet","Testing!chkClrRuralTribalDesignatedArea","$D$506","Testing"]
["Scoresheet!chkClrServesLowestIncOpt1","$E$241","Scoresheet","Testing!chkClrServesLowestIncOpt1","$E$271","Testing"]
["Scoresheet!chkClrServesLowestIncOpt2","$E$243","Scoresheet","Testing!chkClrServesLowestIncOpt2","$E$273","Testing"]
["Scoresheet!chkClrSmokeFreeBuildings","$C$748","Scoresheet","Testing!chkClrSmokeFreeBuildings","$C$751","Testing"]
["Scoresheet!chkClrSPTAccessToFixedTransit","$C$91","Scoresheet","Testing!chkClrSPTAccessToFixedTransit","$C$113","Testing"]
["Scoresheet!chkClrSPTEconomicIntegration","$C$105","Scoresheet","Testing!chkClrSPTEconomicIntegration","$C$126","Testing"]
["Scoresheet!chkClrSPTGreaterMNWorkforceHsg","$C$95","Scoresheet","Testing!chkClrSPTGreaterMNWorkforceHsg","$C$117","Testing"]
["Scoresheet!chkClrSPTPlannedCommunity","$C$115","Scoresheet","Testing!chkClrSPTPlannedCommunity","$C$136","Testing"]
["Scoresheet!chkClrSPTPreservation","$C$121","Scoresheet","Testing!chkClrSPTPreservation","$C$142","Testing"]
["Scoresheet!chkClrSPTSupportiveHsg","$C$127","Scoresheet","Testing!chkClrSPTSupportiveHsg","$C$148","Testing"]
["Scoresheet!chkClrSPTTribal","$C$111","Scoresheet","Testing!chkClrSPTTribal","$C$132","Testing"]
["Scoresheet!chkClrSupportiveHousing20Units","$E$151","Scoresheet","Testing!chkClrSupportiveHousing20Units","$E$181","Testing"]
["Scoresheet!chkClrSupportiveHousing4Units","$E$155","Scoresheet","Testing!chkClrSupportiveHousing4Units","$E$185","Testing"]
["Scoresheet!chkClrSupportiveHousing7Units","$E$153","Scoresheet","Testing!chkClrSupportiveHousing7Units","$E$183","Testing"]
["Scoresheet!chkClrSupportiveHousingPriority","$E$162","Scoresheet","Testing!chkClrSupportiveHousingPriority","$E$192","Testing"]
["Scoresheet!chkClrWorkforceEmpGrowth","$E$365","Scoresheet","Testing!chkClrWorkforceEmpGrowth","$E$378","Testing"]
["Scoresheet!chkClrWorkforceLongCommute","$E$368","Scoresheet","Testing!chkClrWorkforceLongCommute","$E$381","Testing"]
["Scoresheet!chkClrWorkforceTopJobCenter","$E$363","Scoresheet","Testing!chkClrWorkforceTopJobCenter","$E$376","Testing"]
["Scoresheet!DevAccessToSchools2BedroomsUnitsValue","$R$351","Scoresheet","Testing!DevAccessToSchools2BedroomsUnitsValue","$R$363","Testing"]
["Scoresheet!DevAccessToSchools3BedroomsUnitsValue","$R$352","Scoresheet","Testing!DevAccessToSchools3BedroomsUnitsValue","$R$364","Testing"]
["Scoresheet!DevAccessToSchools4BedroomsUnitsValue","$R$353","Scoresheet","Testing!DevAccessToSchools4BedroomsUnitsValue","$R$365","Testing"]
["Scoresheet!DevAccessToSchoolsUnitsValue","$R$351:$R$353","Scoresheet","Testing!DevAccessToSchoolsUnitsValue","$R$363:$R$365","Testing"]
["Scoresheet!DevDisabilitiesUnitsValue","$R$189","Scoresheet","Testing!DevDisabilitiesUnitsValue","$R$219","Testing"]
["Scoresheet!DevEconIntegrationMixedUnitsValue","$R$331","Scoresheet","Testing!DevEconIntegrationMixedUnitsValue","$R$341","Testing"]
["Scoresheet!DevEditUnitsValueCells","$R$135,$R$148,$R$156,$R$188,$R$234,$R$269,$R$292,$R$328,$R$349,$R$569,$R$702","Scoresheet","Testing!DevEditUnitsValueCells","$R$166,$R$178,$R$186,$R$218,$R$264,$R$291,$R$307,$R$340,$R$361,$R$576,$R$705","Testing"]
["Scoresheet!DevelopmentCity","$I$12","Scoresheet","Testing!DevelopmentCity","$I$11","Testing"]
["Scoresheet!DevelopmentLocation","$I$11","Scoresheet","Testing!DevelopmentLocation","$I$10","Testing"]
["Scoresheet!DevelopmentName","$I$8","Scoresheet","Testing!DevelopmentName","$I$7","Testing"]
["Scoresheet!DevelopmentNumber","$I$9","Scoresheet","Testing!DevelopmentNumber","$I$8","Testing"]
["Scoresheet!DevFedAssistUnitsUnitsValue","$R$570","Scoresheet","Testing!DevFedAssistUnitsUnitsValue","$R$577","Testing"]
["Scoresheet!DevFinancialReadiness","$I$611,$K$611","Scoresheet","Testing!DevFinancialReadiness","$I$618,$K$618","Testing"]
["Scoresheet!DevFinancialReadinessDevelopmentCost","$K$611","Scoresheet","Testing!DevFinancialReadinessDevelopmentCost","$K$618","Testing"]
["Scoresheet!DevFinancialReadinessEligibleFunding","$I$611","Scoresheet","Testing!DevFinancialReadinessEligibleFunding","$I$618","Testing"]
["Scoresheet!DevFinancialReadinessFundsCommitted","$M$611","Scoresheet","Testing!DevFinancialReadinessFundsCommitted","$M$618","Testing"]
["Scoresheet!DevIntermediary","$K$677,$I$677","Scoresheet","Testing!DevIntermediary","$K$682,$I$682","Testing"]
["Scoresheet!DevIntermediaryCosts","$I$677","Scoresheet","Testing!DevIntermediaryCosts","$I$682","Testing"]
["Scoresheet!DevIntermediaryDevelopmentCost","$K$677","Scoresheet","Testing!DevIntermediaryDevelopmentCost","$K$682","Testing"]
["Scoresheet!DevIntermediaryPercentage","$M$677","Scoresheet","Testing!DevIntermediaryPercentage","$M$682","Testing"]
["Scoresheet!DevLargeFamilyHousing2BedroomUnitsValue","$R$136","Scoresheet","Testing!DevLargeFamilyHousing2BedroomUnitsValue","$R$167","Testing"]
["Scoresheet!DevLargeFamilyHousing3BedroomUnitsValue","$R$137","Scoresheet","Testing!DevLargeFamilyHousing3BedroomUnitsValue","$R$168","Testing"]
["Scoresheet!DevLargeFamilyHousing4BedroomUnitsValue","$R$138","Scoresheet","Testing!DevLargeFamilyHousing4BedroomUnitsValue","$R$169","Testing"]
["Scoresheet!DevLargeFamilyHousingGrtMNUnitsValue","$R$137:$R$138","Scoresheet","Testing!DevLargeFamilyHousingGrtMNUnitsValue","$R$168:$R$169","Testing"]
["Scoresheet!DevLargeFamilyHousingUnitsValue","$R$136:$R$138","Scoresheet","Testing!DevLargeFamilyHousingUnitsValue","$R$167:$R$169","Testing"]
["Scoresheet!DevManualEntryCellsInstructionsPreservationFedAssist","$Q$569","Scoresheet","Testing!DevManualEntryCellsInstructionsPreservationFedAssist","$Q$576","Testing"]
["Scoresheet!DevOtherContributions","$I$650,$K$650","Scoresheet","Testing!DevOtherContributions","$I$655,$K$655","Testing"]
["Scoresheet!DevOtherContributionsDevelopmentCost","$K$650","Scoresheet","Testing!DevOtherContributionsDevelopmentCost","$K$655","Testing"]
["Scoresheet!DevOtherContributionsFunding","$I$650","Scoresheet","Testing!DevOtherContributionsFunding","$I$655","Testing"]
["Scoresheet!DevOtherFundsCommittedPercentage","$M$650","Scoresheet","Testing!DevOtherFundsCommittedPercentage","$M$655","Testing"]
["Scoresheet!DevRA10YrUnitsValue","$R$295","Scoresheet","Testing!DevRA10YrUnitsValue","$R$308","Testing"]
["Scoresheet!DevRAUnitsValue","$R$270","Scoresheet","Testing!DevRAUnitsValue","$R$292","Testing"]
["Scoresheet!DevServesLowestIncUnitsValue","$R$235","Scoresheet","Testing!DevServesLowestIncUnitsValue","$R$265","Testing"]
["Scoresheet!DevSupportiveHousingFamiliesUnitsValue","$R$153","Scoresheet","Testing!DevSupportiveHousingFamiliesUnitsValue","$R$183","Testing"]
["Scoresheet!DevSupportiveHousingPriorityType","$R$158","Scoresheet","Testing!DevSupportiveHousingPriorityType","$R$188","Testing"]
["Scoresheet!DevSupportiveHousingPriorityUnitsValue","$R$157","Scoresheet","Testing!DevSupportiveHousingPriorityUnitsValue","$R$187","Testing"]
["Scoresheet!DevSupportiveHousingPriorityValues","$R$157,$R$158","Scoresheet","Testing!DevSupportiveHousingPriorityValues","$R$187,$R$188","Testing"]
["Scoresheet!DevSupportiveHousingSingleAdultUnitsValue","$R$152","Scoresheet","Testing!DevSupportiveHousingSingleAdultUnitsValue","$R$182","Testing"]
["Scoresheet!DevSupportiveHousingUnitsValue","$R$149,$R$150,$R$152,$R$153","Scoresheet","Testing!DevSupportiveHousingUnitsValue","$R$179,$R$180,$R$182,$R$183","Testing"]
["Scoresheet!DevSupportiveHousingYouthUnitsValue","$R$150","Scoresheet","Testing!DevSupportiveHousingYouthUnitsValue","$R$180","Testing"]
["Scoresheet!DevSupportiveHousingYouthWithChildrenUnitsValue","$R$149","Scoresheet","Testing!DevSupportiveHousingYouthWithChildrenUnitsValue","$R$179","Testing"]
["Scoresheet!DevUnacceptablePractices","$B$755","Scoresheet","Testing!DevUnacceptablePractices","$B$758","Testing"]
["Scoresheet!DevUniversalDesignUnitsValue","$R$703","Scoresheet","Testing!DevUniversalDesignUnitsValue","$R$706","Testing"]
[]
[null,null,null,"Testing!Header_Competitive","$A$3:$S$4","Testing"]
["Scoresheet!InstructionsDEFPlannedCommunityDev","$C$455,$F$462:$N$462,$F$464:$N$467,$E$468:$N$468,$E$470:$N$472,$E$475:$N$482","Scoresheet","Testing!Header_Deferred","$A$1:$S$2","Testing"]
["Scoresheet!InstructionsDEFRAPercent10YrUnits","$C$287:$N$289","Scoresheet","Testing!HelpText_EconomicIntegrationRuralTribal","$E$349","Testing"]
["Scoresheet!InstructionsEconIntegrationRuralTribal","$E$337","Scoresheet","Testing!HelpText_RuralTribalEconomicIntegration","$C$504","Testing"]
["Scoresheet!InstructionsHTCRAPercent10YrUnits","$C$290:$N$293","Scoresheet","Testing!HelpText_SPT","$A$107","Testing"]
["Scoresheet!InstructionsPeopleWithDisabilities","$C$187","Scoresheet","Testing!HelpText_SPT_AllSPTandSPTQuestionHelpText","$A$107,$D$128,$D$138,$D$144,$D$150,$C$175,$C$217,$E$348,$C$466,$B$529","Testing"]
["Scoresheet!InstructionsPermanentSupportiveHousing","$C$145","Scoresheet","Testing!HelpText_SPT_AllSPTHelpText","$A$107,$D$128,$D$138,$D$144,$D$150","Testing"]
["Scoresheet!InstructionsPlannedCommunityDev","$C$455","Scoresheet","Testing!HelpText_SPT_AllSPTQuestionHelpText","$C$175,$C$217,$E$348,$C$466,$B$529","Testing"]
["Scoresheet!InstructionsPreservationThresholds","$B$521","Scoresheet","Testing!HelpText_SPT_EconomicIntegration","$D$128","Testing"]
["Scoresheet!InstructionsRuralTribalDesignatedArea","$C$496","Scoresheet","Testing!HelpText_SPT_PlannedCommunityDevelopment","$D$138","Testing"]
["Scoresheet!InstructionsStrategicPriorityThresholds","$A$85","Scoresheet","Testing!HelpText_SPT_PreservationThresholds","$D$144","Testing"]
["Scoresheet!InstructionsStrategicPriorityThresholdsEconomicIntegration","$D$107","Scoresheet","Testing!HelpText_SPT_SupportiveHousing","$D$150","Testing"]
["Scoresheet!InstructionsStrategicPriorityThresholdsPlannedCommunityDevelopment","$D$117","Scoresheet","Testing!HelpText_SPTQuestion_EconomicIntegration","$E$348","Testing"]
["Scoresheet!InstructionsStrategicPriorityThresholdsPreservation","$D$123","Scoresheet","Testing!HelpText_SPTQuestion_PeopleWithDisabilities","$C$217","Testing"]
["Scoresheet!InstructionsStrategicPriorityThresholdsSupportiveHousing","$D$129","Scoresheet","Testing!HelpText_SPTQuestion_PermanentSupportiveHousing","$C$175","Testing"]
[null,null,null,"Testing!HelpText_SPTQuestion_PlannedCommunityDev","$C$466","Testing"]
[null,null,null,"Testing!HelpText_SPTQuestion_PreservationThresholds","$B$529","Testing"]
["Scoresheet!orderMBEWBE","$B$513","Scoresheet","Testing!Order_MBEWBE","$B$521","Testing"]
["Scoresheet!orderQCTorTribalEquivalent","$B$504","Scoresheet","Testing!Order_QCTorTribalEquivalent","$B$512","Testing"]
["Scoresheet!orderRuralTribalDesignatedArea","$B$493","Scoresheet","Testing!Order_RuralTribalDesignatedArea","$B$501","Testing"]
[]
[]
["Scoresheet!Worksheet_CompetitiveLanguage_End","$A$753:$P$776","Scoresheet","Testing!SelectionCriteriaHeaderText","$A$162","Testing"]
["Scoresheet!Worksheet_CompetitiveLanguage_PermanentSupportiveHousing","$C$181","Scoresheet","Testing!SPTInstructions","$A$106:$P$107","Testing"]
["Scoresheet!Worksheet_DeferredLanguage_EconomicIntegration","$E$336","Scoresheet","Testing!Worksheet_CompetitiveLanguage_CostContainmentCaution","$C$697","Testing"]
["Scoresheet!Worksheet_DeferredLanguage_OpeningNote","$C$14","Scoresheet","Testing!Worksheet_CompetitiveLanguage_CostContainmentProcess","$E$694","Testing"]
["Scoresheet!Worksheet_DeferredLanguage_PermanentSupportiveHousing","$C$182","Scoresheet","Testing!Worksheet_CompetitiveLanguage_EconomicIntegration","$F$344","Testing"]
["Scoresheet!Worksheet_Header_Deferred","$A$1:$P$2","Scoresheet","Testing!Worksheet_CompetitiveLanguage_End","$A$756:$N$779","Testing"]
["Scoresheet!Worksheet_Header_HTC","$A$3:$N$4","Scoresheet","Testing!Worksheet_CompetitiveLanguage_EventualTenantOwnership","$A$494:$N$500","Testing"]
["Scoresheet!Worksheet_Header_HTCandDef","$A$3,$A$5","Scoresheet","Testing!Worksheet_CompetitiveLanguage_Instructions","$A$17:$S$45","Testing"]
["Scoresheet!Worksheet_HTCSignature","$A$758:$N$776","Scoresheet","Testing!Worksheet_CompetitiveLanguage_LongTermAffordability","$A$329:$N$337","Testing"]
["Scoresheet!Worksheet_Instructions_Competitive","$A$45:$P$69","Scoresheet","Testing!Worksheet_CompetitiveLanguage_MTR","$A$57:$S$100","Testing"]
["Scoresheet!Worksheet_Instructions_CompetitiveDeferred","$A$18:$P$44","Scoresheet","Testing!Worksheet_CompetitiveLanguage_PermanentSupportiveHousing","$C$211","Testing"]
["Scoresheet!Worksheet_Instructions_Deferred","$A$70:$S$80","Scoresheet","Testing!Worksheet_CompetitiveLanguage_Preservation_Instruction","$B$530","Testing"]
["Scoresheet!Worksheet_Language_DEF_CostContainment","$E$689:$N$690,$C$692","Scoresheet","Testing!Worksheet_CompetitiveLanguage_Preservation_Thresholds","$B$532:$N$532","Testing"]
["Scoresheet!Worksheet_Language_Deferred_PlannedCommunityDev","$F$462:$N$462,$F$464:$N$467,$E$468:$N$468,$E$471:$N$472,$E$475:$N$482","Scoresheet","Testing!Worksheet_CompetitiveLanguage_PreservationCriteria_Instruction","$C$570","Testing"]
["Scoresheet!Worksheet_Language_DeferredAnd4HTC_PreservationThresholds","$B$522:$N$563","Scoresheet","Testing!Worksheet_CompetitiveLanguage_Signature","$A$761:$N$779","Testing"]
["Scoresheet!Worksheet_Language_HTC_CostContainment","$C$692:$N$693,$E$687:$N$688","Scoresheet","Testing!Worksheet_CompetitiveLanguage_UnacceptablePractices","$B$756:$N$760","Testing"]
["Scoresheet!Worksheet_Language_HTC_EventualTenantOwnership","$A$486:$N$492","Scoresheet","Testing!Worksheet_DeferredLanguage_EconomicIntegration","$F$345","Testing"]
["Scoresheet!Worksheet_Language_HTC_PlannedCommunityDev","$E$469:$N$470,$E$474","Scoresheet","Testing!Worksheet_DeferredLanguage_Instructions","$A$46:$S$56","Testing"]
["Scoresheet!Worksheet_Language_HTC_PlannedCommunityDev_D","$E$470:$N$470","Scoresheet","Testing!Worksheet_DeferredLanguage_PermanentSupportiveHousing","$C$212","Testing"]
["Scoresheet!Worksheet_Language_HTCDef_CostContainment","$E$689:$N$690,$C$694,$C$692","Scoresheet"]
["Scoresheet!Worksheet_Language_HTCFinancialReadiness","$C$642","Scoresheet"]
["Scoresheet!Worksheet_Language_LongTermAffordability","$A$314:$N$325","Scoresheet"]
["Scoresheet!Worksheet_SelectionCriteriaHeaderText","$A$131","Scoresheet"]
["Scoresheet!Worksheet_StrategicPriorityThresholds","$A$82:$P$129","Scoresheet"]

{"sheet":"Sheet3","index":11,"n_rows":0,"n_cols":0,"rows_kept":0,"cut":false,"hidden":true,"merged":[]}